Workbook

Sheet YARIŞMA BİLGİLERİ
A2: Türkiye Atletizm Federasyonu İzmir Atletizm İl Temsilciliği
A14: =F19 -> Naili Moran Türkiye Atletizm Şampiyonası
A18: Yarışma Bilgileri
A19: Yarışma Adı : | F19: Naili Moran Türkiye Atletizm Şampiyonası
A20: Yarışmanın Yapıldığı İl : | F20: İzmir
A21: Kategori : | F21: 13 Yaş Kızlar
A22: Tarih : | F22: 14 - 15 Haziran 2014
A23: Katılan Sporcu Sayısı : | F23: 90

Sheet YARIŞMA PROGRAMI (hidden)
H1: Diskalifiye Nedenleri ve Kural Numaraları
B2: ='YARIŞMA BİLGİLERİ'!F19 -> Naili Moran Türkiye Atletizm Şampiyonası
B3: YARIŞMA PROGRAMI
B4: Bakmak istediğiniz branş üzerine "Tıkla"yınız… | H4: KURAL 125.5 : Yarışmalar esnasında sportmenlik dışı davranışlarda bulunan sporcu IAAF Kural 125.5 gereği diskalifiye edilecektir. Sporcunun yarışmanın devamındaki diğer branşlara katılması da engellenecektir. “Bu kurala göre diskalifiye edilen atletin, diskalifiye edildiği yarıştaki dereceleri geçersizdir.” Yarışma sonucunda o atletin karşısında sadece “DQ 125.5” yazacak. Tüm uyarılar ve diskalifikasyonlar (yani sarı ve kırmızı kartlar) yarışma sekreterliğine ve tüm başhakemlere bildirilecektir.
B5: ='YARIŞMA BİLGİLERİ'!F21 -> 13 Yaş Kızlar | D5: 1.GÜN | H5: KURAL 144.2 : Yarışma sırasında kurallar dışında yardım alan veya yardım veren atlet, başhakem tarafından önce sarı kartla uyarılır, tekrarı halinde IAAF Kural 144.2’ye göre diskalifiye edİLİ-İLİr. Yarışma alanında telefon, telsiz, radyo, kasetçalar vb. cihazlar kullanılması, atlete avantaj sağlayacak şekilde yay, tekerlek vb. donanıma sahip ayakkabıların giyilmesi, atma aletlerinin normal ölçülerine eklerin yapılması, “kural dışı yardım” kabul edİLİ-İLİr. Mesafe koşularında tur yemiş ya da tur yemek üzere olan atletlerin tempo vermesi, IAAF Kural 144.2 çerçevesinde her iki atletin de diskalifiye edilmesini gerektirir.
B6: SAAT | C6: BRANŞ | D6: BARAJ DERECESİ | E6: REKOR | H6: KURAL 162.5 :Yerlerinize ya da dikkat komutundan sonra makul bir sürede pozisyon almayan ve yerlerinize komutundan sonra sesle ya da başka şekilde diğer atlet(ler)i rahatsız eden atlet(ler) önce sarı kart, tekrarı halinde kırmızı kart görür.” Eğer başhakem, starterin kararıyla mutabık değilse, tüm atletlere yeşil kart gösterİLİ-İLİr. Bu kural sadece starteri/start başhakemini ilgilendirir.
B7: 14 Haziran 2014 - 18:15 | C7: 100 Metre | H7: KURAL 162.7 : Hatalı çıkış yapan her atlet diskalifiye edİLİ-İLİr. Yarışmada ilk hatalı çıkışı yapan sporcu dahil, hatalı çıkış yapan tüm atletler IAAF Kural 162.7 gereği diskalifiye edilecektir.
B8: 14 Haziran 2014 - 20:15 | C8: 400 Metre | H8: KURAL 163.2 : Yarışma içerisinde bir sporcunun iterek veya çelme takarak, kasıtlı olarak bir başka sporcunun düşmesine neden olması diskalifiye sebebidir. Bunu yapan sporcu IAAF Kural 163.2 gereği diskalifiye edilecektir. (Bu tip olaylarda yardımcı hakem sarı bayrağını kaldıracak ve başhakemi bilgilendirecektir. Diskalifiye olup olmayacağına başhakem karar verecektir.)
B9: 14 Haziran 2014 - 19:15 | C9: 1500 Metre | H9: KURAL 163.3 : Kulvarlı koşuların tamamında sporcu, yarışmayı çıkıştan varışa kadar kendi kulvarında koşmak zorundadır. Virajda kendi kulvarının solundaki kulvara geçen ya da o kulvarın çizgisine temas eden atlet, IAAF Kural 163.3 gereği diskalifiye edilecektir. Ancak sporcu yarışma içerisinde başkası tarafından itilmek veya dengesinin bozulması sonucu kulvar değiştirmek zorunda kalırsa ve bu durum kendisine avantaj sağlamazsa diskalifiye söz konusu olmayacaktır. Düzlükte kendi kulvarının dışına çıkan ve kendisine mesafe avantajı sağlamayan atlet, bir diğer kulvardaki atleti engellememişse diskalifiye edilmez. Virajda kendi kulvarının sağındaki kulvara geçen ya da o kulvarın çizgisiyle temas eden atlet, o kulvarda koşan atleti engellememişse diskalifiye edilmez.
B10: 14 Haziran 2014 - 10:15 | C10: 75 Metre Engelli | H10: KURAL 163.3 : 800 metre koşusunda sporcular kendi kulvarlarını terk edecekleri çizgiye kadar, kulvarlarında koşmak zorundadır. Bu işaretli bölüme gelmeden kulvarını terk eden sporcu IAAF Kural 163.3 gereği diskalifiye edilecektir.
B11: 14 Haziran 2014 - 18:45 | C11: Yüksek Atlama | H11: KURAL 163.3 : 4*400 metre bayrak yarışmasında ikinci sıradaki sporcu kulvar farkı sona erinceye kadar (ilk dönemeç) kendi kulvarında koşacaktır. Bu noktaya gelene kadar kulvar ihlali yapan sporcunun takımı IAAF Kural 163.3 gereği diskalifiye edilecektir
B12: 14 Haziran 2014 - 11:00 | C12: Uzun Atlama-A Grubu | H12: KURAL 168.7 : Engel yarışmalarında engel geçişi esnasında ayağını engelin üst kısmının yatay düzeyinin aşağısından geçiren, eli veya ayağı ile engeli kasten deviren ve her ne sebeple olursa olsun engel üzerinden geçmeyen sporcu IAAF Kural 168.7 gereği diskalifiye edilecektir.
B13: 14 Haziran 2014 - 11:00 | C13: Uzun Atlama-B Grubu | H13: KURAL 170.9 : 4*400 metre bayrak yarışmasında 3. ve 4. sporcular; kendilerinden önceki takım elemanlarının 200 metreyi geçiş durumuna göre sıralanacaklar ve bu sıralamayı bayrak değişim anına kadar değiştirdikleri takdirde takımları IAAF Kural 170.9 gereği diskalifiye edilecektir.
B14: 14 Haziran 2014 - 18:45 | C14: Disk Atma | H14: KURAL 170.13 : Bayrak yarışmalarında bayrağın yere düşmesi halinde, bayrağı düşüren atlet alacaktır. Bayrağı düşüren atletin dışında bir atletin alması, IAAF Kural 170.13’e göre takımın diskalifiye edilmesine neden olur. Bayrağı düşüren atlet, bayrağı yerden alırken koşulan mesafeyi kısaltır ya da bir başka kulvardaki atleti engellerse, yine bu kural çerçevesinde takımı diskalifiye edİLİ-İLİr.
B15: ='YARIŞMA BİLGİLERİ'!F21 -> 13 Yaş Kızlar | D15: 2.GÜN | H15: KURAL 170.14 : Bayrak yarışmalarında bayrağın değişim sahasının dışında değiştirilmesi durumunda hatalı değişimi yapan takım IAAF Kural 170.14 gereği diskalifiye edilecektir. Bu noktada dikkat edilmesi gereken en önemli husus sporcunun değil, bayrağın değişim alanı içerisinde olmasıdır.
B16: SAAT | C16: BRANŞ | D16: BARAJ DERECESİ | E16: REKOR | H16: Uluslararası kısaltmalar
B17: 15 Haziran 2014 - 12:00 | C17: 200 Metre | H17: DNS : Yarışa başlamadı
B18: 15 Haziran 2014 - 10:30 | C18: 800 Metre | H18: DNF : Yarışı tamamlamadı
B19: 15 Haziran 2014 - 09:30 | C19: 3000 Metre | H19: DQ : Diskalifiye
B20: 15 Haziran 2014 - 13:15 | C20: 300 Metre Engelli | H20: NM : Geçerli derecesi yok
B21: 14 Haziran 2014 - 13:00 | C21: Üçadım Atlama | H21: Türkiye Rekoru Kısaltmaları
B22: 15 Haziran 2014 - 11:15 | C22: Sırıkla Atlama | H22: TR : Türkiye Rekoru
B23: 15 Haziran 2014 - 11:45 | C23: Gülle Atma | H23: GTR : Türkiye Gençler Rekoru
B24: 15 Haziran 2014 - 09:30 | C24: Cirit Atma | H24: YTR : Türkiye Yıldızlar Rekoru
B25: 15 Haziran 2014 - 13:00 | C25: Çekiç Atma
B26: 15 Haziran 2014 - 14:15 | C26: Genel Puan Durumu

Sheet KAYIT LİSTESİ
A1: ='YARIŞMA BİLGİLERİ'!F19 -> Naili Moran Türkiye Atletizm Şampiyonası
A2: ='YARIŞMA BİLGİLERİ'!F21 -> 13 Yaş Kızlar | G2: Kayıt Listesi | I2: =NOW() -> 41805.6424
A3: S.N. | B3: SERİ-KULVAR FORMÜLÜ | C3: GÖĞÜS NO | D3: TC NO | E3: DOĞUM TARİHİ | F3: ADI VE SOYADI | G3: İLİ-İLİ | H3: YARIŞACAĞI BRANŞ | I3: EN İYİ DERECESİ | J3: SERİ | K3: KULVAR | L3: ATMA-ATLAMA SIRASI
A4: 1 | B4: =CONCATENATE(H4,"-",J4,"-",K4) -> 100M-1-4 | C4: 39 | E4: 2001-01-01 | F4: BERİVAN ALPER | G4: AKSARAY | H4: 100M | I4: 1275 | J4: 1 | K4: 4
A5: 2 | B5: =CONCATENATE(H5,"-",J5,"-",K5) -> 100M-1-5 | C5: 104 | E5: 2001-06-03 | F5: HİLAYDA ARSLAN | G5: BALIKESİR | H5: 100M | I5: 1297 | J5: 1 | K5: 5
A6: 3 | B6: 100M-1-3 | C6: 457 | E6: 2001-07-25 | F6: SEVİLCAN BAHADIR | G6: KARABÜK | H6: 100M | I6: 1300 | J6: 1 | K6: 3
A7: 4 | B7: 100M-1-6 | C7: 97 | E7: 2001-01-14 | F7: ALEYNA FİCİ | G7: BALIKESİR | H7: 100M | I7: 1320 | J7: 1 | K7: 6
A8: 5 | B8: 100M-1-2 | C8: 109 | E8: 2001-01-01 | F8: GİZEM AKGÖZ | G8: BALIKESİR | H8: 100M | I8: 1320 | J8: 1 | K8: 2
A9: 6 | B9: 100M-1-7 | C9: 382 | E9: 2001-01-09 | F9: BAŞAK ERĞUN | G9: İZMİR | H9: 100M | I9: 1340 | J9: 1 | K9: 7
A10: 7 | B10: 100M-1-1 | C10: 389 | E10: 2001-01-01 | F10: SENA ÖZDEMİR | G10: İZMİR | H10: 100M | I10: 1350 | J10: 1 | K10: 1
A11: 8 | B11: 100M-1-8 | C11: 742 | E11: 2001-04-06 | F11: MELEK NUR YAMAN | G11: SAKARYA | H11: 100M | I11: 1360 | J11: 1 | K11: 8
A12: 9 | B12: 100M-1-9 | C12: 630 | E12: 2001-04-05 | F12: ŞURA ÇETİNKAYA | G12: SAMSUN | H12: 100M | I12: 1360 | J12: 1 | K12: 9
A13: 10 | B13: 100M-2-4 | C13: 365 | E13: 2001-09-19 | F13: ZEHRA ERHAN | G13: İSTANBUL | H13: 100M | I13: 1365 | J13: 2 | K13: 4
A14: 11 | B14: 100M-2-5 | C14: 743 | E14: 2001-05-11 | F14: MERVENUR ÇAPOĞLU | G14: SAKARYA | H14: 100M | I14: 1370 | J14: 2 | K14: 5
A15: 12 | B15: 100M-2-3 | C15: 151 | E15: 2001-12-22 | F15: KADER KAYA | G15: BİLECİK | H15: 100M | I15: 1386 | J15: 2 | K15: 3
A16: 13 | B16: 100M-2-6 | C16: 738 | E16: 2001-07-30 | F16: CEYDA TAŞKIRAN | G16: MUĞLA | H16: 100M | I16: 1390 | J16: 2 | K16: 6
A17: 14 | B17: 100M-2-2 | C17: 671 | E17: 2001-01-25 | F17: ALMİNA MALKOÇ | G17: TEKİRDAĞ | H17: 100M | I17: 1392 | J17: 2 | K17: 2
A18: 15 | B18: 100M-2-7 | C18: 476 | E18: 2001-06-18 | F18: AYŞE N. YILDIRIM | G18: KIRIKKALE | H18: 100M | I18: 1393 | J18: 2 | K18: 7
B19: 100M-2-1 | C19: 361 | E19: 2001-12-14 | F19: LAYLA SULTAN ORAL | G19: İSTANBUL | H19: 100M | I19: 1400 | J19: 2 | K19: 1
A20: 17 | B20: 100M-2-8 | C20: 604 | E20: 2001-08-16 | F20: HATICE GÜNAYDIN | G20: NİĞDE | H20: 100M | I20: 1402 | J20: 2 | K20: 8
A21: 18 | B21: 100M-3-4 | C21: 222 | E21: 2001-01-01 | F21: ZEHRE SUDE HANCIOĞLU | G21: DENİZLİ | H21: 100M | I21: 1404 | J21: 3 | K21: 4
A22: 19 | B22: 100M-3-5 | C22: 153 | E22: 2001-05-10 | F22: FATMA PELVAN | G22: BİLECİK | H22: 100M | I22: 1424 | J22: 3 | K22: 5
A23: 20 | B23: 100M-3-3 | C23: 562 | E23: 2001-06-20 | F23: MELİS ÇELİKTEN | G23: MUĞLA | H23: 100M | I23: 1440 | J23: 3 | K23: 3
A24: 21 | B24: 100M-3-6 | C24: 105 | E24: 2001-02-28 | F24: SENA KAYNAR | G24: BALIKESİR | H24: 100M | I24: 1440 | J24: 3 | K24: 6
A25: 22 | B25: 100M-3-2 | C25: 677 | E25: 2001-11-27 | F25: MELEK ÇOBAN | G25: TEKİRDAĞ | H25: 100M | I25: 1470 | J25: 3 | K25: 2
A26: 23 | B26: 100M-3-7 | C26: 676 | E26: 2001-09-08 | F26: MELİKE SEVİNÇ | G26: TEKİRDAĞ | H26: 100M | I26: 1615 | J26: 3 | K26: 7
A27: 24 | B27: 100M-3-1 | C27: 78 | E27: 2001-07-05 | F27: NAZLI KAYA | G27: AYDIN | H27: 100M | I27: - | J27: 3 | K27: 1
A28: 25 | B28: 100M-3-8 | C28: 260 | E28: 2001-02-20 | F28: EBRAR BAYRİ | G28: ERZURUM | H28: 100M | I28: - | J28: 3 | K28: 8
A29: 26 | B29: 100M-4-4 | C29: 6 | E29: 2001-01-01 | F29: H.NUR AKGÜL | G29: ADANA | H29: 100M | I29: - | J29: 4 | K29: 4
A30: 27 | B30: 100M-4-5 | C30: 77 | E30: 2001-06-21 | F30: DERYA BİLGİ | G30: AYDIN | H30: 100M | I30: - | J30: 4 | K30: 5
A31: 28 | B31: 100M-4-3 | C31: 5 | E31: 2001-01-01 | F31: M.İNCİ GÜRBÜZ | G31: ADANA | H31: 100M | I31: - | J31: 4 | K31: 3
A32: 29 | B32: 100M-4-6 | C32: 357 | E32: 2001-11-12 | F32: BUKET USTA | G32: İSTANBUL | H32: 100M | I32: - | J32: 4 | K32: 6
A33: 30 | B33: 100M-4-2 | C33: 298 | E33: 2001-10-02 | F33: DİLARA KÜÇÜK | G33: GİRESUN | H33: 100M | I33: - | J33: 4 | K33: 2
A34: 31 | B34: 100M-4-7 | C34: 492 | E34: 2001-06-08 | F34: ASUDE NİSA ÜNAL | G34: KIRŞEHİR | H34: 100M | I34: - | J34: 4 | K34: 7
B35: 100M-4-1 | C35: 494 | E35: 2001-06-06 | F35: Gamze ŞİMŞEK | G35: KIRŞEHİR | H35: 100M | I35: - | J35: 4 | K35: 1
B36: 100M-4-8 | C36: 396 | E36: 2001-05-10 | F36: DEFNE GÜLÜŞ | G36: İZMİR | H36: 100M | I36: - | J36: 4 | K36: 8
B37: 100M-2-9 | C37: 302 | E37: 2001-04-15 | F37: YELDA YAĞMUR | G37: GİRESUN | H37: 100M | J37: 2 | K37: 9
B38: 75M.ENG-1-4 | C38: 109 | E38: 2001-01-01 | F38: GİZEM AKGÖZ | G38: BALIKESİR | H38: 75M.ENG | I38: 1270 | J38: 1 | K38: 4
B39: 75M.ENG-1-5 | C39: 475 | E39: 2001-03-12 | F39: İREM BABADAĞ | G39: KIRIKKALE | H39: 75M.ENG | I39: 1278 | J39: 1 | K39: 5
A40: 32 | B40: 75M.ENG-1-3 | C40: 671 | E40: 2001-01-25 | F40: ALMİNA MALKOÇ | G40: TEKİRDAĞ | H40: 75M.ENG | I40: 1286 | J40: 1 | K40: 3
A41: 33 | B41: 75M.ENG-1-6 | C41: 562 | E41: 2001-06-20 | F41: MELİS ÇELİKTEN | G41: MUĞLA | H41: 75M.ENG | I41: 1300 | J41: 1 | K41: 6
A42: 34 | B42: 75M.ENG-1-2 | C42: 561 | E42: 2001-01-01 | F42: ESRA DİKMENTEPE | G42: MUĞLA | H42: 75M.ENG | I42: 1400 | J42: 1 | K42: 2
A43: 35 | B43: 75M.ENG-1-7 | C43: 339 | E43: 2001-04-07 | F43: HAVVA GICIR | G43: ISPARTA | H43: 75M.ENG | I43: 1490 | J43: 1 | K43: 7
A44: 36 | B44: 75M.ENG-1-8 | C44: 677 | E44: 2001-11-27 | F44: MELEK ÇOBAN | G44: TEKİRDAĞ | H44: 75M.ENG | I44: 1512 | J44: 1 | K44: 8
A45: 37 | B45: 75M.ENG-2-4 | C45: 399 | E45: 2001-08-16 | F45: BEGÜM ARICI | G45: İZMİR | H45: 75M.ENG | I45: - | J45: 2 | K45: 4
A46: 38 | B46: 75M.ENG-2-5 | C46: 77 | E46: 2001-06-21 | F46: DERYA BİLGİ | G46: AYDIN | H46: 75M.ENG | I46: - | J46: 2 | K46: 5
A47: 39 | B47: 75M.ENG-2-3 | C47: 258 | E47: 2001-06-09 | F47: BERİVAN ULUÇAY | G47: ERZURUM | H47: 75M.ENG | I47: - | J47: 2 | K47: 3
A48: 40 | B48: 75M.ENG-2-6 | C48: 493 | E48: 2001-05-25 | F48: BAHAR KARACA | G48: KIRŞEHİR | H48: 75M.ENG | I48: - | J48: 2 | K48: 6
A49: 41 | B49: 75M.ENG-2-2 | C49: 5 | E49: 2001-01-01 | F49: M.İNCİ GÜRBÜZ | G49: ADANA | H49: 75M.ENG | I49: - | J49: 2 | K49: 2
A50: 42 | B50: 75M.ENG-2-7 | C50: 298 | E50: 2001-10-02 | F50: DİLARA KÜÇÜK | G50: GİRESUN | H50: 75M.ENG | I50: - | J50: 2 | K50: 7
B51: 75M.ENG-2-8 | C51: 302 | E51: 2001-04-15 | F51: YELDA YAĞMUR | G51: GİRESUN | H51: 75M.ENG | J51: 2 | K51: 8
A52: 43 | B52: 1500M-1-1 | C52: 55 | E52: 2001-01-01 | F52: SEDANUR BOZKURT | G52: ARDAHAN | H52: 1500M | I52: 44200 | J52: 1 | K52: 1
A53: 59 | B53: =CONCATENATE(H53,"-",J53,"-",K53) -> 1500M-1-2 | C53: 542 | E53: 2001-01-01 | F53: KARDELEN ÇELİK | G53: KÜTAHYA | H53: 1500M | I53: 44900 | J53: 1 | K53: 2
A54: 60 | B54: 1500M-1-3 | C54: 686 | E54: 2001-05-12 | F54: ÖZLEM UÇAR | G54: TOKAT | H54: 1500M | I54: 45000 | J54: 1 | K54: 3
A55: 61 | B55: 1500M-1-4 | C55: 275 | E55: 2001-01-01 | F55: RAHİME ERGÜL | G55: GAZİANTEP | H55: 1500M | I55: 45000 | J55: 1 | K55: 4
A56: 62 | B56: 1500M-1-5 | C56: 390 | E56: 2001-01-07 | F56: SÜMEYRA BAŞARA | G56: İZMİR | H56: 1500M | I56: 45500 | J56: 1 | K56: 5
A57: 63 | B57: 1500M-1-6 | C57: 363 | E57: 2001-01-01 | F57: EZGİ KAYA | G57: İSTANBUL | H57: 1500M | I57: 45700 | J57: 1 | K57: 6
B58: 1500M-1-7 | C58: 56 | E58: 2001-01-01 | F58: MELİKE KILIÇ | G58: ARDAHAN | H58: 1500M | I58: 50000 | J58: 1 | K58: 7
B59: 1500M-1-8 | C59: 57 | E59: 2001-01-01 | F59: CEREN KILIÇ | G59: ARDAHAN | H59: 1500M | I59: 50000 | J59: 1 | K59: 8
B60: 1500M-1-9 | C60: 134 | E60: 2001-01-01 | F60: RUKEN TEK | G60: BATMAN | H60: 1500M | I60: 50000 | J60: 1 | K60: 9
B61: 1500M-1-10 | C61: 181 | E61: 2001-01-08 | F61: ELİF AKDAĞ | G61: BOLU | H61: 1500M | I61: 50300 | J61: 1 | K61: 10
A62: 64 | B62: 1500M-1-11 | C62: 474 | E62: 2001-04-15 | F62: MERVE G. ELİTOK | G62: KIRIKKALE | H62: 1500M | I62: 50600 | J62: 1 | K62: 11
A63: 65 | B63: 1500M-1-12 | C63: 330 | E63: 2001-03-04 | F63: MEDİNE KORKMAZ | G63: ISPARTA | H63: 1500M | I63: 50600 | J63: 1 | K63: 12
A64: 66 | B64: 1500M-1-13 | C64: 619 | E64: 2001-08-12 | F64: SİMGE KUNAK | G64: SAKARYA | H64: 1500M | I64: 50639 | J64: 1 | K64: 13
A65: 67 | B65: 1500M-2-1 | C65: 473 | E65: 2001-06-10 | F65: SULTAN GÜNDOĞDU | G65: KIRIKKALE | H65: 1500M | I65: 51000 | J65: 2 | K65: 1
A66: 68 | B66: 1500M-2-2 | C66: 277 | E66: 2001-01-01 | F66: SAFİYE YAREN ÖZTÜRK | G66: GAZİANTEP | H66: 1500M | I66: 51000 | J66: 2 | K66: 2
A67: 69 | B67: 1500M-2-3 | C67: 462 | E67: 2001-01-01 | F67: DERYA ATEŞLİ | G67: KARAMAN | H67: 1500M | I67: 51100 | J67: 2 | K67: 3
A68: 70 | B68: 1500M-2-4 | C68: 152 | E68: 2001-03-10 | F68: AYBÜKE KALENDER | G68: BİLECİK | H68: 1500M | I68: 51200 | J68: 2 | K68: 4
A69: 71 | B69: 1500M-2-5 | C69: 276 | E69: 2001-01-01 | F69: EMİNE YILMAZ | G69: GAZİANTEP | H69: 1500M | I69: 51500 | J69: 2 | K69: 5
A70: 72 | B70: 1500M-2-6 | C70: 692 | E70: 2001-07-12 | F70: TUĞÇE ZENGİN | G70: TOKAT | H70: 1500M | I70: 52200 | J70: 2 | K70: 6
A71: 73 | B71: 1500M-2-7 | C71: 707 | E71: 2001-03-15 | F71: ÖZNUR GEDİK | G71: TRABZON | H71: 1500M | I71: 52300 | J71: 2 | K71: 7
A72: 74 | B72: 1500M-2-8 | C72: 180 | E72: 2001-09-10 | F72: MELEK ÇEVİK | G72: BOLU | H72: 1500M | I72: 52400 | J72: 2 | K72: 8
A73: 75 | B73: 1500M-2-9 | C73: 739 | E73: 2001-06-17 | F73: MELİSA İNCİ | G73: MUĞLA | H73: 1500M | I73: 52500 | J73: 2 | K73: 9
A74: 76 | B74: 1500M-2-10 | C74: 338 | E74: 2001-09-24 | F74: TUĞBA KURT | G74: ISPARTA | H74: 1500M | I74: 52500 | J74: 2 | K74: 10
A75: 77 | B75: 1500M-2-11 | C75: 718 | E75: 2001-01-01 | F75: DİDAR GÖKTEPE | G75: TUNCELİ | H75: 1500M | I75: 52500 | J75: 2 | K75: 11
A76: 78 | B76: 1500M-2-12 | C76: 340 | E76: 2001-07-15 | F76: KUBRA GÜLER | G76: ISPARTA | H76: 1500M | I76: 52800 | J76: 2 | K76: 12
A77: 79 | B77: 1500M-2-13 | C77: 719 | E77: 2001-01-01 | F77: DİLARA DİNLER | G77: TUNCELİ | H77: 1500M | I77: 53000 | J77: 2 | K77: 13
B78: 1500M-3-1 | C78: 106 | E78: 2001-07-01 | F78: EDANUR KARADUMAN | G78: BALIKESİR | H78: 1500M | I78: 53050 | J78: 3 | K78: 1
B79: 1500M-3-2 | C79: 214 | E79: 2001-02-28 | F79: SİMGE MUĞLI | G79: ÇANAKKALE | H79: 1500M | I79: 53300 | J79: 3 | K79: 2
B80: 1500M-3-3 | C80: 646 | E80: 2001-07-30 | F80: ÖZLEM OYSAL | G80: SİİRT | H80: 1500M | I80: 53400 | J80: 3 | K80: 3
B81: 1500M-3-4 | C81: 393 | E81: 2001-06-08 | F81: BUKET AYDIN | G81: İZMİR | H81: 1500M | I81: 53400 | J81: 3 | K81: 4
A82: 80 | B82: 1500M-3-5 | C82: 123 | E82: 2001-04-09 | F82: YAĞMUR İPEK ALP | G82: BARTIN | H82: 1500M | I82: 53500 | J82: 3 | K82: 5
A83: 81 | B83: 1500M-3-6 | C83: 563 | E83: 2001-02-17 | F83: KARDELEN YILDIZ | G83: MUĞLA | H83: 1500M | I83: 53700 | J83: 3 | K83: 6
A84: 82 | B84: 1500M-3-7 | C84: 110 | E84: 2001-06-19 | F84: TUĞCENUR GÜRSES | G84: BALIKESİR | H84: 1500M | I84: - | J84: 3 | K84: 7
A85: 83 | B85: 1500M-3-8 | C85: 107 | E85: 2001-02-17 | F85: EZGİ ÇAM | G85: BALIKESİR | H85: 1500M | I85: - | J85: 3 | K85: 8
A86: 84 | B86: 1500M-3-9 | C86: 359 | E86: 2001-02-06 | F86: BÜŞRA TURHAN | G86: İSTANBUL | H86: 1500M | I86: - | J86: 3 | K86: 9
A87: 85 | B87: 1500M-3-10 | C87: 21 | E87: 2001-01-01 | F87: KADER GÜVENÇ | G87: ADIYAMAN | H87: 1500M | I87: - | J87: 3 | K87: 10
A88: 86 | B88: 1500M-3-11 | C88: 259 | E88: 2001-05-11 | F88: DİLVAN ÜTRİ | G88: ERZURUM | H88: 1500M | I88: - | J88: 3 | K88: 11
A89: 87 | B89: 1500M-3-12 | C89: 312 | E89: 2001-03-26 | F89: BÜŞRA DOĞAN | G89: HATAY | H89: 1500M | I89: - | J89: 3 | K89: 12
A90: 88 | B90: 200M-1-4 | C90: 39 | E90: 2001-01-01 | F90: BERİVAN ALPER | G90: AKSARAY | H90: 200M | I90: 2660 | J90: 1 | K90: 4
A91: 89 | B91: 200M-1-7 | C91: 738 | E91: 2001-07-30 | F91: CEYDA TAŞKIRAN | G91: MUĞLA | H91: 200M | I91: 2690 | J91: 1 | K91: 7
A92: 90 | B92: 200M-1-3 | C92: 457 | E92: 2001-07-25 | F92: SEVİLCAN BAHADIR | G92: KARABÜK | H92: 200M | I92: 2700 | J92: 1 | K92: 3
A93: 91 | B93: 200M-1-6 | C93: 104 | E93: 2001-06-03 | F93: HİLAYDA ARSLAN | G93: BALIKESİR | H93: 200M | I93: 2710 | J93: 1 | K93: 6
A94: 92 | B94: 200M-1-2 | C94: 97 | E94: 2001-01-14 | F94: ALEYNA FİCİ | G94: BALIKESİR | H94: 200M | I94: 2730 | J94: 1 | K94: 2
A95: 93 | B95: 200M-1-5 | C95: 222 | E95: 2001-01-01 | F95: ZEHRA SUDE HANCIOĞLU | G95: DENİZLİ | H95: 200M | I95: 2745 | J95: 1 | K95: 5
A96: 94 | B96: 200M-1-1 | C96: 742 | E96: 2001-04-06 | F96: MELEK NUR YAMAN | G96: SAKARYA | H96: 200M | I96: 2800 | J96: 1 | K96: 1
A97: 95 | B97: 200M-1-8 | C97: 382 | E97: 2001-01-09 | F97: BAŞAK ERĞUN | G97: İZMİR | H97: 200M | I97: 2800 | J97: 1 | K97: 8
B98: 200M-2-4 | C98: 361 | E98: 2001-12-14 | F98: LAYLA SULTAN ORAL | G98: İSTANBUL | H98: 200M | I98: 2808 | J98: 2 | K98: 4
B99: 200M-2-5 | C99: 630 | E99: 2001-04-05 | F99: ŞURA ÇETİNKAYA | G99: SAMSUN | H99: 200M | I99: 2810 | J99: 2 | K99: 5
B100: 200M-2-3 | C100: 229 | E100: 2001-01-01 | F100: GAMZE PEKTAŞ | G100: DİYARBAKIR | H100: 200M | I100: 2810 | J100: 2 | K100: 3
B101: 200M-2-6 | C101: 389 | E101: 2001-01-01 | F101: SENA ÖZDEMİR | G101: İZMİR | H101: 200M | I101: 2820 | J101: 2 | K101: 6
A102: 96 | B102: 200M-2-2 | C102: 743 | E102: 2001-05-11 | F102: MERVENUR ÇAPOĞLU | G102: SAKARYA | H102: 200M | I102: 2850 | J102: 2 | K102: 2
A103: 97 | B103: 200M-2-7 | C103: 741 | E103: 2001-05-04 | F103: BERİVAN DEMİR | G103: SAKARYA | H103: 200M | I103: 2894 | J103: 2 | K103: 7
A104: 98 | B104: 200M-2-1 | C104: 36 | E104: 2001-03-13 | F104: SONGÜL KARTAL | G104: AKSARAY | H104: 200M | I104: 2900 | J104: 2 | K104: 1
A105: 99 | B105: 200M-2-8 | C105: 475 | E105: 2001-03-12 | F105: İREM BABADAĞ | G105: KIRIKKALE | H105: 200M | I105: 2900 | J105: 2 | K105: 8
A106: 100 | B106: 200M-3-4 | C106: 133 | E106: 2001-01-01 | F106: MELEK YILDIRIM | G106: BATMAN | H106: 200M | I106: 2900 | J106: 3 | K106: 4
A107: 101 | B107: 200M-3-5 | C107: 151 | E107: 2001-12-22 | F107: KADER KAYA | G107: BİLECİK | H107: 200M | I107: 2914 | J107: 3 | K107: 5
A108: 102 | B108: 200M-3-3 | C108: 153 | E108: 2001-05-10 | F108: FATMA PELVAN | G108: BİLECİK | H108: 200M | I108: 2996 | J108: 3 | K108: 3
A109: 103 | B109: 200M-3-6 | C109: 476 | E109: 2001-06-18 | F109: AYŞE N. YILDIRIM | G109: KIRIKKALE | H109: 200M | I109: 3000 | J109: 3 | K109: 6
A110: 104 | B110: 200M-3-2 | C110: 604 | E110: 2001-08-16 | F110: HATICE GÜNAYDIN | G110: NİĞDE | H110: 200M | I110: 3030 | J110: 3 | K110: 2
A111: 105 | B111: 200M-3-7 | C111: 603 | E111: 2001-04-14 | F111: ZELAL GÜNEŞ | G111: NİĞDE | H111: 200M | I111: 3045 | J111: 3 | K111: 7
A112: 106 | B112: 200M-3-1 | C112: 154 | E112: 2001-08-08 | F112: GÜLAY UZUN | G112: BİLECİK | H112: 200M | I112: 3065 | J112: 3 | K112: 1
A113: 107 | B113: 200M-3-8 | C113: 330 | E113: 2001-03-04 | F113: MEDİNE KORKMAZ | G113: ISPARTA | H113: 200M | I113: 3180 | J113: 3 | K113: 8
A114: 108 | B114: 200M-4-4 | C114: 331 | E114: 2001-03-13 | F114: BÜŞRA UYSAL | G114: ISPARTA | H114: 200M | I114: 3200 | J114: 4 | K114: 4
A115: 109 | B115: 200M-4-5 | C115: 223 | E115: 2001-01-01 | F115: HATİCE KURNAZ | G115: DENİZLİ | H115: 200M | I115: - | J115: 4 | K115: 5
A116: 110 | B116: =CONCATENATE(H116,"-",J116,"-",K116) -> 200M-4-3 | C116: 78 | E116: 2001-07-05 | F116: NAZLI KAYA | G116: AYDIN | H116: 200M | I116: - | J116: 4 | K116: 3
A117: 111 | B117: 200M-4-6 | C117: 258 | E117: 2001-06-09 | F117: BERİVAN ULUÇAY | G117: ERZURUM | H117: 200M | I117: - | J117: 4 | K117: 6
B118: 200M-4-2 | C118: 76 | E118: 2001-05-15 | F118: DENİZ ÇAKAL | G118: AYDIN | H118: 200M | I118: - | J118: 4 | K118: 2
B119: =CONCATENATE(H119,"-",J119,"-",K119) -> 200M-4-7 | C119: 260 | E119: 2001-02-20 | F119: EBRAR BAYRİ | G119: ERZURUM | H119: 200M | I119: - | J119: 4 | K119: 7
B120: 200M-4-1 | C120: 6 | E120: 2001-01-01 | F120: H.NUR AKGÜL | G120: ADANA | H120: 200M | I120: - | J120: 4 | K120: 1
B121: 200M-4-8 | C121: 358 | E121: 2001-05-15 | F121: İREM ZEHRA KARABABA | G121: İSTANBUL | H121: 200M | I121: - | J121: 4 | K121: 8
B122: 800M-1-1 | C122: 55 | E122: 2001-01-01 | F122: SEDANUR BOZKURT | G122: ARDAHAN | H122: 800M | I122: 22000 | J122: 1 | K122: 1
A123: 192 | B123: 800M-1-2 | C123: 275 | E123: 2001-01-01 | F123: RAHİME ERGÜL | G123: GAZİANTEP | H123: 800M | I123: 22100 | J123: 1 | K123: 2
A124: 193 | B124: 800M-1-3 | C124: 475 | E124: 2001-03-12 | F124: İREM BABADAĞ | G124: KIRIKKALE | H124: 800M | I124: 22300 | J124: 1 | K124: 3
A125: 194 | B125: 800M-1-4 | C125: 181 | E125: 2001-01-08 | F125: ELİF AKDAĞ | G125: BOLU | H125: 800M | I125: 22400 | J125: 1 | K125: 4
A126: 195 | B126: 800M-1-5 | C126: 152 | E126: 2001-03-10 | F126: AYBÜKE KALENDER | G126: BİLECİK | H126: 800M | I126: 22400 | J126: 1 | K126: 5
A127: 196 | B127: 800M-1-6 | C127: 631 | E127: 2001-03-01 | F127: FİLİZ KARAKOÇ | G127: SAMSUN | H127: 800M | I127: 22400 | J127: 1 | K127: 6
A128: 197 | B128: 800M-1-7 | C128: 134 | E128: 2001-01-01 | F128: RUKEN TEK | G128: BATMAN | H128: 800M | I128: 22500 | J128: 1 | K128: 7
A129: 198 | B129: 800M-1-8 | C129: 542 | E129: 2001-01-01 | F129: KARDELEN ÇELİK | G129: KÜTAHYA | H129: 800M | I129: 22500 | J129: 1 | K129: 8
A130: 199 | B130: 800M-1-9 | C130: 133 | E130: 2001-01-01 | F130: MELEK YILDIRIM | G130: BATMAN | H130: 800M | I130: 22500 | J130: 1 | K130: 9
A131: 200 | B131: 800M-1-10 | C131: 707 | E131: 2001-03-15 | F131: ÖZNUR GEDİK | G131: TRABZON | H131: 800M | I131: 22600 | J131: 1 | K131: 10
A132: 201 | B132: 800M-1-11 | C132: 277 | E132: 2001-01-01 | F132: SAFİYE YAREN ÖZTÜRK | G132: GAZİANTEP | H132: 800M | I132: 22600 | J132: 1 | K132: 11
A133: 202 | B133: 800M-2-1 | C133: 363 | E133: 2001-01-01 | F133: EZGİ KAYA | G133: İSTANBUL | H133: 800M | I133: 22600 | J133: 2 | K133: 1
A134: 203 | B134: 800M-2-2 | C134: 337 | E134: 2001-01-02 | F134: RUMEYSA COŞKUN | G134: ISPARTA | H134: 800M | I134: 22700 | J134: 2 | K134: 2
A135: 204 | B135: 800M-2-3 | C135: 474 | E135: 2001-04-15 | F135: MERVE G. ELİTOK | G135: KIRIKKALE | H135: 800M | I135: 22700 | J135: 2 | K135: 3
A136: 205 | B136: 800M-2-4 | C136: 462 | E136: 2001-01-01 | F136: DERYA ATEŞLİ | G136: KARAMAN | H136: 800M | I136: 22800 | J136: 2 | K136: 4
A137: 206 | B137: 800M-2-5 | C137: 365 | E137: 2001-09-19 | F137: ZEHRA ERHAN | G137: İSTANBUL | H137: 800M | I137: 22800 | J137: 2 | K137: 5
A138: 207 | B138: 800M-2-6 | C138: 686 | E138: 2001-05-12 | F138: ÖZLEM UÇAR | G138: TOKAT | H138: 800M | I138: 22800 | J138: 2 | K138: 6
B139: 800M-2-7 | C139: 276 | E139: 2001-01-01 | F139: EMİNE YILMAZ | G139: GAZİANTEP | H139: 800M | I139: 22800 | J139: 2 | K139: 7
B140: 800M-2-8 | C140: 229 | E140: 2001-01-01 | F140: GAMZE PEKTAŞ | G140: DİYARBAKIR | H140: 800M | I140: 22900 | J140: 2 | K140: 8
B141: 800M-2-9 | C141: 619 | E141: 2001-08-12 | F141: SİMGE KUNAK | G141: SAKARYA | H141: 800M | I141: 22943 | J141: 2 | K141: 9
B142: 800M-2-10 | C142: 56 | E142: 2001-01-01 | F142: MELİKE KILIÇ | G142: ARDAHAN | H142: 800M | I142: 23000 | J142: 2 | K142: 10
A143: 208 | B143: 800M-3-1 | C143: 57 | E143: 2001-01-01 | F143: CEREN KILIÇ | G143: ARDAHAN | H143: 800M | I143: 23000 | J143: 3 | K143: 1
A144: 209 | B144: 800M-3-2 | C144: 473 | E144: 2001-06-10 | F144: SULTAN GÜNDOĞDU | G144: KIRIKKALE | H144: 800M | I144: 23000 | J144: 3 | K144: 2
A145: 210 | B145: =CONCATENATE(H145,"-",J145,"-",K145) -> 800M-3-3 | C145: 340 | E145: 2001-07-15 | F145: KUBRA GÜLER | G145: ISPARTA | H145: 800M | I145: 23200 | J145: 3 | K145: 3
A146: 211 | B146: 800M-3-4 | C146: 331 | E146: 2001-03-13 | F146: BÜŞRA UYSAL | G146: ISPARTA | H146: 800M | I146: 23200 | J146: 3 | K146: 4
A147: 212 | B147: 800M-3-5 | C147: 563 | E147: 2001-02-17 | F147: KARDELEN YILDIZ | G147: MUĞLA | H147: 800M | I147: 23200 | J147: 3 | K147: 5
A148: 213 | B148: 800M-3-6 | C148: 338 | E148: 2001-09-24 | F148: TUĞBA KURT | G148: ISPARTA | H148: 800M | I148: 23500 | J148: 3 | K148: 6
A149: 214 | B149: 800M-3-7 | C149: 603 | E149: 2001-04-14 | F149: ZELAL GÜNEŞ | G149: NİĞDE | H149: 800M | I149: 23502 | J149: 3 | K149: 7
A150: 215 | B150: 800M-3-8 | C150: 339 | E150: 2001-04-07 | F150: HAVVA GICIR | G150: ISPARTA | H150: 800M | I150: 23600 | J150: 3 | K150: 8
A151: 216 | B151: 800M-3-9 | C151: 214 | E151: 2001-02-28 | F151: SİMGE MUĞLI | G151: ÇANAKKALE | H151: 800M | I151: 23700 | J151: 3 | K151: 9
A152: 217 | B152: 800M-3-10 | C152: 123 | E152: 2001-04-09 | F152: YAĞMUR İPEK ALP | G152: BARTIN | H152: 800M | I152: 23700 | J152: 3 | K152: 10
A153: 218 | B153: 800M-4-1 | C153: 718 | E153: 2001-01-01 | F153: DİDAR GÖKTEPE | G153: TUNCELİ | H153: 800M | I153: 23700 | J153: 4 | K153: 1
A154: 219 | B154: 800M-4-2 | C154: 739 | E154: 2001-06-17 | F154: MELİSA İNCİ | G154: MUĞLA | H154: 800M | I154: 23700 | J154: 4 | K154: 2
A155: 220 | B155: 800M-4-3 | C155: 180 | E155: 2001-09-10 | F155: MELEK ÇEVİK | G155: BOLU | H155: 800M | I155: 23800 | J155: 4 | K155: 3
A156: 221 | B156: 800M-4-4 | C156: 393 | E156: 2001-06-08 | F156: BUKET AYDIN | G156: İZMİR | H156: 800M | I156: 23800 | J156: 4 | K156: 4
A157: 222 | B157: 800M-4-5 | C157: 390 | E157: 2001-01-07 | F157: SÜMEYRA BAŞARA | G157: İZMİR | H157: 800M | I157: 24100 | J157: 4 | K157: 5
A158: 223 | B158: 800M-4-6 | C158: 329 | E158: 2001-12-12 | F158: ELİF ÖZÇELİK | G158: ISPARTA | H158: 800M | I158: 24200 | J158: 4 | K158: 6
B159: 800M-4-7 | C159: 646 | E159: 2001-07-30 | F159: ÖZLEM OYSAL | G159: SİİRT | H159: 800M | I159: 24500 | J159: 4 | K159: 7
B160: 800M-4-8 | C160: 719 | E160: 2001-01-01 | F160: DİLARA DİNLER | G160: TUNCELİ | H160: 800M | I160: 24500 | J160: 4 | K160: 8
B161: 800M-4-9 | C161: 154 | E161: 2001-08-08 | F161: GÜLAY UZUN | G161: BİLECİK | H161: 800M | I161: 24800 | J161: 4 | K161: 9
B162: 800M-4-10 | C162: 106 | E162: 2001-07-01 | F162: EDANUR KARADUMAN | G162: BALIKESİR | H162: 800M | I162: 25054 | J162: 4 | K162: 10
A163: 224 | B163: 800M-5-1 | C163: 107 | E163: 2001-02-17 | F163: EZGİ ÇAM | G163: BALIKESİR | H163: 800M | I163: 25820 | J163: 5 | K163: 1
A164: 225 | B164: 800M-5-2 | C164: 76 | E164: 2001-05-15 | F164: DENİZ ÇAKAL | G164: AYDIN | H164: 800M | I164: - | J164: 5 | K164: 2
A165: 226 | B165: 800M-5-3 | C165: 259 | E165: 2001-05-11 | F165: DİLVAN ÜTRİ | G165: ERZURUM | H165: 800M | I165: - | J165: 5 | K165: 3
A166: 227 | B166: 800M-5-4 | C166: 312 | E166: 2001-03-26 | F166: BÜŞRA DOĞAN | G166: HATAY | H166: 800M | I166: - | J166: 5 | K166: 4
A167: 228 | B167: 800M-5-5 | C167: 110 | E167: 2001-06-19 | F167: TUĞCENUR GÜRSES | G167: BALIKESİR | H167: 800M | I167: - | J167: 5 | K167: 5
A168: 229 | B168: 800M-5-6 | C168: 359 | E168: 2001-02-06 | F168: BÜŞRA TURHAN | G168: İSTANBUL | H168: 800M | I168: - | J168: 5 | K168: 6
A169: 230 | B169: 800M-5-7 | C169: 21 | E169: 2001-01-01 | F169: KADER GÜVENÇ | G169: ADIYAMAN | H169: 800M | I169: - | J169: 5 | K169: 7
A170: 231 | B170: 800M-5-8 | C170: 493 | E170: 2001-05-25 | F170: BAHAR KARACA | G170: KIRŞEHİR | H170: 800M | I170: - | J170: 5 | K170: 8
A171: 232 | B171: 800M-5-9 | C171: 223 | E171: 2001-01-01 | F171: HATİCE KURNAZ | G171: DENİZLİ | H171: 800M | I171: - | J171: 5 | K171: 9
B172: 800M-2-11 | C172: 692 | E172: 2001-07-12 | F172: TUĞÇE ZENGİN | G172: TOKAT | H172: 800M | I172: - | J172: 2 | K172: 11
A173: 233 | B173: 800M-5-10 | C173: 561 | E173: 2001-01-01 | F173: ESRA DİKMENTEPE | G173: MUĞLA | H173: 800M | I173: - | J173: 5 | K173: 10
A174: 234 | B174: =CONCATENATE(H174,"-",L174) -> CİRİT-3 | C174: 331 | E174: 2001-03-13 | F174: BÜŞRA UYSAL | G174: ISPARTA | H174: CİRİT | I174: 1650 | L174: 3
A175: 235 | B175: CİRİT-4 | C175: 330 | E175: 2001-03-04 | F175: MEDİNE KORKMAZ | G175: ISPARTA | H175: CİRİT | I175: 1725 | L175: 4
A176: 236 | B176: CİRİT-5 | C176: 474 | E176: 2001-04-15 | F176: MERVE G. ELİTOK | G176: KIRIKKALE | H176: CİRİT | I176: 3200 | L176: 5
A177: 237 | B177: CİRİT-6 | C177: 457 | E177: 2001-07-25 | F177: SEVİLCAN BAHADIR | G177: KARABÜK | H177: CİRİT | I177: 3650 | L177: 6
A178: 238 | B178: CİRİT-1 | C178: 357 | E178: 2001-11-12 | F178: BUKET USTA | G178: İSTANBUL | H178: CİRİT | I178: - | L178: 1
A179: 239 | B179: CİRİT-2 | C179: 492 | E179: 2001-06-08 | F179: ASUDE NİSA ÜNAL | G179: KIRŞEHİR | H179: CİRİT | I179: - | L179: 2
A180: 240 | B180: CİRİT- | H180: CİRİT
A181: 241 | B181: CİRİT- | H181: CİRİT
A182: 279 | B182: =CONCATENATE(H182,"-",L182) -> DİSK-1 | C182: 357 | E182: 2001-11-12 | F182: BUKET USTA | G182: İSTANBUL | H182: DİSK | I182: - | L182: 1
A183: 280 | B183: DİSK-3 | C183: 105 | E183: 2001-02-28 | F183: SENA KAYNAR | G183: BALIKESİR | H183: DİSK | I183: 2811 | L183: 3
A184: 281 | B184: DİSK-2 | C184: 494 | E184: 2001-06-06 | F184: Gamze ŞİMŞEK | G184: KIRŞEHİR | H184: DİSK | I184: - | L184: 2
A185: 310 | B185: DİSK- | H185: DİSK
A186: 311 | B186: DİSK- | H186: DİSK
A187: 312 | B187: GÜLLE-4 | C187: 676 | E187: 2001-09-08 | F187: MELİKE SEVİNÇ | G187: TEKİRDAĞ | H187: GÜLLE | I187: 687 | L187: 4
A188: 313 | B188: GÜLLE-5 | C188: 382 | E188: 2001-01-09 | F188: BAŞAK ERĞUN | G188: İZMİR | H188: GÜLLE | I188: 700 | L188: 5
A189: 314 | B189: GÜLLE-6 | C189: 476 | E189: 2001-06-18 | F189: AYŞE N. YILDIRIM | G189: KIRIKKALE | H189: GÜLLE | I189: 785 | L189: 6
A190: 315 | B190: GÜLLE-7 | C190: 329 | E190: 2001-12-12 | F190: ELİF ÖZÇELİK | G190: ISPARTA | H190: GÜLLE | I190: 900 | L190: 7
A191: 316 | B191: GÜLLE-8 | C191: 133 | E191: 2001-01-01 | F191: MELEK YILDIRIM | G191: BATMAN | H191: GÜLLE | I191: 900 | L191: 8
A192: 317 | B192: GÜLLE-9 | C192: 134 | E192: 2001-01-01 | F192: RUKEN TEK | G192: BATMAN | H192: GÜLLE | I192: 900 | L192: 9
A193: 318 | B193: GÜLLE-10 | C193: 105 | E193: 2001-02-28 | F193: SENA KAYNAR | G193: BALIKESİR | H193: GÜLLE | I193: 934 | L193: 10
A194: 319 | B194: GÜLLE-11 | C194: 390 | E194: 2001-01-07 | F194: SÜMEYRA BAŞARA | G194: İZMİR | H194: GÜLLE | I194: 1125 | L194: 11
A195: 320 | B195: GÜLLE-1 | C195: 492 | E195: 2001-06-08 | F195: ASUDE NİSA ÜNAL | G195: KIRŞEHİR | H195: GÜLLE | I195: - | L195: 1
A196: 321 | B196: GÜLLE-2 | C196: 494 | E196: 2001-06-06 | F196: Gamze ŞİMŞEK | G196: KIRŞEHİR | H196: GÜLLE | I196: - | L196: 2
A197: 322 | B197: GÜLLE-3 | C197: 76 | E197: 2001-05-15 | F197: DENİZ ÇAKAL | G197: AYDIN | H197: GÜLLE | I197: - | L197: 3
A198: 323 | B198: GÜLLE- | H198: GÜLLE
A199: 324 | B199: GÜLLE- | H199: GÜLLE
A200: 325 | B200: GÜLLE- | H200: GÜLLE
... 104 more rows

Sheet 1.Gün Start Listesi (hidden)
A1: =('YARIŞMA BİLGİLERİ'!A2) -> Türkiye Atletizm Federasyonu İzmir Atletizm İl Temsilciliği
A2: ='YARIŞMA BİLGİLERİ'!F19 -> Naili Moran Türkiye Atletizm Şampiyonası
A3: 1.GÜN GENÇ ERKEKLER START LİSTELERİ
A4: 100 METRE | J4: 400 METRE
A5: 1. SERİ | I5: SIRA NO | J5: 1. SERİ
A6: Sıra No | B6: Formül | C6: Göğüs No | D6: Doğum Tarihi | E6: Adı ve Soyadı | F6: Okulu | G6: Start Kontrol | J6: Sıra No | K6: Formül | L6: Göğüs No | M6: Doğum Tarihi | N6: Adı ve Soyadı | O6: Okulu | P6: Start Kontrol
A7: 1 | B7: 100M-1-1 | C7: =IF(ISERROR(VLOOKUP(B7,'KAYIT LİSTESİ'!$B$4:$H$829,2,0)),"",(VLOOKUP(B7,'KAYIT LİSTESİ'!$B$4:$H$829,2,0))) -> 389 | D7: =IF(ISERROR(VLOOKUP(B7,'KAYIT LİSTESİ'!$B$4:$H$829,4,0)),"",(VLOOKUP(B7,'KAYIT LİSTESİ'!$B$4:$H$829,4,0))) -> 2001-01-01 | E7: =IF(ISERROR(VLOOKUP(B7,'KAYIT LİSTESİ'!$B$4:$H$829,5,0)),"",(VLOOKUP(B7,'KAYIT LİSTESİ'!$B$4:$H$829,5,0))) -> SENA ÖZDEMİR | F7: =IF(ISERROR(VLOOKUP(B7,'KAYIT LİSTESİ'!$B$4:$H$829,6,0)),"",(VLOOKUP(B7,'KAYIT LİSTESİ'!$B$4:$H$829,6,0))) -> İZMİR | I7: 1 | J7: 1 | K7: 400M-1-1 | L7: =IF(ISERROR(VLOOKUP(K7,'KAYIT LİSTESİ'!$B$4:$H$829,2,0)),"",(VLOOKUP(K7,'KAYIT LİSTESİ'!$B$4:$H$829,2,0))) ->  | M7: =IF(ISERROR(VLOOKUP(K7,'KAYIT LİSTESİ'!$B$4:$H$829,4,0)),"",(VLOOKUP(K7,'KAYIT LİSTESİ'!$B$4:$H$829,4,0))) ->  | N7: =IF(ISERROR(VLOOKUP(K7,'KAYIT LİSTESİ'!$B$4:$H$829,5,0)),"",(VLOOKUP(K7,'KAYIT LİSTESİ'!$B$4:$H$829,5,0))) ->  | O7: =IF(ISERROR(VLOOKUP(K7,'KAYIT LİSTESİ'!$B$4:$H$829,6,0)),"",(VLOOKUP(K7,'KAYIT LİSTESİ'!$B$4:$H$829,6,0))) -> 
A8: 2 | B8: 100M-1-2 | C8: =IF(ISERROR(VLOOKUP(B8,'KAYIT LİSTESİ'!$B$4:$H$829,2,0)),"",(VLOOKUP(B8,'KAYIT LİSTESİ'!$B$4:$H$829,2,0))) -> 109 | D8: =IF(ISERROR(VLOOKUP(B8,'KAYIT LİSTESİ'!$B$4:$H$829,4,0)),"",(VLOOKUP(B8,'KAYIT LİSTESİ'!$B$4:$H$829,4,0))) -> 2001-01-01 | E8: =IF(ISERROR(VLOOKUP(B8,'KAYIT LİSTESİ'!$B$4:$H$829,5,0)),"",(VLOOKUP(B8,'KAYIT LİSTESİ'!$B$4:$H$829,5,0))) -> GİZEM AKGÖZ | F8: =IF(ISERROR(VLOOKUP(B8,'KAYIT LİSTESİ'!$B$4:$H$829,6,0)),"",(VLOOKUP(B8,'KAYIT LİSTESİ'!$B$4:$H$829,6,0))) -> BALIKESİR | I8: 2 | J8: 2 | K8: 400M-1-2 | L8: =IF(ISERROR(VLOOKUP(K8,'KAYIT LİSTESİ'!$B$4:$H$829,2,0)),"",(VLOOKUP(K8,'KAYIT LİSTESİ'!$B$4:$H$829,2,0))) ->  | M8: =IF(ISERROR(VLOOKUP(K8,'KAYIT LİSTESİ'!$B$4:$H$829,4,0)),"",(VLOOKUP(K8,'KAYIT LİSTESİ'!$B$4:$H$829,4,0))) ->  | N8: =IF(ISERROR(VLOOKUP(K8,'KAYIT LİSTESİ'!$B$4:$H$829,5,0)),"",(VLOOKUP(K8,'KAYIT LİSTESİ'!$B$4:$H$829,5,0))) ->  | O8: =IF(ISERROR(VLOOKUP(K8,'KAYIT LİSTESİ'!$B$4:$H$829,6,0)),"",(VLOOKUP(K8,'KAYIT LİSTESİ'!$B$4:$H$829,6,0))) -> 
A9: 3 | B9: 100M-1-3 | C9: =IF(ISERROR(VLOOKUP(B9,'KAYIT LİSTESİ'!$B$4:$H$829,2,0)),"",(VLOOKUP(B9,'KAYIT LİSTESİ'!$B$4:$H$829,2,0))) -> 457 | D9: =IF(ISERROR(VLOOKUP(B9,'KAYIT LİSTESİ'!$B$4:$H$829,4,0)),"",(VLOOKUP(B9,'KAYIT LİSTESİ'!$B$4:$H$829,4,0))) -> 2001-07-25 | E9: =IF(ISERROR(VLOOKUP(B9,'KAYIT LİSTESİ'!$B$4:$H$829,5,0)),"",(VLOOKUP(B9,'KAYIT LİSTESİ'!$B$4:$H$829,5,0))) -> SEVİLCAN BAHADIR | F9: =IF(ISERROR(VLOOKUP(B9,'KAYIT LİSTESİ'!$B$4:$H$829,6,0)),"",(VLOOKUP(B9,'KAYIT LİSTESİ'!$B$4:$H$829,6,0))) -> KARABÜK | I9: 3 | J9: 3 | K9: 400M-1-3 | L9: =IF(ISERROR(VLOOKUP(K9,'KAYIT LİSTESİ'!$B$4:$H$829,2,0)),"",(VLOOKUP(K9,'KAYIT LİSTESİ'!$B$4:$H$829,2,0))) ->  | M9: =IF(ISERROR(VLOOKUP(K9,'KAYIT LİSTESİ'!$B$4:$H$829,4,0)),"",(VLOOKUP(K9,'KAYIT LİSTESİ'!$B$4:$H$829,4,0))) ->  | N9: =IF(ISERROR(VLOOKUP(K9,'KAYIT LİSTESİ'!$B$4:$H$829,5,0)),"",(VLOOKUP(K9,'KAYIT LİSTESİ'!$B$4:$H$829,5,0))) ->  | O9: =IF(ISERROR(VLOOKUP(K9,'KAYIT LİSTESİ'!$B$4:$H$829,6,0)),"",(VLOOKUP(K9,'KAYIT LİSTESİ'!$B$4:$H$829,6,0))) -> 
A10: 4 | B10: 100M-1-4 | C10: =IF(ISERROR(VLOOKUP(B10,'KAYIT LİSTESİ'!$B$4:$H$829,2,0)),"",(VLOOKUP(B10,'KAYIT LİSTESİ'!$B$4:$H$829,2,0))) -> 39 | D10: =IF(ISERROR(VLOOKUP(B10,'KAYIT LİSTESİ'!$B$4:$H$829,4,0)),"",(VLOOKUP(B10,'KAYIT LİSTESİ'!$B$4:$H$829,4,0))) -> 2001-01-01 | E10: =IF(ISERROR(VLOOKUP(B10,'KAYIT LİSTESİ'!$B$4:$H$829,5,0)),"",(VLOOKUP(B10,'KAYIT LİSTESİ'!$B$4:$H$829,5,0))) -> BERİVAN ALPER | F10: =IF(ISERROR(VLOOKUP(B10,'KAYIT LİSTESİ'!$B$4:$H$829,6,0)),"",(VLOOKUP(B10,'KAYIT LİSTESİ'!$B$4:$H$829,6,0))) -> AKSARAY | I10: 4 | J10: 4 | K10: 400M-1-4 | L10: =IF(ISERROR(VLOOKUP(K10,'KAYIT LİSTESİ'!$B$4:$H$829,2,0)),"",(VLOOKUP(K10,'KAYIT LİSTESİ'!$B$4:$H$829,2,0))) ->  | M10: =IF(ISERROR(VLOOKUP(K10,'KAYIT LİSTESİ'!$B$4:$H$829,4,0)),"",(VLOOKUP(K10,'KAYIT LİSTESİ'!$B$4:$H$829,4,0))) ->  | N10: =IF(ISERROR(VLOOKUP(K10,'KAYIT LİSTESİ'!$B$4:$H$829,5,0)),"",(VLOOKUP(K10,'KAYIT LİSTESİ'!$B$4:$H$829,5,0))) ->  | O10: =IF(ISERROR(VLOOKUP(K10,'KAYIT LİSTESİ'!$B$4:$H$829,6,0)),"",(VLOOKUP(K10,'KAYIT LİSTESİ'!$B$4:$H$829,6,0))) -> 
A11: 5 | B11: 100M-1-5 | C11: =IF(ISERROR(VLOOKUP(B11,'KAYIT LİSTESİ'!$B$4:$H$829,2,0)),"",(VLOOKUP(B11,'KAYIT LİSTESİ'!$B$4:$H$829,2,0))) -> 104 | D11: =IF(ISERROR(VLOOKUP(B11,'KAYIT LİSTESİ'!$B$4:$H$829,4,0)),"",(VLOOKUP(B11,'KAYIT LİSTESİ'!$B$4:$H$829,4,0))) -> 2001-06-03 | E11: =IF(ISERROR(VLOOKUP(B11,'KAYIT LİSTESİ'!$B$4:$H$829,5,0)),"",(VLOOKUP(B11,'KAYIT LİSTESİ'!$B$4:$H$829,5,0))) -> HİLAYDA ARSLAN | F11: =IF(ISERROR(VLOOKUP(B11,'KAYIT LİSTESİ'!$B$4:$H$829,6,0)),"",(VLOOKUP(B11,'KAYIT LİSTESİ'!$B$4:$H$829,6,0))) -> BALIKESİR | I11: 5 | J11: 5 | K11: 400M-1-5 | L11: =IF(ISERROR(VLOOKUP(K11,'KAYIT LİSTESİ'!$B$4:$H$829,2,0)),"",(VLOOKUP(K11,'KAYIT LİSTESİ'!$B$4:$H$829,2,0))) ->  | M11: =IF(ISERROR(VLOOKUP(K11,'KAYIT LİSTESİ'!$B$4:$H$829,4,0)),"",(VLOOKUP(K11,'KAYIT LİSTESİ'!$B$4:$H$829,4,0))) ->  | N11: =IF(ISERROR(VLOOKUP(K11,'KAYIT LİSTESİ'!$B$4:$H$829,5,0)),"",(VLOOKUP(K11,'KAYIT LİSTESİ'!$B$4:$H$829,5,0))) ->  | O11: =IF(ISERROR(VLOOKUP(K11,'KAYIT LİSTESİ'!$B$4:$H$829,6,0)),"",(VLOOKUP(K11,'KAYIT LİSTESİ'!$B$4:$H$829,6,0))) -> 
A12: 6 | B12: 100M-1-6 | C12: =IF(ISERROR(VLOOKUP(B12,'KAYIT LİSTESİ'!$B$4:$H$829,2,0)),"",(VLOOKUP(B12,'KAYIT LİSTESİ'!$B$4:$H$829,2,0))) -> 97 | D12: =IF(ISERROR(VLOOKUP(B12,'KAYIT LİSTESİ'!$B$4:$H$829,4,0)),"",(VLOOKUP(B12,'KAYIT LİSTESİ'!$B$4:$H$829,4,0))) -> 2001-01-14 | E12: =IF(ISERROR(VLOOKUP(B12,'KAYIT LİSTESİ'!$B$4:$H$829,5,0)),"",(VLOOKUP(B12,'KAYIT LİSTESİ'!$B$4:$H$829,5,0))) -> ALEYNA FİCİ | F12: =IF(ISERROR(VLOOKUP(B12,'KAYIT LİSTESİ'!$B$4:$H$829,6,0)),"",(VLOOKUP(B12,'KAYIT LİSTESİ'!$B$4:$H$829,6,0))) -> BALIKESİR | I12: 6 | J12: 6 | K12: 400M-1-6 | L12: =IF(ISERROR(VLOOKUP(K12,'KAYIT LİSTESİ'!$B$4:$H$829,2,0)),"",(VLOOKUP(K12,'KAYIT LİSTESİ'!$B$4:$H$829,2,0))) ->  | M12: =IF(ISERROR(VLOOKUP(K12,'KAYIT LİSTESİ'!$B$4:$H$829,4,0)),"",(VLOOKUP(K12,'KAYIT LİSTESİ'!$B$4:$H$829,4,0))) ->  | N12: =IF(ISERROR(VLOOKUP(K12,'KAYIT LİSTESİ'!$B$4:$H$829,5,0)),"",(VLOOKUP(K12,'KAYIT LİSTESİ'!$B$4:$H$829,5,0))) ->  | O12: =IF(ISERROR(VLOOKUP(K12,'KAYIT LİSTESİ'!$B$4:$H$829,6,0)),"",(VLOOKUP(K12,'KAYIT LİSTESİ'!$B$4:$H$829,6,0))) -> 
A13: 7 | B13: 100M-1-7 | C13: =IF(ISERROR(VLOOKUP(B13,'KAYIT LİSTESİ'!$B$4:$H$829,2,0)),"",(VLOOKUP(B13,'KAYIT LİSTESİ'!$B$4:$H$829,2,0))) -> 382 | D13: =IF(ISERROR(VLOOKUP(B13,'KAYIT LİSTESİ'!$B$4:$H$829,4,0)),"",(VLOOKUP(B13,'KAYIT LİSTESİ'!$B$4:$H$829,4,0))) -> 2001-01-09 | E13: =IF(ISERROR(VLOOKUP(B13,'KAYIT LİSTESİ'!$B$4:$H$829,5,0)),"",(VLOOKUP(B13,'KAYIT LİSTESİ'!$B$4:$H$829,5,0))) -> BAŞAK ERĞUN | F13: =IF(ISERROR(VLOOKUP(B13,'KAYIT LİSTESİ'!$B$4:$H$829,6,0)),"",(VLOOKUP(B13,'KAYIT LİSTESİ'!$B$4:$H$829,6,0))) -> İZMİR | I13: 7 | J13: 7 | K13: 400M-1-7 | L13: =IF(ISERROR(VLOOKUP(K13,'KAYIT LİSTESİ'!$B$4:$H$829,2,0)),"",(VLOOKUP(K13,'KAYIT LİSTESİ'!$B$4:$H$829,2,0))) ->  | M13: =IF(ISERROR(VLOOKUP(K13,'KAYIT LİSTESİ'!$B$4:$H$829,4,0)),"",(VLOOKUP(K13,'KAYIT LİSTESİ'!$B$4:$H$829,4,0))) ->  | N13: =IF(ISERROR(VLOOKUP(K13,'KAYIT LİSTESİ'!$B$4:$H$829,5,0)),"",(VLOOKUP(K13,'KAYIT LİSTESİ'!$B$4:$H$829,5,0))) ->  | O13: =IF(ISERROR(VLOOKUP(K13,'KAYIT LİSTESİ'!$B$4:$H$829,6,0)),"",(VLOOKUP(K13,'KAYIT LİSTESİ'!$B$4:$H$829,6,0))) -> 
A14: 8 | B14: 100M-1-8 | C14: =IF(ISERROR(VLOOKUP(B14,'KAYIT LİSTESİ'!$B$4:$H$829,2,0)),"",(VLOOKUP(B14,'KAYIT LİSTESİ'!$B$4:$H$829,2,0))) -> 742 | D14: =IF(ISERROR(VLOOKUP(B14,'KAYIT LİSTESİ'!$B$4:$H$829,4,0)),"",(VLOOKUP(B14,'KAYIT LİSTESİ'!$B$4:$H$829,4,0))) -> 2001-04-06 | E14: =IF(ISERROR(VLOOKUP(B14,'KAYIT LİSTESİ'!$B$4:$H$829,5,0)),"",(VLOOKUP(B14,'KAYIT LİSTESİ'!$B$4:$H$829,5,0))) -> MELEK NUR YAMAN | F14: =IF(ISERROR(VLOOKUP(B14,'KAYIT LİSTESİ'!$B$4:$H$829,6,0)),"",(VLOOKUP(B14,'KAYIT LİSTESİ'!$B$4:$H$829,6,0))) -> SAKARYA | I14: 8 | J14: 8 | K14: 400M-1-8 | L14: =IF(ISERROR(VLOOKUP(K14,'KAYIT LİSTESİ'!$B$4:$H$829,2,0)),"",(VLOOKUP(K14,'KAYIT LİSTESİ'!$B$4:$H$829,2,0))) ->  | M14: =IF(ISERROR(VLOOKUP(K14,'KAYIT LİSTESİ'!$B$4:$H$829,4,0)),"",(VLOOKUP(K14,'KAYIT LİSTESİ'!$B$4:$H$829,4,0))) ->  | N14: =IF(ISERROR(VLOOKUP(K14,'KAYIT LİSTESİ'!$B$4:$H$829,5,0)),"",(VLOOKUP(K14,'KAYIT LİSTESİ'!$B$4:$H$829,5,0))) ->  | O14: =IF(ISERROR(VLOOKUP(K14,'KAYIT LİSTESİ'!$B$4:$H$829,6,0)),"",(VLOOKUP(K14,'KAYIT LİSTESİ'!$B$4:$H$829,6,0))) -> 
A15: 2. SERİ | I15: 9 | J15: 2. SERİ
A16: Sıra No | B16: Formül | C16: Göğüs No | D16: Doğum Tarihi | E16: Adı ve Soyadı | F16: Okulu | G16: Start Kontrol | I16: 10 | J16: Sıra No | K16: Formül | L16: Göğüs No | M16: Doğum Tarihi | N16: Adı ve Soyadı | O16: Okulu | P16: Start Kontrol
A17: 1 | B17: 100M-2-1 | C17: =IF(ISERROR(VLOOKUP(B17,'KAYIT LİSTESİ'!$B$4:$H$829,2,0)),"",(VLOOKUP(B17,'KAYIT LİSTESİ'!$B$4:$H$829,2,0))) -> 361 | D17: =IF(ISERROR(VLOOKUP(B17,'KAYIT LİSTESİ'!$B$4:$H$829,4,0)),"",(VLOOKUP(B17,'KAYIT LİSTESİ'!$B$4:$H$829,4,0))) -> 2001-12-14 | E17: =IF(ISERROR(VLOOKUP(B17,'KAYIT LİSTESİ'!$B$4:$H$829,5,0)),"",(VLOOKUP(B17,'KAYIT LİSTESİ'!$B$4:$H$829,5,0))) -> LAYLA SULTAN ORAL | F17: =IF(ISERROR(VLOOKUP(B17,'KAYIT LİSTESİ'!$B$4:$H$829,6,0)),"",(VLOOKUP(B17,'KAYIT LİSTESİ'!$B$4:$H$829,6,0))) -> İSTANBUL | I17: 11 | J17: 1 | K17: 400M-2-1 | L17: =IF(ISERROR(VLOOKUP(K17,'KAYIT LİSTESİ'!$B$4:$H$829,2,0)),"",(VLOOKUP(K17,'KAYIT LİSTESİ'!$B$4:$H$829,2,0))) ->  | M17: =IF(ISERROR(VLOOKUP(K17,'KAYIT LİSTESİ'!$B$4:$H$829,4,0)),"",(VLOOKUP(K17,'KAYIT LİSTESİ'!$B$4:$H$829,4,0))) ->  | N17: =IF(ISERROR(VLOOKUP(K17,'KAYIT LİSTESİ'!$B$4:$H$829,5,0)),"",(VLOOKUP(K17,'KAYIT LİSTESİ'!$B$4:$H$829,5,0))) ->  | O17: =IF(ISERROR(VLOOKUP(K17,'KAYIT LİSTESİ'!$B$4:$H$829,6,0)),"",(VLOOKUP(K17,'KAYIT LİSTESİ'!$B$4:$H$829,6,0))) -> 
A18: 2 | B18: 100M-2-2 | C18: =IF(ISERROR(VLOOKUP(B18,'KAYIT LİSTESİ'!$B$4:$H$829,2,0)),"",(VLOOKUP(B18,'KAYIT LİSTESİ'!$B$4:$H$829,2,0))) -> 671 | D18: =IF(ISERROR(VLOOKUP(B18,'KAYIT LİSTESİ'!$B$4:$H$829,4,0)),"",(VLOOKUP(B18,'KAYIT LİSTESİ'!$B$4:$H$829,4,0))) -> 2001-01-25 | E18: =IF(ISERROR(VLOOKUP(B18,'KAYIT LİSTESİ'!$B$4:$H$829,5,0)),"",(VLOOKUP(B18,'KAYIT LİSTESİ'!$B$4:$H$829,5,0))) -> ALMİNA MALKOÇ | F18: =IF(ISERROR(VLOOKUP(B18,'KAYIT LİSTESİ'!$B$4:$H$829,6,0)),"",(VLOOKUP(B18,'KAYIT LİSTESİ'!$B$4:$H$829,6,0))) -> TEKİRDAĞ | I18: 12 | J18: 2 | K18: 400M-2-2 | L18: =IF(ISERROR(VLOOKUP(K18,'KAYIT LİSTESİ'!$B$4:$H$829,2,0)),"",(VLOOKUP(K18,'KAYIT LİSTESİ'!$B$4:$H$829,2,0))) ->  | M18: =IF(ISERROR(VLOOKUP(K18,'KAYIT LİSTESİ'!$B$4:$H$829,4,0)),"",(VLOOKUP(K18,'KAYIT LİSTESİ'!$B$4:$H$829,4,0))) ->  | N18: =IF(ISERROR(VLOOKUP(K18,'KAYIT LİSTESİ'!$B$4:$H$829,5,0)),"",(VLOOKUP(K18,'KAYIT LİSTESİ'!$B$4:$H$829,5,0))) ->  | O18: =IF(ISERROR(VLOOKUP(K18,'KAYIT LİSTESİ'!$B$4:$H$829,6,0)),"",(VLOOKUP(K18,'KAYIT LİSTESİ'!$B$4:$H$829,6,0))) -> 
A19: 3 | B19: 100M-2-3 | C19: =IF(ISERROR(VLOOKUP(B19,'KAYIT LİSTESİ'!$B$4:$H$829,2,0)),"",(VLOOKUP(B19,'KAYIT LİSTESİ'!$B$4:$H$829,2,0))) -> 151 | D19: =IF(ISERROR(VLOOKUP(B19,'KAYIT LİSTESİ'!$B$4:$H$829,4,0)),"",(VLOOKUP(B19,'KAYIT LİSTESİ'!$B$4:$H$829,4,0))) -> 2001-12-22 | E19: =IF(ISERROR(VLOOKUP(B19,'KAYIT LİSTESİ'!$B$4:$H$829,5,0)),"",(VLOOKUP(B19,'KAYIT LİSTESİ'!$B$4:$H$829,5,0))) -> KADER KAYA | F19: =IF(ISERROR(VLOOKUP(B19,'KAYIT LİSTESİ'!$B$4:$H$829,6,0)),"",(VLOOKUP(B19,'KAYIT LİSTESİ'!$B$4:$H$829,6,0))) -> BİLECİK | I19: 13 | J19: 3 | K19: 400M-2-3 | L19: =IF(ISERROR(VLOOKUP(K19,'KAYIT LİSTESİ'!$B$4:$H$829,2,0)),"",(VLOOKUP(K19,'KAYIT LİSTESİ'!$B$4:$H$829,2,0))) ->  | M19: =IF(ISERROR(VLOOKUP(K19,'KAYIT LİSTESİ'!$B$4:$H$829,4,0)),"",(VLOOKUP(K19,'KAYIT LİSTESİ'!$B$4:$H$829,4,0))) ->  | N19: =IF(ISERROR(VLOOKUP(K19,'KAYIT LİSTESİ'!$B$4:$H$829,5,0)),"",(VLOOKUP(K19,'KAYIT LİSTESİ'!$B$4:$H$829,5,0))) ->  | O19: =IF(ISERROR(VLOOKUP(K19,'KAYIT LİSTESİ'!$B$4:$H$829,6,0)),"",(VLOOKUP(K19,'KAYIT LİSTESİ'!$B$4:$H$829,6,0))) -> 
A20: 4 | B20: 100M-2-4 | C20: =IF(ISERROR(VLOOKUP(B20,'KAYIT LİSTESİ'!$B$4:$H$829,2,0)),"",(VLOOKUP(B20,'KAYIT LİSTESİ'!$B$4:$H$829,2,0))) -> 365 | D20: =IF(ISERROR(VLOOKUP(B20,'KAYIT LİSTESİ'!$B$4:$H$829,4,0)),"",(VLOOKUP(B20,'KAYIT LİSTESİ'!$B$4:$H$829,4,0))) -> 2001-09-19 | E20: =IF(ISERROR(VLOOKUP(B20,'KAYIT LİSTESİ'!$B$4:$H$829,5,0)),"",(VLOOKUP(B20,'KAYIT LİSTESİ'!$B$4:$H$829,5,0))) -> ZEHRA ERHAN | F20: =IF(ISERROR(VLOOKUP(B20,'KAYIT LİSTESİ'!$B$4:$H$829,6,0)),"",(VLOOKUP(B20,'KAYIT LİSTESİ'!$B$4:$H$829,6,0))) -> İSTANBUL | I20: 14 | J20: 4 | K20: 400M-2-4 | L20: =IF(ISERROR(VLOOKUP(K20,'KAYIT LİSTESİ'!$B$4:$H$829,2,0)),"",(VLOOKUP(K20,'KAYIT LİSTESİ'!$B$4:$H$829,2,0))) ->  | M20: =IF(ISERROR(VLOOKUP(K20,'KAYIT LİSTESİ'!$B$4:$H$829,4,0)),"",(VLOOKUP(K20,'KAYIT LİSTESİ'!$B$4:$H$829,4,0))) ->  | N20: =IF(ISERROR(VLOOKUP(K20,'KAYIT LİSTESİ'!$B$4:$H$829,5,0)),"",(VLOOKUP(K20,'KAYIT LİSTESİ'!$B$4:$H$829,5,0))) ->  | O20: =IF(ISERROR(VLOOKUP(K20,'KAYIT LİSTESİ'!$B$4:$H$829,6,0)),"",(VLOOKUP(K20,'KAYIT LİSTESİ'!$B$4:$H$829,6,0))) -> 
A21: 5 | B21: 100M-2-5 | C21: =IF(ISERROR(VLOOKUP(B21,'KAYIT LİSTESİ'!$B$4:$H$829,2,0)),"",(VLOOKUP(B21,'KAYIT LİSTESİ'!$B$4:$H$829,2,0))) -> 743 | D21: =IF(ISERROR(VLOOKUP(B21,'KAYIT LİSTESİ'!$B$4:$H$829,4,0)),"",(VLOOKUP(B21,'KAYIT LİSTESİ'!$B$4:$H$829,4,0))) -> 2001-05-11 | E21: =IF(ISERROR(VLOOKUP(B21,'KAYIT LİSTESİ'!$B$4:$H$829,5,0)),"",(VLOOKUP(B21,'KAYIT LİSTESİ'!$B$4:$H$829,5,0))) -> MERVENUR ÇAPOĞLU | F21: =IF(ISERROR(VLOOKUP(B21,'KAYIT LİSTESİ'!$B$4:$H$829,6,0)),"",(VLOOKUP(B21,'KAYIT LİSTESİ'!$B$4:$H$829,6,0))) -> SAKARYA | I21: 15 | J21: 5 | K21: 400M-2-5 | L21: =IF(ISERROR(VLOOKUP(K21,'KAYIT LİSTESİ'!$B$4:$H$829,2,0)),"",(VLOOKUP(K21,'KAYIT LİSTESİ'!$B$4:$H$829,2,0))) ->  | M21: =IF(ISERROR(VLOOKUP(K21,'KAYIT LİSTESİ'!$B$4:$H$829,4,0)),"",(VLOOKUP(K21,'KAYIT LİSTESİ'!$B$4:$H$829,4,0))) ->  | N21: =IF(ISERROR(VLOOKUP(K21,'KAYIT LİSTESİ'!$B$4:$H$829,5,0)),"",(VLOOKUP(K21,'KAYIT LİSTESİ'!$B$4:$H$829,5,0))) ->  | O21: =IF(ISERROR(VLOOKUP(K21,'KAYIT LİSTESİ'!$B$4:$H$829,6,0)),"",(VLOOKUP(K21,'KAYIT LİSTESİ'!$B$4:$H$829,6,0))) -> 
A22: 6 | B22: 100M-2-6 | C22: =IF(ISERROR(VLOOKUP(B22,'KAYIT LİSTESİ'!$B$4:$H$829,2,0)),"",(VLOOKUP(B22,'KAYIT LİSTESİ'!$B$4:$H$829,2,0))) -> 738 | D22: =IF(ISERROR(VLOOKUP(B22,'KAYIT LİSTESİ'!$B$4:$H$829,4,0)),"",(VLOOKUP(B22,'KAYIT LİSTESİ'!$B$4:$H$829,4,0))) -> 2001-07-30 | E22: =IF(ISERROR(VLOOKUP(B22,'KAYIT LİSTESİ'!$B$4:$H$829,5,0)),"",(VLOOKUP(B22,'KAYIT LİSTESİ'!$B$4:$H$829,5,0))) -> CEYDA TAŞKIRAN | F22: =IF(ISERROR(VLOOKUP(B22,'KAYIT LİSTESİ'!$B$4:$H$829,6,0)),"",(VLOOKUP(B22,'KAYIT LİSTESİ'!$B$4:$H$829,6,0))) -> MUĞLA | I22: 16 | J22: 6 | K22: 400M-2-6 | L22: =IF(ISERROR(VLOOKUP(K22,'KAYIT LİSTESİ'!$B$4:$H$829,2,0)),"",(VLOOKUP(K22,'KAYIT LİSTESİ'!$B$4:$H$829,2,0))) ->  | M22: =IF(ISERROR(VLOOKUP(K22,'KAYIT LİSTESİ'!$B$4:$H$829,4,0)),"",(VLOOKUP(K22,'KAYIT LİSTESİ'!$B$4:$H$829,4,0))) ->  | N22: =IF(ISERROR(VLOOKUP(K22,'KAYIT LİSTESİ'!$B$4:$H$829,5,0)),"",(VLOOKUP(K22,'KAYIT LİSTESİ'!$B$4:$H$829,5,0))) ->  | O22: =IF(ISERROR(VLOOKUP(K22,'KAYIT LİSTESİ'!$B$4:$H$829,6,0)),"",(VLOOKUP(K22,'KAYIT LİSTESİ'!$B$4:$H$829,6,0))) -> 
A23: 7 | B23: 100M-2-7 | C23: =IF(ISERROR(VLOOKUP(B23,'KAYIT LİSTESİ'!$B$4:$H$829,2,0)),"",(VLOOKUP(B23,'KAYIT LİSTESİ'!$B$4:$H$829,2,0))) -> 476 | D23: =IF(ISERROR(VLOOKUP(B23,'KAYIT LİSTESİ'!$B$4:$H$829,4,0)),"",(VLOOKUP(B23,'KAYIT LİSTESİ'!$B$4:$H$829,4,0))) -> 2001-06-18 | E23: =IF(ISERROR(VLOOKUP(B23,'KAYIT LİSTESİ'!$B$4:$H$829,5,0)),"",(VLOOKUP(B23,'KAYIT LİSTESİ'!$B$4:$H$829,5,0))) -> AYŞE N. YILDIRIM | F23: =IF(ISERROR(VLOOKUP(B23,'KAYIT LİSTESİ'!$B$4:$H$829,6,0)),"",(VLOOKUP(B23,'KAYIT LİSTESİ'!$B$4:$H$829,6,0))) -> KIRIKKALE | I23: 17 | J23: 7 | K23: 400M-2-7 | L23: =IF(ISERROR(VLOOKUP(K23,'KAYIT LİSTESİ'!$B$4:$H$829,2,0)),"",(VLOOKUP(K23,'KAYIT LİSTESİ'!$B$4:$H$829,2,0))) ->  | M23: =IF(ISERROR(VLOOKUP(K23,'KAYIT LİSTESİ'!$B$4:$H$829,4,0)),"",(VLOOKUP(K23,'KAYIT LİSTESİ'!$B$4:$H$829,4,0))) ->  | N23: =IF(ISERROR(VLOOKUP(K23,'KAYIT LİSTESİ'!$B$4:$H$829,5,0)),"",(VLOOKUP(K23,'KAYIT LİSTESİ'!$B$4:$H$829,5,0))) ->  | O23: =IF(ISERROR(VLOOKUP(K23,'KAYIT LİSTESİ'!$B$4:$H$829,6,0)),"",(VLOOKUP(K23,'KAYIT LİSTESİ'!$B$4:$H$829,6,0))) -> 
A24: 8 | B24: 100M-2-8 | C24: =IF(ISERROR(VLOOKUP(B24,'KAYIT LİSTESİ'!$B$4:$H$829,2,0)),"",(VLOOKUP(B24,'KAYIT LİSTESİ'!$B$4:$H$829,2,0))) -> 604 | D24: =IF(ISERROR(VLOOKUP(B24,'KAYIT LİSTESİ'!$B$4:$H$829,4,0)),"",(VLOOKUP(B24,'KAYIT LİSTESİ'!$B$4:$H$829,4,0))) -> 2001-08-16 | E24: =IF(ISERROR(VLOOKUP(B24,'KAYIT LİSTESİ'!$B$4:$H$829,5,0)),"",(VLOOKUP(B24,'KAYIT LİSTESİ'!$B$4:$H$829,5,0))) -> HATICE GÜNAYDIN | F24: =IF(ISERROR(VLOOKUP(B24,'KAYIT LİSTESİ'!$B$4:$H$829,6,0)),"",(VLOOKUP(B24,'KAYIT LİSTESİ'!$B$4:$H$829,6,0))) -> NİĞDE | I24: 18 | J24: 8 | K24: 400M-2-8 | L24: =IF(ISERROR(VLOOKUP(K24,'KAYIT LİSTESİ'!$B$4:$H$829,2,0)),"",(VLOOKUP(K24,'KAYIT LİSTESİ'!$B$4:$H$829,2,0))) ->  | M24: =IF(ISERROR(VLOOKUP(K24,'KAYIT LİSTESİ'!$B$4:$H$829,4,0)),"",(VLOOKUP(K24,'KAYIT LİSTESİ'!$B$4:$H$829,4,0))) ->  | N24: =IF(ISERROR(VLOOKUP(K24,'KAYIT LİSTESİ'!$B$4:$H$829,5,0)),"",(VLOOKUP(K24,'KAYIT LİSTESİ'!$B$4:$H$829,5,0))) ->  | O24: =IF(ISERROR(VLOOKUP(K24,'KAYIT LİSTESİ'!$B$4:$H$829,6,0)),"",(VLOOKUP(K24,'KAYIT LİSTESİ'!$B$4:$H$829,6,0))) -> 
A25: 3. SERİ | I25: 19 | J25: 3. SERİ
A26: Sıra No | B26: Formül | C26: Göğüs No | D26: Doğum Tarihi | E26: Adı ve Soyadı | F26: Okulu | G26: Start Kontrol | I26: 20 | J26: Sıra No | K26: Formül | L26: Göğüs No | M26: Doğum Tarihi | N26: Adı ve Soyadı | O26: Okulu | P26: Start Kontrol
A27: 1 | B27: 100M-3-1 | C27: =IF(ISERROR(VLOOKUP(B27,'KAYIT LİSTESİ'!$B$4:$H$829,2,0)),"",(VLOOKUP(B27,'KAYIT LİSTESİ'!$B$4:$H$829,2,0))) -> 78 | D27: =IF(ISERROR(VLOOKUP(B27,'KAYIT LİSTESİ'!$B$4:$H$829,4,0)),"",(VLOOKUP(B27,'KAYIT LİSTESİ'!$B$4:$H$829,4,0))) -> 2001-07-05 | E27: =IF(ISERROR(VLOOKUP(B27,'KAYIT LİSTESİ'!$B$4:$H$829,5,0)),"",(VLOOKUP(B27,'KAYIT LİSTESİ'!$B$4:$H$829,5,0))) -> NAZLI KAYA | F27: =IF(ISERROR(VLOOKUP(B27,'KAYIT LİSTESİ'!$B$4:$H$829,6,0)),"",(VLOOKUP(B27,'KAYIT LİSTESİ'!$B$4:$H$829,6,0))) -> AYDIN | I27: 21 | J27: 1 | K27: 400M-3-1 | L27: =IF(ISERROR(VLOOKUP(K27,'KAYIT LİSTESİ'!$B$4:$H$829,2,0)),"",(VLOOKUP(K27,'KAYIT LİSTESİ'!$B$4:$H$829,2,0))) ->  | M27: =IF(ISERROR(VLOOKUP(K27,'KAYIT LİSTESİ'!$B$4:$H$829,4,0)),"",(VLOOKUP(K27,'KAYIT LİSTESİ'!$B$4:$H$829,4,0))) ->  | N27: =IF(ISERROR(VLOOKUP(K27,'KAYIT LİSTESİ'!$B$4:$H$829,5,0)),"",(VLOOKUP(K27,'KAYIT LİSTESİ'!$B$4:$H$829,5,0))) ->  | O27: =IF(ISERROR(VLOOKUP(K27,'KAYIT LİSTESİ'!$B$4:$H$829,6,0)),"",(VLOOKUP(K27,'KAYIT LİSTESİ'!$B$4:$H$829,6,0))) -> 
A28: 2 | B28: 100M-3-2 | C28: =IF(ISERROR(VLOOKUP(B28,'KAYIT LİSTESİ'!$B$4:$H$829,2,0)),"",(VLOOKUP(B28,'KAYIT LİSTESİ'!$B$4:$H$829,2,0))) -> 677 | D28: =IF(ISERROR(VLOOKUP(B28,'KAYIT LİSTESİ'!$B$4:$H$829,4,0)),"",(VLOOKUP(B28,'KAYIT LİSTESİ'!$B$4:$H$829,4,0))) -> 2001-11-27 | E28: =IF(ISERROR(VLOOKUP(B28,'KAYIT LİSTESİ'!$B$4:$H$829,5,0)),"",(VLOOKUP(B28,'KAYIT LİSTESİ'!$B$4:$H$829,5,0))) -> MELEK ÇOBAN | F28: =IF(ISERROR(VLOOKUP(B28,'KAYIT LİSTESİ'!$B$4:$H$829,6,0)),"",(VLOOKUP(B28,'KAYIT LİSTESİ'!$B$4:$H$829,6,0))) -> TEKİRDAĞ | I28: 22 | J28: 2 | K28: 400M-3-2 | L28: =IF(ISERROR(VLOOKUP(K28,'KAYIT LİSTESİ'!$B$4:$H$829,2,0)),"",(VLOOKUP(K28,'KAYIT LİSTESİ'!$B$4:$H$829,2,0))) ->  | M28: =IF(ISERROR(VLOOKUP(K28,'KAYIT LİSTESİ'!$B$4:$H$829,4,0)),"",(VLOOKUP(K28,'KAYIT LİSTESİ'!$B$4:$H$829,4,0))) ->  | N28: =IF(ISERROR(VLOOKUP(K28,'KAYIT LİSTESİ'!$B$4:$H$829,5,0)),"",(VLOOKUP(K28,'KAYIT LİSTESİ'!$B$4:$H$829,5,0))) ->  | O28: =IF(ISERROR(VLOOKUP(K28,'KAYIT LİSTESİ'!$B$4:$H$829,6,0)),"",(VLOOKUP(K28,'KAYIT LİSTESİ'!$B$4:$H$829,6,0))) -> 
A29: 3 | B29: 100M-3-3 | C29: =IF(ISERROR(VLOOKUP(B29,'KAYIT LİSTESİ'!$B$4:$H$829,2,0)),"",(VLOOKUP(B29,'KAYIT LİSTESİ'!$B$4:$H$829,2,0))) -> 562 | D29: =IF(ISERROR(VLOOKUP(B29,'KAYIT LİSTESİ'!$B$4:$H$829,4,0)),"",(VLOOKUP(B29,'KAYIT LİSTESİ'!$B$4:$H$829,4,0))) -> 2001-06-20 | E29: =IF(ISERROR(VLOOKUP(B29,'KAYIT LİSTESİ'!$B$4:$H$829,5,0)),"",(VLOOKUP(B29,'KAYIT LİSTESİ'!$B$4:$H$829,5,0))) -> MELİS ÇELİKTEN | F29: =IF(ISERROR(VLOOKUP(B29,'KAYIT LİSTESİ'!$B$4:$H$829,6,0)),"",(VLOOKUP(B29,'KAYIT LİSTESİ'!$B$4:$H$829,6,0))) -> MUĞLA | I29: 23 | J29: 3 | K29: 400M-3-3 | L29: =IF(ISERROR(VLOOKUP(K29,'KAYIT LİSTESİ'!$B$4:$H$829,2,0)),"",(VLOOKUP(K29,'KAYIT LİSTESİ'!$B$4:$H$829,2,0))) ->  | M29: =IF(ISERROR(VLOOKUP(K29,'KAYIT LİSTESİ'!$B$4:$H$829,4,0)),"",(VLOOKUP(K29,'KAYIT LİSTESİ'!$B$4:$H$829,4,0))) ->  | N29: =IF(ISERROR(VLOOKUP(K29,'KAYIT LİSTESİ'!$B$4:$H$829,5,0)),"",(VLOOKUP(K29,'KAYIT LİSTESİ'!$B$4:$H$829,5,0))) ->  | O29: =IF(ISERROR(VLOOKUP(K29,'KAYIT LİSTESİ'!$B$4:$H$829,6,0)),"",(VLOOKUP(K29,'KAYIT LİSTESİ'!$B$4:$H$829,6,0))) -> 
A30: 4 | B30: 100M-3-4 | C30: =IF(ISERROR(VLOOKUP(B30,'KAYIT LİSTESİ'!$B$4:$H$829,2,0)),"",(VLOOKUP(B30,'KAYIT LİSTESİ'!$B$4:$H$829,2,0))) -> 222 | D30: =IF(ISERROR(VLOOKUP(B30,'KAYIT LİSTESİ'!$B$4:$H$829,4,0)),"",(VLOOKUP(B30,'KAYIT LİSTESİ'!$B$4:$H$829,4,0))) -> 2001-01-01 | E30: =IF(ISERROR(VLOOKUP(B30,'KAYIT LİSTESİ'!$B$4:$H$829,5,0)),"",(VLOOKUP(B30,'KAYIT LİSTESİ'!$B$4:$H$829,5,0))) -> ZEHRE SUDE HANCIOĞLU | F30: =IF(ISERROR(VLOOKUP(B30,'KAYIT LİSTESİ'!$B$4:$H$829,6,0)),"",(VLOOKUP(B30,'KAYIT LİSTESİ'!$B$4:$H$829,6,0))) -> DENİZLİ | I30: 24 | J30: 4 | K30: 400M-3-4 | L30: =IF(ISERROR(VLOOKUP(K30,'KAYIT LİSTESİ'!$B$4:$H$829,2,0)),"",(VLOOKUP(K30,'KAYIT LİSTESİ'!$B$4:$H$829,2,0))) ->  | M30: =IF(ISERROR(VLOOKUP(K30,'KAYIT LİSTESİ'!$B$4:$H$829,4,0)),"",(VLOOKUP(K30,'KAYIT LİSTESİ'!$B$4:$H$829,4,0))) ->  | N30: =IF(ISERROR(VLOOKUP(K30,'KAYIT LİSTESİ'!$B$4:$H$829,5,0)),"",(VLOOKUP(K30,'KAYIT LİSTESİ'!$B$4:$H$829,5,0))) ->  | O30: =IF(ISERROR(VLOOKUP(K30,'KAYIT LİSTESİ'!$B$4:$H$829,6,0)),"",(VLOOKUP(K30,'KAYIT LİSTESİ'!$B$4:$H$829,6,0))) -> 
A31: 5 | B31: 100M-3-5 | C31: =IF(ISERROR(VLOOKUP(B31,'KAYIT LİSTESİ'!$B$4:$H$829,2,0)),"",(VLOOKUP(B31,'KAYIT LİSTESİ'!$B$4:$H$829,2,0))) -> 153 | D31: =IF(ISERROR(VLOOKUP(B31,'KAYIT LİSTESİ'!$B$4:$H$829,4,0)),"",(VLOOKUP(B31,'KAYIT LİSTESİ'!$B$4:$H$829,4,0))) -> 2001-05-10 | E31: =IF(ISERROR(VLOOKUP(B31,'KAYIT LİSTESİ'!$B$4:$H$829,5,0)),"",(VLOOKUP(B31,'KAYIT LİSTESİ'!$B$4:$H$829,5,0))) -> FATMA PELVAN | F31: =IF(ISERROR(VLOOKUP(B31,'KAYIT LİSTESİ'!$B$4:$H$829,6,0)),"",(VLOOKUP(B31,'KAYIT LİSTESİ'!$B$4:$H$829,6,0))) -> BİLECİK | I31: 25 | J31: 5 | K31: 400M-3-5 | L31: =IF(ISERROR(VLOOKUP(K31,'KAYIT LİSTESİ'!$B$4:$H$829,2,0)),"",(VLOOKUP(K31,'KAYIT LİSTESİ'!$B$4:$H$829,2,0))) ->  | M31: =IF(ISERROR(VLOOKUP(K31,'KAYIT LİSTESİ'!$B$4:$H$829,4,0)),"",(VLOOKUP(K31,'KAYIT LİSTESİ'!$B$4:$H$829,4,0))) ->  | N31: =IF(ISERROR(VLOOKUP(K31,'KAYIT LİSTESİ'!$B$4:$H$829,5,0)),"",(VLOOKUP(K31,'KAYIT LİSTESİ'!$B$4:$H$829,5,0))) ->  | O31: =IF(ISERROR(VLOOKUP(K31,'KAYIT LİSTESİ'!$B$4:$H$829,6,0)),"",(VLOOKUP(K31,'KAYIT LİSTESİ'!$B$4:$H$829,6,0))) -> 
A32: 6 | B32: 100M-3-6 | C32: =IF(ISERROR(VLOOKUP(B32,'KAYIT LİSTESİ'!$B$4:$H$829,2,0)),"",(VLOOKUP(B32,'KAYIT LİSTESİ'!$B$4:$H$829,2,0))) -> 105 | D32: =IF(ISERROR(VLOOKUP(B32,'KAYIT LİSTESİ'!$B$4:$H$829,4,0)),"",(VLOOKUP(B32,'KAYIT LİSTESİ'!$B$4:$H$829,4,0))) -> 2001-02-28 | E32: =IF(ISERROR(VLOOKUP(B32,'KAYIT LİSTESİ'!$B$4:$H$829,5,0)),"",(VLOOKUP(B32,'KAYIT LİSTESİ'!$B$4:$H$829,5,0))) -> SENA KAYNAR | F32: =IF(ISERROR(VLOOKUP(B32,'KAYIT LİSTESİ'!$B$4:$H$829,6,0)),"",(VLOOKUP(B32,'KAYIT LİSTESİ'!$B$4:$H$829,6,0))) -> BALIKESİR | J32: 6 | K32: 400M-3-6 | L32: =IF(ISERROR(VLOOKUP(K32,'KAYIT LİSTESİ'!$B$4:$H$829,2,0)),"",(VLOOKUP(K32,'KAYIT LİSTESİ'!$B$4:$H$829,2,0))) ->  | M32: =IF(ISERROR(VLOOKUP(K32,'KAYIT LİSTESİ'!$B$4:$H$829,4,0)),"",(VLOOKUP(K32,'KAYIT LİSTESİ'!$B$4:$H$829,4,0))) ->  | N32: =IF(ISERROR(VLOOKUP(K32,'KAYIT LİSTESİ'!$B$4:$H$829,5,0)),"",(VLOOKUP(K32,'KAYIT LİSTESİ'!$B$4:$H$829,5,0))) ->  | O32: =IF(ISERROR(VLOOKUP(K32,'KAYIT LİSTESİ'!$B$4:$H$829,6,0)),"",(VLOOKUP(K32,'KAYIT LİSTESİ'!$B$4:$H$829,6,0))) -> 
A33: 7 | B33: 100M-3-7 | C33: =IF(ISERROR(VLOOKUP(B33,'KAYIT LİSTESİ'!$B$4:$H$829,2,0)),"",(VLOOKUP(B33,'KAYIT LİSTESİ'!$B$4:$H$829,2,0))) -> 676 | D33: =IF(ISERROR(VLOOKUP(B33,'KAYIT LİSTESİ'!$B$4:$H$829,4,0)),"",(VLOOKUP(B33,'KAYIT LİSTESİ'!$B$4:$H$829,4,0))) -> 2001-09-08 | E33: =IF(ISERROR(VLOOKUP(B33,'KAYIT LİSTESİ'!$B$4:$H$829,5,0)),"",(VLOOKUP(B33,'KAYIT LİSTESİ'!$B$4:$H$829,5,0))) -> MELİKE SEVİNÇ | F33: =IF(ISERROR(VLOOKUP(B33,'KAYIT LİSTESİ'!$B$4:$H$829,6,0)),"",(VLOOKUP(B33,'KAYIT LİSTESİ'!$B$4:$H$829,6,0))) -> TEKİRDAĞ | J33: 7 | K33: 400M-3-7 | L33: =IF(ISERROR(VLOOKUP(K33,'KAYIT LİSTESİ'!$B$4:$H$829,2,0)),"",(VLOOKUP(K33,'KAYIT LİSTESİ'!$B$4:$H$829,2,0))) ->  | M33: =IF(ISERROR(VLOOKUP(K33,'KAYIT LİSTESİ'!$B$4:$H$829,4,0)),"",(VLOOKUP(K33,'KAYIT LİSTESİ'!$B$4:$H$829,4,0))) ->  | N33: =IF(ISERROR(VLOOKUP(K33,'KAYIT LİSTESİ'!$B$4:$H$829,5,0)),"",(VLOOKUP(K33,'KAYIT LİSTESİ'!$B$4:$H$829,5,0))) ->  | O33: =IF(ISERROR(VLOOKUP(K33,'KAYIT LİSTESİ'!$B$4:$H$829,6,0)),"",(VLOOKUP(K33,'KAYIT LİSTESİ'!$B$4:$H$829,6,0))) -> 
A34: 8 | B34: 100M-3-8 | C34: =IF(ISERROR(VLOOKUP(B34,'KAYIT LİSTESİ'!$B$4:$H$829,2,0)),"",(VLOOKUP(B34,'KAYIT LİSTESİ'!$B$4:$H$829,2,0))) -> 260 | D34: =IF(ISERROR(VLOOKUP(B34,'KAYIT LİSTESİ'!$B$4:$H$829,4,0)),"",(VLOOKUP(B34,'KAYIT LİSTESİ'!$B$4:$H$829,4,0))) -> 2001-02-20 | E34: =IF(ISERROR(VLOOKUP(B34,'KAYIT LİSTESİ'!$B$4:$H$829,5,0)),"",(VLOOKUP(B34,'KAYIT LİSTESİ'!$B$4:$H$829,5,0))) -> EBRAR BAYRİ | F34: =IF(ISERROR(VLOOKUP(B34,'KAYIT LİSTESİ'!$B$4:$H$829,6,0)),"",(VLOOKUP(B34,'KAYIT LİSTESİ'!$B$4:$H$829,6,0))) -> ERZURUM | J34: 8 | K34: 400M-3-8 | L34: =IF(ISERROR(VLOOKUP(K34,'KAYIT LİSTESİ'!$B$4:$H$829,2,0)),"",(VLOOKUP(K34,'KAYIT LİSTESİ'!$B$4:$H$829,2,0))) ->  | M34: =IF(ISERROR(VLOOKUP(K34,'KAYIT LİSTESİ'!$B$4:$H$829,4,0)),"",(VLOOKUP(K34,'KAYIT LİSTESİ'!$B$4:$H$829,4,0))) ->  | N34: =IF(ISERROR(VLOOKUP(K34,'KAYIT LİSTESİ'!$B$4:$H$829,5,0)),"",(VLOOKUP(K34,'KAYIT LİSTESİ'!$B$4:$H$829,5,0))) ->  | O34: =IF(ISERROR(VLOOKUP(K34,'KAYIT LİSTESİ'!$B$4:$H$829,6,0)),"",(VLOOKUP(K34,'KAYIT LİSTESİ'!$B$4:$H$829,6,0))) -> 
A35: 4. SERİ | J35: 4. SERİ
A36: Sıra No | B36: Formül | C36: Göğüs No | D36: Doğum Tarihi | E36: Adı ve Soyadı | F36: Okulu | G36: Start Kontrol | J36: Sıra No | K36: Formül | L36: Göğüs No | M36: Doğum Tarihi | N36: Adı ve Soyadı | O36: Okulu | P36: Start Kontrol
A37: 1 | B37: 100M-4-1 | C37: =IF(ISERROR(VLOOKUP(B37,'KAYIT LİSTESİ'!$B$4:$H$829,2,0)),"",(VLOOKUP(B37,'KAYIT LİSTESİ'!$B$4:$H$829,2,0))) -> 494 | D37: =IF(ISERROR(VLOOKUP(B37,'KAYIT LİSTESİ'!$B$4:$H$829,4,0)),"",(VLOOKUP(B37,'KAYIT LİSTESİ'!$B$4:$H$829,4,0))) -> 2001-06-06 | E37: =IF(ISERROR(VLOOKUP(B37,'KAYIT LİSTESİ'!$B$4:$H$829,5,0)),"",(VLOOKUP(B37,'KAYIT LİSTESİ'!$B$4:$H$829,5,0))) -> Gamze ŞİMŞEK | F37: =IF(ISERROR(VLOOKUP(B37,'KAYIT LİSTESİ'!$B$4:$H$829,6,0)),"",(VLOOKUP(B37,'KAYIT LİSTESİ'!$B$4:$H$829,6,0))) -> KIRŞEHİR | J37: 1 | K37: 400M-4-1 | L37: =IF(ISERROR(VLOOKUP(K37,'KAYIT LİSTESİ'!$B$4:$H$829,2,0)),"",(VLOOKUP(K37,'KAYIT LİSTESİ'!$B$4:$H$829,2,0))) ->  | M37: =IF(ISERROR(VLOOKUP(K37,'KAYIT LİSTESİ'!$B$4:$H$829,4,0)),"",(VLOOKUP(K37,'KAYIT LİSTESİ'!$B$4:$H$829,4,0))) ->  | N37: =IF(ISERROR(VLOOKUP(K37,'KAYIT LİSTESİ'!$B$4:$H$829,5,0)),"",(VLOOKUP(K37,'KAYIT LİSTESİ'!$B$4:$H$829,5,0))) ->  | O37: =IF(ISERROR(VLOOKUP(K37,'KAYIT LİSTESİ'!$B$4:$H$829,6,0)),"",(VLOOKUP(K37,'KAYIT LİSTESİ'!$B$4:$H$829,6,0))) -> 
A38: 2 | B38: 100M-4-2 | C38: =IF(ISERROR(VLOOKUP(B38,'KAYIT LİSTESİ'!$B$4:$H$829,2,0)),"",(VLOOKUP(B38,'KAYIT LİSTESİ'!$B$4:$H$829,2,0))) -> 298 | D38: =IF(ISERROR(VLOOKUP(B38,'KAYIT LİSTESİ'!$B$4:$H$829,4,0)),"",(VLOOKUP(B38,'KAYIT LİSTESİ'!$B$4:$H$829,4,0))) -> 2001-10-02 | E38: =IF(ISERROR(VLOOKUP(B38,'KAYIT LİSTESİ'!$B$4:$H$829,5,0)),"",(VLOOKUP(B38,'KAYIT LİSTESİ'!$B$4:$H$829,5,0))) -> DİLARA KÜÇÜK | F38: =IF(ISERROR(VLOOKUP(B38,'KAYIT LİSTESİ'!$B$4:$H$829,6,0)),"",(VLOOKUP(B38,'KAYIT LİSTESİ'!$B$4:$H$829,6,0))) -> GİRESUN | J38: 2 | K38: 400M-4-2 | L38: =IF(ISERROR(VLOOKUP(K38,'KAYIT LİSTESİ'!$B$4:$H$829,2,0)),"",(VLOOKUP(K38,'KAYIT LİSTESİ'!$B$4:$H$829,2,0))) ->  | M38: =IF(ISERROR(VLOOKUP(K38,'KAYIT LİSTESİ'!$B$4:$H$829,4,0)),"",(VLOOKUP(K38,'KAYIT LİSTESİ'!$B$4:$H$829,4,0))) ->  | N38: =IF(ISERROR(VLOOKUP(K38,'KAYIT LİSTESİ'!$B$4:$H$829,5,0)),"",(VLOOKUP(K38,'KAYIT LİSTESİ'!$B$4:$H$829,5,0))) ->  | O38: =IF(ISERROR(VLOOKUP(K38,'KAYIT LİSTESİ'!$B$4:$H$829,6,0)),"",(VLOOKUP(K38,'KAYIT LİSTESİ'!$B$4:$H$829,6,0))) -> 
A39: 3 | B39: 100M-4-3 | C39: =IF(ISERROR(VLOOKUP(B39,'KAYIT LİSTESİ'!$B$4:$H$829,2,0)),"",(VLOOKUP(B39,'KAYIT LİSTESİ'!$B$4:$H$829,2,0))) -> 5 | D39: =IF(ISERROR(VLOOKUP(B39,'KAYIT LİSTESİ'!$B$4:$H$829,4,0)),"",(VLOOKUP(B39,'KAYIT LİSTESİ'!$B$4:$H$829,4,0))) -> 2001-01-01 | E39: =IF(ISERROR(VLOOKUP(B39,'KAYIT LİSTESİ'!$B$4:$H$829,5,0)),"",(VLOOKUP(B39,'KAYIT LİSTESİ'!$B$4:$H$829,5,0))) -> M.İNCİ GÜRBÜZ | F39: =IF(ISERROR(VLOOKUP(B39,'KAYIT LİSTESİ'!$B$4:$H$829,6,0)),"",(VLOOKUP(B39,'KAYIT LİSTESİ'!$B$4:$H$829,6,0))) -> ADANA | J39: 3 | K39: 400M-4-3 | L39: =IF(ISERROR(VLOOKUP(K39,'KAYIT LİSTESİ'!$B$4:$H$829,2,0)),"",(VLOOKUP(K39,'KAYIT LİSTESİ'!$B$4:$H$829,2,0))) ->  | M39: =IF(ISERROR(VLOOKUP(K39,'KAYIT LİSTESİ'!$B$4:$H$829,4,0)),"",(VLOOKUP(K39,'KAYIT LİSTESİ'!$B$4:$H$829,4,0))) ->  | N39: =IF(ISERROR(VLOOKUP(K39,'KAYIT LİSTESİ'!$B$4:$H$829,5,0)),"",(VLOOKUP(K39,'KAYIT LİSTESİ'!$B$4:$H$829,5,0))) ->  | O39: =IF(ISERROR(VLOOKUP(K39,'KAYIT LİSTESİ'!$B$4:$H$829,6,0)),"",(VLOOKUP(K39,'KAYIT LİSTESİ'!$B$4:$H$829,6,0))) -> 
A40: 4 | B40: 100M-4-4 | C40: =IF(ISERROR(VLOOKUP(B40,'KAYIT LİSTESİ'!$B$4:$H$829,2,0)),"",(VLOOKUP(B40,'KAYIT LİSTESİ'!$B$4:$H$829,2,0))) -> 6 | D40: =IF(ISERROR(VLOOKUP(B40,'KAYIT LİSTESİ'!$B$4:$H$829,4,0)),"",(VLOOKUP(B40,'KAYIT LİSTESİ'!$B$4:$H$829,4,0))) -> 2001-01-01 | E40: =IF(ISERROR(VLOOKUP(B40,'KAYIT LİSTESİ'!$B$4:$H$829,5,0)),"",(VLOOKUP(B40,'KAYIT LİSTESİ'!$B$4:$H$829,5,0))) -> H.NUR AKGÜL | F40: =IF(ISERROR(VLOOKUP(B40,'KAYIT LİSTESİ'!$B$4:$H$829,6,0)),"",(VLOOKUP(B40,'KAYIT LİSTESİ'!$B$4:$H$829,6,0))) -> ADANA | J40: 4 | K40: 400M-4-4 | L40: =IF(ISERROR(VLOOKUP(K40,'KAYIT LİSTESİ'!$B$4:$H$829,2,0)),"",(VLOOKUP(K40,'KAYIT LİSTESİ'!$B$4:$H$829,2,0))) ->  | M40: =IF(ISERROR(VLOOKUP(K40,'KAYIT LİSTESİ'!$B$4:$H$829,4,0)),"",(VLOOKUP(K40,'KAYIT LİSTESİ'!$B$4:$H$829,4,0))) ->  | N40: =IF(ISERROR(VLOOKUP(K40,'KAYIT LİSTESİ'!$B$4:$H$829,5,0)),"",(VLOOKUP(K40,'KAYIT LİSTESİ'!$B$4:$H$829,5,0))) ->  | O40: =IF(ISERROR(VLOOKUP(K40,'KAYIT LİSTESİ'!$B$4:$H$829,6,0)),"",(VLOOKUP(K40,'KAYIT LİSTESİ'!$B$4:$H$829,6,0))) -> 
A41: 5 | B41: 100M-4-5 | C41: =IF(ISERROR(VLOOKUP(B41,'KAYIT LİSTESİ'!$B$4:$H$829,2,0)),"",(VLOOKUP(B41,'KAYIT LİSTESİ'!$B$4:$H$829,2,0))) -> 77 | D41: =IF(ISERROR(VLOOKUP(B41,'KAYIT LİSTESİ'!$B$4:$H$829,4,0)),"",(VLOOKUP(B41,'KAYIT LİSTESİ'!$B$4:$H$829,4,0))) -> 2001-06-21 | E41: =IF(ISERROR(VLOOKUP(B41,'KAYIT LİSTESİ'!$B$4:$H$829,5,0)),"",(VLOOKUP(B41,'KAYIT LİSTESİ'!$B$4:$H$829,5,0))) -> DERYA BİLGİ | F41: =IF(ISERROR(VLOOKUP(B41,'KAYIT LİSTESİ'!$B$4:$H$829,6,0)),"",(VLOOKUP(B41,'KAYIT LİSTESİ'!$B$4:$H$829,6,0))) -> AYDIN | J41: 5 | K41: 400M-4-5 | L41: =IF(ISERROR(VLOOKUP(K41,'KAYIT LİSTESİ'!$B$4:$H$829,2,0)),"",(VLOOKUP(K41,'KAYIT LİSTESİ'!$B$4:$H$829,2,0))) ->  | M41: =IF(ISERROR(VLOOKUP(K41,'KAYIT LİSTESİ'!$B$4:$H$829,4,0)),"",(VLOOKUP(K41,'KAYIT LİSTESİ'!$B$4:$H$829,4,0))) ->  | N41: =IF(ISERROR(VLOOKUP(K41,'KAYIT LİSTESİ'!$B$4:$H$829,5,0)),"",(VLOOKUP(K41,'KAYIT LİSTESİ'!$B$4:$H$829,5,0))) ->  | O41: =IF(ISERROR(VLOOKUP(K41,'KAYIT LİSTESİ'!$B$4:$H$829,6,0)),"",(VLOOKUP(K41,'KAYIT LİSTESİ'!$B$4:$H$829,6,0))) -> 
A42: 6 | B42: 100M-4-6 | C42: =IF(ISERROR(VLOOKUP(B42,'KAYIT LİSTESİ'!$B$4:$H$829,2,0)),"",(VLOOKUP(B42,'KAYIT LİSTESİ'!$B$4:$H$829,2,0))) -> 357 | D42: =IF(ISERROR(VLOOKUP(B42,'KAYIT LİSTESİ'!$B$4:$H$829,4,0)),"",(VLOOKUP(B42,'KAYIT LİSTESİ'!$B$4:$H$829,4,0))) -> 2001-11-12 | E42: =IF(ISERROR(VLOOKUP(B42,'KAYIT LİSTESİ'!$B$4:$H$829,5,0)),"",(VLOOKUP(B42,'KAYIT LİSTESİ'!$B$4:$H$829,5,0))) -> BUKET USTA | F42: =IF(ISERROR(VLOOKUP(B42,'KAYIT LİSTESİ'!$B$4:$H$829,6,0)),"",(VLOOKUP(B42,'KAYIT LİSTESİ'!$B$4:$H$829,6,0))) -> İSTANBUL | J42: 6 | K42: 400M-4-6 | L42: =IF(ISERROR(VLOOKUP(K42,'KAYIT LİSTESİ'!$B$4:$H$829,2,0)),"",(VLOOKUP(K42,'KAYIT LİSTESİ'!$B$4:$H$829,2,0))) ->  | M42: =IF(ISERROR(VLOOKUP(K42,'KAYIT LİSTESİ'!$B$4:$H$829,4,0)),"",(VLOOKUP(K42,'KAYIT LİSTESİ'!$B$4:$H$829,4,0))) ->  | N42: =IF(ISERROR(VLOOKUP(K42,'KAYIT LİSTESİ'!$B$4:$H$829,5,0)),"",(VLOOKUP(K42,'KAYIT LİSTESİ'!$B$4:$H$829,5,0))) ->  | O42: =IF(ISERROR(VLOOKUP(K42,'KAYIT LİSTESİ'!$B$4:$H$829,6,0)),"",(VLOOKUP(K42,'KAYIT LİSTESİ'!$B$4:$H$829,6,0))) -> 
A43: 7 | B43: 100M-4-7 | C43: =IF(ISERROR(VLOOKUP(B43,'KAYIT LİSTESİ'!$B$4:$H$829,2,0)),"",(VLOOKUP(B43,'KAYIT LİSTESİ'!$B$4:$H$829,2,0))) -> 492 | D43: =IF(ISERROR(VLOOKUP(B43,'KAYIT LİSTESİ'!$B$4:$H$829,4,0)),"",(VLOOKUP(B43,'KAYIT LİSTESİ'!$B$4:$H$829,4,0))) -> 2001-06-08 | E43: =IF(ISERROR(VLOOKUP(B43,'KAYIT LİSTESİ'!$B$4:$H$829,5,0)),"",(VLOOKUP(B43,'KAYIT LİSTESİ'!$B$4:$H$829,5,0))) -> ASUDE NİSA ÜNAL | F43: =IF(ISERROR(VLOOKUP(B43,'KAYIT LİSTESİ'!$B$4:$H$829,6,0)),"",(VLOOKUP(B43,'KAYIT LİSTESİ'!$B$4:$H$829,6,0))) -> KIRŞEHİR | J43: 7 | K43: 400M-4-7 | L43: =IF(ISERROR(VLOOKUP(K43,'KAYIT LİSTESİ'!$B$4:$H$829,2,0)),"",(VLOOKUP(K43,'KAYIT LİSTESİ'!$B$4:$H$829,2,0))) ->  | M43: =IF(ISERROR(VLOOKUP(K43,'KAYIT LİSTESİ'!$B$4:$H$829,4,0)),"",(VLOOKUP(K43,'KAYIT LİSTESİ'!$B$4:$H$829,4,0))) ->  | N43: =IF(ISERROR(VLOOKUP(K43,'KAYIT LİSTESİ'!$B$4:$H$829,5,0)),"",(VLOOKUP(K43,'KAYIT LİSTESİ'!$B$4:$H$829,5,0))) ->  | O43: =IF(ISERROR(VLOOKUP(K43,'KAYIT LİSTESİ'!$B$4:$H$829,6,0)),"",(VLOOKUP(K43,'KAYIT LİSTESİ'!$B$4:$H$829,6,0))) -> 
A44: 8 | B44: 100M-4-8 | C44: =IF(ISERROR(VLOOKUP(B44,'KAYIT LİSTESİ'!$B$4:$H$829,2,0)),"",(VLOOKUP(B44,'KAYIT LİSTESİ'!$B$4:$H$829,2,0))) -> 396 | D44: =IF(ISERROR(VLOOKUP(B44,'KAYIT LİSTESİ'!$B$4:$H$829,4,0)),"",(VLOOKUP(B44,'KAYIT LİSTESİ'!$B$4:$H$829,4,0))) -> 2001-05-10 | E44: =IF(ISERROR(VLOOKUP(B44,'KAYIT LİSTESİ'!$B$4:$H$829,5,0)),"",(VLOOKUP(B44,'KAYIT LİSTESİ'!$B$4:$H$829,5,0))) -> DEFNE GÜLÜŞ | F44: =IF(ISERROR(VLOOKUP(B44,'KAYIT LİSTESİ'!$B$4:$H$829,6,0)),"",(VLOOKUP(B44,'KAYIT LİSTESİ'!$B$4:$H$829,6,0))) -> İZMİR | J44: 8 | K44: 400M-4-8 | L44: =IF(ISERROR(VLOOKUP(K44,'KAYIT LİSTESİ'!$B$4:$H$829,2,0)),"",(VLOOKUP(K44,'KAYIT LİSTESİ'!$B$4:$H$829,2,0))) ->  | M44: =IF(ISERROR(VLOOKUP(K44,'KAYIT LİSTESİ'!$B$4:$H$829,4,0)),"",(VLOOKUP(K44,'KAYIT LİSTESİ'!$B$4:$H$829,4,0))) ->  | N44: =IF(ISERROR(VLOOKUP(K44,'KAYIT LİSTESİ'!$B$4:$H$829,5,0)),"",(VLOOKUP(K44,'KAYIT LİSTESİ'!$B$4:$H$829,5,0))) ->  | O44: =IF(ISERROR(VLOOKUP(K44,'KAYIT LİSTESİ'!$B$4:$H$829,6,0)),"",(VLOOKUP(K44,'KAYIT LİSTESİ'!$B$4:$H$829,6,0))) -> 
A45: 110 METRE ENGELLİ | J45: YÜKSEK ATLAMA
A46: 1. SERİ | J46: SIRA NO | L46: GÖĞÜS NO | M46: DOĞUM TARİHİ | N46: ADI VE SOYADI | O46: OKULU | P46: Start Kontrol
A47: Sıra No | B47: Formül | C47: Göğüs No | D47: Doğum Tarihi | E47: Adı ve Soyadı | F47: Okulu | G47: Start Kontrol
A48: 1 | B48: 110M.ENG-1-1 | C48: =IF(ISERROR(VLOOKUP(B48,'KAYIT LİSTESİ'!$B$4:$H$829,2,0)),"",(VLOOKUP(B48,'KAYIT LİSTESİ'!$B$4:$H$829,2,0))) ->  | D48: =IF(ISERROR(VLOOKUP(B48,'KAYIT LİSTESİ'!$B$4:$H$829,4,0)),"",(VLOOKUP(B48,'KAYIT LİSTESİ'!$B$4:$H$829,4,0))) ->  | E48: =IF(ISERROR(VLOOKUP(B48,'KAYIT LİSTESİ'!$B$4:$H$829,5,0)),"",(VLOOKUP(B48,'KAYIT LİSTESİ'!$B$4:$H$829,5,0))) ->  | F48: =IF(ISERROR(VLOOKUP(B48,'KAYIT LİSTESİ'!$B$4:$H$829,6,0)),"",(VLOOKUP(B48,'KAYIT LİSTESİ'!$B$4:$H$829,6,0))) ->  | J48: 1 | K48: YÜKSEK-1 | L48: =IF(ISERROR(VLOOKUP(K48,'KAYIT LİSTESİ'!$B$4:$H$829,2,0)),"",(VLOOKUP(K48,'KAYIT LİSTESİ'!$B$4:$H$829,2,0))) -> 358 | M48: =IF(ISERROR(VLOOKUP(K48,'KAYIT LİSTESİ'!$B$4:$H$829,4,0)),"",(VLOOKUP(K48,'KAYIT LİSTESİ'!$B$4:$H$829,4,0))) -> 2001-05-15 | N48: =IF(ISERROR(VLOOKUP(K48,'KAYIT LİSTESİ'!$B$4:$H$829,5,0)),"",(VLOOKUP(K48,'KAYIT LİSTESİ'!$B$4:$H$829,5,0))) -> İREM ZEHRA KARABABA | O48: =IF(ISERROR(VLOOKUP(K48,'KAYIT LİSTESİ'!$B$4:$H$829,6,0)),"",(VLOOKUP(K48,'KAYIT LİSTESİ'!$B$4:$H$829,6,0))) -> İSTANBUL
A49: 2 | B49: 110M.ENG-1-2 | C49: =IF(ISERROR(VLOOKUP(B49,'KAYIT LİSTESİ'!$B$4:$H$829,2,0)),"",(VLOOKUP(B49,'KAYIT LİSTESİ'!$B$4:$H$829,2,0))) ->  | D49: =IF(ISERROR(VLOOKUP(B49,'KAYIT LİSTESİ'!$B$4:$H$829,4,0)),"",(VLOOKUP(B49,'KAYIT LİSTESİ'!$B$4:$H$829,4,0))) ->  | E49: =IF(ISERROR(VLOOKUP(B49,'KAYIT LİSTESİ'!$B$4:$H$829,5,0)),"",(VLOOKUP(B49,'KAYIT LİSTESİ'!$B$4:$H$829,5,0))) ->  | F49: =IF(ISERROR(VLOOKUP(B49,'KAYIT LİSTESİ'!$B$4:$H$829,6,0)),"",(VLOOKUP(B49,'KAYIT LİSTESİ'!$B$4:$H$829,6,0))) ->  | J49: 2 | K49: YÜKSEK-2 | L49: =IF(ISERROR(VLOOKUP(K49,'KAYIT LİSTESİ'!$B$4:$H$829,2,0)),"",(VLOOKUP(K49,'KAYIT LİSTESİ'!$B$4:$H$829,2,0))) -> 396 | M49: =IF(ISERROR(VLOOKUP(K49,'KAYIT LİSTESİ'!$B$4:$H$829,4,0)),"",(VLOOKUP(K49,'KAYIT LİSTESİ'!$B$4:$H$829,4,0))) -> 2001-05-10 | N49: =IF(ISERROR(VLOOKUP(K49,'KAYIT LİSTESİ'!$B$4:$H$829,5,0)),"",(VLOOKUP(K49,'KAYIT LİSTESİ'!$B$4:$H$829,5,0))) -> DEFNE GÜLÜŞ | O49: =IF(ISERROR(VLOOKUP(K49,'KAYIT LİSTESİ'!$B$4:$H$829,6,0)),"",(VLOOKUP(K49,'KAYIT LİSTESİ'!$B$4:$H$829,6,0))) -> İZMİR
A50: 3 | B50: 110M.ENG-1-3 | C50: =IF(ISERROR(VLOOKUP(B50,'KAYIT LİSTESİ'!$B$4:$H$829,2,0)),"",(VLOOKUP(B50,'KAYIT LİSTESİ'!$B$4:$H$829,2,0))) ->  | D50: =IF(ISERROR(VLOOKUP(B50,'KAYIT LİSTESİ'!$B$4:$H$829,4,0)),"",(VLOOKUP(B50,'KAYIT LİSTESİ'!$B$4:$H$829,4,0))) ->  | E50: =IF(ISERROR(VLOOKUP(B50,'KAYIT LİSTESİ'!$B$4:$H$829,5,0)),"",(VLOOKUP(B50,'KAYIT LİSTESİ'!$B$4:$H$829,5,0))) ->  | F50: =IF(ISERROR(VLOOKUP(B50,'KAYIT LİSTESİ'!$B$4:$H$829,6,0)),"",(VLOOKUP(B50,'KAYIT LİSTESİ'!$B$4:$H$829,6,0))) ->  | J50: 3 | K50: YÜKSEK-3 | L50: =IF(ISERROR(VLOOKUP(K50,'KAYIT LİSTESİ'!$B$4:$H$829,2,0)),"",(VLOOKUP(K50,'KAYIT LİSTESİ'!$B$4:$H$829,2,0))) -> 399 | M50: =IF(ISERROR(VLOOKUP(K50,'KAYIT LİSTESİ'!$B$4:$H$829,4,0)),"",(VLOOKUP(K50,'KAYIT LİSTESİ'!$B$4:$H$829,4,0))) -> 2001-08-16 | N50: =IF(ISERROR(VLOOKUP(K50,'KAYIT LİSTESİ'!$B$4:$H$829,5,0)),"",(VLOOKUP(K50,'KAYIT LİSTESİ'!$B$4:$H$829,5,0))) -> BEGÜM ARICI | O50: =IF(ISERROR(VLOOKUP(K50,'KAYIT LİSTESİ'!$B$4:$H$829,6,0)),"",(VLOOKUP(K50,'KAYIT LİSTESİ'!$B$4:$H$829,6,0))) -> İZMİR
A51: 4 | B51: 110M.ENG-1-4 | C51: =IF(ISERROR(VLOOKUP(B51,'KAYIT LİSTESİ'!$B$4:$H$829,2,0)),"",(VLOOKUP(B51,'KAYIT LİSTESİ'!$B$4:$H$829,2,0))) ->  | D51: =IF(ISERROR(VLOOKUP(B51,'KAYIT LİSTESİ'!$B$4:$H$829,4,0)),"",(VLOOKUP(B51,'KAYIT LİSTESİ'!$B$4:$H$829,4,0))) ->  | E51: =IF(ISERROR(VLOOKUP(B51,'KAYIT LİSTESİ'!$B$4:$H$829,5,0)),"",(VLOOKUP(B51,'KAYIT LİSTESİ'!$B$4:$H$829,5,0))) ->  | F51: =IF(ISERROR(VLOOKUP(B51,'KAYIT LİSTESİ'!$B$4:$H$829,6,0)),"",(VLOOKUP(B51,'KAYIT LİSTESİ'!$B$4:$H$829,6,0))) ->  | J51: 4 | K51: YÜKSEK-4 | L51: =IF(ISERROR(VLOOKUP(K51,'KAYIT LİSTESİ'!$B$4:$H$829,2,0)),"",(VLOOKUP(K51,'KAYIT LİSTESİ'!$B$4:$H$829,2,0))) -> 676 | M51: =IF(ISERROR(VLOOKUP(K51,'KAYIT LİSTESİ'!$B$4:$H$829,4,0)),"",(VLOOKUP(K51,'KAYIT LİSTESİ'!$B$4:$H$829,4,0))) -> 2001-09-08 | N51: =IF(ISERROR(VLOOKUP(K51,'KAYIT LİSTESİ'!$B$4:$H$829,5,0)),"",(VLOOKUP(K51,'KAYIT LİSTESİ'!$B$4:$H$829,5,0))) -> MELİKE SEVİNÇ | O51: =IF(ISERROR(VLOOKUP(K51,'KAYIT LİSTESİ'!$B$4:$H$829,6,0)),"",(VLOOKUP(K51,'KAYIT LİSTESİ'!$B$4:$H$829,6,0))) -> TEKİRDAĞ
A52: 5 | B52: 110M.ENG-1-5 | C52: =IF(ISERROR(VLOOKUP(B52,'KAYIT LİSTESİ'!$B$4:$H$829,2,0)),"",(VLOOKUP(B52,'KAYIT LİSTESİ'!$B$4:$H$829,2,0))) ->  | D52: =IF(ISERROR(VLOOKUP(B52,'KAYIT LİSTESİ'!$B$4:$H$829,4,0)),"",(VLOOKUP(B52,'KAYIT LİSTESİ'!$B$4:$H$829,4,0))) ->  | E52: =IF(ISERROR(VLOOKUP(B52,'KAYIT LİSTESİ'!$B$4:$H$829,5,0)),"",(VLOOKUP(B52,'KAYIT LİSTESİ'!$B$4:$H$829,5,0))) ->  | F52: =IF(ISERROR(VLOOKUP(B52,'KAYIT LİSTESİ'!$B$4:$H$829,6,0)),"",(VLOOKUP(B52,'KAYIT LİSTESİ'!$B$4:$H$829,6,0))) ->  | J52: 5 | K52: YÜKSEK-5 | L52: =IF(ISERROR(VLOOKUP(K52,'KAYIT LİSTESİ'!$B$4:$H$829,2,0)),"",(VLOOKUP(K52,'KAYIT LİSTESİ'!$B$4:$H$829,2,0))) -> 104 | M52: =IF(ISERROR(VLOOKUP(K52,'KAYIT LİSTESİ'!$B$4:$H$829,4,0)),"",(VLOOKUP(K52,'KAYIT LİSTESİ'!$B$4:$H$829,4,0))) -> 2001-06-03 | N52: =IF(ISERROR(VLOOKUP(K52,'KAYIT LİSTESİ'!$B$4:$H$829,5,0)),"",(VLOOKUP(K52,'KAYIT LİSTESİ'!$B$4:$H$829,5,0))) -> HİLAYDA ARSLAN | O52: =IF(ISERROR(VLOOKUP(K52,'KAYIT LİSTESİ'!$B$4:$H$829,6,0)),"",(VLOOKUP(K52,'KAYIT LİSTESİ'!$B$4:$H$829,6,0))) -> BALIKESİR
A53: 6 | B53: 110M.ENG-1-6 | C53: =IF(ISERROR(VLOOKUP(B53,'KAYIT LİSTESİ'!$B$4:$H$829,2,0)),"",(VLOOKUP(B53,'KAYIT LİSTESİ'!$B$4:$H$829,2,0))) ->  | D53: =IF(ISERROR(VLOOKUP(B53,'KAYIT LİSTESİ'!$B$4:$H$829,4,0)),"",(VLOOKUP(B53,'KAYIT LİSTESİ'!$B$4:$H$829,4,0))) ->  | E53: =IF(ISERROR(VLOOKUP(B53,'KAYIT LİSTESİ'!$B$4:$H$829,5,0)),"",(VLOOKUP(B53,'KAYIT LİSTESİ'!$B$4:$H$829,5,0))) ->  | F53: =IF(ISERROR(VLOOKUP(B53,'KAYIT LİSTESİ'!$B$4:$H$829,6,0)),"",(VLOOKUP(B53,'KAYIT LİSTESİ'!$B$4:$H$829,6,0))) ->  | J53: 6 | K53: YÜKSEK-6 | L53: =IF(ISERROR(VLOOKUP(K53,'KAYIT LİSTESİ'!$B$4:$H$829,2,0)),"",(VLOOKUP(K53,'KAYIT LİSTESİ'!$B$4:$H$829,2,0))) -> 337 | M53: =IF(ISERROR(VLOOKUP(K53,'KAYIT LİSTESİ'!$B$4:$H$829,4,0)),"",(VLOOKUP(K53,'KAYIT LİSTESİ'!$B$4:$H$829,4,0))) -> 2001-01-02 | N53: =IF(ISERROR(VLOOKUP(K53,'KAYIT LİSTESİ'!$B$4:$H$829,5,0)),"",(VLOOKUP(K53,'KAYIT LİSTESİ'!$B$4:$H$829,5,0))) -> RUMEYSA COŞKUN | O53: =IF(ISERROR(VLOOKUP(K53,'KAYIT LİSTESİ'!$B$4:$H$829,6,0)),"",(VLOOKUP(K53,'KAYIT LİSTESİ'!$B$4:$H$829,6,0))) -> ISPARTA
A54: 7 | B54: 110M.ENG-1-7 | C54: =IF(ISERROR(VLOOKUP(B54,'KAYIT LİSTESİ'!$B$4:$H$829,2,0)),"",(VLOOKUP(B54,'KAYIT LİSTESİ'!$B$4:$H$829,2,0))) ->  | D54: =IF(ISERROR(VLOOKUP(B54,'KAYIT LİSTESİ'!$B$4:$H$829,4,0)),"",(VLOOKUP(B54,'KAYIT LİSTESİ'!$B$4:$H$829,4,0))) ->  | E54: =IF(ISERROR(VLOOKUP(B54,'KAYIT LİSTESİ'!$B$4:$H$829,5,0)),"",(VLOOKUP(B54,'KAYIT LİSTESİ'!$B$4:$H$829,5,0))) ->  | F54: =IF(ISERROR(VLOOKUP(B54,'KAYIT LİSTESİ'!$B$4:$H$829,6,0)),"",(VLOOKUP(B54,'KAYIT LİSTESİ'!$B$4:$H$829,6,0))) ->  | J54: 7 | K54: YÜKSEK-7 | L54: =IF(ISERROR(VLOOKUP(K54,'KAYIT LİSTESİ'!$B$4:$H$829,2,0)),"",(VLOOKUP(K54,'KAYIT LİSTESİ'!$B$4:$H$829,2,0))) -> 542 | M54: =IF(ISERROR(VLOOKUP(K54,'KAYIT LİSTESİ'!$B$4:$H$829,4,0)),"",(VLOOKUP(K54,'KAYIT LİSTESİ'!$B$4:$H$829,4,0))) -> 2001-01-01 | N54: =IF(ISERROR(VLOOKUP(K54,'KAYIT LİSTESİ'!$B$4:$H$829,5,0)),"",(VLOOKUP(K54,'KAYIT LİSTESİ'!$B$4:$H$829,5,0))) -> KARDELEN ÇELİK | O54: =IF(ISERROR(VLOOKUP(K54,'KAYIT LİSTESİ'!$B$4:$H$829,6,0)),"",(VLOOKUP(K54,'KAYIT LİSTESİ'!$B$4:$H$829,6,0))) -> KÜTAHYA
A55: 8 | B55: 110M.ENG-1-8 | C55: =IF(ISERROR(VLOOKUP(B55,'KAYIT LİSTESİ'!$B$4:$H$829,2,0)),"",(VLOOKUP(B55,'KAYIT LİSTESİ'!$B$4:$H$829,2,0))) ->  | D55: =IF(ISERROR(VLOOKUP(B55,'KAYIT LİSTESİ'!$B$4:$H$829,4,0)),"",(VLOOKUP(B55,'KAYIT LİSTESİ'!$B$4:$H$829,4,0))) ->  | E55: =IF(ISERROR(VLOOKUP(B55,'KAYIT LİSTESİ'!$B$4:$H$829,5,0)),"",(VLOOKUP(B55,'KAYIT LİSTESİ'!$B$4:$H$829,5,0))) ->  | F55: =IF(ISERROR(VLOOKUP(B55,'KAYIT LİSTESİ'!$B$4:$H$829,6,0)),"",(VLOOKUP(B55,'KAYIT LİSTESİ'!$B$4:$H$829,6,0))) ->  | J55: 8 | K55: YÜKSEK-8 | L55: =IF(ISERROR(VLOOKUP(K55,'KAYIT LİSTESİ'!$B$4:$H$829,2,0)),"",(VLOOKUP(K55,'KAYIT LİSTESİ'!$B$4:$H$829,2,0))) -> 741 | M55: =IF(ISERROR(VLOOKUP(K55,'KAYIT LİSTESİ'!$B$4:$H$829,4,0)),"",(VLOOKUP(K55,'KAYIT LİSTESİ'!$B$4:$H$829,4,0))) -> 2001-05-04 | N55: =IF(ISERROR(VLOOKUP(K55,'KAYIT LİSTESİ'!$B$4:$H$829,5,0)),"",(VLOOKUP(K55,'KAYIT LİSTESİ'!$B$4:$H$829,5,0))) -> BERİVAN DEMİR | O55: =IF(ISERROR(VLOOKUP(K55,'KAYIT LİSTESİ'!$B$4:$H$829,6,0)),"",(VLOOKUP(K55,'KAYIT LİSTESİ'!$B$4:$H$829,6,0))) -> SAKARYA
A56: 2. SERİ | J56: 9 | K56: YÜKSEK-9 | L56: =IF(ISERROR(VLOOKUP(K56,'KAYIT LİSTESİ'!$B$4:$H$829,2,0)),"",(VLOOKUP(K56,'KAYIT LİSTESİ'!$B$4:$H$829,2,0))) -> 36 | M56: =IF(ISERROR(VLOOKUP(K56,'KAYIT LİSTESİ'!$B$4:$H$829,4,0)),"",(VLOOKUP(K56,'KAYIT LİSTESİ'!$B$4:$H$829,4,0))) -> 2001-03-13 | N56: =IF(ISERROR(VLOOKUP(K56,'KAYIT LİSTESİ'!$B$4:$H$829,5,0)),"",(VLOOKUP(K56,'KAYIT LİSTESİ'!$B$4:$H$829,5,0))) -> SONGÜL KARTAL | O56: =IF(ISERROR(VLOOKUP(K56,'KAYIT LİSTESİ'!$B$4:$H$829,6,0)),"",(VLOOKUP(K56,'KAYIT LİSTESİ'!$B$4:$H$829,6,0))) -> AKSARAY
A57: Sıra No | B57: Formül | C57: Göğüs No | D57: Doğum Tarihi | E57: Adı ve Soyadı | F57: Okulu | G57: Start Kontrol | J57: 10 | K57: YÜKSEK-10 | L57: =IF(ISERROR(VLOOKUP(K57,'KAYIT LİSTESİ'!$B$4:$H$829,2,0)),"",(VLOOKUP(K57,'KAYIT LİSTESİ'!$B$4:$H$829,2,0))) ->  | M57: =IF(ISERROR(VLOOKUP(K57,'KAYIT LİSTESİ'!$B$4:$H$829,4,0)),"",(VLOOKUP(K57,'KAYIT LİSTESİ'!$B$4:$H$829,4,0))) ->  | N57: =IF(ISERROR(VLOOKUP(K57,'KAYIT LİSTESİ'!$B$4:$H$829,5,0)),"",(VLOOKUP(K57,'KAYIT LİSTESİ'!$B$4:$H$829,5,0))) ->  | O57: =IF(ISERROR(VLOOKUP(K57,'KAYIT LİSTESİ'!$B$4:$H$829,6,0)),"",(VLOOKUP(K57,'KAYIT LİSTESİ'!$B$4:$H$829,6,0))) -> 
A58: 1 | B58: 110M.ENG-2-1 | C58: =IF(ISERROR(VLOOKUP(B58,'KAYIT LİSTESİ'!$B$4:$H$829,2,0)),"",(VLOOKUP(B58,'KAYIT LİSTESİ'!$B$4:$H$829,2,0))) ->  | D58: =IF(ISERROR(VLOOKUP(B58,'KAYIT LİSTESİ'!$B$4:$H$829,4,0)),"",(VLOOKUP(B58,'KAYIT LİSTESİ'!$B$4:$H$829,4,0))) ->  | E58: =IF(ISERROR(VLOOKUP(B58,'KAYIT LİSTESİ'!$B$4:$H$829,5,0)),"",(VLOOKUP(B58,'KAYIT LİSTESİ'!$B$4:$H$829,5,0))) ->  | F58: =IF(ISERROR(VLOOKUP(B58,'KAYIT LİSTESİ'!$B$4:$H$829,6,0)),"",(VLOOKUP(B58,'KAYIT LİSTESİ'!$B$4:$H$829,6,0))) ->  | J58: 11 | K58: YÜKSEK-11 | L58: =IF(ISERROR(VLOOKUP(K58,'KAYIT LİSTESİ'!$B$4:$H$829,2,0)),"",(VLOOKUP(K58,'KAYIT LİSTESİ'!$B$4:$H$829,2,0))) ->  | M58: =IF(ISERROR(VLOOKUP(K58,'KAYIT LİSTESİ'!$B$4:$H$829,4,0)),"",(VLOOKUP(K58,'KAYIT LİSTESİ'!$B$4:$H$829,4,0))) ->  | N58: =IF(ISERROR(VLOOKUP(K58,'KAYIT LİSTESİ'!$B$4:$H$829,5,0)),"",(VLOOKUP(K58,'KAYIT LİSTESİ'!$B$4:$H$829,5,0))) ->  | O58: =IF(ISERROR(VLOOKUP(K58,'KAYIT LİSTESİ'!$B$4:$H$829,6,0)),"",(VLOOKUP(K58,'KAYIT LİSTESİ'!$B$4:$H$829,6,0))) -> 
A59: 2 | B59: 110M.ENG-2-2 | C59: =IF(ISERROR(VLOOKUP(B59,'KAYIT LİSTESİ'!$B$4:$H$829,2,0)),"",(VLOOKUP(B59,'KAYIT LİSTESİ'!$B$4:$H$829,2,0))) ->  | D59: =IF(ISERROR(VLOOKUP(B59,'KAYIT LİSTESİ'!$B$4:$H$829,4,0)),"",(VLOOKUP(B59,'KAYIT LİSTESİ'!$B$4:$H$829,4,0))) ->  | E59: =IF(ISERROR(VLOOKUP(B59,'KAYIT LİSTESİ'!$B$4:$H$829,5,0)),"",(VLOOKUP(B59,'KAYIT LİSTESİ'!$B$4:$H$829,5,0))) ->  | F59: =IF(ISERROR(VLOOKUP(B59,'KAYIT LİSTESİ'!$B$4:$H$829,6,0)),"",(VLOOKUP(B59,'KAYIT LİSTESİ'!$B$4:$H$829,6,0))) ->  | J59: 12 | K59: YÜKSEK-12 | L59: =IF(ISERROR(VLOOKUP(K59,'KAYIT LİSTESİ'!$B$4:$H$829,2,0)),"",(VLOOKUP(K59,'KAYIT LİSTESİ'!$B$4:$H$829,2,0))) ->  | M59: =IF(ISERROR(VLOOKUP(K59,'KAYIT LİSTESİ'!$B$4:$H$829,4,0)),"",(VLOOKUP(K59,'KAYIT LİSTESİ'!$B$4:$H$829,4,0))) ->  | N59: =IF(ISERROR(VLOOKUP(K59,'KAYIT LİSTESİ'!$B$4:$H$829,5,0)),"",(VLOOKUP(K59,'KAYIT LİSTESİ'!$B$4:$H$829,5,0))) ->  | O59: =IF(ISERROR(VLOOKUP(K59,'KAYIT LİSTESİ'!$B$4:$H$829,6,0)),"",(VLOOKUP(K59,'KAYIT LİSTESİ'!$B$4:$H$829,6,0))) -> 
A60: 3 | B60: 110M.ENG-2-3 | C60: =IF(ISERROR(VLOOKUP(B60,'KAYIT LİSTESİ'!$B$4:$H$829,2,0)),"",(VLOOKUP(B60,'KAYIT LİSTESİ'!$B$4:$H$829,2,0))) ->  | D60: =IF(ISERROR(VLOOKUP(B60,'KAYIT LİSTESİ'!$B$4:$H$829,4,0)),"",(VLOOKUP(B60,'KAYIT LİSTESİ'!$B$4:$H$829,4,0))) ->  | E60: =IF(ISERROR(VLOOKUP(B60,'KAYIT LİSTESİ'!$B$4:$H$829,5,0)),"",(VLOOKUP(B60,'KAYIT LİSTESİ'!$B$4:$H$829,5,0))) ->  | F60: =IF(ISERROR(VLOOKUP(B60,'KAYIT LİSTESİ'!$B$4:$H$829,6,0)),"",(VLOOKUP(B60,'KAYIT LİSTESİ'!$B$4:$H$829,6,0))) ->  | J60: 13 | K60: YÜKSEK-13 | L60: =IF(ISERROR(VLOOKUP(K60,'KAYIT LİSTESİ'!$B$4:$H$829,2,0)),"",(VLOOKUP(K60,'KAYIT LİSTESİ'!$B$4:$H$829,2,0))) ->  | M60: =IF(ISERROR(VLOOKUP(K60,'KAYIT LİSTESİ'!$B$4:$H$829,4,0)),"",(VLOOKUP(K60,'KAYIT LİSTESİ'!$B$4:$H$829,4,0))) ->  | N60: =IF(ISERROR(VLOOKUP(K60,'KAYIT LİSTESİ'!$B$4:$H$829,5,0)),"",(VLOOKUP(K60,'KAYIT LİSTESİ'!$B$4:$H$829,5,0))) ->  | O60: =IF(ISERROR(VLOOKUP(K60,'KAYIT LİSTESİ'!$B$4:$H$829,6,0)),"",(VLOOKUP(K60,'KAYIT LİSTESİ'!$B$4:$H$829,6,0))) -> 
A61: 4 | B61: 110M.ENG-2-4 | C61: =IF(ISERROR(VLOOKUP(B61,'KAYIT LİSTESİ'!$B$4:$H$829,2,0)),"",(VLOOKUP(B61,'KAYIT LİSTESİ'!$B$4:$H$829,2,0))) ->  | D61: =IF(ISERROR(VLOOKUP(B61,'KAYIT LİSTESİ'!$B$4:$H$829,4,0)),"",(VLOOKUP(B61,'KAYIT LİSTESİ'!$B$4:$H$829,4,0))) ->  | E61: =IF(ISERROR(VLOOKUP(B61,'KAYIT LİSTESİ'!$B$4:$H$829,5,0)),"",(VLOOKUP(B61,'KAYIT LİSTESİ'!$B$4:$H$829,5,0))) ->  | F61: =IF(ISERROR(VLOOKUP(B61,'KAYIT LİSTESİ'!$B$4:$H$829,6,0)),"",(VLOOKUP(B61,'KAYIT LİSTESİ'!$B$4:$H$829,6,0))) ->  | J61: 14 | K61: YÜKSEK-14 | L61: =IF(ISERROR(VLOOKUP(K61,'KAYIT LİSTESİ'!$B$4:$H$829,2,0)),"",(VLOOKUP(K61,'KAYIT LİSTESİ'!$B$4:$H$829,2,0))) ->  | M61: =IF(ISERROR(VLOOKUP(K61,'KAYIT LİSTESİ'!$B$4:$H$829,4,0)),"",(VLOOKUP(K61,'KAYIT LİSTESİ'!$B$4:$H$829,4,0))) ->  | N61: =IF(ISERROR(VLOOKUP(K61,'KAYIT LİSTESİ'!$B$4:$H$829,5,0)),"",(VLOOKUP(K61,'KAYIT LİSTESİ'!$B$4:$H$829,5,0))) ->  | O61: =IF(ISERROR(VLOOKUP(K61,'KAYIT LİSTESİ'!$B$4:$H$829,6,0)),"",(VLOOKUP(K61,'KAYIT LİSTESİ'!$B$4:$H$829,6,0))) -> 
A62: 5 | B62: 110M.ENG-2-5 | C62: =IF(ISERROR(VLOOKUP(B62,'KAYIT LİSTESİ'!$B$4:$H$829,2,0)),"",(VLOOKUP(B62,'KAYIT LİSTESİ'!$B$4:$H$829,2,0))) ->  | D62: =IF(ISERROR(VLOOKUP(B62,'KAYIT LİSTESİ'!$B$4:$H$829,4,0)),"",(VLOOKUP(B62,'KAYIT LİSTESİ'!$B$4:$H$829,4,0))) ->  | E62: =IF(ISERROR(VLOOKUP(B62,'KAYIT LİSTESİ'!$B$4:$H$829,5,0)),"",(VLOOKUP(B62,'KAYIT LİSTESİ'!$B$4:$H$829,5,0))) ->  | F62: =IF(ISERROR(VLOOKUP(B62,'KAYIT LİSTESİ'!$B$4:$H$829,6,0)),"",(VLOOKUP(B62,'KAYIT LİSTESİ'!$B$4:$H$829,6,0))) ->  | J62: 15 | K62: YÜKSEK-15 | L62: =IF(ISERROR(VLOOKUP(K62,'KAYIT LİSTESİ'!$B$4:$H$829,2,0)),"",(VLOOKUP(K62,'KAYIT LİSTESİ'!$B$4:$H$829,2,0))) ->  | M62: =IF(ISERROR(VLOOKUP(K62,'KAYIT LİSTESİ'!$B$4:$H$829,4,0)),"",(VLOOKUP(K62,'KAYIT LİSTESİ'!$B$4:$H$829,4,0))) ->  | N62: =IF(ISERROR(VLOOKUP(K62,'KAYIT LİSTESİ'!$B$4:$H$829,5,0)),"",(VLOOKUP(K62,'KAYIT LİSTESİ'!$B$4:$H$829,5,0))) ->  | O62: =IF(ISERROR(VLOOKUP(K62,'KAYIT LİSTESİ'!$B$4:$H$829,6,0)),"",(VLOOKUP(K62,'KAYIT LİSTESİ'!$B$4:$H$829,6,0))) -> 
A63: 6 | B63: 110M.ENG-2-6 | C63: =IF(ISERROR(VLOOKUP(B63,'KAYIT LİSTESİ'!$B$4:$H$829,2,0)),"",(VLOOKUP(B63,'KAYIT LİSTESİ'!$B$4:$H$829,2,0))) ->  | D63: =IF(ISERROR(VLOOKUP(B63,'KAYIT LİSTESİ'!$B$4:$H$829,4,0)),"",(VLOOKUP(B63,'KAYIT LİSTESİ'!$B$4:$H$829,4,0))) ->  | E63: =IF(ISERROR(VLOOKUP(B63,'KAYIT LİSTESİ'!$B$4:$H$829,5,0)),"",(VLOOKUP(B63,'KAYIT LİSTESİ'!$B$4:$H$829,5,0))) ->  | F63: =IF(ISERROR(VLOOKUP(B63,'KAYIT LİSTESİ'!$B$4:$H$829,6,0)),"",(VLOOKUP(B63,'KAYIT LİSTESİ'!$B$4:$H$829,6,0))) ->  | J63: 16 | K63: YÜKSEK-16 | L63: =IF(ISERROR(VLOOKUP(K63,'KAYIT LİSTESİ'!$B$4:$H$829,2,0)),"",(VLOOKUP(K63,'KAYIT LİSTESİ'!$B$4:$H$829,2,0))) ->  | M63: =IF(ISERROR(VLOOKUP(K63,'KAYIT LİSTESİ'!$B$4:$H$829,4,0)),"",(VLOOKUP(K63,'KAYIT LİSTESİ'!$B$4:$H$829,4,0))) ->  | N63: =IF(ISERROR(VLOOKUP(K63,'KAYIT LİSTESİ'!$B$4:$H$829,5,0)),"",(VLOOKUP(K63,'KAYIT LİSTESİ'!$B$4:$H$829,5,0))) ->  | O63: =IF(ISERROR(VLOOKUP(K63,'KAYIT LİSTESİ'!$B$4:$H$829,6,0)),"",(VLOOKUP(K63,'KAYIT LİSTESİ'!$B$4:$H$829,6,0))) -> 
A64: 7 | B64: 110M.ENG-2-7 | C64: =IF(ISERROR(VLOOKUP(B64,'KAYIT LİSTESİ'!$B$4:$H$829,2,0)),"",(VLOOKUP(B64,'KAYIT LİSTESİ'!$B$4:$H$829,2,0))) ->  | D64: =IF(ISERROR(VLOOKUP(B64,'KAYIT LİSTESİ'!$B$4:$H$829,4,0)),"",(VLOOKUP(B64,'KAYIT LİSTESİ'!$B$4:$H$829,4,0))) ->  | E64: =IF(ISERROR(VLOOKUP(B64,'KAYIT LİSTESİ'!$B$4:$H$829,5,0)),"",(VLOOKUP(B64,'KAYIT LİSTESİ'!$B$4:$H$829,5,0))) ->  | F64: =IF(ISERROR(VLOOKUP(B64,'KAYIT LİSTESİ'!$B$4:$H$829,6,0)),"",(VLOOKUP(B64,'KAYIT LİSTESİ'!$B$4:$H$829,6,0))) ->  | J64: 17 | K64: YÜKSEK-17 | L64: =IF(ISERROR(VLOOKUP(K64,'KAYIT LİSTESİ'!$B$4:$H$829,2,0)),"",(VLOOKUP(K64,'KAYIT LİSTESİ'!$B$4:$H$829,2,0))) ->  | M64: =IF(ISERROR(VLOOKUP(K64,'KAYIT LİSTESİ'!$B$4:$H$829,4,0)),"",(VLOOKUP(K64,'KAYIT LİSTESİ'!$B$4:$H$829,4,0))) ->  | N64: =IF(ISERROR(VLOOKUP(K64,'KAYIT LİSTESİ'!$B$4:$H$829,5,0)),"",(VLOOKUP(K64,'KAYIT LİSTESİ'!$B$4:$H$829,5,0))) ->  | O64: =IF(ISERROR(VLOOKUP(K64,'KAYIT LİSTESİ'!$B$4:$H$829,6,0)),"",(VLOOKUP(K64,'KAYIT LİSTESİ'!$B$4:$H$829,6,0))) -> 
A65: 8 | B65: 110M.ENG-2-8 | C65: =IF(ISERROR(VLOOKUP(B65,'KAYIT LİSTESİ'!$B$4:$H$829,2,0)),"",(VLOOKUP(B65,'KAYIT LİSTESİ'!$B$4:$H$829,2,0))) ->  | D65: =IF(ISERROR(VLOOKUP(B65,'KAYIT LİSTESİ'!$B$4:$H$829,4,0)),"",(VLOOKUP(B65,'KAYIT LİSTESİ'!$B$4:$H$829,4,0))) ->  | E65: =IF(ISERROR(VLOOKUP(B65,'KAYIT LİSTESİ'!$B$4:$H$829,5,0)),"",(VLOOKUP(B65,'KAYIT LİSTESİ'!$B$4:$H$829,5,0))) ->  | F65: =IF(ISERROR(VLOOKUP(B65,'KAYIT LİSTESİ'!$B$4:$H$829,6,0)),"",(VLOOKUP(B65,'KAYIT LİSTESİ'!$B$4:$H$829,6,0))) ->  | J65: 18 | K65: YÜKSEK-18 | L65: =IF(ISERROR(VLOOKUP(K65,'KAYIT LİSTESİ'!$B$4:$H$829,2,0)),"",(VLOOKUP(K65,'KAYIT LİSTESİ'!$B$4:$H$829,2,0))) ->  | M65: =IF(ISERROR(VLOOKUP(K65,'KAYIT LİSTESİ'!$B$4:$H$829,4,0)),"",(VLOOKUP(K65,'KAYIT LİSTESİ'!$B$4:$H$829,4,0))) ->  | N65: =IF(ISERROR(VLOOKUP(K65,'KAYIT LİSTESİ'!$B$4:$H$829,5,0)),"",(VLOOKUP(K65,'KAYIT LİSTESİ'!$B$4:$H$829,5,0))) ->  | O65: =IF(ISERROR(VLOOKUP(K65,'KAYIT LİSTESİ'!$B$4:$H$829,6,0)),"",(VLOOKUP(K65,'KAYIT LİSTESİ'!$B$4:$H$829,6,0))) -> 
A66: 3. SERİ | J66: 19 | K66: YÜKSEK-19 | L66: =IF(ISERROR(VLOOKUP(K66,'KAYIT LİSTESİ'!$B$4:$H$829,2,0)),"",(VLOOKUP(K66,'KAYIT LİSTESİ'!$B$4:$H$829,2,0))) ->  | M66: =IF(ISERROR(VLOOKUP(K66,'KAYIT LİSTESİ'!$B$4:$H$829,4,0)),"",(VLOOKUP(K66,'KAYIT LİSTESİ'!$B$4:$H$829,4,0))) ->  | N66: =IF(ISERROR(VLOOKUP(K66,'KAYIT LİSTESİ'!$B$4:$H$829,5,0)),"",(VLOOKUP(K66,'KAYIT LİSTESİ'!$B$4:$H$829,5,0))) ->  | O66: =IF(ISERROR(VLOOKUP(K66,'KAYIT LİSTESİ'!$B$4:$H$829,6,0)),"",(VLOOKUP(K66,'KAYIT LİSTESİ'!$B$4:$H$829,6,0))) -> 
A67: Sıra No | B67: Formül | C67: Göğüs No | D67: Doğum Tarihi | E67: Adı ve Soyadı | F67: Okulu | G67: Start Kontrol | J67: 20 | K67: YÜKSEK-20 | L67: =IF(ISERROR(VLOOKUP(K67,'KAYIT LİSTESİ'!$B$4:$H$829,2,0)),"",(VLOOKUP(K67,'KAYIT LİSTESİ'!$B$4:$H$829,2,0))) ->  | M67: =IF(ISERROR(VLOOKUP(K67,'KAYIT LİSTESİ'!$B$4:$H$829,4,0)),"",(VLOOKUP(K67,'KAYIT LİSTESİ'!$B$4:$H$829,4,0))) ->  | N67: =IF(ISERROR(VLOOKUP(K67,'KAYIT LİSTESİ'!$B$4:$H$829,5,0)),"",(VLOOKUP(K67,'KAYIT LİSTESİ'!$B$4:$H$829,5,0))) ->  | O67: =IF(ISERROR(VLOOKUP(K67,'KAYIT LİSTESİ'!$B$4:$H$829,6,0)),"",(VLOOKUP(K67,'KAYIT LİSTESİ'!$B$4:$H$829,6,0))) -> 
A68: 1 | B68: 110M.ENG-3-1 | C68: =IF(ISERROR(VLOOKUP(B68,'KAYIT LİSTESİ'!$B$4:$H$829,2,0)),"",(VLOOKUP(B68,'KAYIT LİSTESİ'!$B$4:$H$829,2,0))) ->  | D68: =IF(ISERROR(VLOOKUP(B68,'KAYIT LİSTESİ'!$B$4:$H$829,4,0)),"",(VLOOKUP(B68,'KAYIT LİSTESİ'!$B$4:$H$829,4,0))) ->  | E68: =IF(ISERROR(VLOOKUP(B68,'KAYIT LİSTESİ'!$B$4:$H$829,5,0)),"",(VLOOKUP(B68,'KAYIT LİSTESİ'!$B$4:$H$829,5,0))) ->  | F68: =IF(ISERROR(VLOOKUP(B68,'KAYIT LİSTESİ'!$B$4:$H$829,6,0)),"",(VLOOKUP(B68,'KAYIT LİSTESİ'!$B$4:$H$829,6,0))) ->  | J68: 21 | K68: YÜKSEK-21 | L68: =IF(ISERROR(VLOOKUP(K68,'KAYIT LİSTESİ'!$B$4:$H$829,2,0)),"",(VLOOKUP(K68,'KAYIT LİSTESİ'!$B$4:$H$829,2,0))) ->  | M68: =IF(ISERROR(VLOOKUP(K68,'KAYIT LİSTESİ'!$B$4:$H$829,4,0)),"",(VLOOKUP(K68,'KAYIT LİSTESİ'!$B$4:$H$829,4,0))) ->  | N68: =IF(ISERROR(VLOOKUP(K68,'KAYIT LİSTESİ'!$B$4:$H$829,5,0)),"",(VLOOKUP(K68,'KAYIT LİSTESİ'!$B$4:$H$829,5,0))) ->  | O68: =IF(ISERROR(VLOOKUP(K68,'KAYIT LİSTESİ'!$B$4:$H$829,6,0)),"",(VLOOKUP(K68,'KAYIT LİSTESİ'!$B$4:$H$829,6,0))) -> 
A69: 2 | B69: 110M.ENG-3-2 | C69: =IF(ISERROR(VLOOKUP(B69,'KAYIT LİSTESİ'!$B$4:$H$829,2,0)),"",(VLOOKUP(B69,'KAYIT LİSTESİ'!$B$4:$H$829,2,0))) ->  | D69: =IF(ISERROR(VLOOKUP(B69,'KAYIT LİSTESİ'!$B$4:$H$829,4,0)),"",(VLOOKUP(B69,'KAYIT LİSTESİ'!$B$4:$H$829,4,0))) ->  | E69: =IF(ISERROR(VLOOKUP(B69,'KAYIT LİSTESİ'!$B$4:$H$829,5,0)),"",(VLOOKUP(B69,'KAYIT LİSTESİ'!$B$4:$H$829,5,0))) ->  | F69: =IF(ISERROR(VLOOKUP(B69,'KAYIT LİSTESİ'!$B$4:$H$829,6,0)),"",(VLOOKUP(B69,'KAYIT LİSTESİ'!$B$4:$H$829,6,0))) ->  | J69: 22 | K69: YÜKSEK-22 | L69: =IF(ISERROR(VLOOKUP(K69,'KAYIT LİSTESİ'!$B$4:$H$829,2,0)),"",(VLOOKUP(K69,'KAYIT LİSTESİ'!$B$4:$H$829,2,0))) ->  | M69: =IF(ISERROR(VLOOKUP(K69,'KAYIT LİSTESİ'!$B$4:$H$829,4,0)),"",(VLOOKUP(K69,'KAYIT LİSTESİ'!$B$4:$H$829,4,0))) ->  | N69: =IF(ISERROR(VLOOKUP(K69,'KAYIT LİSTESİ'!$B$4:$H$829,5,0)),"",(VLOOKUP(K69,'KAYIT LİSTESİ'!$B$4:$H$829,5,0))) ->  | O69: =IF(ISERROR(VLOOKUP(K69,'KAYIT LİSTESİ'!$B$4:$H$829,6,0)),"",(VLOOKUP(K69,'KAYIT LİSTESİ'!$B$4:$H$829,6,0))) -> 
A70: 3 | B70: 110M.ENG-3-3 | C70: =IF(ISERROR(VLOOKUP(B70,'KAYIT LİSTESİ'!$B$4:$H$829,2,0)),"",(VLOOKUP(B70,'KAYIT LİSTESİ'!$B$4:$H$829,2,0))) ->  | D70: =IF(ISERROR(VLOOKUP(B70,'KAYIT LİSTESİ'!$B$4:$H$829,4,0)),"",(VLOOKUP(B70,'KAYIT LİSTESİ'!$B$4:$H$829,4,0))) ->  | E70: =IF(ISERROR(VLOOKUP(B70,'KAYIT LİSTESİ'!$B$4:$H$829,5,0)),"",(VLOOKUP(B70,'KAYIT LİSTESİ'!$B$4:$H$829,5,0))) ->  | F70: =IF(ISERROR(VLOOKUP(B70,'KAYIT LİSTESİ'!$B$4:$H$829,6,0)),"",(VLOOKUP(B70,'KAYIT LİSTESİ'!$B$4:$H$829,6,0))) ->  | J70: 23 | K70: YÜKSEK-23 | L70: =IF(ISERROR(VLOOKUP(K70,'KAYIT LİSTESİ'!$B$4:$H$829,2,0)),"",(VLOOKUP(K70,'KAYIT LİSTESİ'!$B$4:$H$829,2,0))) ->  | M70: =IF(ISERROR(VLOOKUP(K70,'KAYIT LİSTESİ'!$B$4:$H$829,4,0)),"",(VLOOKUP(K70,'KAYIT LİSTESİ'!$B$4:$H$829,4,0))) ->  | N70: =IF(ISERROR(VLOOKUP(K70,'KAYIT LİSTESİ'!$B$4:$H$829,5,0)),"",(VLOOKUP(K70,'KAYIT LİSTESİ'!$B$4:$H$829,5,0))) ->  | O70: =IF(ISERROR(VLOOKUP(K70,'KAYIT LİSTESİ'!$B$4:$H$829,6,0)),"",(VLOOKUP(K70,'KAYIT LİSTESİ'!$B$4:$H$829,6,0))) -> 
A71: 4 | B71: 110M.ENG-3-4 | C71: =IF(ISERROR(VLOOKUP(B71,'KAYIT LİSTESİ'!$B$4:$H$829,2,0)),"",(VLOOKUP(B71,'KAYIT LİSTESİ'!$B$4:$H$829,2,0))) ->  | D71: =IF(ISERROR(VLOOKUP(B71,'KAYIT LİSTESİ'!$B$4:$H$829,4,0)),"",(VLOOKUP(B71,'KAYIT LİSTESİ'!$B$4:$H$829,4,0))) ->  | E71: =IF(ISERROR(VLOOKUP(B71,'KAYIT LİSTESİ'!$B$4:$H$829,5,0)),"",(VLOOKUP(B71,'KAYIT LİSTESİ'!$B$4:$H$829,5,0))) ->  | F71: =IF(ISERROR(VLOOKUP(B71,'KAYIT LİSTESİ'!$B$4:$H$829,6,0)),"",(VLOOKUP(B71,'KAYIT LİSTESİ'!$B$4:$H$829,6,0))) ->  | J71: 24 | K71: YÜKSEK-24 | L71: =IF(ISERROR(VLOOKUP(K71,'KAYIT LİSTESİ'!$B$4:$H$829,2,0)),"",(VLOOKUP(K71,'KAYIT LİSTESİ'!$B$4:$H$829,2,0))) ->  | M71: =IF(ISERROR(VLOOKUP(K71,'KAYIT LİSTESİ'!$B$4:$H$829,4,0)),"",(VLOOKUP(K71,'KAYIT LİSTESİ'!$B$4:$H$829,4,0))) ->  | N71: =IF(ISERROR(VLOOKUP(K71,'KAYIT LİSTESİ'!$B$4:$H$829,5,0)),"",(VLOOKUP(K71,'KAYIT LİSTESİ'!$B$4:$H$829,5,0))) ->  | O71: =IF(ISERROR(VLOOKUP(K71,'KAYIT LİSTESİ'!$B$4:$H$829,6,0)),"",(VLOOKUP(K71,'KAYIT LİSTESİ'!$B$4:$H$829,6,0))) -> 
A72: 5 | B72: 110M.ENG-3-5 | C72: =IF(ISERROR(VLOOKUP(B72,'KAYIT LİSTESİ'!$B$4:$H$829,2,0)),"",(VLOOKUP(B72,'KAYIT LİSTESİ'!$B$4:$H$829,2,0))) ->  | D72: =IF(ISERROR(VLOOKUP(B72,'KAYIT LİSTESİ'!$B$4:$H$829,4,0)),"",(VLOOKUP(B72,'KAYIT LİSTESİ'!$B$4:$H$829,4,0))) ->  | E72: =IF(ISERROR(VLOOKUP(B72,'KAYIT LİSTESİ'!$B$4:$H$829,5,0)),"",(VLOOKUP(B72,'KAYIT LİSTESİ'!$B$4:$H$829,5,0))) ->  | F72: =IF(ISERROR(VLOOKUP(B72,'KAYIT LİSTESİ'!$B$4:$H$829,6,0)),"",(VLOOKUP(B72,'KAYIT LİSTESİ'!$B$4:$H$829,6,0))) ->  | J72: 25 | K72: YÜKSEK-25 | L72: =IF(ISERROR(VLOOKUP(K72,'KAYIT LİSTESİ'!$B$4:$H$829,2,0)),"",(VLOOKUP(K72,'KAYIT LİSTESİ'!$B$4:$H$829,2,0))) ->  | M72: =IF(ISERROR(VLOOKUP(K72,'KAYIT LİSTESİ'!$B$4:$H$829,4,0)),"",(VLOOKUP(K72,'KAYIT LİSTESİ'!$B$4:$H$829,4,0))) ->  | N72: =IF(ISERROR(VLOOKUP(K72,'KAYIT LİSTESİ'!$B$4:$H$829,5,0)),"",(VLOOKUP(K72,'KAYIT LİSTESİ'!$B$4:$H$829,5,0))) ->  | O72: =IF(ISERROR(VLOOKUP(K72,'KAYIT LİSTESİ'!$B$4:$H$829,6,0)),"",(VLOOKUP(K72,'KAYIT LİSTESİ'!$B$4:$H$829,6,0))) -> 
A73: 6 | B73: 110M.ENG-3-6 | C73: =IF(ISERROR(VLOOKUP(B73,'KAYIT LİSTESİ'!$B$4:$H$829,2,0)),"",(VLOOKUP(B73,'KAYIT LİSTESİ'!$B$4:$H$829,2,0))) ->  | D73: =IF(ISERROR(VLOOKUP(B73,'KAYIT LİSTESİ'!$B$4:$H$829,4,0)),"",(VLOOKUP(B73,'KAYIT LİSTESİ'!$B$4:$H$829,4,0))) ->  | E73: =IF(ISERROR(VLOOKUP(B73,'KAYIT LİSTESİ'!$B$4:$H$829,5,0)),"",(VLOOKUP(B73,'KAYIT LİSTESİ'!$B$4:$H$829,5,0))) ->  | F73: =IF(ISERROR(VLOOKUP(B73,'KAYIT LİSTESİ'!$B$4:$H$829,6,0)),"",(VLOOKUP(B73,'KAYIT LİSTESİ'!$B$4:$H$829,6,0))) ->  | J73: GÜLLE ATMA
A74: 7 | B74: 110M.ENG-3-7 | C74: =IF(ISERROR(VLOOKUP(B74,'KAYIT LİSTESİ'!$B$4:$H$829,2,0)),"",(VLOOKUP(B74,'KAYIT LİSTESİ'!$B$4:$H$829,2,0))) ->  | D74: =IF(ISERROR(VLOOKUP(B74,'KAYIT LİSTESİ'!$B$4:$H$829,4,0)),"",(VLOOKUP(B74,'KAYIT LİSTESİ'!$B$4:$H$829,4,0))) ->  | E74: =IF(ISERROR(VLOOKUP(B74,'KAYIT LİSTESİ'!$B$4:$H$829,5,0)),"",(VLOOKUP(B74,'KAYIT LİSTESİ'!$B$4:$H$829,5,0))) ->  | F74: =IF(ISERROR(VLOOKUP(B74,'KAYIT LİSTESİ'!$B$4:$H$829,6,0)),"",(VLOOKUP(B74,'KAYIT LİSTESİ'!$B$4:$H$829,6,0))) ->  | J74: SIRA NO | L74: GÖĞÜS NO | M74: DOĞUM TARİHİ | N74: ADI VE SOYADI | O74: OKULU | P74: Start Kontrol
A75: 8 | B75: 110M.ENG-3-8 | C75: =IF(ISERROR(VLOOKUP(B75,'KAYIT LİSTESİ'!$B$4:$H$829,2,0)),"",(VLOOKUP(B75,'KAYIT LİSTESİ'!$B$4:$H$829,2,0))) ->  | D75: =IF(ISERROR(VLOOKUP(B75,'KAYIT LİSTESİ'!$B$4:$H$829,4,0)),"",(VLOOKUP(B75,'KAYIT LİSTESİ'!$B$4:$H$829,4,0))) ->  | E75: =IF(ISERROR(VLOOKUP(B75,'KAYIT LİSTESİ'!$B$4:$H$829,5,0)),"",(VLOOKUP(B75,'KAYIT LİSTESİ'!$B$4:$H$829,5,0))) ->  | F75: =IF(ISERROR(VLOOKUP(B75,'KAYIT LİSTESİ'!$B$4:$H$829,6,0)),"",(VLOOKUP(B75,'KAYIT LİSTESİ'!$B$4:$H$829,6,0))) -> 
A76: 4. SERİ | J76: 1 | K76: GÜLLE-1 | L76: =IF(ISERROR(VLOOKUP(K76,'KAYIT LİSTESİ'!$B$4:$H$829,2,0)),"",(VLOOKUP(K76,'KAYIT LİSTESİ'!$B$4:$H$829,2,0))) -> 492 | M76: =IF(ISERROR(VLOOKUP(K76,'KAYIT LİSTESİ'!$B$4:$H$829,4,0)),"",(VLOOKUP(K76,'KAYIT LİSTESİ'!$B$4:$H$829,4,0))) -> 2001-06-08 | N76: =IF(ISERROR(VLOOKUP(K76,'KAYIT LİSTESİ'!$B$4:$H$829,5,0)),"",(VLOOKUP(K76,'KAYIT LİSTESİ'!$B$4:$H$829,5,0))) -> ASUDE NİSA ÜNAL | O76: =IF(ISERROR(VLOOKUP(K76,'KAYIT LİSTESİ'!$B$4:$H$829,6,0)),"",(VLOOKUP(K76,'KAYIT LİSTESİ'!$B$4:$H$829,6,0))) -> KIRŞEHİR
A77: Sıra No | B77: Formül | C77: Göğüs No | D77: Doğum Tarihi | E77: Adı ve Soyadı | F77: Okulu | G77: Start Kontrol | J77: 2 | K77: GÜLLE-2 | L77: =IF(ISERROR(VLOOKUP(K77,'KAYIT LİSTESİ'!$B$4:$H$829,2,0)),"",(VLOOKUP(K77,'KAYIT LİSTESİ'!$B$4:$H$829,2,0))) -> 494 | M77: =IF(ISERROR(VLOOKUP(K77,'KAYIT LİSTESİ'!$B$4:$H$829,4,0)),"",(VLOOKUP(K77,'KAYIT LİSTESİ'!$B$4:$H$829,4,0))) -> 2001-06-06 | N77: =IF(ISERROR(VLOOKUP(K77,'KAYIT LİSTESİ'!$B$4:$H$829,5,0)),"",(VLOOKUP(K77,'KAYIT LİSTESİ'!$B$4:$H$829,5,0))) -> Gamze ŞİMŞEK | O77: =IF(ISERROR(VLOOKUP(K77,'KAYIT LİSTESİ'!$B$4:$H$829,6,0)),"",(VLOOKUP(K77,'KAYIT LİSTESİ'!$B$4:$H$829,6,0))) -> KIRŞEHİR
A78: 1 | B78: 110M.ENG-4-1 | C78: =IF(ISERROR(VLOOKUP(B78,'KAYIT LİSTESİ'!$B$4:$H$829,2,0)),"",(VLOOKUP(B78,'KAYIT LİSTESİ'!$B$4:$H$829,2,0))) ->  | D78: =IF(ISERROR(VLOOKUP(B78,'KAYIT LİSTESİ'!$B$4:$H$829,4,0)),"",(VLOOKUP(B78,'KAYIT LİSTESİ'!$B$4:$H$829,4,0))) ->  | E78: =IF(ISERROR(VLOOKUP(B78,'KAYIT LİSTESİ'!$B$4:$H$829,5,0)),"",(VLOOKUP(B78,'KAYIT LİSTESİ'!$B$4:$H$829,5,0))) ->  | F78: =IF(ISERROR(VLOOKUP(B78,'KAYIT LİSTESİ'!$B$4:$H$829,6,0)),"",(VLOOKUP(B78,'KAYIT LİSTESİ'!$B$4:$H$829,6,0))) ->  | J78: 3 | K78: GÜLLE-3 | L78: =IF(ISERROR(VLOOKUP(K78,'KAYIT LİSTESİ'!$B$4:$H$829,2,0)),"",(VLOOKUP(K78,'KAYIT LİSTESİ'!$B$4:$H$829,2,0))) -> 76 | M78: =IF(ISERROR(VLOOKUP(K78,'KAYIT LİSTESİ'!$B$4:$H$829,4,0)),"",(VLOOKUP(K78,'KAYIT LİSTESİ'!$B$4:$H$829,4,0))) -> 2001-05-15 | N78: =IF(ISERROR(VLOOKUP(K78,'KAYIT LİSTESİ'!$B$4:$H$829,5,0)),"",(VLOOKUP(K78,'KAYIT LİSTESİ'!$B$4:$H$829,5,0))) -> DENİZ ÇAKAL | O78: =IF(ISERROR(VLOOKUP(K78,'KAYIT LİSTESİ'!$B$4:$H$829,6,0)),"",(VLOOKUP(K78,'KAYIT LİSTESİ'!$B$4:$H$829,6,0))) -> AYDIN
A79: 2 | B79: 110M.ENG-4-2 | C79: =IF(ISERROR(VLOOKUP(B79,'KAYIT LİSTESİ'!$B$4:$H$829,2,0)),"",(VLOOKUP(B79,'KAYIT LİSTESİ'!$B$4:$H$829,2,0))) ->  | D79: =IF(ISERROR(VLOOKUP(B79,'KAYIT LİSTESİ'!$B$4:$H$829,4,0)),"",(VLOOKUP(B79,'KAYIT LİSTESİ'!$B$4:$H$829,4,0))) ->  | E79: =IF(ISERROR(VLOOKUP(B79,'KAYIT LİSTESİ'!$B$4:$H$829,5,0)),"",(VLOOKUP(B79,'KAYIT LİSTESİ'!$B$4:$H$829,5,0))) ->  | F79: =IF(ISERROR(VLOOKUP(B79,'KAYIT LİSTESİ'!$B$4:$H$829,6,0)),"",(VLOOKUP(B79,'KAYIT LİSTESİ'!$B$4:$H$829,6,0))) ->  | J79: 4 | K79: GÜLLE-4 | L79: =IF(ISERROR(VLOOKUP(K79,'KAYIT LİSTESİ'!$B$4:$H$829,2,0)),"",(VLOOKUP(K79,'KAYIT LİSTESİ'!$B$4:$H$829,2,0))) -> 676 | M79: =IF(ISERROR(VLOOKUP(K79,'KAYIT LİSTESİ'!$B$4:$H$829,4,0)),"",(VLOOKUP(K79,'KAYIT LİSTESİ'!$B$4:$H$829,4,0))) -> 2001-09-08 | N79: =IF(ISERROR(VLOOKUP(K79,'KAYIT LİSTESİ'!$B$4:$H$829,5,0)),"",(VLOOKUP(K79,'KAYIT LİSTESİ'!$B$4:$H$829,5,0))) -> MELİKE SEVİNÇ | O79: =IF(ISERROR(VLOOKUP(K79,'KAYIT LİSTESİ'!$B$4:$H$829,6,0)),"",(VLOOKUP(K79,'KAYIT LİSTESİ'!$B$4:$H$829,6,0))) -> TEKİRDAĞ
A80: 3 | B80: 110M.ENG-4-3 | C80: =IF(ISERROR(VLOOKUP(B80,'KAYIT LİSTESİ'!$B$4:$H$829,2,0)),"",(VLOOKUP(B80,'KAYIT LİSTESİ'!$B$4:$H$829,2,0))) ->  | D80: =IF(ISERROR(VLOOKUP(B80,'KAYIT LİSTESİ'!$B$4:$H$829,4,0)),"",(VLOOKUP(B80,'KAYIT LİSTESİ'!$B$4:$H$829,4,0))) ->  | E80: =IF(ISERROR(VLOOKUP(B80,'KAYIT LİSTESİ'!$B$4:$H$829,5,0)),"",(VLOOKUP(B80,'KAYIT LİSTESİ'!$B$4:$H$829,5,0))) ->  | F80: =IF(ISERROR(VLOOKUP(B80,'KAYIT LİSTESİ'!$B$4:$H$829,6,0)),"",(VLOOKUP(B80,'KAYIT LİSTESİ'!$B$4:$H$829,6,0))) ->  | J80: 5 | K80: GÜLLE-5 | L80: =IF(ISERROR(VLOOKUP(K80,'KAYIT LİSTESİ'!$B$4:$H$829,2,0)),"",(VLOOKUP(K80,'KAYIT LİSTESİ'!$B$4:$H$829,2,0))) -> 382 | M80: =IF(ISERROR(VLOOKUP(K80,'KAYIT LİSTESİ'!$B$4:$H$829,4,0)),"",(VLOOKUP(K80,'KAYIT LİSTESİ'!$B$4:$H$829,4,0))) -> 2001-01-09 | N80: =IF(ISERROR(VLOOKUP(K80,'KAYIT LİSTESİ'!$B$4:$H$829,5,0)),"",(VLOOKUP(K80,'KAYIT LİSTESİ'!$B$4:$H$829,5,0))) -> BAŞAK ERĞUN | O80: =IF(ISERROR(VLOOKUP(K80,'KAYIT LİSTESİ'!$B$4:$H$829,6,0)),"",(VLOOKUP(K80,'KAYIT LİSTESİ'!$B$4:$H$829,6,0))) -> İZMİR
A81: 4 | B81: 110M.ENG-4-4 | C81: =IF(ISERROR(VLOOKUP(B81,'KAYIT LİSTESİ'!$B$4:$H$829,2,0)),"",(VLOOKUP(B81,'KAYIT LİSTESİ'!$B$4:$H$829,2,0))) ->  | D81: =IF(ISERROR(VLOOKUP(B81,'KAYIT LİSTESİ'!$B$4:$H$829,4,0)),"",(VLOOKUP(B81,'KAYIT LİSTESİ'!$B$4:$H$829,4,0))) ->  | E81: =IF(ISERROR(VLOOKUP(B81,'KAYIT LİSTESİ'!$B$4:$H$829,5,0)),"",(VLOOKUP(B81,'KAYIT LİSTESİ'!$B$4:$H$829,5,0))) ->  | F81: =IF(ISERROR(VLOOKUP(B81,'KAYIT LİSTESİ'!$B$4:$H$829,6,0)),"",(VLOOKUP(B81,'KAYIT LİSTESİ'!$B$4:$H$829,6,0))) ->  | J81: 6 | K81: GÜLLE-6 | L81: =IF(ISERROR(VLOOKUP(K81,'KAYIT LİSTESİ'!$B$4:$H$829,2,0)),"",(VLOOKUP(K81,'KAYIT LİSTESİ'!$B$4:$H$829,2,0))) -> 476 | M81: =IF(ISERROR(VLOOKUP(K81,'KAYIT LİSTESİ'!$B$4:$H$829,4,0)),"",(VLOOKUP(K81,'KAYIT LİSTESİ'!$B$4:$H$829,4,0))) -> 2001-06-18 | N81: =IF(ISERROR(VLOOKUP(K81,'KAYIT LİSTESİ'!$B$4:$H$829,5,0)),"",(VLOOKUP(K81,'KAYIT LİSTESİ'!$B$4:$H$829,5,0))) -> AYŞE N. YILDIRIM | O81: =IF(ISERROR(VLOOKUP(K81,'KAYIT LİSTESİ'!$B$4:$H$829,6,0)),"",(VLOOKUP(K81,'KAYIT LİSTESİ'!$B$4:$H$829,6,0))) -> KIRIKKALE
A82: 5 | B82: 110M.ENG-4-5 | C82: =IF(ISERROR(VLOOKUP(B82,'KAYIT LİSTESİ'!$B$4:$H$829,2,0)),"",(VLOOKUP(B82,'KAYIT LİSTESİ'!$B$4:$H$829,2,0))) ->  | D82: =IF(ISERROR(VLOOKUP(B82,'KAYIT LİSTESİ'!$B$4:$H$829,4,0)),"",(VLOOKUP(B82,'KAYIT LİSTESİ'!$B$4:$H$829,4,0))) ->  | E82: =IF(ISERROR(VLOOKUP(B82,'KAYIT LİSTESİ'!$B$4:$H$829,5,0)),"",(VLOOKUP(B82,'KAYIT LİSTESİ'!$B$4:$H$829,5,0))) ->  | F82: =IF(ISERROR(VLOOKUP(B82,'KAYIT LİSTESİ'!$B$4:$H$829,6,0)),"",(VLOOKUP(B82,'KAYIT LİSTESİ'!$B$4:$H$829,6,0))) ->  | J82: 7 | K82: GÜLLE-7 | L82: =IF(ISERROR(VLOOKUP(K82,'KAYIT LİSTESİ'!$B$4:$H$829,2,0)),"",(VLOOKUP(K82,'KAYIT LİSTESİ'!$B$4:$H$829,2,0))) -> 329 | M82: =IF(ISERROR(VLOOKUP(K82,'KAYIT LİSTESİ'!$B$4:$H$829,4,0)),"",(VLOOKUP(K82,'KAYIT LİSTESİ'!$B$4:$H$829,4,0))) -> 2001-12-12 | N82: =IF(ISERROR(VLOOKUP(K82,'KAYIT LİSTESİ'!$B$4:$H$829,5,0)),"",(VLOOKUP(K82,'KAYIT LİSTESİ'!$B$4:$H$829,5,0))) -> ELİF ÖZÇELİK | O82: =IF(ISERROR(VLOOKUP(K82,'KAYIT LİSTESİ'!$B$4:$H$829,6,0)),"",(VLOOKUP(K82,'KAYIT LİSTESİ'!$B$4:$H$829,6,0))) -> ISPARTA
A83: 6 | B83: 110M.ENG-4-6 | C83: =IF(ISERROR(VLOOKUP(B83,'KAYIT LİSTESİ'!$B$4:$H$829,2,0)),"",(VLOOKUP(B83,'KAYIT LİSTESİ'!$B$4:$H$829,2,0))) ->  | D83: =IF(ISERROR(VLOOKUP(B83,'KAYIT LİSTESİ'!$B$4:$H$829,4,0)),"",(VLOOKUP(B83,'KAYIT LİSTESİ'!$B$4:$H$829,4,0))) ->  | E83: =IF(ISERROR(VLOOKUP(B83,'KAYIT LİSTESİ'!$B$4:$H$829,5,0)),"",(VLOOKUP(B83,'KAYIT LİSTESİ'!$B$4:$H$829,5,0))) ->  | F83: =IF(ISERROR(VLOOKUP(B83,'KAYIT LİSTESİ'!$B$4:$H$829,6,0)),"",(VLOOKUP(B83,'KAYIT LİSTESİ'!$B$4:$H$829,6,0))) ->  | J83: 8 | K83: GÜLLE-8 | L83: =IF(ISERROR(VLOOKUP(K83,'KAYIT LİSTESİ'!$B$4:$H$829,2,0)),"",(VLOOKUP(K83,'KAYIT LİSTESİ'!$B$4:$H$829,2,0))) -> 133 | M83: =IF(ISERROR(VLOOKUP(K83,'KAYIT LİSTESİ'!$B$4:$H$829,4,0)),"",(VLOOKUP(K83,'KAYIT LİSTESİ'!$B$4:$H$829,4,0))) -> 2001-01-01 | N83: =IF(ISERROR(VLOOKUP(K83,'KAYIT LİSTESİ'!$B$4:$H$829,5,0)),"",(VLOOKUP(K83,'KAYIT LİSTESİ'!$B$4:$H$829,5,0))) -> MELEK YILDIRIM | O83: =IF(ISERROR(VLOOKUP(K83,'KAYIT LİSTESİ'!$B$4:$H$829,6,0)),"",(VLOOKUP(K83,'KAYIT LİSTESİ'!$B$4:$H$829,6,0))) -> BATMAN
A84: 7 | B84: 110M.ENG-4-7 | C84: =IF(ISERROR(VLOOKUP(B84,'KAYIT LİSTESİ'!$B$4:$H$829,2,0)),"",(VLOOKUP(B84,'KAYIT LİSTESİ'!$B$4:$H$829,2,0))) ->  | D84: =IF(ISERROR(VLOOKUP(B84,'KAYIT LİSTESİ'!$B$4:$H$829,4,0)),"",(VLOOKUP(B84,'KAYIT LİSTESİ'!$B$4:$H$829,4,0))) ->  | E84: =IF(ISERROR(VLOOKUP(B84,'KAYIT LİSTESİ'!$B$4:$H$829,5,0)),"",(VLOOKUP(B84,'KAYIT LİSTESİ'!$B$4:$H$829,5,0))) ->  | F84: =IF(ISERROR(VLOOKUP(B84,'KAYIT LİSTESİ'!$B$4:$H$829,6,0)),"",(VLOOKUP(B84,'KAYIT LİSTESİ'!$B$4:$H$829,6,0))) ->  | J84: 9 | K84: GÜLLE-9 | L84: =IF(ISERROR(VLOOKUP(K84,'KAYIT LİSTESİ'!$B$4:$H$829,2,0)),"",(VLOOKUP(K84,'KAYIT LİSTESİ'!$B$4:$H$829,2,0))) -> 134 | M84: =IF(ISERROR(VLOOKUP(K84,'KAYIT LİSTESİ'!$B$4:$H$829,4,0)),"",(VLOOKUP(K84,'KAYIT LİSTESİ'!$B$4:$H$829,4,0))) -> 2001-01-01 | N84: =IF(ISERROR(VLOOKUP(K84,'KAYIT LİSTESİ'!$B$4:$H$829,5,0)),"",(VLOOKUP(K84,'KAYIT LİSTESİ'!$B$4:$H$829,5,0))) -> RUKEN TEK | O84: =IF(ISERROR(VLOOKUP(K84,'KAYIT LİSTESİ'!$B$4:$H$829,6,0)),"",(VLOOKUP(K84,'KAYIT LİSTESİ'!$B$4:$H$829,6,0))) -> BATMAN
A85: 8 | B85: 110M.ENG-4-8 | C85: =IF(ISERROR(VLOOKUP(B85,'KAYIT LİSTESİ'!$B$4:$H$829,2,0)),"",(VLOOKUP(B85,'KAYIT LİSTESİ'!$B$4:$H$829,2,0))) ->  | D85: =IF(ISERROR(VLOOKUP(B85,'KAYIT LİSTESİ'!$B$4:$H$829,4,0)),"",(VLOOKUP(B85,'KAYIT LİSTESİ'!$B$4:$H$829,4,0))) ->  | E85: =IF(ISERROR(VLOOKUP(B85,'KAYIT LİSTESİ'!$B$4:$H$829,5,0)),"",(VLOOKUP(B85,'KAYIT LİSTESİ'!$B$4:$H$829,5,0))) ->  | F85: =IF(ISERROR(VLOOKUP(B85,'KAYIT LİSTESİ'!$B$4:$H$829,6,0)),"",(VLOOKUP(B85,'KAYIT LİSTESİ'!$B$4:$H$829,6,0))) ->  | J85: 10 | K85: GÜLLE-10 | L85: =IF(ISERROR(VLOOKUP(K85,'KAYIT LİSTESİ'!$B$4:$H$829,2,0)),"",(VLOOKUP(K85,'KAYIT LİSTESİ'!$B$4:$H$829,2,0))) -> 105 | M85: =IF(ISERROR(VLOOKUP(K85,'KAYIT LİSTESİ'!$B$4:$H$829,4,0)),"",(VLOOKUP(K85,'KAYIT LİSTESİ'!$B$4:$H$829,4,0))) -> 2001-02-28 | N85: =IF(ISERROR(VLOOKUP(K85,'KAYIT LİSTESİ'!$B$4:$H$829,5,0)),"",(VLOOKUP(K85,'KAYIT LİSTESİ'!$B$4:$H$829,5,0))) -> SENA KAYNAR | O85: =IF(ISERROR(VLOOKUP(K85,'KAYIT LİSTESİ'!$B$4:$H$829,6,0)),"",(VLOOKUP(K85,'KAYIT LİSTESİ'!$B$4:$H$829,6,0))) -> BALIKESİR
A86: 1500 METRE | J86: 11 | K86: GÜLLE-11 | L86: =IF(ISERROR(VLOOKUP(K86,'KAYIT LİSTESİ'!$B$4:$H$829,2,0)),"",(VLOOKUP(K86,'KAYIT LİSTESİ'!$B$4:$H$829,2,0))) -> 390 | M86: =IF(ISERROR(VLOOKUP(K86,'KAYIT LİSTESİ'!$B$4:$H$829,4,0)),"",(VLOOKUP(K86,'KAYIT LİSTESİ'!$B$4:$H$829,4,0))) -> 2001-01-07 | N86: =IF(ISERROR(VLOOKUP(K86,'KAYIT LİSTESİ'!$B$4:$H$829,5,0)),"",(VLOOKUP(K86,'KAYIT LİSTESİ'!$B$4:$H$829,5,0))) -> SÜMEYRA BAŞARA | O86: =IF(ISERROR(VLOOKUP(K86,'KAYIT LİSTESİ'!$B$4:$H$829,6,0)),"",(VLOOKUP(K86,'KAYIT LİSTESİ'!$B$4:$H$829,6,0))) -> İZMİR
A87: 1. SERİ | J87: 12 | K87: GÜLLE-12 | L87: =IF(ISERROR(VLOOKUP(K87,'KAYIT LİSTESİ'!$B$4:$H$829,2,0)),"",(VLOOKUP(K87,'KAYIT LİSTESİ'!$B$4:$H$829,2,0))) ->  | M87: =IF(ISERROR(VLOOKUP(K87,'KAYIT LİSTESİ'!$B$4:$H$829,4,0)),"",(VLOOKUP(K87,'KAYIT LİSTESİ'!$B$4:$H$829,4,0))) ->  | N87: =IF(ISERROR(VLOOKUP(K87,'KAYIT LİSTESİ'!$B$4:$H$829,5,0)),"",(VLOOKUP(K87,'KAYIT LİSTESİ'!$B$4:$H$829,5,0))) ->  | O87: =IF(ISERROR(VLOOKUP(K87,'KAYIT LİSTESİ'!$B$4:$H$829,6,0)),"",(VLOOKUP(K87,'KAYIT LİSTESİ'!$B$4:$H$829,6,0))) -> 
A88: Sıra No | B88: Formül | C88: Göğüs No | D88: Doğum Tarihi | E88: Adı ve Soyadı | F88: Okulu | G88: Start Kontrol | J88: 13 | K88: GÜLLE-13 | L88: =IF(ISERROR(VLOOKUP(K88,'KAYIT LİSTESİ'!$B$4:$H$829,2,0)),"",(VLOOKUP(K88,'KAYIT LİSTESİ'!$B$4:$H$829,2,0))) ->  | M88: =IF(ISERROR(VLOOKUP(K88,'KAYIT LİSTESİ'!$B$4:$H$829,4,0)),"",(VLOOKUP(K88,'KAYIT LİSTESİ'!$B$4:$H$829,4,0))) ->  | N88: =IF(ISERROR(VLOOKUP(K88,'KAYIT LİSTESİ'!$B$4:$H$829,5,0)),"",(VLOOKUP(K88,'KAYIT LİSTESİ'!$B$4:$H$829,5,0))) ->  | O88: =IF(ISERROR(VLOOKUP(K88,'KAYIT LİSTESİ'!$B$4:$H$829,6,0)),"",(VLOOKUP(K88,'KAYIT LİSTESİ'!$B$4:$H$829,6,0))) -> 
A89: 1 | B89: 1500M-1-1 | C89: =IF(ISERROR(VLOOKUP(B89,'KAYIT LİSTESİ'!$B$4:$H$829,2,0)),"",(VLOOKUP(B89,'KAYIT LİSTESİ'!$B$4:$H$829,2,0))) -> 55 | D89: =IF(ISERROR(VLOOKUP(B89,'KAYIT LİSTESİ'!$B$4:$H$829,4,0)),"",(VLOOKUP(B89,'KAYIT LİSTESİ'!$B$4:$H$829,4,0))) -> 2001-01-01 | E89: =IF(ISERROR(VLOOKUP(B89,'KAYIT LİSTESİ'!$B$4:$H$829,5,0)),"",(VLOOKUP(B89,'KAYIT LİSTESİ'!$B$4:$H$829,5,0))) -> SEDANUR BOZKURT | F89: =IF(ISERROR(VLOOKUP(B89,'KAYIT LİSTESİ'!$B$4:$H$829,6,0)),"",(VLOOKUP(B89,'KAYIT LİSTESİ'!$B$4:$H$829,6,0))) -> ARDAHAN | J89: 14 | K89: GÜLLE-14 | L89: =IF(ISERROR(VLOOKUP(K89,'KAYIT LİSTESİ'!$B$4:$H$829,2,0)),"",(VLOOKUP(K89,'KAYIT LİSTESİ'!$B$4:$H$829,2,0))) ->  | M89: =IF(ISERROR(VLOOKUP(K89,'KAYIT LİSTESİ'!$B$4:$H$829,4,0)),"",(VLOOKUP(K89,'KAYIT LİSTESİ'!$B$4:$H$829,4,0))) ->  | N89: =IF(ISERROR(VLOOKUP(K89,'KAYIT LİSTESİ'!$B$4:$H$829,5,0)),"",(VLOOKUP(K89,'KAYIT LİSTESİ'!$B$4:$H$829,5,0))) ->  | O89: =IF(ISERROR(VLOOKUP(K89,'KAYIT LİSTESİ'!$B$4:$H$829,6,0)),"",(VLOOKUP(K89,'KAYIT LİSTESİ'!$B$4:$H$829,6,0))) -> 
A90: 2 | B90: 1500M-1-2 | C90: =IF(ISERROR(VLOOKUP(B90,'KAYIT LİSTESİ'!$B$4:$H$829,2,0)),"",(VLOOKUP(B90,'KAYIT LİSTESİ'!$B$4:$H$829,2,0))) -> 542 | D90: =IF(ISERROR(VLOOKUP(B90,'KAYIT LİSTESİ'!$B$4:$H$829,4,0)),"",(VLOOKUP(B90,'KAYIT LİSTESİ'!$B$4:$H$829,4,0))) -> 2001-01-01 | E90: =IF(ISERROR(VLOOKUP(B90,'KAYIT LİSTESİ'!$B$4:$H$829,5,0)),"",(VLOOKUP(B90,'KAYIT LİSTESİ'!$B$4:$H$829,5,0))) -> KARDELEN ÇELİK | F90: =IF(ISERROR(VLOOKUP(B90,'KAYIT LİSTESİ'!$B$4:$H$829,6,0)),"",(VLOOKUP(B90,'KAYIT LİSTESİ'!$B$4:$H$829,6,0))) -> KÜTAHYA | J90: 15 | K90: GÜLLE-15 | L90: =IF(ISERROR(VLOOKUP(K90,'KAYIT LİSTESİ'!$B$4:$H$829,2,0)),"",(VLOOKUP(K90,'KAYIT LİSTESİ'!$B$4:$H$829,2,0))) ->  | M90: =IF(ISERROR(VLOOKUP(K90,'KAYIT LİSTESİ'!$B$4:$H$829,4,0)),"",(VLOOKUP(K90,'KAYIT LİSTESİ'!$B$4:$H$829,4,0))) ->  | N90: =IF(ISERROR(VLOOKUP(K90,'KAYIT LİSTESİ'!$B$4:$H$829,5,0)),"",(VLOOKUP(K90,'KAYIT LİSTESİ'!$B$4:$H$829,5,0))) ->  | O90: =IF(ISERROR(VLOOKUP(K90,'KAYIT LİSTESİ'!$B$4:$H$829,6,0)),"",(VLOOKUP(K90,'KAYIT LİSTESİ'!$B$4:$H$829,6,0))) -> 
A91: 3 | B91: 1500M-1-3 | C91: =IF(ISERROR(VLOOKUP(B91,'KAYIT LİSTESİ'!$B$4:$H$829,2,0)),"",(VLOOKUP(B91,'KAYIT LİSTESİ'!$B$4:$H$829,2,0))) -> 686 | D91: =IF(ISERROR(VLOOKUP(B91,'KAYIT LİSTESİ'!$B$4:$H$829,4,0)),"",(VLOOKUP(B91,'KAYIT LİSTESİ'!$B$4:$H$829,4,0))) -> 2001-05-12 | E91: =IF(ISERROR(VLOOKUP(B91,'KAYIT LİSTESİ'!$B$4:$H$829,5,0)),"",(VLOOKUP(B91,'KAYIT LİSTESİ'!$B$4:$H$829,5,0))) -> ÖZLEM UÇAR | F91: =IF(ISERROR(VLOOKUP(B91,'KAYIT LİSTESİ'!$B$4:$H$829,6,0)),"",(VLOOKUP(B91,'KAYIT LİSTESİ'!$B$4:$H$829,6,0))) -> TOKAT | J91: 16 | K91: GÜLLE-16 | L91: =IF(ISERROR(VLOOKUP(K91,'KAYIT LİSTESİ'!$B$4:$H$829,2,0)),"",(VLOOKUP(K91,'KAYIT LİSTESİ'!$B$4:$H$829,2,0))) ->  | M91: =IF(ISERROR(VLOOKUP(K91,'KAYIT LİSTESİ'!$B$4:$H$829,4,0)),"",(VLOOKUP(K91,'KAYIT LİSTESİ'!$B$4:$H$829,4,0))) ->  | N91: =IF(ISERROR(VLOOKUP(K91,'KAYIT LİSTESİ'!$B$4:$H$829,5,0)),"",(VLOOKUP(K91,'KAYIT LİSTESİ'!$B$4:$H$829,5,0))) ->  | O91: =IF(ISERROR(VLOOKUP(K91,'KAYIT LİSTESİ'!$B$4:$H$829,6,0)),"",(VLOOKUP(K91,'KAYIT LİSTESİ'!$B$4:$H$829,6,0))) -> 
A92: 4 | B92: 1500M-1-4 | C92: =IF(ISERROR(VLOOKUP(B92,'KAYIT LİSTESİ'!$B$4:$H$829,2,0)),"",(VLOOKUP(B92,'KAYIT LİSTESİ'!$B$4:$H$829,2,0))) -> 275 | D92: =IF(ISERROR(VLOOKUP(B92,'KAYIT LİSTESİ'!$B$4:$H$829,4,0)),"",(VLOOKUP(B92,'KAYIT LİSTESİ'!$B$4:$H$829,4,0))) -> 2001-01-01 | E92: =IF(ISERROR(VLOOKUP(B92,'KAYIT LİSTESİ'!$B$4:$H$829,5,0)),"",(VLOOKUP(B92,'KAYIT LİSTESİ'!$B$4:$H$829,5,0))) -> RAHİME ERGÜL | F92: =IF(ISERROR(VLOOKUP(B92,'KAYIT LİSTESİ'!$B$4:$H$829,6,0)),"",(VLOOKUP(B92,'KAYIT LİSTESİ'!$B$4:$H$829,6,0))) -> GAZİANTEP | J92: 17 | K92: GÜLLE-17 | L92: =IF(ISERROR(VLOOKUP(K92,'KAYIT LİSTESİ'!$B$4:$H$829,2,0)),"",(VLOOKUP(K92,'KAYIT LİSTESİ'!$B$4:$H$829,2,0))) ->  | M92: =IF(ISERROR(VLOOKUP(K92,'KAYIT LİSTESİ'!$B$4:$H$829,4,0)),"",(VLOOKUP(K92,'KAYIT LİSTESİ'!$B$4:$H$829,4,0))) ->  | N92: =IF(ISERROR(VLOOKUP(K92,'KAYIT LİSTESİ'!$B$4:$H$829,5,0)),"",(VLOOKUP(K92,'KAYIT LİSTESİ'!$B$4:$H$829,5,0))) ->  | O92: =IF(ISERROR(VLOOKUP(K92,'KAYIT LİSTESİ'!$B$4:$H$829,6,0)),"",(VLOOKUP(K92,'KAYIT LİSTESİ'!$B$4:$H$829,6,0))) -> 
A93: 5 | B93: 1500M-1-5 | C93: =IF(ISERROR(VLOOKUP(B93,'KAYIT LİSTESİ'!$B$4:$H$829,2,0)),"",(VLOOKUP(B93,'KAYIT LİSTESİ'!$B$4:$H$829,2,0))) -> 390 | D93: =IF(ISERROR(VLOOKUP(B93,'KAYIT LİSTESİ'!$B$4:$H$829,4,0)),"",(VLOOKUP(B93,'KAYIT LİSTESİ'!$B$4:$H$829,4,0))) -> 2001-01-07 | E93: =IF(ISERROR(VLOOKUP(B93,'KAYIT LİSTESİ'!$B$4:$H$829,5,0)),"",(VLOOKUP(B93,'KAYIT LİSTESİ'!$B$4:$H$829,5,0))) -> SÜMEYRA BAŞARA | F93: =IF(ISERROR(VLOOKUP(B93,'KAYIT LİSTESİ'!$B$4:$H$829,6,0)),"",(VLOOKUP(B93,'KAYIT LİSTESİ'!$B$4:$H$829,6,0))) -> İZMİR | J93: 18 | K93: GÜLLE-18 | L93: =IF(ISERROR(VLOOKUP(K93,'KAYIT LİSTESİ'!$B$4:$H$829,2,0)),"",(VLOOKUP(K93,'KAYIT LİSTESİ'!$B$4:$H$829,2,0))) ->  | M93: =IF(ISERROR(VLOOKUP(K93,'KAYIT LİSTESİ'!$B$4:$H$829,4,0)),"",(VLOOKUP(K93,'KAYIT LİSTESİ'!$B$4:$H$829,4,0))) ->  | N93: =IF(ISERROR(VLOOKUP(K93,'KAYIT LİSTESİ'!$B$4:$H$829,5,0)),"",(VLOOKUP(K93,'KAYIT LİSTESİ'!$B$4:$H$829,5,0))) ->  | O93: =IF(ISERROR(VLOOKUP(K93,'KAYIT LİSTESİ'!$B$4:$H$829,6,0)),"",(VLOOKUP(K93,'KAYIT LİSTESİ'!$B$4:$H$829,6,0))) -> 
A94: 6 | B94: 1500M-1-6 | C94: =IF(ISERROR(VLOOKUP(B94,'KAYIT LİSTESİ'!$B$4:$H$829,2,0)),"",(VLOOKUP(B94,'KAYIT LİSTESİ'!$B$4:$H$829,2,0))) -> 363 | D94: =IF(ISERROR(VLOOKUP(B94,'KAYIT LİSTESİ'!$B$4:$H$829,4,0)),"",(VLOOKUP(B94,'KAYIT LİSTESİ'!$B$4:$H$829,4,0))) -> 2001-01-01 | E94: =IF(ISERROR(VLOOKUP(B94,'KAYIT LİSTESİ'!$B$4:$H$829,5,0)),"",(VLOOKUP(B94,'KAYIT LİSTESİ'!$B$4:$H$829,5,0))) -> EZGİ KAYA | F94: =IF(ISERROR(VLOOKUP(B94,'KAYIT LİSTESİ'!$B$4:$H$829,6,0)),"",(VLOOKUP(B94,'KAYIT LİSTESİ'!$B$4:$H$829,6,0))) -> İSTANBUL | J94: 19 | K94: GÜLLE-19 | L94: =IF(ISERROR(VLOOKUP(K94,'KAYIT LİSTESİ'!$B$4:$H$829,2,0)),"",(VLOOKUP(K94,'KAYIT LİSTESİ'!$B$4:$H$829,2,0))) ->  | M94: =IF(ISERROR(VLOOKUP(K94,'KAYIT LİSTESİ'!$B$4:$H$829,4,0)),"",(VLOOKUP(K94,'KAYIT LİSTESİ'!$B$4:$H$829,4,0))) ->  | N94: =IF(ISERROR(VLOOKUP(K94,'KAYIT LİSTESİ'!$B$4:$H$829,5,0)),"",(VLOOKUP(K94,'KAYIT LİSTESİ'!$B$4:$H$829,5,0))) ->  | O94: =IF(ISERROR(VLOOKUP(K94,'KAYIT LİSTESİ'!$B$4:$H$829,6,0)),"",(VLOOKUP(K94,'KAYIT LİSTESİ'!$B$4:$H$829,6,0))) -> 
A95: 7 | B95: 1500M-1-7 | C95: =IF(ISERROR(VLOOKUP(B95,'KAYIT LİSTESİ'!$B$4:$H$829,2,0)),"",(VLOOKUP(B95,'KAYIT LİSTESİ'!$B$4:$H$829,2,0))) -> 56 | D95: =IF(ISERROR(VLOOKUP(B95,'KAYIT LİSTESİ'!$B$4:$H$829,4,0)),"",(VLOOKUP(B95,'KAYIT LİSTESİ'!$B$4:$H$829,4,0))) -> 2001-01-01 | E95: =IF(ISERROR(VLOOKUP(B95,'KAYIT LİSTESİ'!$B$4:$H$829,5,0)),"",(VLOOKUP(B95,'KAYIT LİSTESİ'!$B$4:$H$829,5,0))) -> MELİKE KILIÇ | F95: =IF(ISERROR(VLOOKUP(B95,'KAYIT LİSTESİ'!$B$4:$H$829,6,0)),"",(VLOOKUP(B95,'KAYIT LİSTESİ'!$B$4:$H$829,6,0))) -> ARDAHAN | J95: 20 | K95: GÜLLE-20 | L95: =IF(ISERROR(VLOOKUP(K95,'KAYIT LİSTESİ'!$B$4:$H$829,2,0)),"",(VLOOKUP(K95,'KAYIT LİSTESİ'!$B$4:$H$829,2,0))) ->  | M95: =IF(ISERROR(VLOOKUP(K95,'KAYIT LİSTESİ'!$B$4:$H$829,4,0)),"",(VLOOKUP(K95,'KAYIT LİSTESİ'!$B$4:$H$829,4,0))) ->  | N95: =IF(ISERROR(VLOOKUP(K95,'KAYIT LİSTESİ'!$B$4:$H$829,5,0)),"",(VLOOKUP(K95,'KAYIT LİSTESİ'!$B$4:$H$829,5,0))) ->  | O95: =IF(ISERROR(VLOOKUP(K95,'KAYIT LİSTESİ'!$B$4:$H$829,6,0)),"",(VLOOKUP(K95,'KAYIT LİSTESİ'!$B$4:$H$829,6,0))) -> 
A96: 8 | B96: 1500M-1-8 | C96: =IF(ISERROR(VLOOKUP(B96,'KAYIT LİSTESİ'!$B$4:$H$829,2,0)),"",(VLOOKUP(B96,'KAYIT LİSTESİ'!$B$4:$H$829,2,0))) -> 57 | D96: =IF(ISERROR(VLOOKUP(B96,'KAYIT LİSTESİ'!$B$4:$H$829,4,0)),"",(VLOOKUP(B96,'KAYIT LİSTESİ'!$B$4:$H$829,4,0))) -> 2001-01-01 | E96: =IF(ISERROR(VLOOKUP(B96,'KAYIT LİSTESİ'!$B$4:$H$829,5,0)),"",(VLOOKUP(B96,'KAYIT LİSTESİ'!$B$4:$H$829,5,0))) -> CEREN KILIÇ | F96: =IF(ISERROR(VLOOKUP(B96,'KAYIT LİSTESİ'!$B$4:$H$829,6,0)),"",(VLOOKUP(B96,'KAYIT LİSTESİ'!$B$4:$H$829,6,0))) -> ARDAHAN | J96: 21 | K96: GÜLLE-21 | L96: =IF(ISERROR(VLOOKUP(K96,'KAYIT LİSTESİ'!$B$4:$H$829,2,0)),"",(VLOOKUP(K96,'KAYIT LİSTESİ'!$B$4:$H$829,2,0))) ->  | M96: =IF(ISERROR(VLOOKUP(K96,'KAYIT LİSTESİ'!$B$4:$H$829,4,0)),"",(VLOOKUP(K96,'KAYIT LİSTESİ'!$B$4:$H$829,4,0))) ->  | N96: =IF(ISERROR(VLOOKUP(K96,'KAYIT LİSTESİ'!$B$4:$H$829,5,0)),"",(VLOOKUP(K96,'KAYIT LİSTESİ'!$B$4:$H$829,5,0))) ->  | O96: =IF(ISERROR(VLOOKUP(K96,'KAYIT LİSTESİ'!$B$4:$H$829,6,0)),"",(VLOOKUP(K96,'KAYIT LİSTESİ'!$B$4:$H$829,6,0))) -> 
A97: 9 | B97: 1500M-1-9 | C97: =IF(ISERROR(VLOOKUP(B97,'KAYIT LİSTESİ'!$B$4:$H$829,2,0)),"",(VLOOKUP(B97,'KAYIT LİSTESİ'!$B$4:$H$829,2,0))) -> 134 | D97: =IF(ISERROR(VLOOKUP(B97,'KAYIT LİSTESİ'!$B$4:$H$829,4,0)),"",(VLOOKUP(B97,'KAYIT LİSTESİ'!$B$4:$H$829,4,0))) -> 2001-01-01 | E97: =IF(ISERROR(VLOOKUP(B97,'KAYIT LİSTESİ'!$B$4:$H$829,5,0)),"",(VLOOKUP(B97,'KAYIT LİSTESİ'!$B$4:$H$829,5,0))) -> RUKEN TEK | F97: =IF(ISERROR(VLOOKUP(B97,'KAYIT LİSTESİ'!$B$4:$H$829,6,0)),"",(VLOOKUP(B97,'KAYIT LİSTESİ'!$B$4:$H$829,6,0))) -> BATMAN | J97: 22 | K97: GÜLLE-22 | L97: =IF(ISERROR(VLOOKUP(K97,'KAYIT LİSTESİ'!$B$4:$H$829,2,0)),"",(VLOOKUP(K97,'KAYIT LİSTESİ'!$B$4:$H$829,2,0))) ->  | M97: =IF(ISERROR(VLOOKUP(K97,'KAYIT LİSTESİ'!$B$4:$H$829,4,0)),"",(VLOOKUP(K97,'KAYIT LİSTESİ'!$B$4:$H$829,4,0))) ->  | N97: =IF(ISERROR(VLOOKUP(K97,'KAYIT LİSTESİ'!$B$4:$H$829,5,0)),"",(VLOOKUP(K97,'KAYIT LİSTESİ'!$B$4:$H$829,5,0))) ->  | O97: =IF(ISERROR(VLOOKUP(K97,'KAYIT LİSTESİ'!$B$4:$H$829,6,0)),"",(VLOOKUP(K97,'KAYIT LİSTESİ'!$B$4:$H$829,6,0))) -> 
A98: 10 | B98: 1500M-1-10 | C98: =IF(ISERROR(VLOOKUP(B98,'KAYIT LİSTESİ'!$B$4:$H$829,2,0)),"",(VLOOKUP(B98,'KAYIT LİSTESİ'!$B$4:$H$829,2,0))) -> 181 | D98: =IF(ISERROR(VLOOKUP(B98,'KAYIT LİSTESİ'!$B$4:$H$829,4,0)),"",(VLOOKUP(B98,'KAYIT LİSTESİ'!$B$4:$H$829,4,0))) -> 2001-01-08 | E98: =IF(ISERROR(VLOOKUP(B98,'KAYIT LİSTESİ'!$B$4:$H$829,5,0)),"",(VLOOKUP(B98,'KAYIT LİSTESİ'!$B$4:$H$829,5,0))) -> ELİF AKDAĞ | F98: =IF(ISERROR(VLOOKUP(B98,'KAYIT LİSTESİ'!$B$4:$H$829,6,0)),"",(VLOOKUP(B98,'KAYIT LİSTESİ'!$B$4:$H$829,6,0))) -> BOLU | J98: 23 | K98: GÜLLE-23 | L98: =IF(ISERROR(VLOOKUP(K98,'KAYIT LİSTESİ'!$B$4:$H$829,2,0)),"",(VLOOKUP(K98,'KAYIT LİSTESİ'!$B$4:$H$829,2,0))) ->  | M98: =IF(ISERROR(VLOOKUP(K98,'KAYIT LİSTESİ'!$B$4:$H$829,4,0)),"",(VLOOKUP(K98,'KAYIT LİSTESİ'!$B$4:$H$829,4,0))) ->  | N98: =IF(ISERROR(VLOOKUP(K98,'KAYIT LİSTESİ'!$B$4:$H$829,5,0)),"",(VLOOKUP(K98,'KAYIT LİSTESİ'!$B$4:$H$829,5,0))) ->  | O98: =IF(ISERROR(VLOOKUP(K98,'KAYIT LİSTESİ'!$B$4:$H$829,6,0)),"",(VLOOKUP(K98,'KAYIT LİSTESİ'!$B$4:$H$829,6,0))) -> 
A99: 11 | B99: 1500M-1-11 | C99: =IF(ISERROR(VLOOKUP(B99,'KAYIT LİSTESİ'!$B$4:$H$829,2,0)),"",(VLOOKUP(B99,'KAYIT LİSTESİ'!$B$4:$H$829,2,0))) -> 474 | D99: =IF(ISERROR(VLOOKUP(B99,'KAYIT LİSTESİ'!$B$4:$H$829,4,0)),"",(VLOOKUP(B99,'KAYIT LİSTESİ'!$B$4:$H$829,4,0))) -> 2001-04-15 | E99: =IF(ISERROR(VLOOKUP(B99,'KAYIT LİSTESİ'!$B$4:$H$829,5,0)),"",(VLOOKUP(B99,'KAYIT LİSTESİ'!$B$4:$H$829,5,0))) -> MERVE G. ELİTOK | F99: =IF(ISERROR(VLOOKUP(B99,'KAYIT LİSTESİ'!$B$4:$H$829,6,0)),"",(VLOOKUP(B99,'KAYIT LİSTESİ'!$B$4:$H$829,6,0))) -> KIRIKKALE | J99: 24 | K99: GÜLLE-24 | L99: =IF(ISERROR(VLOOKUP(K99,'KAYIT LİSTESİ'!$B$4:$H$829,2,0)),"",(VLOOKUP(K99,'KAYIT LİSTESİ'!$B$4:$H$829,2,0))) ->  | M99: =IF(ISERROR(VLOOKUP(K99,'KAYIT LİSTESİ'!$B$4:$H$829,4,0)),"",(VLOOKUP(K99,'KAYIT LİSTESİ'!$B$4:$H$829,4,0))) ->  | N99: =IF(ISERROR(VLOOKUP(K99,'KAYIT LİSTESİ'!$B$4:$H$829,5,0)),"",(VLOOKUP(K99,'KAYIT LİSTESİ'!$B$4:$H$829,5,0))) ->  | O99: =IF(ISERROR(VLOOKUP(K99,'KAYIT LİSTESİ'!$B$4:$H$829,6,0)),"",(VLOOKUP(K99,'KAYIT LİSTESİ'!$B$4:$H$829,6,0))) -> 
A100: 12 | B100: 1500M-1-12 | C100: =IF(ISERROR(VLOOKUP(B100,'KAYIT LİSTESİ'!$B$4:$H$829,2,0)),"",(VLOOKUP(B100,'KAYIT LİSTESİ'!$B$4:$H$829,2,0))) -> 330 | D100: =IF(ISERROR(VLOOKUP(B100,'KAYIT LİSTESİ'!$B$4:$H$829,4,0)),"",(VLOOKUP(B100,'KAYIT LİSTESİ'!$B$4:$H$829,4,0))) -> 2001-03-04 | E100: =IF(ISERROR(VLOOKUP(B100,'KAYIT LİSTESİ'!$B$4:$H$829,5,0)),"",(VLOOKUP(B100,'KAYIT LİSTESİ'!$B$4:$H$829,5,0))) -> MEDİNE KORKMAZ | F100: =IF(ISERROR(VLOOKUP(B100,'KAYIT LİSTESİ'!$B$4:$H$829,6,0)),"",(VLOOKUP(B100,'KAYIT LİSTESİ'!$B$4:$H$829,6,0))) -> ISPARTA | J100: 25 | K100: GÜLLE-25 | L100: =IF(ISERROR(VLOOKUP(K100,'KAYIT LİSTESİ'!$B$4:$H$829,2,0)),"",(VLOOKUP(K100,'KAYIT LİSTESİ'!$B$4:$H$829,2,0))) ->  | M100: =IF(ISERROR(VLOOKUP(K100,'KAYIT LİSTESİ'!$B$4:$H$829,4,0)),"",(VLOOKUP(K100,'KAYIT LİSTESİ'!$B$4:$H$829,4,0))) ->  | N100: =IF(ISERROR(VLOOKUP(K100,'KAYIT LİSTESİ'!$B$4:$H$829,5,0)),"",(VLOOKUP(K100,'KAYIT LİSTESİ'!$B$4:$H$829,5,0))) ->  | O100: =IF(ISERROR(VLOOKUP(K100,'KAYIT LİSTESİ'!$B$4:$H$829,6,0)),"",(VLOOKUP(K100,'KAYIT LİSTESİ'!$B$4:$H$829,6,0))) -> 
A101: 2. SERİ | J101: 26 | K101: GÜLLE-26 | L101: =IF(ISERROR(VLOOKUP(K101,'KAYIT LİSTESİ'!$B$4:$H$829,2,0)),"",(VLOOKUP(K101,'KAYIT LİSTESİ'!$B$4:$H$829,2,0))) ->  | M101: =IF(ISERROR(VLOOKUP(K101,'KAYIT LİSTESİ'!$B$4:$H$829,4,0)),"",(VLOOKUP(K101,'KAYIT LİSTESİ'!$B$4:$H$829,4,0))) ->  | N101: =IF(ISERROR(VLOOKUP(K101,'KAYIT LİSTESİ'!$B$4:$H$829,5,0)),"",(VLOOKUP(K101,'KAYIT LİSTESİ'!$B$4:$H$829,5,0))) ->  | O101: =IF(ISERROR(VLOOKUP(K101,'KAYIT LİSTESİ'!$B$4:$H$829,6,0)),"",(VLOOKUP(K101,'KAYIT LİSTESİ'!$B$4:$H$829,6,0))) -> 
A102: Sıra No | B102: Formül | C102: Göğüs No | D102: Doğum Tarihi | E102: Adı ve Soyadı | F102: Okulu | G102: Start Kontrol | J102: 27 | K102: GÜLLE-27 | L102: =IF(ISERROR(VLOOKUP(K102,'KAYIT LİSTESİ'!$B$4:$H$829,2,0)),"",(VLOOKUP(K102,'KAYIT LİSTESİ'!$B$4:$H$829,2,0))) ->  | M102: =IF(ISERROR(VLOOKUP(K102,'KAYIT LİSTESİ'!$B$4:$H$829,4,0)),"",(VLOOKUP(K102,'KAYIT LİSTESİ'!$B$4:$H$829,4,0))) ->  | N102: =IF(ISERROR(VLOOKUP(K102,'KAYIT LİSTESİ'!$B$4:$H$829,5,0)),"",(VLOOKUP(K102,'KAYIT LİSTESİ'!$B$4:$H$829,5,0))) ->  | O102: =IF(ISERROR(VLOOKUP(K102,'KAYIT LİSTESİ'!$B$4:$H$829,6,0)),"",(VLOOKUP(K102,'KAYIT LİSTESİ'!$B$4:$H$829,6,0))) -> 
A103: 1 | B103: 1500M-2-1 | C103: =IF(ISERROR(VLOOKUP(B103,'KAYIT LİSTESİ'!$B$4:$H$829,2,0)),"",(VLOOKUP(B103,'KAYIT LİSTESİ'!$B$4:$H$829,2,0))) -> 473 | D103: =IF(ISERROR(VLOOKUP(B103,'KAYIT LİSTESİ'!$B$4:$H$829,4,0)),"",(VLOOKUP(B103,'KAYIT LİSTESİ'!$B$4:$H$829,4,0))) -> 2001-06-10 | E103: =IF(ISERROR(VLOOKUP(B103,'KAYIT LİSTESİ'!$B$4:$H$829,5,0)),"",(VLOOKUP(B103,'KAYIT LİSTESİ'!$B$4:$H$829,5,0))) -> SULTAN GÜNDOĞDU | F103: =IF(ISERROR(VLOOKUP(B103,'KAYIT LİSTESİ'!$B$4:$H$829,6,0)),"",(VLOOKUP(B103,'KAYIT LİSTESİ'!$B$4:$H$829,6,0))) -> KIRIKKALE | J103: 28 | K103: GÜLLE-28 | L103: =IF(ISERROR(VLOOKUP(K103,'KAYIT LİSTESİ'!$B$4:$H$829,2,0)),"",(VLOOKUP(K103,'KAYIT LİSTESİ'!$B$4:$H$829,2,0))) ->  | M103: =IF(ISERROR(VLOOKUP(K103,'KAYIT LİSTESİ'!$B$4:$H$829,4,0)),"",(VLOOKUP(K103,'KAYIT LİSTESİ'!$B$4:$H$829,4,0))) ->  | N103: =IF(ISERROR(VLOOKUP(K103,'KAYIT LİSTESİ'!$B$4:$H$829,5,0)),"",(VLOOKUP(K103,'KAYIT LİSTESİ'!$B$4:$H$829,5,0))) ->  | O103: =IF(ISERROR(VLOOKUP(K103,'KAYIT LİSTESİ'!$B$4:$H$829,6,0)),"",(VLOOKUP(K103,'KAYIT LİSTESİ'!$B$4:$H$829,6,0))) -> 
A104: 2 | B104: 1500M-2-2 | C104: =IF(ISERROR(VLOOKUP(B104,'KAYIT LİSTESİ'!$B$4:$H$829,2,0)),"",(VLOOKUP(B104,'KAYIT LİSTESİ'!$B$4:$H$829,2,0))) -> 277 | D104: =IF(ISERROR(VLOOKUP(B104,'KAYIT LİSTESİ'!$B$4:$H$829,4,0)),"",(VLOOKUP(B104,'KAYIT LİSTESİ'!$B$4:$H$829,4,0))) -> 2001-01-01 | E104: =IF(ISERROR(VLOOKUP(B104,'KAYIT LİSTESİ'!$B$4:$H$829,5,0)),"",(VLOOKUP(B104,'KAYIT LİSTESİ'!$B$4:$H$829,5,0))) -> SAFİYE YAREN ÖZTÜRK | F104: =IF(ISERROR(VLOOKUP(B104,'KAYIT LİSTESİ'!$B$4:$H$829,6,0)),"",(VLOOKUP(B104,'KAYIT LİSTESİ'!$B$4:$H$829,6,0))) -> GAZİANTEP | J104: 29 | K104: GÜLLE-29 | L104: =IF(ISERROR(VLOOKUP(K104,'KAYIT LİSTESİ'!$B$4:$H$829,2,0)),"",(VLOOKUP(K104,'KAYIT LİSTESİ'!$B$4:$H$829,2,0))) ->  | M104: =IF(ISERROR(VLOOKUP(K104,'KAYIT LİSTESİ'!$B$4:$H$829,4,0)),"",(VLOOKUP(K104,'KAYIT LİSTESİ'!$B$4:$H$829,4,0))) ->  | N104: =IF(ISERROR(VLOOKUP(K104,'KAYIT LİSTESİ'!$B$4:$H$829,5,0)),"",(VLOOKUP(K104,'KAYIT LİSTESİ'!$B$4:$H$829,5,0))) ->  | O104: =IF(ISERROR(VLOOKUP(K104,'KAYIT LİSTESİ'!$B$4:$H$829,6,0)),"",(VLOOKUP(K104,'KAYIT LİSTESİ'!$B$4:$H$829,6,0))) -> 
A105: 3 | B105: 1500M-2-3 | C105: =IF(ISERROR(VLOOKUP(B105,'KAYIT LİSTESİ'!$B$4:$H$829,2,0)),"",(VLOOKUP(B105,'KAYIT LİSTESİ'!$B$4:$H$829,2,0))) -> 462 | D105: =IF(ISERROR(VLOOKUP(B105,'KAYIT LİSTESİ'!$B$4:$H$829,4,0)),"",(VLOOKUP(B105,'KAYIT LİSTESİ'!$B$4:$H$829,4,0))) -> 2001-01-01 | E105: =IF(ISERROR(VLOOKUP(B105,'KAYIT LİSTESİ'!$B$4:$H$829,5,0)),"",(VLOOKUP(B105,'KAYIT LİSTESİ'!$B$4:$H$829,5,0))) -> DERYA ATEŞLİ | F105: =IF(ISERROR(VLOOKUP(B105,'KAYIT LİSTESİ'!$B$4:$H$829,6,0)),"",(VLOOKUP(B105,'KAYIT LİSTESİ'!$B$4:$H$829,6,0))) -> KARAMAN | J105: 30 | K105: GÜLLE-30 | L105: =IF(ISERROR(VLOOKUP(K105,'KAYIT LİSTESİ'!$B$4:$H$829,2,0)),"",(VLOOKUP(K105,'KAYIT LİSTESİ'!$B$4:$H$829,2,0))) ->  | M105: =IF(ISERROR(VLOOKUP(K105,'KAYIT LİSTESİ'!$B$4:$H$829,4,0)),"",(VLOOKUP(K105,'KAYIT LİSTESİ'!$B$4:$H$829,4,0))) ->  | N105: =IF(ISERROR(VLOOKUP(K105,'KAYIT LİSTESİ'!$B$4:$H$829,5,0)),"",(VLOOKUP(K105,'KAYIT LİSTESİ'!$B$4:$H$829,5,0))) ->  | O105: =IF(ISERROR(VLOOKUP(K105,'KAYIT LİSTESİ'!$B$4:$H$829,6,0)),"",(VLOOKUP(K105,'KAYIT LİSTESİ'!$B$4:$H$829,6,0))) -> 
A106: 4 | B106: 1500M-2-4 | C106: =IF(ISERROR(VLOOKUP(B106,'KAYIT LİSTESİ'!$B$4:$H$829,2,0)),"",(VLOOKUP(B106,'KAYIT LİSTESİ'!$B$4:$H$829,2,0))) -> 152 | D106: =IF(ISERROR(VLOOKUP(B106,'KAYIT LİSTESİ'!$B$4:$H$829,4,0)),"",(VLOOKUP(B106,'KAYIT LİSTESİ'!$B$4:$H$829,4,0))) -> 2001-03-10 | E106: =IF(ISERROR(VLOOKUP(B106,'KAYIT LİSTESİ'!$B$4:$H$829,5,0)),"",(VLOOKUP(B106,'KAYIT LİSTESİ'!$B$4:$H$829,5,0))) -> AYBÜKE KALENDER | F106: =IF(ISERROR(VLOOKUP(B106,'KAYIT LİSTESİ'!$B$4:$H$829,6,0)),"",(VLOOKUP(B106,'KAYIT LİSTESİ'!$B$4:$H$829,6,0))) -> BİLECİK | J106: 31 | K106: GÜLLE-31 | L106: =IF(ISERROR(VLOOKUP(K106,'KAYIT LİSTESİ'!$B$4:$H$829,2,0)),"",(VLOOKUP(K106,'KAYIT LİSTESİ'!$B$4:$H$829,2,0))) ->  | M106: =IF(ISERROR(VLOOKUP(K106,'KAYIT LİSTESİ'!$B$4:$H$829,4,0)),"",(VLOOKUP(K106,'KAYIT LİSTESİ'!$B$4:$H$829,4,0))) ->  | N106: =IF(ISERROR(VLOOKUP(K106,'KAYIT LİSTESİ'!$B$4:$H$829,5,0)),"",(VLOOKUP(K106,'KAYIT LİSTESİ'!$B$4:$H$829,5,0))) ->  | O106: =IF(ISERROR(VLOOKUP(K106,'KAYIT LİSTESİ'!$B$4:$H$829,6,0)),"",(VLOOKUP(K106,'KAYIT LİSTESİ'!$B$4:$H$829,6,0))) -> 
A107: 5 | B107: 1500M-2-5 | C107: =IF(ISERROR(VLOOKUP(B107,'KAYIT LİSTESİ'!$B$4:$H$829,2,0)),"",(VLOOKUP(B107,'KAYIT LİSTESİ'!$B$4:$H$829,2,0))) -> 276 | D107: =IF(ISERROR(VLOOKUP(B107,'KAYIT LİSTESİ'!$B$4:$H$829,4,0)),"",(VLOOKUP(B107,'KAYIT LİSTESİ'!$B$4:$H$829,4,0))) -> 2001-01-01 | E107: =IF(ISERROR(VLOOKUP(B107,'KAYIT LİSTESİ'!$B$4:$H$829,5,0)),"",(VLOOKUP(B107,'KAYIT LİSTESİ'!$B$4:$H$829,5,0))) -> EMİNE YILMAZ | F107: =IF(ISERROR(VLOOKUP(B107,'KAYIT LİSTESİ'!$B$4:$H$829,6,0)),"",(VLOOKUP(B107,'KAYIT LİSTESİ'!$B$4:$H$829,6,0))) -> GAZİANTEP | J107: 32 | K107: GÜLLE-32 | L107: =IF(ISERROR(VLOOKUP(K107,'KAYIT LİSTESİ'!$B$4:$H$829,2,0)),"",(VLOOKUP(K107,'KAYIT LİSTESİ'!$B$4:$H$829,2,0))) ->  | M107: =IF(ISERROR(VLOOKUP(K107,'KAYIT LİSTESİ'!$B$4:$H$829,4,0)),"",(VLOOKUP(K107,'KAYIT LİSTESİ'!$B$4:$H$829,4,0))) ->  | N107: =IF(ISERROR(VLOOKUP(K107,'KAYIT LİSTESİ'!$B$4:$H$829,5,0)),"",(VLOOKUP(K107,'KAYIT LİSTESİ'!$B$4:$H$829,5,0))) ->  | O107: =IF(ISERROR(VLOOKUP(K107,'KAYIT LİSTESİ'!$B$4:$H$829,6,0)),"",(VLOOKUP(K107,'KAYIT LİSTESİ'!$B$4:$H$829,6,0))) -> 
A108: 6 | B108: 1500M-2-6 | C108: =IF(ISERROR(VLOOKUP(B108,'KAYIT LİSTESİ'!$B$4:$H$829,2,0)),"",(VLOOKUP(B108,'KAYIT LİSTESİ'!$B$4:$H$829,2,0))) -> 692 | D108: =IF(ISERROR(VLOOKUP(B108,'KAYIT LİSTESİ'!$B$4:$H$829,4,0)),"",(VLOOKUP(B108,'KAYIT LİSTESİ'!$B$4:$H$829,4,0))) -> 2001-07-12 | E108: =IF(ISERROR(VLOOKUP(B108,'KAYIT LİSTESİ'!$B$4:$H$829,5,0)),"",(VLOOKUP(B108,'KAYIT LİSTESİ'!$B$4:$H$829,5,0))) -> TUĞÇE ZENGİN | F108: =IF(ISERROR(VLOOKUP(B108,'KAYIT LİSTESİ'!$B$4:$H$829,6,0)),"",(VLOOKUP(B108,'KAYIT LİSTESİ'!$B$4:$H$829,6,0))) -> TOKAT | J108: 33 | K108: GÜLLE-33 | L108: =IF(ISERROR(VLOOKUP(K108,'KAYIT LİSTESİ'!$B$4:$H$829,2,0)),"",(VLOOKUP(K108,'KAYIT LİSTESİ'!$B$4:$H$829,2,0))) ->  | M108: =IF(ISERROR(VLOOKUP(K108,'KAYIT LİSTESİ'!$B$4:$H$829,4,0)),"",(VLOOKUP(K108,'KAYIT LİSTESİ'!$B$4:$H$829,4,0))) ->  | N108: =IF(ISERROR(VLOOKUP(K108,'KAYIT LİSTESİ'!$B$4:$H$829,5,0)),"",(VLOOKUP(K108,'KAYIT LİSTESİ'!$B$4:$H$829,5,0))) ->  | O108: =IF(ISERROR(VLOOKUP(K108,'KAYIT LİSTESİ'!$B$4:$H$829,6,0)),"",(VLOOKUP(K108,'KAYIT LİSTESİ'!$B$4:$H$829,6,0))) -> 
A109: 7 | B109: 1500M-2-7 | C109: =IF(ISERROR(VLOOKUP(B109,'KAYIT LİSTESİ'!$B$4:$H$829,2,0)),"",(VLOOKUP(B109,'KAYIT LİSTESİ'!$B$4:$H$829,2,0))) -> 707 | D109: =IF(ISERROR(VLOOKUP(B109,'KAYIT LİSTESİ'!$B$4:$H$829,4,0)),"",(VLOOKUP(B109,'KAYIT LİSTESİ'!$B$4:$H$829,4,0))) -> 2001-03-15 | E109: =IF(ISERROR(VLOOKUP(B109,'KAYIT LİSTESİ'!$B$4:$H$829,5,0)),"",(VLOOKUP(B109,'KAYIT LİSTESİ'!$B$4:$H$829,5,0))) -> ÖZNUR GEDİK | F109: =IF(ISERROR(VLOOKUP(B109,'KAYIT LİSTESİ'!$B$4:$H$829,6,0)),"",(VLOOKUP(B109,'KAYIT LİSTESİ'!$B$4:$H$829,6,0))) -> TRABZON | J109: 34 | K109: GÜLLE-34 | L109: =IF(ISERROR(VLOOKUP(K109,'KAYIT LİSTESİ'!$B$4:$H$829,2,0)),"",(VLOOKUP(K109,'KAYIT LİSTESİ'!$B$4:$H$829,2,0))) ->  | M109: =IF(ISERROR(VLOOKUP(K109,'KAYIT LİSTESİ'!$B$4:$H$829,4,0)),"",(VLOOKUP(K109,'KAYIT LİSTESİ'!$B$4:$H$829,4,0))) ->  | N109: =IF(ISERROR(VLOOKUP(K109,'KAYIT LİSTESİ'!$B$4:$H$829,5,0)),"",(VLOOKUP(K109,'KAYIT LİSTESİ'!$B$4:$H$829,5,0))) ->  | O109: =IF(ISERROR(VLOOKUP(K109,'KAYIT LİSTESİ'!$B$4:$H$829,6,0)),"",(VLOOKUP(K109,'KAYIT LİSTESİ'!$B$4:$H$829,6,0))) -> 
A110: 8 | B110: 1500M-2-8 | C110: =IF(ISERROR(VLOOKUP(B110,'KAYIT LİSTESİ'!$B$4:$H$829,2,0)),"",(VLOOKUP(B110,'KAYIT LİSTESİ'!$B$4:$H$829,2,0))) -> 180 | D110: =IF(ISERROR(VLOOKUP(B110,'KAYIT LİSTESİ'!$B$4:$H$829,4,0)),"",(VLOOKUP(B110,'KAYIT LİSTESİ'!$B$4:$H$829,4,0))) -> 2001-09-10 | E110: =IF(ISERROR(VLOOKUP(B110,'KAYIT LİSTESİ'!$B$4:$H$829,5,0)),"",(VLOOKUP(B110,'KAYIT LİSTESİ'!$B$4:$H$829,5,0))) -> MELEK ÇEVİK | F110: =IF(ISERROR(VLOOKUP(B110,'KAYIT LİSTESİ'!$B$4:$H$829,6,0)),"",(VLOOKUP(B110,'KAYIT LİSTESİ'!$B$4:$H$829,6,0))) -> BOLU | J110: 35 | K110: GÜLLE-35 | L110: =IF(ISERROR(VLOOKUP(K110,'KAYIT LİSTESİ'!$B$4:$H$829,2,0)),"",(VLOOKUP(K110,'KAYIT LİSTESİ'!$B$4:$H$829,2,0))) ->  | M110: =IF(ISERROR(VLOOKUP(K110,'KAYIT LİSTESİ'!$B$4:$H$829,4,0)),"",(VLOOKUP(K110,'KAYIT LİSTESİ'!$B$4:$H$829,4,0))) ->  | N110: =IF(ISERROR(VLOOKUP(K110,'KAYIT LİSTESİ'!$B$4:$H$829,5,0)),"",(VLOOKUP(K110,'KAYIT LİSTESİ'!$B$4:$H$829,5,0))) ->  | O110: =IF(ISERROR(VLOOKUP(K110,'KAYIT LİSTESİ'!$B$4:$H$829,6,0)),"",(VLOOKUP(K110,'KAYIT LİSTESİ'!$B$4:$H$829,6,0))) -> 
A111: 9 | B111: 1500M-2-9 | C111: =IF(ISERROR(VLOOKUP(B111,'KAYIT LİSTESİ'!$B$4:$H$829,2,0)),"",(VLOOKUP(B111,'KAYIT LİSTESİ'!$B$4:$H$829,2,0))) -> 739 | D111: =IF(ISERROR(VLOOKUP(B111,'KAYIT LİSTESİ'!$B$4:$H$829,4,0)),"",(VLOOKUP(B111,'KAYIT LİSTESİ'!$B$4:$H$829,4,0))) -> 2001-06-17 | E111: =IF(ISERROR(VLOOKUP(B111,'KAYIT LİSTESİ'!$B$4:$H$829,5,0)),"",(VLOOKUP(B111,'KAYIT LİSTESİ'!$B$4:$H$829,5,0))) -> MELİSA İNCİ | F111: =IF(ISERROR(VLOOKUP(B111,'KAYIT LİSTESİ'!$B$4:$H$829,6,0)),"",(VLOOKUP(B111,'KAYIT LİSTESİ'!$B$4:$H$829,6,0))) -> MUĞLA | J111: 36 | K111: GÜLLE-36 | L111: =IF(ISERROR(VLOOKUP(K111,'KAYIT LİSTESİ'!$B$4:$H$829,2,0)),"",(VLOOKUP(K111,'KAYIT LİSTESİ'!$B$4:$H$829,2,0))) ->  | M111: =IF(ISERROR(VLOOKUP(K111,'KAYIT LİSTESİ'!$B$4:$H$829,4,0)),"",(VLOOKUP(K111,'KAYIT LİSTESİ'!$B$4:$H$829,4,0))) ->  | N111: =IF(ISERROR(VLOOKUP(K111,'KAYIT LİSTESİ'!$B$4:$H$829,5,0)),"",(VLOOKUP(K111,'KAYIT LİSTESİ'!$B$4:$H$829,5,0))) ->  | O111: =IF(ISERROR(VLOOKUP(K111,'KAYIT LİSTESİ'!$B$4:$H$829,6,0)),"",(VLOOKUP(K111,'KAYIT LİSTESİ'!$B$4:$H$829,6,0))) -> 
A112: 10 | B112: 1500M-2-10 | C112: =IF(ISERROR(VLOOKUP(B112,'KAYIT LİSTESİ'!$B$4:$H$829,2,0)),"",(VLOOKUP(B112,'KAYIT LİSTESİ'!$B$4:$H$829,2,0))) -> 338 | D112: =IF(ISERROR(VLOOKUP(B112,'KAYIT LİSTESİ'!$B$4:$H$829,4,0)),"",(VLOOKUP(B112,'KAYIT LİSTESİ'!$B$4:$H$829,4,0))) -> 2001-09-24 | E112: =IF(ISERROR(VLOOKUP(B112,'KAYIT LİSTESİ'!$B$4:$H$829,5,0)),"",(VLOOKUP(B112,'KAYIT LİSTESİ'!$B$4:$H$829,5,0))) -> TUĞBA KURT | F112: =IF(ISERROR(VLOOKUP(B112,'KAYIT LİSTESİ'!$B$4:$H$829,6,0)),"",(VLOOKUP(B112,'KAYIT LİSTESİ'!$B$4:$H$829,6,0))) -> ISPARTA | J112: 37 | K112: GÜLLE-37 | L112: =IF(ISERROR(VLOOKUP(K112,'KAYIT LİSTESİ'!$B$4:$H$829,2,0)),"",(VLOOKUP(K112,'KAYIT LİSTESİ'!$B$4:$H$829,2,0))) ->  | M112: =IF(ISERROR(VLOOKUP(K112,'KAYIT LİSTESİ'!$B$4:$H$829,4,0)),"",(VLOOKUP(K112,'KAYIT LİSTESİ'!$B$4:$H$829,4,0))) ->  | N112: =IF(ISERROR(VLOOKUP(K112,'KAYIT LİSTESİ'!$B$4:$H$829,5,0)),"",(VLOOKUP(K112,'KAYIT LİSTESİ'!$B$4:$H$829,5,0))) ->  | O112: =IF(ISERROR(VLOOKUP(K112,'KAYIT LİSTESİ'!$B$4:$H$829,6,0)),"",(VLOOKUP(K112,'KAYIT LİSTESİ'!$B$4:$H$829,6,0))) -> 
A113: 11 | B113: 1500M-2-11 | C113: =IF(ISERROR(VLOOKUP(B113,'KAYIT LİSTESİ'!$B$4:$H$829,2,0)),"",(VLOOKUP(B113,'KAYIT LİSTESİ'!$B$4:$H$829,2,0))) -> 718 | D113: =IF(ISERROR(VLOOKUP(B113,'KAYIT LİSTESİ'!$B$4:$H$829,4,0)),"",(VLOOKUP(B113,'KAYIT LİSTESİ'!$B$4:$H$829,4,0))) -> 2001-01-01 | E113: =IF(ISERROR(VLOOKUP(B113,'KAYIT LİSTESİ'!$B$4:$H$829,5,0)),"",(VLOOKUP(B113,'KAYIT LİSTESİ'!$B$4:$H$829,5,0))) -> DİDAR GÖKTEPE | F113: =IF(ISERROR(VLOOKUP(B113,'KAYIT LİSTESİ'!$B$4:$H$829,6,0)),"",(VLOOKUP(B113,'KAYIT LİSTESİ'!$B$4:$H$829,6,0))) -> TUNCELİ | J113: 38 | K113: GÜLLE-38 | L113: =IF(ISERROR(VLOOKUP(K113,'KAYIT LİSTESİ'!$B$4:$H$829,2,0)),"",(VLOOKUP(K113,'KAYIT LİSTESİ'!$B$4:$H$829,2,0))) ->  | M113: =IF(ISERROR(VLOOKUP(K113,'KAYIT LİSTESİ'!$B$4:$H$829,4,0)),"",(VLOOKUP(K113,'KAYIT LİSTESİ'!$B$4:$H$829,4,0))) ->  | N113: =IF(ISERROR(VLOOKUP(K113,'KAYIT LİSTESİ'!$B$4:$H$829,5,0)),"",(VLOOKUP(K113,'KAYIT LİSTESİ'!$B$4:$H$829,5,0))) ->  | O113: =IF(ISERROR(VLOOKUP(K113,'KAYIT LİSTESİ'!$B$4:$H$829,6,0)),"",(VLOOKUP(K113,'KAYIT LİSTESİ'!$B$4:$H$829,6,0))) -> 
A114: 12 | B114: 1500M-2-12 | C114: =IF(ISERROR(VLOOKUP(B114,'KAYIT LİSTESİ'!$B$4:$H$829,2,0)),"",(VLOOKUP(B114,'KAYIT LİSTESİ'!$B$4:$H$829,2,0))) -> 340 | D114: =IF(ISERROR(VLOOKUP(B114,'KAYIT LİSTESİ'!$B$4:$H$829,4,0)),"",(VLOOKUP(B114,'KAYIT LİSTESİ'!$B$4:$H$829,4,0))) -> 2001-07-15 | E114: =IF(ISERROR(VLOOKUP(B114,'KAYIT LİSTESİ'!$B$4:$H$829,5,0)),"",(VLOOKUP(B114,'KAYIT LİSTESİ'!$B$4:$H$829,5,0))) -> KUBRA GÜLER | F114: =IF(ISERROR(VLOOKUP(B114,'KAYIT LİSTESİ'!$B$4:$H$829,6,0)),"",(VLOOKUP(B114,'KAYIT LİSTESİ'!$B$4:$H$829,6,0))) -> ISPARTA | J114: 39 | K114: GÜLLE-39 | L114: =IF(ISERROR(VLOOKUP(K114,'KAYIT LİSTESİ'!$B$4:$H$829,2,0)),"",(VLOOKUP(K114,'KAYIT LİSTESİ'!$B$4:$H$829,2,0))) ->  | M114: =IF(ISERROR(VLOOKUP(K114,'KAYIT LİSTESİ'!$B$4:$H$829,4,0)),"",(VLOOKUP(K114,'KAYIT LİSTESİ'!$B$4:$H$829,4,0))) ->  | N114: =IF(ISERROR(VLOOKUP(K114,'KAYIT LİSTESİ'!$B$4:$H$829,5,0)),"",(VLOOKUP(K114,'KAYIT LİSTESİ'!$B$4:$H$829,5,0))) ->  | O114: =IF(ISERROR(VLOOKUP(K114,'KAYIT LİSTESİ'!$B$4:$H$829,6,0)),"",(VLOOKUP(K114,'KAYIT LİSTESİ'!$B$4:$H$829,6,0))) -> 
A115: 3. SERİ | J115: 40 | K115: GÜLLE-40 | L115: =IF(ISERROR(VLOOKUP(K115,'KAYIT LİSTESİ'!$B$4:$H$829,2,0)),"",(VLOOKUP(K115,'KAYIT LİSTESİ'!$B$4:$H$829,2,0))) ->  | M115: =IF(ISERROR(VLOOKUP(K115,'KAYIT LİSTESİ'!$B$4:$H$829,4,0)),"",(VLOOKUP(K115,'KAYIT LİSTESİ'!$B$4:$H$829,4,0))) ->  | N115: =IF(ISERROR(VLOOKUP(K115,'KAYIT LİSTESİ'!$B$4:$H$829,5,0)),"",(VLOOKUP(K115,'KAYIT LİSTESİ'!$B$4:$H$829,5,0))) ->  | O115: =IF(ISERROR(VLOOKUP(K115,'KAYIT LİSTESİ'!$B$4:$H$829,6,0)),"",(VLOOKUP(K115,'KAYIT LİSTESİ'!$B$4:$H$829,6,0))) -> 
A116: Sıra No | B116: Formül | C116: Göğüs No | D116: Doğum Tarihi | E116: Adı ve Soyadı | F116: Okulu | G116: Start Kontrol | J116: UZUN ATLAMA
A117: 1 | B117: 1500M-3-1 | C117: =IF(ISERROR(VLOOKUP(B117,'KAYIT LİSTESİ'!$B$4:$H$829,2,0)),"",(VLOOKUP(B117,'KAYIT LİSTESİ'!$B$4:$H$829,2,0))) -> 106 | D117: =IF(ISERROR(VLOOKUP(B117,'KAYIT LİSTESİ'!$B$4:$H$829,4,0)),"",(VLOOKUP(B117,'KAYIT LİSTESİ'!$B$4:$H$829,4,0))) -> 2001-07-01 | E117: =IF(ISERROR(VLOOKUP(B117,'KAYIT LİSTESİ'!$B$4:$H$829,5,0)),"",(VLOOKUP(B117,'KAYIT LİSTESİ'!$B$4:$H$829,5,0))) -> EDANUR KARADUMAN | F117: =IF(ISERROR(VLOOKUP(B117,'KAYIT LİSTESİ'!$B$4:$H$829,6,0)),"",(VLOOKUP(B117,'KAYIT LİSTESİ'!$B$4:$H$829,6,0))) -> BALIKESİR | J117: SIRA NO | L117: GÖĞÜS NO | M117: DOĞUM TARİHİ | N117: ADI VE SOYADI | O117: OKULU | P117: Start Kontrol
A118: 2 | B118: 1500M-3-2 | C118: =IF(ISERROR(VLOOKUP(B118,'KAYIT LİSTESİ'!$B$4:$H$829,2,0)),"",(VLOOKUP(B118,'KAYIT LİSTESİ'!$B$4:$H$829,2,0))) -> 214 | D118: =IF(ISERROR(VLOOKUP(B118,'KAYIT LİSTESİ'!$B$4:$H$829,4,0)),"",(VLOOKUP(B118,'KAYIT LİSTESİ'!$B$4:$H$829,4,0))) -> 2001-02-28 | E118: =IF(ISERROR(VLOOKUP(B118,'KAYIT LİSTESİ'!$B$4:$H$829,5,0)),"",(VLOOKUP(B118,'KAYIT LİSTESİ'!$B$4:$H$829,5,0))) -> SİMGE MUĞLI | F118: =IF(ISERROR(VLOOKUP(B118,'KAYIT LİSTESİ'!$B$4:$H$829,6,0)),"",(VLOOKUP(B118,'KAYIT LİSTESİ'!$B$4:$H$829,6,0))) -> ÇANAKKALE
A119: 3 | B119: 1500M-3-3 | C119: =IF(ISERROR(VLOOKUP(B119,'KAYIT LİSTESİ'!$B$4:$H$829,2,0)),"",(VLOOKUP(B119,'KAYIT LİSTESİ'!$B$4:$H$829,2,0))) -> 646 | D119: =IF(ISERROR(VLOOKUP(B119,'KAYIT LİSTESİ'!$B$4:$H$829,4,0)),"",(VLOOKUP(B119,'KAYIT LİSTESİ'!$B$4:$H$829,4,0))) -> 2001-07-30 | E119: =IF(ISERROR(VLOOKUP(B119,'KAYIT LİSTESİ'!$B$4:$H$829,5,0)),"",(VLOOKUP(B119,'KAYIT LİSTESİ'!$B$4:$H$829,5,0))) -> ÖZLEM OYSAL | F119: =IF(ISERROR(VLOOKUP(B119,'KAYIT LİSTESİ'!$B$4:$H$829,6,0)),"",(VLOOKUP(B119,'KAYIT LİSTESİ'!$B$4:$H$829,6,0))) -> SİİRT | J119: 1 | K119: UZUN-1 | L119: =IF(ISERROR(VLOOKUP(K119,'KAYIT LİSTESİ'!$B$4:$H$829,2,0)),"",(VLOOKUP(K119,'KAYIT LİSTESİ'!$B$4:$H$829,2,0))) ->  | M119: =IF(ISERROR(VLOOKUP(K119,'KAYIT LİSTESİ'!$B$4:$H$829,4,0)),"",(VLOOKUP(K119,'KAYIT LİSTESİ'!$B$4:$H$829,4,0))) ->  | N119: =IF(ISERROR(VLOOKUP(K119,'KAYIT LİSTESİ'!$B$4:$H$829,5,0)),"",(VLOOKUP(K119,'KAYIT LİSTESİ'!$B$4:$H$829,5,0))) ->  | O119: =IF(ISERROR(VLOOKUP(K119,'KAYIT LİSTESİ'!$B$4:$H$829,6,0)),"",(VLOOKUP(K119,'KAYIT LİSTESİ'!$B$4:$H$829,6,0))) -> 
A120: 4 | B120: 1500M-3-4 | C120: =IF(ISERROR(VLOOKUP(B120,'KAYIT LİSTESİ'!$B$4:$H$829,2,0)),"",(VLOOKUP(B120,'KAYIT LİSTESİ'!$B$4:$H$829,2,0))) -> 393 | D120: =IF(ISERROR(VLOOKUP(B120,'KAYIT LİSTESİ'!$B$4:$H$829,4,0)),"",(VLOOKUP(B120,'KAYIT LİSTESİ'!$B$4:$H$829,4,0))) -> 2001-06-08 | E120: =IF(ISERROR(VLOOKUP(B120,'KAYIT LİSTESİ'!$B$4:$H$829,5,0)),"",(VLOOKUP(B120,'KAYIT LİSTESİ'!$B$4:$H$829,5,0))) -> BUKET AYDIN | F120: =IF(ISERROR(VLOOKUP(B120,'KAYIT LİSTESİ'!$B$4:$H$829,6,0)),"",(VLOOKUP(B120,'KAYIT LİSTESİ'!$B$4:$H$829,6,0))) -> İZMİR | J120: 2 | K120: UZUN-2 | L120: =IF(ISERROR(VLOOKUP(K120,'KAYIT LİSTESİ'!$B$4:$H$829,2,0)),"",(VLOOKUP(K120,'KAYIT LİSTESİ'!$B$4:$H$829,2,0))) ->  | M120: =IF(ISERROR(VLOOKUP(K120,'KAYIT LİSTESİ'!$B$4:$H$829,4,0)),"",(VLOOKUP(K120,'KAYIT LİSTESİ'!$B$4:$H$829,4,0))) ->  | N120: =IF(ISERROR(VLOOKUP(K120,'KAYIT LİSTESİ'!$B$4:$H$829,5,0)),"",(VLOOKUP(K120,'KAYIT LİSTESİ'!$B$4:$H$829,5,0))) ->  | O120: =IF(ISERROR(VLOOKUP(K120,'KAYIT LİSTESİ'!$B$4:$H$829,6,0)),"",(VLOOKUP(K120,'KAYIT LİSTESİ'!$B$4:$H$829,6,0))) -> 
A121: 5 | B121: 1500M-3-5 | C121: =IF(ISERROR(VLOOKUP(B121,'KAYIT LİSTESİ'!$B$4:$H$829,2,0)),"",(VLOOKUP(B121,'KAYIT LİSTESİ'!$B$4:$H$829,2,0))) -> 123 | D121: =IF(ISERROR(VLOOKUP(B121,'KAYIT LİSTESİ'!$B$4:$H$829,4,0)),"",(VLOOKUP(B121,'KAYIT LİSTESİ'!$B$4:$H$829,4,0))) -> 2001-04-09 | E121: =IF(ISERROR(VLOOKUP(B121,'KAYIT LİSTESİ'!$B$4:$H$829,5,0)),"",(VLOOKUP(B121,'KAYIT LİSTESİ'!$B$4:$H$829,5,0))) -> YAĞMUR İPEK ALP | F121: =IF(ISERROR(VLOOKUP(B121,'KAYIT LİSTESİ'!$B$4:$H$829,6,0)),"",(VLOOKUP(B121,'KAYIT LİSTESİ'!$B$4:$H$829,6,0))) -> BARTIN | J121: 3 | K121: UZUN-3 | L121: =IF(ISERROR(VLOOKUP(K121,'KAYIT LİSTESİ'!$B$4:$H$829,2,0)),"",(VLOOKUP(K121,'KAYIT LİSTESİ'!$B$4:$H$829,2,0))) ->  | M121: =IF(ISERROR(VLOOKUP(K121,'KAYIT LİSTESİ'!$B$4:$H$829,4,0)),"",(VLOOKUP(K121,'KAYIT LİSTESİ'!$B$4:$H$829,4,0))) ->  | N121: =IF(ISERROR(VLOOKUP(K121,'KAYIT LİSTESİ'!$B$4:$H$829,5,0)),"",(VLOOKUP(K121,'KAYIT LİSTESİ'!$B$4:$H$829,5,0))) ->  | O121: =IF(ISERROR(VLOOKUP(K121,'KAYIT LİSTESİ'!$B$4:$H$829,6,0)),"",(VLOOKUP(K121,'KAYIT LİSTESİ'!$B$4:$H$829,6,0))) -> 
A122: 6 | B122: 1500M-3-6 | C122: =IF(ISERROR(VLOOKUP(B122,'KAYIT LİSTESİ'!$B$4:$H$829,2,0)),"",(VLOOKUP(B122,'KAYIT LİSTESİ'!$B$4:$H$829,2,0))) -> 563 | D122: =IF(ISERROR(VLOOKUP(B122,'KAYIT LİSTESİ'!$B$4:$H$829,4,0)),"",(VLOOKUP(B122,'KAYIT LİSTESİ'!$B$4:$H$829,4,0))) -> 2001-02-17 | E122: =IF(ISERROR(VLOOKUP(B122,'KAYIT LİSTESİ'!$B$4:$H$829,5,0)),"",(VLOOKUP(B122,'KAYIT LİSTESİ'!$B$4:$H$829,5,0))) -> KARDELEN YILDIZ | F122: =IF(ISERROR(VLOOKUP(B122,'KAYIT LİSTESİ'!$B$4:$H$829,6,0)),"",(VLOOKUP(B122,'KAYIT LİSTESİ'!$B$4:$H$829,6,0))) -> MUĞLA | J122: 4 | K122: UZUN-4 | L122: =IF(ISERROR(VLOOKUP(K122,'KAYIT LİSTESİ'!$B$4:$H$829,2,0)),"",(VLOOKUP(K122,'KAYIT LİSTESİ'!$B$4:$H$829,2,0))) ->  | M122: =IF(ISERROR(VLOOKUP(K122,'KAYIT LİSTESİ'!$B$4:$H$829,4,0)),"",(VLOOKUP(K122,'KAYIT LİSTESİ'!$B$4:$H$829,4,0))) ->  | N122: =IF(ISERROR(VLOOKUP(K122,'KAYIT LİSTESİ'!$B$4:$H$829,5,0)),"",(VLOOKUP(K122,'KAYIT LİSTESİ'!$B$4:$H$829,5,0))) ->  | O122: =IF(ISERROR(VLOOKUP(K122,'KAYIT LİSTESİ'!$B$4:$H$829,6,0)),"",(VLOOKUP(K122,'KAYIT LİSTESİ'!$B$4:$H$829,6,0))) -> 
A123: 7 | B123: 1500M-3-7 | C123: =IF(ISERROR(VLOOKUP(B123,'KAYIT LİSTESİ'!$B$4:$H$829,2,0)),"",(VLOOKUP(B123,'KAYIT LİSTESİ'!$B$4:$H$829,2,0))) -> 110 | D123: =IF(ISERROR(VLOOKUP(B123,'KAYIT LİSTESİ'!$B$4:$H$829,4,0)),"",(VLOOKUP(B123,'KAYIT LİSTESİ'!$B$4:$H$829,4,0))) -> 2001-06-19 | E123: =IF(ISERROR(VLOOKUP(B123,'KAYIT LİSTESİ'!$B$4:$H$829,5,0)),"",(VLOOKUP(B123,'KAYIT LİSTESİ'!$B$4:$H$829,5,0))) -> TUĞCENUR GÜRSES | F123: =IF(ISERROR(VLOOKUP(B123,'KAYIT LİSTESİ'!$B$4:$H$829,6,0)),"",(VLOOKUP(B123,'KAYIT LİSTESİ'!$B$4:$H$829,6,0))) -> BALIKESİR | J123: 5 | K123: UZUN-5 | L123: =IF(ISERROR(VLOOKUP(K123,'KAYIT LİSTESİ'!$B$4:$H$829,2,0)),"",(VLOOKUP(K123,'KAYIT LİSTESİ'!$B$4:$H$829,2,0))) ->  | M123: =IF(ISERROR(VLOOKUP(K123,'KAYIT LİSTESİ'!$B$4:$H$829,4,0)),"",(VLOOKUP(K123,'KAYIT LİSTESİ'!$B$4:$H$829,4,0))) ->  | N123: =IF(ISERROR(VLOOKUP(K123,'KAYIT LİSTESİ'!$B$4:$H$829,5,0)),"",(VLOOKUP(K123,'KAYIT LİSTESİ'!$B$4:$H$829,5,0))) ->  | O123: =IF(ISERROR(VLOOKUP(K123,'KAYIT LİSTESİ'!$B$4:$H$829,6,0)),"",(VLOOKUP(K123,'KAYIT LİSTESİ'!$B$4:$H$829,6,0))) -> 
A124: 8 | B124: 1500M-3-8 | C124: =IF(ISERROR(VLOOKUP(B124,'KAYIT LİSTESİ'!$B$4:$H$829,2,0)),"",(VLOOKUP(B124,'KAYIT LİSTESİ'!$B$4:$H$829,2,0))) -> 107 | D124: =IF(ISERROR(VLOOKUP(B124,'KAYIT LİSTESİ'!$B$4:$H$829,4,0)),"",(VLOOKUP(B124,'KAYIT LİSTESİ'!$B$4:$H$829,4,0))) -> 2001-02-17 | E124: =IF(ISERROR(VLOOKUP(B124,'KAYIT LİSTESİ'!$B$4:$H$829,5,0)),"",(VLOOKUP(B124,'KAYIT LİSTESİ'!$B$4:$H$829,5,0))) -> EZGİ ÇAM | F124: =IF(ISERROR(VLOOKUP(B124,'KAYIT LİSTESİ'!$B$4:$H$829,6,0)),"",(VLOOKUP(B124,'KAYIT LİSTESİ'!$B$4:$H$829,6,0))) -> BALIKESİR | J124: 6 | K124: UZUN-6 | L124: =IF(ISERROR(VLOOKUP(K124,'KAYIT LİSTESİ'!$B$4:$H$829,2,0)),"",(VLOOKUP(K124,'KAYIT LİSTESİ'!$B$4:$H$829,2,0))) ->  | M124: =IF(ISERROR(VLOOKUP(K124,'KAYIT LİSTESİ'!$B$4:$H$829,4,0)),"",(VLOOKUP(K124,'KAYIT LİSTESİ'!$B$4:$H$829,4,0))) ->  | N124: =IF(ISERROR(VLOOKUP(K124,'KAYIT LİSTESİ'!$B$4:$H$829,5,0)),"",(VLOOKUP(K124,'KAYIT LİSTESİ'!$B$4:$H$829,5,0))) ->  | O124: =IF(ISERROR(VLOOKUP(K124,'KAYIT LİSTESİ'!$B$4:$H$829,6,0)),"",(VLOOKUP(K124,'KAYIT LİSTESİ'!$B$4:$H$829,6,0))) -> 
A125: 9 | B125: 1500M-3-9 | C125: =IF(ISERROR(VLOOKUP(B125,'KAYIT LİSTESİ'!$B$4:$H$829,2,0)),"",(VLOOKUP(B125,'KAYIT LİSTESİ'!$B$4:$H$829,2,0))) -> 359 | D125: =IF(ISERROR(VLOOKUP(B125,'KAYIT LİSTESİ'!$B$4:$H$829,4,0)),"",(VLOOKUP(B125,'KAYIT LİSTESİ'!$B$4:$H$829,4,0))) -> 2001-02-06 | E125: =IF(ISERROR(VLOOKUP(B125,'KAYIT LİSTESİ'!$B$4:$H$829,5,0)),"",(VLOOKUP(B125,'KAYIT LİSTESİ'!$B$4:$H$829,5,0))) -> BÜŞRA TURHAN | F125: =IF(ISERROR(VLOOKUP(B125,'KAYIT LİSTESİ'!$B$4:$H$829,6,0)),"",(VLOOKUP(B125,'KAYIT LİSTESİ'!$B$4:$H$829,6,0))) -> İSTANBUL | J125: 7 | K125: UZUN-7 | L125: =IF(ISERROR(VLOOKUP(K125,'KAYIT LİSTESİ'!$B$4:$H$829,2,0)),"",(VLOOKUP(K125,'KAYIT LİSTESİ'!$B$4:$H$829,2,0))) ->  | M125: =IF(ISERROR(VLOOKUP(K125,'KAYIT LİSTESİ'!$B$4:$H$829,4,0)),"",(VLOOKUP(K125,'KAYIT LİSTESİ'!$B$4:$H$829,4,0))) ->  | N125: =IF(ISERROR(VLOOKUP(K125,'KAYIT LİSTESİ'!$B$4:$H$829,5,0)),"",(VLOOKUP(K125,'KAYIT LİSTESİ'!$B$4:$H$829,5,0))) ->  | O125: =IF(ISERROR(VLOOKUP(K125,'KAYIT LİSTESİ'!$B$4:$H$829,6,0)),"",(VLOOKUP(K125,'KAYIT LİSTESİ'!$B$4:$H$829,6,0))) -> 
A126: 10 | B126: 1500M-3-10 | C126: =IF(ISERROR(VLOOKUP(B126,'KAYIT LİSTESİ'!$B$4:$H$829,2,0)),"",(VLOOKUP(B126,'KAYIT LİSTESİ'!$B$4:$H$829,2,0))) -> 21 | D126: =IF(ISERROR(VLOOKUP(B126,'KAYIT LİSTESİ'!$B$4:$H$829,4,0)),"",(VLOOKUP(B126,'KAYIT LİSTESİ'!$B$4:$H$829,4,0))) -> 2001-01-01 | E126: =IF(ISERROR(VLOOKUP(B126,'KAYIT LİSTESİ'!$B$4:$H$829,5,0)),"",(VLOOKUP(B126,'KAYIT LİSTESİ'!$B$4:$H$829,5,0))) -> KADER GÜVENÇ | F126: =IF(ISERROR(VLOOKUP(B126,'KAYIT LİSTESİ'!$B$4:$H$829,6,0)),"",(VLOOKUP(B126,'KAYIT LİSTESİ'!$B$4:$H$829,6,0))) -> ADIYAMAN | J126: 8 | K126: UZUN-8 | L126: =IF(ISERROR(VLOOKUP(K126,'KAYIT LİSTESİ'!$B$4:$H$829,2,0)),"",(VLOOKUP(K126,'KAYIT LİSTESİ'!$B$4:$H$829,2,0))) ->  | M126: =IF(ISERROR(VLOOKUP(K126,'KAYIT LİSTESİ'!$B$4:$H$829,4,0)),"",(VLOOKUP(K126,'KAYIT LİSTESİ'!$B$4:$H$829,4,0))) ->  | N126: =IF(ISERROR(VLOOKUP(K126,'KAYIT LİSTESİ'!$B$4:$H$829,5,0)),"",(VLOOKUP(K126,'KAYIT LİSTESİ'!$B$4:$H$829,5,0))) ->  | O126: =IF(ISERROR(VLOOKUP(K126,'KAYIT LİSTESİ'!$B$4:$H$829,6,0)),"",(VLOOKUP(K126,'KAYIT LİSTESİ'!$B$4:$H$829,6,0))) -> 
A127: 11 | B127: 1500M-3-11 | C127: =IF(ISERROR(VLOOKUP(B127,'KAYIT LİSTESİ'!$B$4:$H$829,2,0)),"",(VLOOKUP(B127,'KAYIT LİSTESİ'!$B$4:$H$829,2,0))) -> 259 | D127: =IF(ISERROR(VLOOKUP(B127,'KAYIT LİSTESİ'!$B$4:$H$829,4,0)),"",(VLOOKUP(B127,'KAYIT LİSTESİ'!$B$4:$H$829,4,0))) -> 2001-05-11 | E127: =IF(ISERROR(VLOOKUP(B127,'KAYIT LİSTESİ'!$B$4:$H$829,5,0)),"",(VLOOKUP(B127,'KAYIT LİSTESİ'!$B$4:$H$829,5,0))) -> DİLVAN ÜTRİ | F127: =IF(ISERROR(VLOOKUP(B127,'KAYIT LİSTESİ'!$B$4:$H$829,6,0)),"",(VLOOKUP(B127,'KAYIT LİSTESİ'!$B$4:$H$829,6,0))) -> ERZURUM | J127: 9 | K127: UZUN-9 | L127: =IF(ISERROR(VLOOKUP(K127,'KAYIT LİSTESİ'!$B$4:$H$829,2,0)),"",(VLOOKUP(K127,'KAYIT LİSTESİ'!$B$4:$H$829,2,0))) ->  | M127: =IF(ISERROR(VLOOKUP(K127,'KAYIT LİSTESİ'!$B$4:$H$829,4,0)),"",(VLOOKUP(K127,'KAYIT LİSTESİ'!$B$4:$H$829,4,0))) ->  | N127: =IF(ISERROR(VLOOKUP(K127,'KAYIT LİSTESİ'!$B$4:$H$829,5,0)),"",(VLOOKUP(K127,'KAYIT LİSTESİ'!$B$4:$H$829,5,0))) ->  | O127: =IF(ISERROR(VLOOKUP(K127,'KAYIT LİSTESİ'!$B$4:$H$829,6,0)),"",(VLOOKUP(K127,'KAYIT LİSTESİ'!$B$4:$H$829,6,0))) -> 
A128: 12 | B128: 1500M-3-12 | C128: =IF(ISERROR(VLOOKUP(B128,'KAYIT LİSTESİ'!$B$4:$H$829,2,0)),"",(VLOOKUP(B128,'KAYIT LİSTESİ'!$B$4:$H$829,2,0))) -> 312 | D128: =IF(ISERROR(VLOOKUP(B128,'KAYIT LİSTESİ'!$B$4:$H$829,4,0)),"",(VLOOKUP(B128,'KAYIT LİSTESİ'!$B$4:$H$829,4,0))) -> 2001-03-26 | E128: =IF(ISERROR(VLOOKUP(B128,'KAYIT LİSTESİ'!$B$4:$H$829,5,0)),"",(VLOOKUP(B128,'KAYIT LİSTESİ'!$B$4:$H$829,5,0))) -> BÜŞRA DOĞAN | F128: =IF(ISERROR(VLOOKUP(B128,'KAYIT LİSTESİ'!$B$4:$H$829,6,0)),"",(VLOOKUP(B128,'KAYIT LİSTESİ'!$B$4:$H$829,6,0))) -> HATAY | J128: 10 | K128: UZUN-10 | L128: =IF(ISERROR(VLOOKUP(K128,'KAYIT LİSTESİ'!$B$4:$H$829,2,0)),"",(VLOOKUP(K128,'KAYIT LİSTESİ'!$B$4:$H$829,2,0))) ->  | M128: =IF(ISERROR(VLOOKUP(K128,'KAYIT LİSTESİ'!$B$4:$H$829,4,0)),"",(VLOOKUP(K128,'KAYIT LİSTESİ'!$B$4:$H$829,4,0))) ->  | N128: =IF(ISERROR(VLOOKUP(K128,'KAYIT LİSTESİ'!$B$4:$H$829,5,0)),"",(VLOOKUP(K128,'KAYIT LİSTESİ'!$B$4:$H$829,5,0))) ->  | O128: =IF(ISERROR(VLOOKUP(K128,'KAYIT LİSTESİ'!$B$4:$H$829,6,0)),"",(VLOOKUP(K128,'KAYIT LİSTESİ'!$B$4:$H$829,6,0))) -> 
A129: 4. SERİ | J129: 11 | K129: UZUN-11 | L129: =IF(ISERROR(VLOOKUP(K129,'KAYIT LİSTESİ'!$B$4:$H$829,2,0)),"",(VLOOKUP(K129,'KAYIT LİSTESİ'!$B$4:$H$829,2,0))) ->  | M129: =IF(ISERROR(VLOOKUP(K129,'KAYIT LİSTESİ'!$B$4:$H$829,4,0)),"",(VLOOKUP(K129,'KAYIT LİSTESİ'!$B$4:$H$829,4,0))) ->  | N129: =IF(ISERROR(VLOOKUP(K129,'KAYIT LİSTESİ'!$B$4:$H$829,5,0)),"",(VLOOKUP(K129,'KAYIT LİSTESİ'!$B$4:$H$829,5,0))) ->  | O129: =IF(ISERROR(VLOOKUP(K129,'KAYIT LİSTESİ'!$B$4:$H$829,6,0)),"",(VLOOKUP(K129,'KAYIT LİSTESİ'!$B$4:$H$829,6,0))) -> 
A130: Sıra No | B130: Formül | C130: Göğüs No | D130: Doğum Tarihi | E130: Adı ve Soyadı | F130: Okulu | G130: Start Kontrol | J130: 12 | K130: UZUN-12 | L130: =IF(ISERROR(VLOOKUP(K130,'KAYIT LİSTESİ'!$B$4:$H$829,2,0)),"",(VLOOKUP(K130,'KAYIT LİSTESİ'!$B$4:$H$829,2,0))) ->  | M130: =IF(ISERROR(VLOOKUP(K130,'KAYIT LİSTESİ'!$B$4:$H$829,4,0)),"",(VLOOKUP(K130,'KAYIT LİSTESİ'!$B$4:$H$829,4,0))) ->  | N130: =IF(ISERROR(VLOOKUP(K130,'KAYIT LİSTESİ'!$B$4:$H$829,5,0)),"",(VLOOKUP(K130,'KAYIT LİSTESİ'!$B$4:$H$829,5,0))) ->  | O130: =IF(ISERROR(VLOOKUP(K130,'KAYIT LİSTESİ'!$B$4:$H$829,6,0)),"",(VLOOKUP(K130,'KAYIT LİSTESİ'!$B$4:$H$829,6,0))) -> 
A131: 1 | B131: 1500M-4-1 | C131: =IF(ISERROR(VLOOKUP(B131,'KAYIT LİSTESİ'!$B$4:$H$829,2,0)),"",(VLOOKUP(B131,'KAYIT LİSTESİ'!$B$4:$H$829,2,0))) ->  | D131: =IF(ISERROR(VLOOKUP(B131,'KAYIT LİSTESİ'!$B$4:$H$829,4,0)),"",(VLOOKUP(B131,'KAYIT LİSTESİ'!$B$4:$H$829,4,0))) ->  | E131: =IF(ISERROR(VLOOKUP(B131,'KAYIT LİSTESİ'!$B$4:$H$829,5,0)),"",(VLOOKUP(B131,'KAYIT LİSTESİ'!$B$4:$H$829,5,0))) ->  | F131: =IF(ISERROR(VLOOKUP(B131,'KAYIT LİSTESİ'!$B$4:$H$829,6,0)),"",(VLOOKUP(B131,'KAYIT LİSTESİ'!$B$4:$H$829,6,0))) ->  | J131: 13 | K131: UZUN-13 | L131: =IF(ISERROR(VLOOKUP(K131,'KAYIT LİSTESİ'!$B$4:$H$829,2,0)),"",(VLOOKUP(K131,'KAYIT LİSTESİ'!$B$4:$H$829,2,0))) ->  | M131: =IF(ISERROR(VLOOKUP(K131,'KAYIT LİSTESİ'!$B$4:$H$829,4,0)),"",(VLOOKUP(K131,'KAYIT LİSTESİ'!$B$4:$H$829,4,0))) ->  | N131: =IF(ISERROR(VLOOKUP(K131,'KAYIT LİSTESİ'!$B$4:$H$829,5,0)),"",(VLOOKUP(K131,'KAYIT LİSTESİ'!$B$4:$H$829,5,0))) ->  | O131: =IF(ISERROR(VLOOKUP(K131,'KAYIT LİSTESİ'!$B$4:$H$829,6,0)),"",(VLOOKUP(K131,'KAYIT LİSTESİ'!$B$4:$H$829,6,0))) -> 
A132: 2 | B132: 1500M-4-2 | C132: =IF(ISERROR(VLOOKUP(B132,'KAYIT LİSTESİ'!$B$4:$H$829,2,0)),"",(VLOOKUP(B132,'KAYIT LİSTESİ'!$B$4:$H$829,2,0))) ->  | D132: =IF(ISERROR(VLOOKUP(B132,'KAYIT LİSTESİ'!$B$4:$H$829,4,0)),"",(VLOOKUP(B132,'KAYIT LİSTESİ'!$B$4:$H$829,4,0))) ->  | E132: =IF(ISERROR(VLOOKUP(B132,'KAYIT LİSTESİ'!$B$4:$H$829,5,0)),"",(VLOOKUP(B132,'KAYIT LİSTESİ'!$B$4:$H$829,5,0))) ->  | F132: =IF(ISERROR(VLOOKUP(B132,'KAYIT LİSTESİ'!$B$4:$H$829,6,0)),"",(VLOOKUP(B132,'KAYIT LİSTESİ'!$B$4:$H$829,6,0))) ->  | J132: 14 | K132: UZUN-14 | L132: =IF(ISERROR(VLOOKUP(K132,'KAYIT LİSTESİ'!$B$4:$H$829,2,0)),"",(VLOOKUP(K132,'KAYIT LİSTESİ'!$B$4:$H$829,2,0))) ->  | M132: =IF(ISERROR(VLOOKUP(K132,'KAYIT LİSTESİ'!$B$4:$H$829,4,0)),"",(VLOOKUP(K132,'KAYIT LİSTESİ'!$B$4:$H$829,4,0))) ->  | N132: =IF(ISERROR(VLOOKUP(K132,'KAYIT LİSTESİ'!$B$4:$H$829,5,0)),"",(VLOOKUP(K132,'KAYIT LİSTESİ'!$B$4:$H$829,5,0))) ->  | O132: =IF(ISERROR(VLOOKUP(K132,'KAYIT LİSTESİ'!$B$4:$H$829,6,0)),"",(VLOOKUP(K132,'KAYIT LİSTESİ'!$B$4:$H$829,6,0))) -> 
A133: 3 | B133: 1500M-4-3 | C133: =IF(ISERROR(VLOOKUP(B133,'KAYIT LİSTESİ'!$B$4:$H$829,2,0)),"",(VLOOKUP(B133,'KAYIT LİSTESİ'!$B$4:$H$829,2,0))) ->  | D133: =IF(ISERROR(VLOOKUP(B133,'KAYIT LİSTESİ'!$B$4:$H$829,4,0)),"",(VLOOKUP(B133,'KAYIT LİSTESİ'!$B$4:$H$829,4,0))) ->  | E133: =IF(ISERROR(VLOOKUP(B133,'KAYIT LİSTESİ'!$B$4:$H$829,5,0)),"",(VLOOKUP(B133,'KAYIT LİSTESİ'!$B$4:$H$829,5,0))) ->  | F133: =IF(ISERROR(VLOOKUP(B133,'KAYIT LİSTESİ'!$B$4:$H$829,6,0)),"",(VLOOKUP(B133,'KAYIT LİSTESİ'!$B$4:$H$829,6,0))) ->  | J133: 15 | K133: UZUN-15 | L133: =IF(ISERROR(VLOOKUP(K133,'KAYIT LİSTESİ'!$B$4:$H$829,2,0)),"",(VLOOKUP(K133,'KAYIT LİSTESİ'!$B$4:$H$829,2,0))) ->  | M133: =IF(ISERROR(VLOOKUP(K133,'KAYIT LİSTESİ'!$B$4:$H$829,4,0)),"",(VLOOKUP(K133,'KAYIT LİSTESİ'!$B$4:$H$829,4,0))) ->  | N133: =IF(ISERROR(VLOOKUP(K133,'KAYIT LİSTESİ'!$B$4:$H$829,5,0)),"",(VLOOKUP(K133,'KAYIT LİSTESİ'!$B$4:$H$829,5,0))) ->  | O133: =IF(ISERROR(VLOOKUP(K133,'KAYIT LİSTESİ'!$B$4:$H$829,6,0)),"",(VLOOKUP(K133,'KAYIT LİSTESİ'!$B$4:$H$829,6,0))) -> 
A134: 4 | B134: 1500M-4-4 | C134: =IF(ISERROR(VLOOKUP(B134,'KAYIT LİSTESİ'!$B$4:$H$829,2,0)),"",(VLOOKUP(B134,'KAYIT LİSTESİ'!$B$4:$H$829,2,0))) ->  | D134: =IF(ISERROR(VLOOKUP(B134,'KAYIT LİSTESİ'!$B$4:$H$829,4,0)),"",(VLOOKUP(B134,'KAYIT LİSTESİ'!$B$4:$H$829,4,0))) ->  | E134: =IF(ISERROR(VLOOKUP(B134,'KAYIT LİSTESİ'!$B$4:$H$829,5,0)),"",(VLOOKUP(B134,'KAYIT LİSTESİ'!$B$4:$H$829,5,0))) ->  | F134: =IF(ISERROR(VLOOKUP(B134,'KAYIT LİSTESİ'!$B$4:$H$829,6,0)),"",(VLOOKUP(B134,'KAYIT LİSTESİ'!$B$4:$H$829,6,0))) ->  | J134: 16 | K134: UZUN-16 | L134: =IF(ISERROR(VLOOKUP(K134,'KAYIT LİSTESİ'!$B$4:$H$829,2,0)),"",(VLOOKUP(K134,'KAYIT LİSTESİ'!$B$4:$H$829,2,0))) ->  | M134: =IF(ISERROR(VLOOKUP(K134,'KAYIT LİSTESİ'!$B$4:$H$829,4,0)),"",(VLOOKUP(K134,'KAYIT LİSTESİ'!$B$4:$H$829,4,0))) ->  | N134: =IF(ISERROR(VLOOKUP(K134,'KAYIT LİSTESİ'!$B$4:$H$829,5,0)),"",(VLOOKUP(K134,'KAYIT LİSTESİ'!$B$4:$H$829,5,0))) ->  | O134: =IF(ISERROR(VLOOKUP(K134,'KAYIT LİSTESİ'!$B$4:$H$829,6,0)),"",(VLOOKUP(K134,'KAYIT LİSTESİ'!$B$4:$H$829,6,0))) -> 
A135: 5 | B135: 1500M-4-5 | C135: =IF(ISERROR(VLOOKUP(B135,'KAYIT LİSTESİ'!$B$4:$H$829,2,0)),"",(VLOOKUP(B135,'KAYIT LİSTESİ'!$B$4:$H$829,2,0))) ->  | D135: =IF(ISERROR(VLOOKUP(B135,'KAYIT LİSTESİ'!$B$4:$H$829,4,0)),"",(VLOOKUP(B135,'KAYIT LİSTESİ'!$B$4:$H$829,4,0))) ->  | E135: =IF(ISERROR(VLOOKUP(B135,'KAYIT LİSTESİ'!$B$4:$H$829,5,0)),"",(VLOOKUP(B135,'KAYIT LİSTESİ'!$B$4:$H$829,5,0))) ->  | F135: =IF(ISERROR(VLOOKUP(B135,'KAYIT LİSTESİ'!$B$4:$H$829,6,0)),"",(VLOOKUP(B135,'KAYIT LİSTESİ'!$B$4:$H$829,6,0))) ->  | J135: 17 | K135: UZUN-17 | L135: =IF(ISERROR(VLOOKUP(K135,'KAYIT LİSTESİ'!$B$4:$H$829,2,0)),"",(VLOOKUP(K135,'KAYIT LİSTESİ'!$B$4:$H$829,2,0))) ->  | M135: =IF(ISERROR(VLOOKUP(K135,'KAYIT LİSTESİ'!$B$4:$H$829,4,0)),"",(VLOOKUP(K135,'KAYIT LİSTESİ'!$B$4:$H$829,4,0))) ->  | N135: =IF(ISERROR(VLOOKUP(K135,'KAYIT LİSTESİ'!$B$4:$H$829,5,0)),"",(VLOOKUP(K135,'KAYIT LİSTESİ'!$B$4:$H$829,5,0))) ->  | O135: =IF(ISERROR(VLOOKUP(K135,'KAYIT LİSTESİ'!$B$4:$H$829,6,0)),"",(VLOOKUP(K135,'KAYIT LİSTESİ'!$B$4:$H$829,6,0))) -> 
A136: 6 | B136: 1500M-4-6 | C136: =IF(ISERROR(VLOOKUP(B136,'KAYIT LİSTESİ'!$B$4:$H$829,2,0)),"",(VLOOKUP(B136,'KAYIT LİSTESİ'!$B$4:$H$829,2,0))) ->  | D136: =IF(ISERROR(VLOOKUP(B136,'KAYIT LİSTESİ'!$B$4:$H$829,4,0)),"",(VLOOKUP(B136,'KAYIT LİSTESİ'!$B$4:$H$829,4,0))) ->  | E136: =IF(ISERROR(VLOOKUP(B136,'KAYIT LİSTESİ'!$B$4:$H$829,5,0)),"",(VLOOKUP(B136,'KAYIT LİSTESİ'!$B$4:$H$829,5,0))) ->  | F136: =IF(ISERROR(VLOOKUP(B136,'KAYIT LİSTESİ'!$B$4:$H$829,6,0)),"",(VLOOKUP(B136,'KAYIT LİSTESİ'!$B$4:$H$829,6,0))) ->  | J136: 18 | K136: UZUN-18 | L136: =IF(ISERROR(VLOOKUP(K136,'KAYIT LİSTESİ'!$B$4:$H$829,2,0)),"",(VLOOKUP(K136,'KAYIT LİSTESİ'!$B$4:$H$829,2,0))) ->  | M136: =IF(ISERROR(VLOOKUP(K136,'KAYIT LİSTESİ'!$B$4:$H$829,4,0)),"",(VLOOKUP(K136,'KAYIT LİSTESİ'!$B$4:$H$829,4,0))) ->  | N136: =IF(ISERROR(VLOOKUP(K136,'KAYIT LİSTESİ'!$B$4:$H$829,5,0)),"",(VLOOKUP(K136,'KAYIT LİSTESİ'!$B$4:$H$829,5,0))) ->  | O136: =IF(ISERROR(VLOOKUP(K136,'KAYIT LİSTESİ'!$B$4:$H$829,6,0)),"",(VLOOKUP(K136,'KAYIT LİSTESİ'!$B$4:$H$829,6,0))) -> 
A137: 7 | B137: 1500M-4-7 | C137: =IF(ISERROR(VLOOKUP(B137,'KAYIT LİSTESİ'!$B$4:$H$829,2,0)),"",(VLOOKUP(B137,'KAYIT LİSTESİ'!$B$4:$H$829,2,0))) ->  | D137: =IF(ISERROR(VLOOKUP(B137,'KAYIT LİSTESİ'!$B$4:$H$829,4,0)),"",(VLOOKUP(B137,'KAYIT LİSTESİ'!$B$4:$H$829,4,0))) ->  | E137: =IF(ISERROR(VLOOKUP(B137,'KAYIT LİSTESİ'!$B$4:$H$829,5,0)),"",(VLOOKUP(B137,'KAYIT LİSTESİ'!$B$4:$H$829,5,0))) ->  | F137: =IF(ISERROR(VLOOKUP(B137,'KAYIT LİSTESİ'!$B$4:$H$829,6,0)),"",(VLOOKUP(B137,'KAYIT LİSTESİ'!$B$4:$H$829,6,0))) ->  | J137: 19 | K137: UZUN-19 | L137: =IF(ISERROR(VLOOKUP(K137,'KAYIT LİSTESİ'!$B$4:$H$829,2,0)),"",(VLOOKUP(K137,'KAYIT LİSTESİ'!$B$4:$H$829,2,0))) ->  | M137: =IF(ISERROR(VLOOKUP(K137,'KAYIT LİSTESİ'!$B$4:$H$829,4,0)),"",(VLOOKUP(K137,'KAYIT LİSTESİ'!$B$4:$H$829,4,0))) ->  | N137: =IF(ISERROR(VLOOKUP(K137,'KAYIT LİSTESİ'!$B$4:$H$829,5,0)),"",(VLOOKUP(K137,'KAYIT LİSTESİ'!$B$4:$H$829,5,0))) ->  | O137: =IF(ISERROR(VLOOKUP(K137,'KAYIT LİSTESİ'!$B$4:$H$829,6,0)),"",(VLOOKUP(K137,'KAYIT LİSTESİ'!$B$4:$H$829,6,0))) -> 
A138: 8 | B138: 1500M-4-8 | C138: =IF(ISERROR(VLOOKUP(B138,'KAYIT LİSTESİ'!$B$4:$H$829,2,0)),"",(VLOOKUP(B138,'KAYIT LİSTESİ'!$B$4:$H$829,2,0))) ->  | D138: =IF(ISERROR(VLOOKUP(B138,'KAYIT LİSTESİ'!$B$4:$H$829,4,0)),"",(VLOOKUP(B138,'KAYIT LİSTESİ'!$B$4:$H$829,4,0))) ->  | E138: =IF(ISERROR(VLOOKUP(B138,'KAYIT LİSTESİ'!$B$4:$H$829,5,0)),"",(VLOOKUP(B138,'KAYIT LİSTESİ'!$B$4:$H$829,5,0))) ->  | F138: =IF(ISERROR(VLOOKUP(B138,'KAYIT LİSTESİ'!$B$4:$H$829,6,0)),"",(VLOOKUP(B138,'KAYIT LİSTESİ'!$B$4:$H$829,6,0))) ->  | J138: 20 | K138: UZUN-20 | L138: =IF(ISERROR(VLOOKUP(K138,'KAYIT LİSTESİ'!$B$4:$H$829,2,0)),"",(VLOOKUP(K138,'KAYIT LİSTESİ'!$B$4:$H$829,2,0))) ->  | M138: =IF(ISERROR(VLOOKUP(K138,'KAYIT LİSTESİ'!$B$4:$H$829,4,0)),"",(VLOOKUP(K138,'KAYIT LİSTESİ'!$B$4:$H$829,4,0))) ->  | N138: =IF(ISERROR(VLOOKUP(K138,'KAYIT LİSTESİ'!$B$4:$H$829,5,0)),"",(VLOOKUP(K138,'KAYIT LİSTESİ'!$B$4:$H$829,5,0))) ->  | O138: =IF(ISERROR(VLOOKUP(K138,'KAYIT LİSTESİ'!$B$4:$H$829,6,0)),"",(VLOOKUP(K138,'KAYIT LİSTESİ'!$B$4:$H$829,6,0))) -> 
A139: 9 | B139: 1500M-4-9 | C139: =IF(ISERROR(VLOOKUP(B139,'KAYIT LİSTESİ'!$B$4:$H$829,2,0)),"",(VLOOKUP(B139,'KAYIT LİSTESİ'!$B$4:$H$829,2,0))) ->  | D139: =IF(ISERROR(VLOOKUP(B139,'KAYIT LİSTESİ'!$B$4:$H$829,4,0)),"",(VLOOKUP(B139,'KAYIT LİSTESİ'!$B$4:$H$829,4,0))) ->  | E139: =IF(ISERROR(VLOOKUP(B139,'KAYIT LİSTESİ'!$B$4:$H$829,5,0)),"",(VLOOKUP(B139,'KAYIT LİSTESİ'!$B$4:$H$829,5,0))) ->  | F139: =IF(ISERROR(VLOOKUP(B139,'KAYIT LİSTESİ'!$B$4:$H$829,6,0)),"",(VLOOKUP(B139,'KAYIT LİSTESİ'!$B$4:$H$829,6,0))) ->  | J139: 21 | K139: UZUN-21 | L139: =IF(ISERROR(VLOOKUP(K139,'KAYIT LİSTESİ'!$B$4:$H$829,2,0)),"",(VLOOKUP(K139,'KAYIT LİSTESİ'!$B$4:$H$829,2,0))) ->  | M139: =IF(ISERROR(VLOOKUP(K139,'KAYIT LİSTESİ'!$B$4:$H$829,4,0)),"",(VLOOKUP(K139,'KAYIT LİSTESİ'!$B$4:$H$829,4,0))) ->  | N139: =IF(ISERROR(VLOOKUP(K139,'KAYIT LİSTESİ'!$B$4:$H$829,5,0)),"",(VLOOKUP(K139,'KAYIT LİSTESİ'!$B$4:$H$829,5,0))) ->  | O139: =IF(ISERROR(VLOOKUP(K139,'KAYIT LİSTESİ'!$B$4:$H$829,6,0)),"",(VLOOKUP(K139,'KAYIT LİSTESİ'!$B$4:$H$829,6,0))) -> 
A140: 10 | B140: 1500M-4-10 | C140: =IF(ISERROR(VLOOKUP(B140,'KAYIT LİSTESİ'!$B$4:$H$829,2,0)),"",(VLOOKUP(B140,'KAYIT LİSTESİ'!$B$4:$H$829,2,0))) ->  | D140: =IF(ISERROR(VLOOKUP(B140,'KAYIT LİSTESİ'!$B$4:$H$829,4,0)),"",(VLOOKUP(B140,'KAYIT LİSTESİ'!$B$4:$H$829,4,0))) ->  | E140: =IF(ISERROR(VLOOKUP(B140,'KAYIT LİSTESİ'!$B$4:$H$829,5,0)),"",(VLOOKUP(B140,'KAYIT LİSTESİ'!$B$4:$H$829,5,0))) ->  | F140: =IF(ISERROR(VLOOKUP(B140,'KAYIT LİSTESİ'!$B$4:$H$829,6,0)),"",(VLOOKUP(B140,'KAYIT LİSTESİ'!$B$4:$H$829,6,0))) ->  | J140: 22 | K140: UZUN-22 | L140: =IF(ISERROR(VLOOKUP(K140,'KAYIT LİSTESİ'!$B$4:$H$829,2,0)),"",(VLOOKUP(K140,'KAYIT LİSTESİ'!$B$4:$H$829,2,0))) ->  | M140: =IF(ISERROR(VLOOKUP(K140,'KAYIT LİSTESİ'!$B$4:$H$829,4,0)),"",(VLOOKUP(K140,'KAYIT LİSTESİ'!$B$4:$H$829,4,0))) ->  | N140: =IF(ISERROR(VLOOKUP(K140,'KAYIT LİSTESİ'!$B$4:$H$829,5,0)),"",(VLOOKUP(K140,'KAYIT LİSTESİ'!$B$4:$H$829,5,0))) ->  | O140: =IF(ISERROR(VLOOKUP(K140,'KAYIT LİSTESİ'!$B$4:$H$829,6,0)),"",(VLOOKUP(K140,'KAYIT LİSTESİ'!$B$4:$H$829,6,0))) -> 
A141: 11 | B141: 1500M-4-11 | C141: =IF(ISERROR(VLOOKUP(B141,'KAYIT LİSTESİ'!$B$4:$H$829,2,0)),"",(VLOOKUP(B141,'KAYIT LİSTESİ'!$B$4:$H$829,2,0))) ->  | D141: =IF(ISERROR(VLOOKUP(B141,'KAYIT LİSTESİ'!$B$4:$H$829,4,0)),"",(VLOOKUP(B141,'KAYIT LİSTESİ'!$B$4:$H$829,4,0))) ->  | E141: =IF(ISERROR(VLOOKUP(B141,'KAYIT LİSTESİ'!$B$4:$H$829,5,0)),"",(VLOOKUP(B141,'KAYIT LİSTESİ'!$B$4:$H$829,5,0))) ->  | F141: =IF(ISERROR(VLOOKUP(B141,'KAYIT LİSTESİ'!$B$4:$H$829,6,0)),"",(VLOOKUP(B141,'KAYIT LİSTESİ'!$B$4:$H$829,6,0))) ->  | J141: 23 | K141: UZUN-23 | L141: =IF(ISERROR(VLOOKUP(K141,'KAYIT LİSTESİ'!$B$4:$H$829,2,0)),"",(VLOOKUP(K141,'KAYIT LİSTESİ'!$B$4:$H$829,2,0))) ->  | M141: =IF(ISERROR(VLOOKUP(K141,'KAYIT LİSTESİ'!$B$4:$H$829,4,0)),"",(VLOOKUP(K141,'KAYIT LİSTESİ'!$B$4:$H$829,4,0))) ->  | N141: =IF(ISERROR(VLOOKUP(K141,'KAYIT LİSTESİ'!$B$4:$H$829,5,0)),"",(VLOOKUP(K141,'KAYIT LİSTESİ'!$B$4:$H$829,5,0))) ->  | O141: =IF(ISERROR(VLOOKUP(K141,'KAYIT LİSTESİ'!$B$4:$H$829,6,0)),"",(VLOOKUP(K141,'KAYIT LİSTESİ'!$B$4:$H$829,6,0))) -> 
A142: 12 | B142: 1500M-4-12 | C142: =IF(ISERROR(VLOOKUP(B142,'KAYIT LİSTESİ'!$B$4:$H$829,2,0)),"",(VLOOKUP(B142,'KAYIT LİSTESİ'!$B$4:$H$829,2,0))) ->  | D142: =IF(ISERROR(VLOOKUP(B142,'KAYIT LİSTESİ'!$B$4:$H$829,4,0)),"",(VLOOKUP(B142,'KAYIT LİSTESİ'!$B$4:$H$829,4,0))) ->  | E142: =IF(ISERROR(VLOOKUP(B142,'KAYIT LİSTESİ'!$B$4:$H$829,5,0)),"",(VLOOKUP(B142,'KAYIT LİSTESİ'!$B$4:$H$829,5,0))) ->  | F142: =IF(ISERROR(VLOOKUP(B142,'KAYIT LİSTESİ'!$B$4:$H$829,6,0)),"",(VLOOKUP(B142,'KAYIT LİSTESİ'!$B$4:$H$829,6,0))) ->  | J142: 24 | K142: UZUN-24 | L142: =IF(ISERROR(VLOOKUP(K142,'KAYIT LİSTESİ'!$B$4:$H$829,2,0)),"",(VLOOKUP(K142,'KAYIT LİSTESİ'!$B$4:$H$829,2,0))) ->  | M142: =IF(ISERROR(VLOOKUP(K142,'KAYIT LİSTESİ'!$B$4:$H$829,4,0)),"",(VLOOKUP(K142,'KAYIT LİSTESİ'!$B$4:$H$829,4,0))) ->  | N142: =IF(ISERROR(VLOOKUP(K142,'KAYIT LİSTESİ'!$B$4:$H$829,5,0)),"",(VLOOKUP(K142,'KAYIT LİSTESİ'!$B$4:$H$829,5,0))) ->  | O142: =IF(ISERROR(VLOOKUP(K142,'KAYIT LİSTESİ'!$B$4:$H$829,6,0)),"",(VLOOKUP(K142,'KAYIT LİSTESİ'!$B$4:$H$829,6,0))) -> 
J143: 25 | K143: UZUN-25 | L143: =IF(ISERROR(VLOOKUP(K143,'KAYIT LİSTESİ'!$B$4:$H$829,2,0)),"",(VLOOKUP(K143,'KAYIT LİSTESİ'!$B$4:$H$829,2,0))) ->  | M143: =IF(ISERROR(VLOOKUP(K143,'KAYIT LİSTESİ'!$B$4:$H$829,4,0)),"",(VLOOKUP(K143,'KAYIT LİSTESİ'!$B$4:$H$829,4,0))) ->  | N143: =IF(ISERROR(VLOOKUP(K143,'KAYIT LİSTESİ'!$B$4:$H$829,5,0)),"",(VLOOKUP(K143,'KAYIT LİSTESİ'!$B$4:$H$829,5,0))) ->  | O143: =IF(ISERROR(VLOOKUP(K143,'KAYIT LİSTESİ'!$B$4:$H$829,6,0)),"",(VLOOKUP(K143,'KAYIT LİSTESİ'!$B$4:$H$829,6,0))) -> 

Sheet puan (hidden)
A1: NAİLİ MORAN TÜRKİYE ŞAMPİYONASI PUAN TABLOSU
A2: PUAN | B2: FOTO FİNİSH | D2: FOTO FİNİSH | F2: FOTO FİNİSH | H2: FOTO FİNİSH | J2: FOTO FİNİSH | L2: FOTO FİNİSH | N2: FOTO FİNİSH | P2: FOTO FİNİSH | R2: FOTO FİNİSH | T2: FOTO FİNİSH | V2: FOTO FİNİSH | Y2: PUAN | Z2: ATLAMALAR | AD2: ATMALAR | AH2: PUAN
B3: 100m | D3: 200m | F3: 75 m | H3: 400m | J3: 70 m H 75 m H 80 m H | L3: 300m H | N3: 800m | P3: 1500m | R3: 2000m Yıldız | T3: 3000m | V3: 100 m H | Z3: Yüksek | AA3: Uzun | AB3: Üçadım | AC3: Sırık | AD3: Gülle | AE3: Disk | AF3: Cirit | AG3: Çekiç
B4: DERECE | D4: DERECE | F4: DERECE | H4: DERECE | J4: DERECE | L4: DERECE | N4: DERECE | P4: DERECE | R4: DERECE | T4: DERECE | V4: DERECE | Z4: DERECE | AA4: DERECE | AB4: DERECE | AC4: DERECE | AD4: DERECE | AE4: DERECE | AF4: DERECE | AG4: DERECE
J5: DNS | Y5: 0 | Z5: 10 | AA5: 100 | AB5: 100 | AC5: 100 | AD5: 100 | AE5: 100 | AF5: 100 | AG5: 100 | AH5: 0
A6: 100 | B6: 1130 | C6: 100 | D6: 2300 | E6: 100 | F6: 950 | G6: 100 | H6: 5200 | I6: 100 | J6: 1140 | K6: 100 | L6: 4250 | M6: 100 | N6: 20000 | O6: 100 | P6: 40300 | Q6: 100 | R6: 54524 | S6: 100 | T6: 85000 | U6: 100 | V6: 1440 | W6: 100 | Y6: 100 | Z6: 65 | AA6: 190 | AB6: 420 | AC6: - | AD6: - | AE6: - | AF6: - | AG6: - | AH6: 1
A7: 99 | B7: 1140 | C7: 99 | D7: 2320 | E7: 99 | F7: - | G7: 99 | H7: 5240 | I7: 99 | J7: 1150 | K7: 99 | L7: 4300 | M7: 99 | N7: 20200 | O7: 99 | P7: 40600 | Q7: 99 | R7: 54624 | S7: 99 | T7: 90000 | U7: 99 | V7: 1450 | W7: 99 | Y7: 99 | Z7: 66 | AA7: 193 | AB7: 425 | AC7: - | AD7: - | AE7: - | AF7: - | AG7: - | AH7: 2
A8: 98 | B8: 1150 | C8: 98 | D8: 2340 | E8: 98 | F8: 960 | G8: 98 | H8: 5270 | I8: 98 | J8: 1160 | K8: 98 | L8: 4350 | M8: 98 | N8: 20400 | O8: 98 | P8: 40900 | Q8: 98 | R8: 54724 | S8: 98 | T8: 91000 | U8: 98 | V8: 1460 | W8: 98 | Y8: 98 | Z8: 67 | AA8: 197 | AB8: 430 | AC8: - | AD8: - | AE8: - | AF8: - | AG8: - | AH8: 3
A9: 97 | B9: 1160 | C9: 97 | D9: 2360 | E9: 97 | F9: - | G9: 97 | H9: 5300 | I9: 97 | J9: 1170 | K9: 97 | L9: 4400 | M9: 97 | N9: 20600 | O9: 97 | P9: 41200 | Q9: 97 | R9: 54824 | S9: 97 | T9: 92000 | U9: 97 | V9: 1470 | W9: 97 | Y9: 97 | Z9: 68 | AA9: 200 | AB9: 435 | AC9: - | AD9: - | AE9: - | AF9: - | AG9: - | AH9: 4
A10: 96 | B10: 1170 | C10: 96 | D10: 2380 | E10: 96 | F10: 970 | G10: 96 | H10: 5340 | I10: 96 | J10: 1180 | K10: 96 | L10: 4450 | M10: 96 | N10: 20800 | O10: 96 | P10: 41500 | Q10: 96 | R10: 54924 | S10: 96 | T10: 93000 | U10: 96 | V10: 1480 | W10: 96 | Y10: 96 | Z10: 69 | AA10: 203 | AB10: 440 | AC10: - | AD10: - | AE10: - | AF10: - | AG10: - | AH10: 5
A11: 95 | B11: 1180 | C11: 95 | D11: 2400 | E11: 95 | F11: - | G11: 95 | H11: 5370 | I11: 95 | J11: 1190 | K11: 95 | L11: 4500 | M11: 95 | N11: 21000 | O11: 95 | P11: 41800 | Q11: 95 | R11: 55024 | S11: 95 | T11: 93500 | U11: 95 | V11: 1490 | W11: 95 | Y11: 95 | Z11: 70 | AA11: 205 | AB11: 445 | AC11: - | AD11: - | AE11: - | AF11: - | AG11: - | AH11: 6
A12: 94 | B12: 1190 | C12: 94 | D12: 2420 | E12: 94 | F12: 980 | G12: 94 | H12: 5400 | I12: 94 | J12: 1200 | K12: 94 | L12: 4550 | M12: 94 | N12: 21100 | O12: 94 | P12: 42100 | Q12: 94 | R12: 55124 | S12: 94 | T12: 94000 | U12: 94 | V12: 1500 | W12: 94 | Y12: 94 | Z12: 71 | AA12: 207 | AB12: 450 | AC12: - | AD12: - | AE12: - | AF12: - | AG12: - | AH12: 7
A13: 93 | B13: 1200 | C13: 93 | D13: 2440 | E13: 93 | F13: - | G13: 93 | H13: 5440 | I13: 93 | J13: 1210 | K13: 93 | L13: 4600 | M13: 93 | N13: 21200 | O13: 93 | P13: 42400 | Q13: 93 | R13: 55224 | S13: 93 | T13: 94500 | U13: 93 | V13: 1510 | W13: 93 | Y13: 93 | Z13: 72 | AA13: 210 | AB13: 455 | AC13: - | AD13: - | AE13: - | AF13: - | AG13: - | AH13: 8
A14: 92 | B14: 1210 | C14: 92 | D14: 2460 | E14: 92 | F14: 990 | G14: 92 | H14: 5470 | I14: 92 | J14: 1220 | K14: 92 | L14: 4650 | M14: 92 | N14: 21300 | O14: 92 | P14: 42700 | Q14: 92 | R14: 55324 | S14: 92 | T14: 95000 | U14: 92 | V14: 1520 | W14: 92 | Y14: 92 | Z14: 73 | AA14: 213 | AB14: 460 | AC14: - | AD14: - | AE14: - | AF14: - | AG14: - | AH14: 9
A15: 91 | B15: 1220 | C15: 91 | D15: 2480 | E15: 91 | F15: - | G15: 91 | H15: 5500 | I15: 91 | J15: 1230 | K15: 91 | L15: 4700 | M15: 91 | N15: 21400 | O15: 91 | P15: 43000 | Q15: 91 | R15: 55424 | S15: 91 | T15: 95500 | U15: 91 | V15: 1530 | W15: 91 | Y15: 91 | Z15: 74 | AA15: 216 | AB15: 465 | AC15: - | AD15: - | AE15: - | AF15: - | AG15: - | AH15: 10
A16: 90 | B16: 1230 | C16: 90 | D16: 2500 | E16: 90 | F16: 1000 | G16: 90 | H16: 5550 | I16: 90 | J16: 1240 | K16: 90 | L16: 4750 | M16: 90 | N16: 21500 | O16: 90 | P16: 43300 | Q16: 90 | R16: 55524 | S16: 90 | T16: 100000 | U16: 90 | V16: 1540 | W16: 90 | Y16: 90 | Z16: 75 | AA16: 219 | AB16: 470 | AC16: - | AD16: 400 | AE16: 400 | AF16: 400 | AG16: 400 | AH16: 11
A17: 89 | B17: 1240 | C17: 89 | D17: 2520 | E17: 89 | F17: - | G17: 89 | H17: 5600 | I17: 89 | J17: 1250 | K17: 89 | L17: 4800 | M17: 89 | N17: 21600 | O17: 89 | P17: 43600 | Q17: 89 | R17: 55624 | S17: 89 | T17: 100500 | U17: 89 | V17: 1550 | W17: 89 | Y17: 89 | Z17: 76 | AA17: 222 | AB17: 475 | AC17: - | AD17: 410 | AE17: 450 | AF17: 450 | AG17: 450 | AH17: 12
A18: 88 | B18: 1250 | C18: 88 | D18: 2540 | E18: 88 | F18: 1010 | G18: 88 | H18: 5650 | I18: 88 | J18: 1260 | K18: 88 | L18: 4850 | M18: 88 | N18: 21700 | O18: 88 | P18: 43900 | Q18: 88 | R18: 55724 | S18: 88 | T18: 101000 | U18: 88 | V18: 1560 | W18: 88 | Y18: 88 | Z18: 77 | AA18: 225 | AB18: 480 | AC18: - | AD18: 420 | AE18: 500 | AF18: 500 | AG18: 500 | AH18: 13
A19: 87 | B19: 1260 | C19: 87 | D19: 2560 | E19: 87 | F19: - | G19: 87 | H19: 5700 | I19: 87 | J19: 1270 | K19: 87 | L19: 4900 | M19: 87 | N19: 21800 | O19: 87 | P19: 44200 | Q19: 87 | R19: 55824 | S19: 87 | T19: 101500 | U19: 87 | V19: 1570 | W19: 87 | Y19: 87 | Z19: 78 | AA19: 228 | AB19: 485 | AC19: - | AD19: 430 | AE19: 550 | AF19: 550 | AG19: 550 | AH19: 14
A20: 86 | B20: 1270 | C20: 86 | D20: 2580 | E20: 86 | F20: 1020 | G20: 86 | H20: 5750 | I20: 86 | J20: 1280 | K20: 86 | L20: 4950 | M20: 86 | N20: 21900 | O20: 86 | P20: 44500 | Q20: 86 | R20: 55924 | S20: 86 | T20: 102000 | U20: 86 | V20: 1580 | W20: 86 | Y20: 86 | Z20: 79 | AA20: 231 | AB20: 490 | AC20: - | AD20: 440 | AE20: 600 | AF20: 600 | AG20: 600 | AH20: 15
A21: 85 | B21: 1280 | C21: 85 | D21: 2600 | E21: 85 | F21: - | G21: 85 | H21: 5800 | I21: 85 | J21: 1290 | K21: 85 | L21: 5000 | M21: 85 | N21: 22000 | O21: 85 | P21: 44800 | Q21: 85 | R21: 60024 | S21: 85 | T21: 102500 | U21: 85 | V21: 1590 | W21: 85 | Y21: 85 | Z21: 80 | AA21: 234 | AB21: 495 | AC21: 105 | AD21: 450 | AE21: 650 | AF21: 650 | AG21: 650 | AH21: 16
A22: 84 | B22: 1290 | C22: 84 | D22: 2620 | E22: 84 | F22: 1030 | G22: 84 | H22: 5850 | I22: 84 | J22: 1300 | K22: 84 | L22: 5050 | M22: 84 | N22: 22100 | O22: 84 | P22: 45100 | Q22: 84 | R22: 60124 | S22: 84 | T22: 103000 | U22: 84 | V22: 1600 | W22: 84 | Y22: 84 | Z22: 81 | AA22: 237 | AB22: 500 | AC22: - | AD22: 460 | AE22: 700 | AF22: 700 | AG22: 700 | AH22: 17
A23: 83 | B23: 1300 | C23: 83 | D23: 2640 | E23: 83 | F23: - | G23: 83 | H23: 5900 | I23: 83 | J23: 1310 | K23: 83 | L23: 5100 | M23: 83 | N23: 22200 | O23: 83 | P23: 45400 | Q23: 83 | R23: 60224 | S23: 83 | T23: 103500 | U23: 83 | V23: 1610 | W23: 83 | Y23: 83 | Z23: 82 | AA23: 240 | AB23: 505 | AC23: 110 | AD23: 470 | AE23: 750 | AF23: 750 | AG23: 750 | AH23: 18
A24: 82 | B24: 1310 | C24: 82 | D24: 2660 | E24: 82 | F24: 1040 | G24: 82 | H24: 5950 | I24: 82 | J24: 1320 | K24: 82 | L24: 5150 | M24: 82 | N24: 22300 | O24: 82 | P24: 45700 | Q24: 82 | R24: 60324 | S24: 82 | T24: 104000 | U24: 82 | V24: 1620 | W24: 82 | Y24: 82 | Z24: 83 | AA24: 243 | AB24: 510 | AC24: - | AD24: 480 | AE24: 800 | AF24: 800 | AG24: 800 | AH24: 19
A25: 81 | B25: 1320 | C25: 81 | D25: 2680 | E25: 81 | F25: - | G25: 81 | H25: 10000 | I25: 81 | J25: 1330 | K25: 81 | L25: 5200 | M25: 81 | N25: 22400 | O25: 81 | P25: 50000 | Q25: 81 | R25: 60424 | S25: 81 | T25: 104500 | U25: 81 | V25: 1630 | W25: 81 | Y25: 81 | Z25: 84 | AA25: 246 | AB25: 515 | AC25: 115 | AD25: 490 | AE25: 850 | AF25: 850 | AG25: 850 | AH25: 20
A26: 80 | B26: 1330 | C26: 80 | D26: 2700 | E26: 80 | F26: 1050 | G26: 80 | H26: 10050 | I26: 80 | J26: 1340 | K26: 80 | L26: 5250 | M26: 80 | N26: 22500 | O26: 80 | P26: 50300 | Q26: 80 | R26: 60524 | S26: 80 | T26: 105000 | U26: 80 | V26: 1640 | W26: 80 | Y26: 80 | Z26: 85 | AA26: 249 | AB26: 520 | AC26: - | AD26: 500 | AE26: 900 | AF26: 900 | AG26: 900 | AH26: 21
A27: 79 | B27: 1340 | C27: 79 | D27: 2720 | E27: 79 | F27: - | G27: 79 | H27: 10100 | I27: 79 | J27: 1350 | K27: 79 | L27: 5300 | M27: 79 | N27: 22600 | O27: 79 | P27: 50600 | Q27: 79 | R27: 60624 | S27: 79 | T27: 105500 | U27: 79 | V27: 1650 | W27: 79 | Y27: 79 | Z27: 86 | AA27: 252 | AB27: 525 | AC27: 120 | AD27: 510 | AE27: 925 | AF27: 925 | AG27: 925 | AH27: 22
A28: 78 | B28: 1350 | C28: 78 | D28: 2740 | E28: 78 | F28: 1060 | G28: 78 | H28: 10150 | I28: 78 | J28: 1360 | K28: 78 | L28: 5350 | M28: 78 | N28: 22700 | O28: 78 | P28: 50900 | Q28: 78 | R28: 60724 | S28: 78 | T28: 110000 | U28: 78 | V28: 1660 | W28: 78 | Y28: 78 | Z28: 87 | AA28: 255 | AB28: 530 | AC28: - | AD28: 520 | AE28: 950 | AF28: 950 | AG28: 950 | AH28: 23
A29: 77 | B29: 1360 | C29: 77 | D29: 2760 | E29: 77 | F29: - | G29: 77 | H29: 10200 | I29: 77 | J29: 1370 | K29: 77 | L29: 5400 | M29: 77 | N29: 22800 | O29: 77 | P29: 51200 | Q29: 77 | R29: 60824 | S29: 77 | T29: 110500 | U29: 77 | V29: 1670 | W29: 77 | Y29: 77 | Z29: 88 | AA29: 258 | AB29: 535 | AC29: 125 | AD29: 530 | AE29: 975 | AF29: 975 | AG29: 975 | AH29: 24
A30: 76 | B30: 1370 | C30: 76 | D30: 2780 | E30: 76 | F30: 1070 | G30: 76 | H30: 10250 | I30: 76 | J30: 1380 | K30: 76 | L30: 5450 | M30: 76 | N30: 22900 | O30: 76 | P30: 51500 | Q30: 76 | R30: 60924 | S30: 76 | T30: 111000 | U30: 76 | V30: 1680 | W30: 76 | Y30: 76 | Z30: 89 | AA30: 261 | AB30: 540 | AC30: - | AD30: 540 | AE30: 1000 | AF30: 1000 | AG30: 1000 | AH30: 25
A31: 75 | B31: 1380 | C31: 75 | D31: 2800 | E31: 75 | F31: - | G31: 75 | H31: 10300 | I31: 75 | J31: 1390 | K31: 75 | L31: 5500 | M31: 75 | N31: 23000 | O31: 75 | P31: 51800 | Q31: 75 | R31: 61024 | S31: 75 | T31: 111500 | U31: 75 | V31: 1690 | W31: 75 | Y31: 75 | Z31: 90 | AA31: 264 | AB31: 545 | AC31: 130 | AD31: 550 | AE31: 1025 | AF31: 1025 | AG31: 1025 | AH31: 26
A32: 74 | B32: 1390 | C32: 74 | D32: 2820 | E32: 74 | F32: 1080 | G32: 74 | H32: 10350 | I32: 74 | J32: 1400 | K32: 74 | L32: 5550 | M32: 74 | N32: 23200 | O32: 74 | P32: 52100 | Q32: 74 | R32: 61124 | S32: 74 | T32: 112000 | U32: 74 | V32: 1700 | W32: 74 | Y32: 74 | Z32: 91 | AA32: 267 | AB32: 550 | AC32: - | AD32: 560 | AE32: 1050 | AF32: 1050 | AG32: 1050 | AH32: 27
A33: 73 | B33: 1400 | C33: 73 | D33: 2840 | E33: 73 | F33: - | G33: 73 | H33: 10400 | I33: 73 | J33: 1410 | K33: 73 | L33: 5600 | M33: 73 | N33: 23400 | O33: 73 | P33: 52400 | Q33: 73 | R33: 61224 | S33: 73 | T33: 112500 | U33: 73 | V33: 1710 | W33: 73 | Y33: 73 | Z33: 92 | AA33: 270 | AB33: 555 | AC33: 135 | AD33: 570 | AE33: 1075 | AF33: 1075 | AG33: 1075 | AH33: 28
A34: 72 | B34: - | C34: 72 | D34: 2860 | E34: 72 | F34: 1090 | G34: 72 | H34: 10450 | I34: 72 | J34: 1420 | K34: 72 | L34: 5650 | M34: 72 | N34: 23600 | O34: 72 | P34: 52700 | Q34: 72 | R34: 61324 | S34: 72 | T34: 113000 | U34: 72 | V34: 1720 | W34: 72 | Y34: 72 | Z34: 93 | AA34: 273 | AB34: 560 | AC34: - | AD34: 580 | AE34: 1100 | AF34: 1100 | AG34: 1100 | AH34: 29
A35: 71 | B35: 1410 | C35: 71 | D35: 2880 | E35: 71 | F35: - | G35: 71 | H35: 10500 | I35: 71 | J35: 1430 | K35: 71 | L35: 5700 | M35: 71 | N35: 23800 | O35: 71 | P35: 53000 | Q35: 71 | R35: 61424 | S35: 71 | T35: 113500 | U35: 71 | V35: 1730 | W35: 71 | Y35: 71 | Z35: 94 | AA35: 276 | AB35: 565 | AC35: 140 | AD35: 590 | AE35: 1125 | AF35: 1125 | AG35: 1125 | AH35: 30
A36: 70 | B36: - | C36: 70 | D36: 2900 | E36: 70 | F36: 1100 | G36: 70 | H36: 10550 | I36: 70 | J36: 1440 | K36: 70 | L36: 5750 | M36: 70 | N36: 24000 | O36: 70 | P36: 53300 | Q36: 70 | R36: 61524 | S36: 70 | T36: 114000 | U36: 70 | V36: 1740 | W36: 70 | Y36: 70 | Z36: 95 | AA36: 279 | AB36: 570 | AC36: - | AD36: 600 | AE36: 1150 | AF36: 1150 | AG36: 1150 | AH36: 31
A37: 69 | B37: 1420 | C37: 69 | D37: 2920 | E37: 69 | F37: - | G37: 69 | H37: 10600 | I37: 69 | J37: 1450 | K37: 69 | L37: 5800 | M37: 69 | N37: 24200 | O37: 69 | P37: 53600 | Q37: 69 | R37: 61624 | S37: 69 | T37: 114500 | U37: 69 | V37: 1750 | W37: 69 | Y37: 69 | Z37: 96 | AA37: 282 | AB37: 575 | AC37: 145 | AD37: 610 | AE37: 1175 | AF37: 1175 | AG37: 1175 | AH37: 32
A38: 68 | B38: - | C38: 68 | D38: 2940 | E38: 68 | F38: 1110 | G38: 68 | H38: 10650 | I38: 68 | J38: 1460 | K38: 68 | L38: 5850 | M38: 68 | N38: 24400 | O38: 68 | P38: 53900 | Q38: 68 | R38: 61724 | S38: 68 | T38: 115000 | U38: 68 | V38: 1760 | W38: 68 | Y38: 68 | Z38: 97 | AA38: 285 | AB38: 580 | AC38: - | AD38: 620 | AE38: 1200 | AF38: 1200 | AG38: 1200 | AH38: 33
A39: 67 | B39: 1430 | C39: 67 | D39: 2960 | E39: 67 | F39: 1120 | G39: 67 | H39: 10700 | I39: 67 | J39: 1470 | K39: 67 | L39: 5900 | M39: 67 | N39: 24600 | O39: 67 | P39: 54200 | Q39: 67 | R39: 61824 | S39: 67 | T39: 115500 | U39: 67 | V39: 1770 | W39: 67 | Y39: 67 | Z39: 98 | AA39: 288 | AB39: 585 | AC39: 150 | AD39: 630 | AE39: 1225 | AF39: 1225 | AG39: 1225 | AH39: 34
A40: 66 | B40: - | C40: 66 | D40: 2980 | E40: 66 | F40: 1130 | G40: 66 | H40: 10750 | I40: 66 | J40: 1480 | K40: 66 | L40: 5950 | M40: 66 | N40: 24800 | O40: 66 | P40: 54500 | Q40: 66 | R40: 61924 | S40: 66 | T40: 120000 | U40: 66 | V40: 1780 | W40: 66 | Y40: 66 | Z40: 99 | AA40: 291 | AB40: 590 | AC40: - | AD40: 640 | AE40: 1250 | AF40: 1250 | AG40: 1250 | AH40: 35
A41: 65 | B41: 1440 | C41: 65 | D41: 3000 | E41: 65 | F41: 1140 | G41: 65 | H41: 10800 | I41: 65 | J41: 1490 | K41: 65 | L41: 10000 | M41: 65 | N41: 25000 | O41: 65 | P41: 54800 | Q41: 65 | R41: 62024 | S41: 65 | T41: 120500 | U41: 65 | V41: 1790 | W41: 65 | Y41: 65 | Z41: 100 | AA41: 294 | AB41: 595 | AC41: 155 | AD41: 650 | AE41: 1275 | AF41: 1275 | AG41: 1275 | AH41: 36
A42: 64 | B42: - | C42: 64 | D42: 3020 | E42: 64 | F42: 1150 | G42: 64 | H42: 10850 | I42: 64 | J42: 1500 | K42: 64 | L42: 10050 | M42: 64 | N42: 25200 | O42: 64 | P42: 55100 | Q42: 64 | R42: 62124 | S42: 64 | T42: 121000 | U42: 64 | V42: 1800 | W42: 64 | Y42: 64 | Z42: 101 | AA42: 297 | AB42: 600 | AC42: - | AD42: 660 | AE42: 1300 | AF42: 1300 | AG42: 1300 | AH42: 37
A43: 63 | B43: 1450 | C43: 63 | D43: 3040 | E43: 63 | F43: 1160 | G43: 63 | H43: 10900 | I43: 63 | J43: 1510 | K43: 63 | L43: 10100 | M43: 63 | N43: 25400 | O43: 63 | P43: 55400 | Q43: 63 | R43: 62224 | S43: 63 | T43: 121500 | U43: 63 | V43: 1810 | W43: 63 | Y43: 63 | Z43: 102 | AA43: 300 | AB43: 610 | AC43: 160 | AD43: 670 | AE43: 1325 | AF43: 1325 | AG43: 1325 | AH43: 38
A44: 62 | B44: - | C44: 62 | D44: 3060 | E44: 62 | F44: 1170 | G44: 62 | H44: 10950 | I44: 62 | J44: 1520 | K44: 62 | L44: 10150 | M44: 62 | N44: 25600 | O44: 62 | P44: 55700 | Q44: 62 | R44: 62324 | S44: 62 | T44: 122000 | U44: 62 | V44: 1820 | W44: 62 | Y44: 62 | Z44: 103 | AA44: 303 | AB44: 620 | AC44: - | AD44: 680 | AE44: 1350 | AF44: 1350 | AG44: 1350 | AH44: 39
A45: 61 | B45: 1460 | C45: 61 | D45: 3080 | E45: 61 | F45: 1180 | G45: 61 | H45: 11000 | I45: 61 | J45: 1530 | K45: 61 | L45: 10200 | M45: 61 | N45: 25800 | O45: 61 | P45: 60000 | Q45: 61 | R45: 62424 | S45: 61 | T45: 122500 | U45: 61 | V45: 1830 | W45: 61 | Y45: 61 | Z45: 104 | AA45: 306 | AB45: 630 | AC45: 165 | AD45: 690 | AE45: 1375 | AF45: 1375 | AG45: 1375 | AH45: 40
A46: 60 | B46: - | C46: 60 | D46: 3100 | E46: 60 | F46: 1190 | G46: 60 | H46: 11100 | I46: 60 | J46: 1540 | K46: 60 | L46: 10250 | M46: 60 | N46: 30000 | O46: 60 | P46: 60300 | Q46: 60 | R46: 62524 | S46: 60 | T46: 123000 | U46: 60 | V46: 1840 | W46: 60 | Y46: 60 | Z46: 105 | AA46: 309 | AB46: 640 | AC46: - | AD46: 700 | AE46: 1400 | AF46: 1400 | AG46: 1400 | AH46: 41
A47: 59 | B47: 1470 | C47: 59 | D47: 3120 | E47: 59 | F47: 1200 | G47: 59 | H47: 11200 | I47: 59 | J47: 1550 | K47: 59 | L47: 10300 | M47: 59 | N47: 30200 | O47: 59 | P47: 60600 | Q47: 59 | R47: 62624 | S47: 59 | T47: 123500 | U47: 59 | V47: 1850 | W47: 59 | Y47: 59 | Z47: 106 | AA47: 312 | AB47: 650 | AC47: 170 | AD47: 710 | AE47: 1425 | AF47: 1425 | AG47: 1425 | AH47: 42
A48: 58 | B48: - | C48: 58 | D48: 3140 | E48: 58 | F48: 1210 | G48: 58 | H48: 11300 | I48: 58 | J48: 1560 | K48: 58 | L48: 10350 | M48: 58 | N48: 30400 | O48: 58 | P48: 60900 | Q48: 58 | R48: 62724 | S48: 58 | T48: 124000 | U48: 58 | V48: 1860 | W48: 58 | Y48: 58 | Z48: 107 | AA48: 315 | AB48: 660 | AC48: - | AD48: 720 | AE48: 1450 | AF48: 1450 | AG48: 1450 | AH48: 43
A49: 57 | B49: 1480 | C49: 57 | D49: 3160 | E49: 57 | F49: 1220 | G49: 57 | H49: 11400 | I49: 57 | J49: 1570 | K49: 57 | L49: 10400 | M49: 57 | N49: 30600 | O49: 57 | P49: 61200 | Q49: 57 | R49: 62824 | S49: 57 | T49: 124500 | U49: 57 | V49: 1870 | W49: 57 | Y49: 57 | Z49: 108 | AA49: 318 | AB49: 670 | AC49: 175 | AD49: 730 | AE49: 1475 | AF49: 1475 | AG49: 1475 | AH49: 44
A50: 56 | B50: - | C50: 56 | D50: 3180 | E50: 56 | F50: 1230 | G50: 56 | H50: 11500 | I50: 56 | J50: 1580 | K50: 56 | L50: 10450 | M50: 56 | N50: 30800 | O50: 56 | P50: 61500 | Q50: 56 | R50: 62924 | S50: 56 | T50: 125000 | U50: 56 | V50: 1880 | W50: 56 | Y50: 56 | Z50: 109 | AA50: 321 | AB50: 680 | AC50: - | AD50: 740 | AE50: 1500 | AF50: 1500 | AG50: 1500 | AH50: 45
A51: 55 | B51: 1490 | C51: 55 | D51: 3200 | E51: 55 | F51: 1240 | G51: 55 | H51: 11600 | I51: 55 | J51: 1590 | K51: 55 | L51: 10500 | M51: 55 | N51: 31000 | O51: 55 | P51: 61800 | Q51: 55 | R51: 63024 | S51: 55 | T51: 125500 | U51: 55 | V51: 1890 | W51: 55 | Y51: 55 | Z51: 110 | AA51: 324 | AB51: 690 | AC51: 180 | AD51: 750 | AE51: 1525 | AF51: 1525 | AG51: 1525 | AH51: 46
A52: 54 | B52: - | C52: 54 | D52: 3220 | E52: 54 | F52: 1250 | G52: 54 | H52: 11700 | I52: 54 | J52: 1600 | K52: 54 | L52: 10550 | M52: 54 | N52: 31200 | O52: 54 | P52: 62100 | Q52: 54 | R52: 63124 | S52: 54 | T52: 130000 | U52: 54 | V52: 1900 | W52: 54 | Y52: 54 | Z52: 111 | AA52: 327 | AB52: 700 | AC52: - | AD52: 760 | AE52: 1550 | AF52: 1550 | AG52: 1550 | AH52: 47
A53: 53 | B53: 1500 | C53: 53 | D53: 3240 | E53: 53 | F53: 1260 | G53: 53 | H53: 11800 | I53: 53 | J53: 1610 | K53: 53 | L53: 10600 | M53: 53 | N53: 31400 | O53: 53 | P53: 62400 | Q53: 53 | R53: 63224 | S53: 53 | T53: 131000 | U53: 53 | V53: 1910 | W53: 53 | Y53: 53 | Z53: 112 | AA53: 330 | AB53: 710 | AC53: 185 | AD53: 770 | AE53: 1575 | AF53: 1575 | AG53: 1575 | AH53: 48
A54: 52 | B54: - | C54: 52 | D54: 3260 | E54: 52 | F54: 1270 | G54: 52 | H54: 11900 | I54: 52 | J54: 1620 | K54: 52 | L54: 10650 | M54: 52 | N54: 31600 | O54: 52 | P54: 62700 | Q54: 52 | R54: 63324 | S54: 52 | T54: 132000 | U54: 52 | V54: 1920 | W54: 52 | Y54: 52 | Z54: 113 | AA54: 333 | AB54: 720 | AC54: - | AD54: 780 | AE54: 1600 | AF54: 1600 | AG54: 1600 | AH54: 49
A55: 51 | B55: 1510 | C55: 51 | D55: 3280 | E55: 51 | F55: 1280 | G55: 51 | H55: 12000 | I55: 51 | J55: 1630 | K55: 51 | L55: 10700 | M55: 51 | N55: 31800 | O55: 51 | P55: 63000 | Q55: 51 | R55: 63424 | S55: 51 | T55: 133000 | U55: 51 | V55: 1930 | W55: 51 | Y55: 51 | Z55: 114 | AA55: 336 | AB55: 730 | AC55: 190 | AD55: 790 | AE55: 1625 | AF55: 1625 | AG55: 1625 | AH55: 50
A56: 50 | B56: - | C56: 50 | D56: 3300 | E56: 50 | F56: 1290 | G56: 50 | H56: 12100 | I56: 50 | J56: 1640 | K56: 50 | L56: 10750 | M56: 50 | N56: 32000 | O56: 50 | P56: 63300 | Q56: 50 | R56: 63524 | S56: 50 | T56: 134000 | U56: 50 | V56: 1940 | W56: 50 | Y56: 50 | Z56: 115 | AA56: 339 | AB56: 740 | AC56: - | AD56: 800 | AE56: 1650 | AF56: 1650 | AG56: 1650 | AH56: 51
A57: 49 | B57: 1520 | C57: 49 | D57: 3320 | E57: 49 | F57: 1300 | G57: 49 | H57: 12200 | I57: 49 | J57: 1650 | K57: 49 | L57: 10800 | M57: 49 | N57: 32200 | O57: 49 | P57: 63600 | Q57: 49 | R57: 63624 | S57: 49 | T57: 135000 | U57: 49 | V57: 1950 | W57: 49 | Y57: 49 | Z57: 116 | AA57: 342 | AB57: 750 | AC57: 195 | AD57: 810 | AE57: 1675 | AF57: 1675 | AG57: 1675 | AH57: 52
A58: 48 | B58: 1530 | C58: 48 | D58: 3340 | E58: 48 | F58: 1310 | G58: 48 | H58: 12300 | I58: 48 | J58: 1660 | K58: 48 | L58: 10850 | M58: 48 | N58: 32400 | O58: 48 | P58: 63900 | Q58: 48 | R58: 63724 | S58: 48 | T58: 140000 | U58: 48 | V58: 1960 | W58: 48 | Y58: 48 | Z58: 117 | AA58: 345 | AB58: 760 | AC58: - | AD58: 820 | AE58: 1700 | AF58: 1700 | AG58: 1700 | AH58: 53
A59: 47 | B59: 1540 | C59: 47 | D59: 3360 | E59: 47 | F59: 1320 | G59: 47 | H59: 12400 | I59: 47 | J59: 1670 | K59: 47 | L59: 10900 | M59: 47 | N59: 32600 | O59: 47 | P59: 64200 | Q59: 47 | R59: 63824 | S59: 47 | T59: 141000 | U59: 47 | V59: 1970 | W59: 47 | Y59: 47 | Z59: 118 | AA59: 348 | AB59: 770 | AC59: 200 | AD59: 830 | AE59: 1725 | AF59: 1725 | AG59: 1725 | AH59: 54
A60: 46 | B60: 1550 | C60: 46 | D60: 3380 | E60: 46 | F60: 1330 | G60: 46 | H60: 12500 | I60: 46 | J60: 1680 | K60: 46 | L60: 10950 | M60: 46 | N60: 32800 | O60: 46 | P60: 64500 | Q60: 46 | R60: 63924 | S60: 46 | T60: 142000 | U60: 46 | V60: 1980 | W60: 46 | Y60: 46 | Z60: 119 | AA60: 351 | AB60: 780 | AC60: - | AD60: 840 | AE60: 1750 | AF60: 1750 | AG60: 1750 | AH60: 55
A61: 45 | B61: 1560 | C61: 45 | D61: 3400 | E61: 45 | F61: 1340 | G61: 45 | H61: 12600 | I61: 45 | J61: 1690 | K61: 45 | L61: 11000 | M61: 45 | N61: 33000 | O61: 45 | P61: 64800 | Q61: 45 | R61: 64024 | S61: 45 | T61: 143000 | U61: 45 | V61: 1990 | W61: 45 | Y61: 45 | Z61: 120 | AA61: 354 | AB61: 790 | AC61: 205 | AD61: 850 | AE61: 1775 | AF61: 1775 | AG61: 1775 | AH61: 56
A62: 44 | B62: 1570 | C62: 44 | D62: 3420 | E62: 44 | F62: 1350 | G62: 44 | H62: 12700 | I62: 44 | J62: 1700 | K62: 44 | L62: 11100 | M62: 44 | N62: 33200 | O62: 44 | P62: 65100 | Q62: 44 | R62: 64124 | S62: 44 | T62: 144000 | U62: 44 | V62: 2000 | W62: 44 | Y62: 44 | Z62: 121 | AA62: 357 | AB62: 800 | AC62: - | AD62: 860 | AE62: 1800 | AF62: 1800 | AG62: 1800 | AH62: 57
A63: 43 | B63: 1580 | C63: 43 | D63: 3440 | E63: 43 | F63: 1360 | G63: 43 | H63: 12800 | I63: 43 | J63: 1710 | K63: 43 | L63: 11200 | M63: 43 | N63: 33400 | O63: 43 | P63: 65400 | Q63: 43 | R63: 64224 | S63: 43 | T63: 145000 | U63: 43 | V63: 2010 | W63: 43 | Y63: 43 | Z63: 122 | AA63: 360 | AB63: 810 | AC63: 210 | AD63: 870 | AE63: 1825 | AF63: 1825 | AG63: 1825 | AH63: 58
A64: 42 | B64: 1590 | C64: 42 | D64: 3460 | E64: 42 | F64: 1370 | G64: 42 | H64: 12900 | I64: 42 | J64: 1720 | K64: 42 | L64: 11300 | M64: 42 | N64: 33600 | O64: 42 | P64: 65700 | Q64: 42 | R64: 64324 | S64: 42 | T64: 150000 | U64: 42 | V64: 2020 | W64: 42 | Y64: 42 | Z64: 123 | AA64: 363 | AB64: 820 | AC64: - | AD64: 880 | AE64: 1850 | AF64: 1850 | AG64: 1850 | AH64: 59
A65: 41 | B65: 1600 | C65: 41 | D65: 3480 | E65: 41 | F65: 1380 | G65: 41 | H65: 13000 | I65: 41 | J65: 1730 | K65: 41 | L65: 11400 | M65: 41 | N65: 33800 | O65: 41 | P65: 70000 | Q65: 41 | R65: 64424 | S65: 41 | T65: 151000 | U65: 41 | V65: 2030 | W65: 41 | Y65: 41 | Z65: 124 | AA65: 366 | AB65: 830 | AC65: 215 | AD65: 890 | AE65: 1875 | AF65: 1875 | AG65: 1875 | AH65: 60
A66: 40 | B66: 1610 | C66: 40 | D66: 3500 | E66: 40 | F66: 1390 | G66: 40 | H66: 13100 | I66: 40 | J66: 1740 | K66: 40 | L66: 11500 | M66: 40 | N66: 34000 | O66: 40 | P66: 70300 | Q66: 40 | R66: 64524 | S66: 40 | T66: 152000 | U66: 40 | V66: 2040 | W66: 40 | Y66: 40 | Z66: 125 | AA66: 369 | AB66: 840 | AC66: - | AD66: 900 | AE66: 1900 | AF66: 1900 | AG66: 1900 | AH66: 61
A67: 39 | B67: 1620 | C67: 39 | D67: 3520 | E67: 39 | F67: 1400 | G67: 39 | H67: 13200 | I67: 39 | J67: 1750 | K67: 39 | L67: 11600 | M67: 39 | N67: 34200 | O67: 39 | P67: 70600 | Q67: 39 | R67: 64624 | S67: 39 | T67: 153000 | U67: 39 | V67: 2050 | W67: 39 | Y67: 39 | Z67: 126 | AA67: 372 | AB67: 850 | AC67: 220 | AD67: 910 | AE67: 1925 | AF67: 1925 | AG67: 1925 | AH67: 62
A68: 38 | B68: 1630 | C68: 38 | D68: 3540 | E68: 38 | F68: 1410 | G68: 38 | H68: 13300 | I68: 38 | J68: 1760 | K68: 38 | L68: 11700 | M68: 38 | N68: 34400 | O68: 38 | P68: 70900 | Q68: 38 | R68: 64724 | S68: 38 | T68: 154000 | U68: 38 | V68: 2060 | W68: 38 | Y68: 38 | Z68: 127 | AA68: 375 | AB68: 860 | AC68: - | AD68: 920 | AE68: 1950 | AF68: 1950 | AG68: 1950 | AH68: 63
A69: 37 | B69: 1640 | C69: 37 | D69: 3560 | E69: 37 | F69: 1420 | G69: 37 | H69: 13400 | I69: 37 | J69: 1770 | K69: 37 | L69: 11800 | M69: 37 | N69: 34600 | O69: 37 | P69: 71200 | Q69: 37 | R69: 64824 | S69: 37 | T69: 155000 | U69: 37 | V69: 2070 | W69: 37 | Y69: 37 | Z69: 128 | AA69: 378 | AB69: 870 | AC69: 225 | AD69: 930 | AE69: 1975 | AF69: 1975 | AG69: 1975 | AH69: 64
A70: 36 | B70: 1650 | C70: 36 | D70: 3580 | E70: 36 | F70: 1430 | G70: 36 | H70: 13500 | I70: 36 | J70: 1780 | K70: 36 | L70: 11900 | M70: 36 | N70: 34800 | O70: 36 | P70: 71500 | Q70: 36 | R70: 64924 | S70: 36 | T70: 160000 | U70: 36 | V70: 2080 | W70: 36 | Y70: 36 | Z70: 129 | AA70: 381 | AB70: 880 | AC70: - | AD70: 940 | AE70: 2000 | AF70: 2000 | AG70: 2000 | AH70: 65
A71: 35 | B71: 1660 | C71: 35 | D71: 3600 | E71: 35 | F71: 1440 | G71: 35 | H71: 13600 | I71: 35 | J71: 1790 | K71: 35 | L71: 12000 | M71: 35 | N71: 35000 | O71: 35 | P71: 71800 | Q71: 35 | R71: 65024 | S71: 35 | T71: 161000 | U71: 35 | V71: 2090 | W71: 35 | Y71: 35 | Z71: 130 | AA71: 384 | AB71: 890 | AC71: 230 | AD71: 950 | AE71: 2025 | AF71: 2025 | AG71: 2025 | AH71: 66
A72: 34 | B72: 1670 | C72: 34 | D72: 3620 | E72: 34 | F72: 1450 | G72: 34 | H72: 13700 | I72: 34 | J72: 1800 | K72: 34 | L72: 12200 | M72: 34 | N72: 35200 | O72: 34 | P72: 72100 | Q72: 34 | R72: 65124 | S72: 34 | T72: 162000 | U72: 34 | V72: 2100 | W72: 34 | Y72: 34 | Z72: 131 | AA72: 387 | AB72: 900 | AC72: - | AD72: 960 | AE72: 2050 | AF72: 2050 | AG72: 2050 | AH72: 67
A73: 33 | B73: 1680 | C73: 33 | D73: 3640 | E73: 33 | F73: 1460 | G73: 33 | H73: 13800 | I73: 33 | J73: 1810 | K73: 33 | L73: 12400 | M73: 33 | N73: 35400 | O73: 33 | P73: 72400 | Q73: 33 | R73: 65224 | S73: 33 | T73: 163000 | U73: 33 | V73: 2110 | W73: 33 | Y73: 33 | Z73: 132 | AA73: 390 | AB73: 910 | AC73: 235 | AD73: 970 | AE73: 2075 | AF73: 2075 | AG73: 2075 | AH73: 68
A74: 32 | B74: 1690 | C74: 32 | D74: 3660 | E74: 32 | F74: 1470 | G74: 32 | H74: 13900 | I74: 32 | J74: 1820 | K74: 32 | L74: 12600 | M74: 32 | N74: 35600 | O74: 32 | P74: 72700 | Q74: 32 | R74: 65324 | S74: 32 | T74: 164000 | U74: 32 | V74: 2120 | W74: 32 | Y74: 32 | Z74: 133 | AA74: 393 | AB74: 920 | AC74: - | AD74: 980 | AE74: 2100 | AF74: 2100 | AG74: 2100 | AH74: 69
A75: 31 | B75: 1700 | C75: 31 | D75: 3680 | E75: 31 | F75: 1480 | G75: 31 | H75: 14000 | I75: 31 | J75: 1830 | K75: 31 | L75: 12800 | M75: 31 | N75: 35800 | O75: 31 | P75: 73000 | Q75: 31 | R75: 65424 | S75: 31 | T75: 165000 | U75: 31 | V75: 2130 | W75: 31 | Y75: 31 | Z75: 134 | AA75: 397 | AB75: 930 | AC75: 240 | AD75: 990 | AE75: 2125 | AF75: 2200 | AG75: 2125 | AH75: 70
A76: 30 | B76: 1710 | C76: 30 | D76: 3700 | E76: 30 | F76: 1490 | G76: 30 | H76: 14100 | I76: 30 | J76: 1840 | K76: 30 | L76: 13000 | M76: 30 | N76: 40000 | O76: 30 | P76: 73500 | Q76: 30 | R76: 65524 | S76: 30 | T76: 170000 | U76: 30 | V76: 2140 | W76: 30 | Y76: 30 | Z76: 135 | AA76: 400 | AB76: 940 | AC76: - | AD76: 1000 | AE76: 2150 | AF76: 2300 | AG76: 2150 | AH76: 71
A77: 29 | B77: 1720 | C77: 29 | D77: 3720 | E77: 29 | F77: 1500 | G77: 29 | H77: 14200 | I77: 29 | J77: 1850 | K77: 29 | L77: 13200 | M77: 29 | N77: 40200 | O77: 29 | P77: 74000 | Q77: 29 | R77: 65624 | S77: 29 | T77: 171000 | U77: 29 | V77: 2150 | W77: 29 | Y77: 29 | Z77: 136 | AA77: 410 | AB77: 950 | AC77: 245 | AD77: 1010 | AE77: 2175 | AF77: 2400 | AG77: 2175 | AH77: 72
A78: 28 | B78: 1730 | C78: 28 | D78: 3740 | E78: 28 | F78: 1510 | G78: 28 | H78: 14300 | I78: 28 | J78: 1860 | K78: 28 | L78: 13400 | M78: 28 | N78: 40400 | O78: 28 | P78: 74500 | Q78: 28 | R78: 65724 | S78: 28 | T78: 172000 | U78: 28 | V78: 2160 | W78: 28 | Y78: 28 | Z78: 137 | AA78: 420 | AB78: 960 | AC78: - | AD78: 1020 | AE78: 2200 | AF78: 2500 | AG78: 2200 | AH78: 73
A79: 27 | B79: 1740 | C79: 27 | D79: 3760 | E79: 27 | F79: 1520 | G79: 27 | H79: 14400 | I79: 27 | J79: 1870 | K79: 27 | L79: 13600 | M79: 27 | N79: 40600 | O79: 27 | P79: 75000 | Q79: 27 | R79: 65824 | S79: 27 | T79: 173000 | U79: 27 | V79: 2170 | W79: 27 | Y79: 27 | Z79: 138 | AA79: 430 | AB79: 970 | AC79: 250 | AD79: 1030 | AE79: 2250 | AF79: 2600 | AG79: 2250 | AH79: 74
A80: 26 | B80: 1750 | C80: 26 | D80: 3780 | E80: 26 | F80: 1530 | G80: 26 | H80: 14500 | I80: 26 | J80: 1880 | K80: 26 | L80: 13800 | M80: 26 | N80: 40800 | O80: 26 | P80: 75500 | Q80: 26 | R80: 65924 | S80: 26 | T80: 174000 | U80: 26 | V80: 2180 | W80: 26 | Y80: 26 | Z80: 139 | AA80: 440 | AB80: 980 | AC80: - | AD80: 1040 | AE80: 2300 | AF80: 2700 | AG80: 2300 | AH80: 75
A81: 25 | B81: 1760 | C81: 25 | D81: 3800 | E81: 25 | F81: 1540 | G81: 25 | H81: 14600 | I81: 25 | J81: 1890 | K81: 25 | L81: 14000 | M81: 25 | N81: 41000 | O81: 25 | P81: 80000 | Q81: 25 | R81: 70024 | S81: 25 | T81: 175000 | U81: 25 | V81: 2190 | W81: 25 | Y81: 25 | Z81: 140 | AA81: 450 | AB81: 990 | AC81: 255 | AD81: 1050 | AE81: 2350 | AF81: 2800 | AG81: 2350 | AH81: 76
A82: 24 | B82: 1770 | C82: 24 | D82: 3850 | E82: 24 | F82: 1550 | G82: 24 | H82: 14700 | I82: 24 | J82: 1900 | K82: 24 | L82: 14200 | M82: 24 | N82: 41200 | O82: 24 | P82: 80500 | Q82: 24 | R82: 70124 | S82: 24 | T82: 180000 | U82: 24 | V82: 2200 | W82: 24 | Y82: 24 | Z82: 142 | AA82: 460 | AB82: 1000 | AC82: - | AD82: 1060 | AE82: 2400 | AF82: 2900 | AG82: 2400 | AH82: 77
A83: 23 | B83: 1780 | C83: 23 | D83: 3900 | E83: 23 | F83: 1560 | G83: 23 | H83: 14800 | I83: 23 | J83: 1910 | K83: 23 | L83: 14400 | M83: 23 | N83: 41400 | O83: 23 | P83: 81000 | Q83: 23 | R83: 70224 | S83: 23 | T83: 181000 | U83: 23 | V83: 2210 | W83: 23 | Y83: 23 | Z83: 144 | AA83: 470 | AB83: 1015 | AC83: 260 | AD83: 1070 | AE83: 2450 | AF83: 3000 | AG83: 2450 | AH83: 78
A84: 22 | B84: 1790 | C84: 22 | D84: 3950 | E84: 22 | F84: 1570 | G84: 22 | H84: 14900 | I84: 22 | J84: 1920 | K84: 22 | L84: 14600 | M84: 22 | N84: 41600 | O84: 22 | P84: 81500 | Q84: 22 | R84: 70324 | S84: 22 | T84: 182000 | U84: 22 | V84: 2220 | W84: 22 | Y84: 22 | Z84: 146 | AA84: 480 | AB84: 1030 | AC84: - | AD84: 1080 | AE84: 2500 | AF84: 3100 | AG84: 2500 | AH84: 79
A85: 21 | B85: 1800 | C85: 21 | D85: 4000 | E85: 21 | F85: 1580 | G85: 21 | H85: 15000 | I85: 21 | J85: 1930 | K85: 21 | L85: 14800 | M85: 21 | N85: 41800 | O85: 21 | P85: 82000 | Q85: 21 | R85: 70424 | S85: 21 | T85: 183000 | U85: 21 | V85: 2230 | W85: 21 | Y85: 21 | Z85: 148 | AA85: 490 | AB85: 1045 | AC85: 265 | AD85: 1090 | AE85: 2550 | AF85: 3200 | AG85: 2550 | AH85: 80
A86: 20 | B86: 1810 | C86: 20 | D86: 4050 | E86: 20 | F86: 1590 | G86: 20 | H86: 15100 | I86: 20 | J86: 1940 | K86: 20 | L86: 15000 | M86: 20 | N86: 42000 | O86: 20 | P86: 82500 | Q86: 20 | R86: 70524 | S86: 20 | T86: 184000 | U86: 20 | V86: 2240 | W86: 20 | Y86: 20 | Z86: 150 | AA86: 500 | AB86: 1060 | AC86: - | AD86: 1100 | AE86: 2600 | AF86: 3300 | AG86: 2600 | AH86: 81
A87: 19 | B87: 1820 | C87: 19 | D87: 4100 | E87: 19 | F87: 1600 | G87: 19 | H87: 15200 | I87: 19 | J87: 1950 | K87: 19 | L87: 15200 | M87: 19 | N87: 42200 | O87: 19 | P87: 83000 | Q87: 19 | R87: 70624 | S87: 19 | T87: 185000 | U87: 19 | V87: 2250 | W87: 19 | Y87: 19 | Z87: 152 | AA87: 505 | AB87: 1075 | AC87: 270 | AD87: 1110 | AE87: 2650 | AF87: 3400 | AG87: 2650 | AH87: 82
A88: 18 | B88: 1830 | C88: 18 | D88: 4150 | E88: 18 | F88: 1610 | G88: 18 | H88: 15300 | I88: 18 | J88: 1960 | K88: 18 | L88: 15400 | M88: 18 | N88: 42400 | O88: 18 | P88: 83500 | Q88: 18 | R88: 70724 | S88: 18 | T88: 190000 | U88: 18 | V88: 2260 | W88: 18 | Y88: 18 | Z88: 154 | AA88: 510 | AB88: 1090 | AC88: - | AD88: 1120 | AE88: 2700 | AF88: 3500 | AG88: 2700 | AH88: 83
A89: 17 | B89: 1840 | C89: 17 | D89: 4200 | E89: 17 | F89: 1620 | G89: 17 | H89: 15400 | I89: 17 | J89: 1970 | K89: 17 | L89: 15600 | M89: 17 | N89: 42600 | O89: 17 | P89: 84000 | Q89: 17 | R89: 70824 | S89: 17 | T89: 191000 | U89: 17 | V89: 2270 | W89: 17 | Y89: 17 | Z89: 156 | AA89: 515 | AB89: 1105 | AC89: 275 | AD89: 1130 | AE89: 2800 | AF89: 3600 | AG89: 2800 | AH89: 84
A90: 16 | B90: 1850 | C90: 16 | D90: 4250 | E90: 16 | F90: 1630 | G90: 16 | H90: 15500 | I90: 16 | J90: 1980 | K90: 16 | L90: 15800 | M90: 16 | N90: 42800 | O90: 16 | P90: 84500 | Q90: 16 | R90: 70924 | S90: 16 | T90: 192000 | U90: 16 | V90: 2280 | W90: 16 | Y90: 16 | Z90: 158 | AA90: 520 | AB90: 1120 | AC90: - | AD90: 1140 | AE90: 2900 | AF90: 3700 | AG90: 2900 | AH90: 85
A91: 15 | B91: 1860 | C91: 15 | D91: 4300 | E91: 15 | F91: 1640 | G91: 15 | H91: 15600 | I91: 15 | J91: 1990 | K91: 15 | L91: 20000 | M91: 15 | N91: 43000 | O91: 15 | P91: 85000 | Q91: 15 | R91: 71024 | S91: 15 | T91: 193000 | U91: 15 | V91: 2290 | W91: 15 | Y91: 15 | Z91: 160 | AA91: 525 | AB91: 1135 | AC91: 280 | AD91: 1150 | AE91: 3000 | AF91: 3800 | AG91: 3000 | AH91: 86
A92: 14 | B92: 1870 | C92: 14 | D92: 4350 | E92: 14 | F92: 1650 | G92: 14 | H92: 15700 | I92: 14 | J92: 2000 | K92: 14 | L92: 20200 | M92: 14 | N92: 43200 | O92: 14 | P92: 85500 | Q92: 14 | R92: 71124 | S92: 14 | T92: 194000 | U92: 14 | V92: 2300 | W92: 14 | Y92: 14 | Z92: 162 | AA92: 530 | AB92: 1150 | AC92: - | AD92: 1160 | AE92: 3100 | AF92: 3900 | AG92: 3100 | AH92: 87
A93: 13 | B93: 1880 | C93: 13 | D93: 4400 | E93: 13 | F93: 1660 | G93: 13 | H93: 15800 | I93: 13 | J93: 2010 | K93: 13 | L93: 20400 | M93: 13 | N93: 43400 | O93: 13 | P93: 90000 | Q93: 13 | R93: 71224 | S93: 13 | T93: 195000 | U93: 13 | V93: 2310 | W93: 13 | Y93: 13 | Z93: 164 | AA93: 535 | AB93: 1165 | AC93: 285 | AD93: 1170 | AE93: 3200 | AF93: 4000 | AG93: 3200 | AH93: 88
A94: 12 | B94: 1890 | C94: 12 | D94: 4450 | E94: 12 | F94: 1670 | G94: 12 | H94: 15900 | I94: 12 | J94: 2020 | K94: 12 | L94: 20600 | M94: 12 | N94: 43600 | O94: 12 | P94: 90500 | Q94: 12 | R94: 71324 | S94: 12 | T94: 200000 | U94: 12 | V94: 2320 | W94: 12 | Y94: 12 | Z94: 166 | AA94: 540 | AB94: 1180 | AC94: - | AD94: 1180 | AE94: 3300 | AF94: 4100 | AG94: 3300 | AH94: 89
A95: 11 | B95: 1900 | C95: 11 | D95: 4500 | E95: 11 | F95: 1680 | G95: 11 | H95: 20000 | I95: 11 | J95: 2030 | K95: 11 | L95: 20800 | M95: 11 | N95: 43800 | O95: 11 | P95: 91000 | Q95: 11 | R95: 71424 | S95: 11 | T95: 201000 | U95: 11 | V95: 2330 | W95: 11 | Y95: 11 | Z95: 168 | AA95: 550 | AB95: 1195 | AC95: 290 | AD95: 1190 | AE95: 3400 | AF95: 4200 | AG95: 3400 | AH95: 90
A96: 10 | B96: 1920 | C96: 10 | D96: 4550 | E96: 10 | F96: 1690 | G96: 10 | H96: 20100 | I96: 10 | J96: 2040 | K96: 10 | L96: 21000 | M96: 10 | N96: 44000 | O96: 10 | P96: 91500 | Q96: 10 | R96: 71524 | S96: 10 | T96: 202000 | U96: 10 | V96: 2340 | W96: 10 | Y96: 10 | Z96: 170 | AA96: 560 | AB96: 1210 | AC96: - | AD96: 1200 | AE96: 3500 | AF96: 4300 | AG96: 3500 | AH96: 91
A97: 9 | B97: 1940 | C97: 9 | D97: 4600 | E97: 9 | F97: 1700 | G97: 9 | H97: 20200 | I97: 9 | J97: 2050 | K97: 9 | L97: 21200 | M97: 9 | N97: 44200 | O97: 9 | P97: 92000 | Q97: 9 | R97: 71624 | S97: 9 | T97: 203000 | U97: 9 | V97: 2350 | W97: 9 | Y97: 9 | Z97: 172 | AA97: 570 | AB97: 1225 | AC97: 295 | AD97: 1220 | AE97: 3600 | AF97: 4500 | AG97: 3600 | AH97: 92
A98: 8 | B98: 1960 | C98: 8 | D98: 4650 | E98: 8 | F98: 1710 | G98: 8 | H98: 20300 | I98: 8 | J98: 2060 | K98: 8 | L98: 21400 | M98: 8 | N98: 44400 | O98: 8 | P98: 92500 | Q98: 8 | R98: 71724 | S98: 8 | T98: 204000 | U98: 8 | V98: 2360 | W98: 8 | Y98: 8 | Z98: 174 | AA98: 580 | AB98: 1240 | AC98: 300 | AD98: 1240 | AE98: 3700 | AF98: 4400 | AG98: 3700 | AH98: 93
A99: 7 | B99: 1980 | C99: 7 | D99: 4700 | E99: 7 | F99: 1720 | G99: 7 | H99: 20400 | I99: 7 | J99: 2070 | K99: 7 | L99: 21600 | M99: 7 | N99: 44600 | O99: 7 | P99: 93000 | Q99: 7 | R99: 71824 | S99: 7 | T99: 205000 | U99: 7 | V99: 2370 | W99: 7 | Y99: 7 | Z99: 176 | AA99: 590 | AB99: 1255 | AC99: 310 | AD99: 1260 | AE99: 3800 | AF99: 4600 | AG99: 3800 | AH99: 94
A100: 6 | B100: 2000 | C100: 6 | D100: 4750 | E100: 6 | F100: 1730 | G100: 6 | H100: 20500 | I100: 6 | J100: 2080 | K100: 6 | L100: 21800 | M100: 6 | N100: 44800 | O100: 6 | P100: 93500 | Q100: 6 | R100: 71924 | S100: 6 | T100: 210000 | U100: 6 | V100: 2380 | W100: 6 | Y100: 6 | Z100: 178 | AA100: 600 | AB100: 1270 | AC100: 320 | AD100: 1280 | AE100: 3900 | AF100: 4700 | AG100: 3900 | AH100: 95
A101: 5 | B101: 2020 | C101: 5 | D101: 4800 | E101: 5 | F101: 1740 | G101: 5 | H101: 20600 | I101: 5 | J101: 2090 | K101: 5 | L101: 22000 | M101: 5 | N101: 45000 | O101: 5 | P101: 94000 | Q101: 5 | R101: 72024 | S101: 5 | T101: 211000 | U101: 5 | V101: 2390 | W101: 5 | Y101: 5 | Z101: 180 | AA101: 610 | AB101: 1285 | AC101: 330 | AD101: 1300 | AE101: 4000 | AF101: 4800 | AG101: 4000 | AH101: 96
A102: 4 | B102: 2040 | C102: 4 | D102: 4850 | E102: 4 | F102: 1750 | G102: 4 | H102: 20700 | I102: 4 | J102: 2100 | K102: 4 | L102: 22200 | M102: 4 | N102: 45200 | O102: 4 | P102: 94500 | Q102: 4 | R102: 72124 | S102: 4 | T102: 212000 | U102: 4 | V102: 2400 | W102: 4 | Y102: 4 | Z102: 182 | AA102: 620 | AB102: 1300 | AC102: 340 | AD102: 1320 | AE102: 4100 | AF102: 4900 | AG102: 4100 | AH102: 97
A103: 3 | B103: 2060 | C103: 3 | D103: 4900 | E103: 3 | F103: 1760 | G103: 3 | H103: 20800 | I103: 3 | J103: 2110 | K103: 3 | L103: 22400 | M103: 3 | N103: 45400 | O103: 3 | P103: 95000 | Q103: 3 | R103: 72224 | S103: 3 | T103: 213000 | U103: 3 | V103: 2410 | W103: 3 | Y103: 3 | Z103: 184 | AA103: 630 | AB103: 1315 | AC103: 350 | AD103: 1340 | AE103: 4200 | AF103: 5000 | AG103: 4200 | AH103: 98
A104: 2 | B104: 2080 | C104: 2 | D104: 4950 | E104: 2 | F104: 1770 | G104: 2 | H104: 20900 | I104: 2 | J104: 2120 | K104: 2 | L104: 22600 | M104: 2 | N104: 45600 | O104: 2 | P104: 95500 | Q104: 2 | R104: 72324 | S104: 2 | T104: 214000 | U104: 2 | V104: 2420 | W104: 2 | Y104: 2 | Z104: 186 | AA104: 640 | AB104: 1330 | AC104: 360 | AD104: 1360 | AE104: 4300 | AF104: 5100 | AG104: 4300 | AH104: 99
A105: 1 | B105: 2100 | C105: 1 | D105: 5000 | E105: 1 | F105: 1780 | G105: 1 | H105: 21000 | I105: 1 | J105: 2130 | K105: 1 | L105: 22800 | M105: 1 | N105: 45800 | O105: 1 | P105: 100000 | Q105: 1 | R105: 72424 | S105: 1 | T105: 215000 | U105: 1 | V105: 2430 | W105: 1 | Y105: 1 | Z105: 188 | AA105: 650 | AB105: 1345 | AC105: 370 | AD105: 1380 | AE105: 4400 | AF105: 5200 | AG105: 4400 | AH105: 100
B106: DNS | D106: DNS | F106: DNS | H106: DNS | J106: DNS | L106: DNS | N106: DNS | P106: DNS | R106: DNS | T106: DNS | V106: DNS | X106: DNS | Y106: 0 | Z106: DNS | AA106: DNS | AB106: DNS | AC106: DNS | AD106: DNS | AE106: DNS | AF106: DNS | AH106: 0
B107: DNF | D107: DNF | F107: DNF | H107: DNF | J107: DNF | L107: DNF | N107: DNF | P107: DNF | R107: DNF | T107: DNF | V107: DNF | X107: DNF | Y107: 0 | Z107: NM | AA107: NM | AB107: NM | AC107: NM | AD107: NM | AE107: NM | AF107: NM | AH107: 0
B108: NM | D108: NM | F108: NM | H108: NM | J108: NM | L108: NM | N108: NM | P108: NM | R108: NM | T108: NM | V108: NM | X108: NM | Y108: 0 | Z108: DQ | AA108: DQ | AB108: DQ | AC108: DQ | AD108: DQ | AE108: DQ | AF108: DQ | AH108: 0
B109: DQ | D109: DQ | F109: DQ | H109: DQ | J109: DQ | L109: DQ | N109: DQ | P109: DQ | R109: DQ | T109: DQ | V109: DQ | X109: DQ | Y109: 0 | AH109: 0

Sheet 75m.Eng
A1: Türkiye Atletizm Federasyonu İzmir Atletizm İl Temsilciliği
A2: Naili Moran Türkiye Atletizm Şampiyonası
A3: Yarışma : | D3: 75 Metre Engelli
A4: Kategori : | D4: 13 Yaş Kızlar | M4: Tarih-Saat : | N4: 14 Haziran 2014 - 10:15
N5: 41804.58027
A6: Sıra No | B6: Göğüs No | C6: Doğum Tarihi Gün/Ay/Yıl | D6: Adı ve Soyadı | E6: İLİ | F6: Derece | G6: Puan | I6: 1. SERİ | M6: Rüzgar:
I7: Sıra No | J7: Formül | K7: Göğüs No | L7: Doğum Tarihi | M7: Adı ve Soyadı | N7: İLİ | O7: Derece | P7: El Kronometre | Q7: Seri Geliş
A8: 1 | B8: 671 | C8: 2001-01-25 | D8: ALMİNA MALKOÇ | E8: TEKİRDAĞ | F8: 1279 | G8: 86 | I8: 1 | J8: 75M.ENG-1-1
A9: 2 | B9: 562 | C9: 2001-06-20 | D9: MELİS ÇELİKTEN | E9: MUĞLA | F9: 1302 | G9: 83 | I9: 2 | J9: 75M.ENG-1-2 | K9: 561 | L9: 2001-01-01 | M9: ESRA DİKMENTEPE | N9: MUĞLA | O9: 1434
A10: 3 | B10: 109 | C10: 2001-01-01 | D10: GİZEM AKGÖZ | E10: BALIKESİR | F10: 1365 | G10: 77 | I10: 3 | J10: 75M.ENG-1-3 | K10: 671 | L10: 2001-01-25 | M10: ALMİNA MALKOÇ | N10: TEKİRDAĞ | O10: 1279
A11: 4 | B11: 561 | C11: 2001-01-01 | D11: ESRA DİKMENTEPE | E11: MUĞLA | F11: 1434 | G11: 70 | I11: 4 | J11: 75M.ENG-1-4 | K11: 109 | L11: 2001-01-01 | M11: GİZEM AKGÖZ | N11: BALIKESİR | O11: 1365
A12: 5 | B12: 77 | C12: 2001-06-21 | D12: DERYA BİLGİ | E12: AYDIN | F12: 1457 | G12: 68 | I12: 5 | J12: 75M.ENG-1-5 | K12: 475 | L12: 2001-03-12 | M12: İREM BABADAĞ | N12: KIRIKKALE | O12: 1705
A13: 6 | B13: 399 | C13: 2001-08-16 | D13: BEGÜM ARICI | E13: İZMİR | F13: 1458 | G13: 68 | I13: 6 | J13: 75M.ENG-1-6 | K13: 562 | L13: 2001-06-20 | M13: MELİS ÇELİKTEN | N13: MUĞLA | O13: 1302
A14: 7 | B14: 5 | C14: 2001-01-01 | D14: M.İNCİ GÜRBÜZ | E14: ADANA | F14: 1482 | G14: 65 | I14: 7 | J14: 75M.ENG-1-7 | K14: 339 | L14: 2001-04-07 | M14: HAVVA GICIR | N14: ISPARTA | O14: 1585
A15: 8 | B15: 677 | C15: 2001-11-27 | D15: MELEK ÇOBAN | E15: TEKİRDAĞ | F15: 1554 | G15: 58 | I15: 8 | J15: 75M.ENG-1-8 | K15: 677 | L15: 2001-11-27 | M15: MELEK ÇOBAN | N15: TEKİRDAĞ | O15: 1554
A16: 9 | B16: 339 | C16: 2001-04-07 | D16: HAVVA GICIR | E16: ISPARTA | F16: 1585 | G16: 55 | I16: 2. SERİ | M16: Rüzgar:
A17: 10 | B17: 258 | C17: 2001-06-09 | D17: BERİVAN ULUÇAY | E17: ERZURUM | F17: 1677 | G17: 46 | I17: Sıra No | J17: Formül | K17: Göğüs No | L17: Doğum Tarihi | M17: Adı ve Soyadı | N17: İLİ | O17: Derece | P17: El Kronometre | Q17: Seri Geliş
A18: 11 | B18: 475 | C18: 2001-03-12 | D18: İREM BABADAĞ | E18: KIRIKKALE | F18: 1705 | G18: 43 | I18: 1 | J18: 75M.ENG-2-1
A19: 12 | B19: 302 | C19: 2001-04-15 | D19: YELDA YAĞMUR | E19: GİRESUN | F19: 1712 | G19: 42 | I19: 2 | J19: 75M.ENG-2-2 | K19: 5 | L19: 2001-01-01 | M19: M.İNCİ GÜRBÜZ | N19: ADANA | O19: 1482
A20: 13 | B20: 493 | C20: 2001-05-25 | D20: BAHAR KARACA | E20: KIRŞEHİR | F20: 1884 | G20: 25 | I20: 3 | J20: 75M.ENG-2-3 | K20: 258 | L20: 2001-06-09 | M20: BERİVAN ULUÇAY | N20: ERZURUM | O20: 1677
A21: - | B21: 298 | C21: 2001-10-02 | D21: DİLARA KÜÇÜK | E21: GİRESUN | F21: DNF | G21: 0 | I21: 4 | J21: 75M.ENG-2-4 | K21: 399 | L21: 2001-08-16 | M21: BEGÜM ARICI | N21: İZMİR | O21: 1458
I22: 5 | J22: 75M.ENG-2-5 | K22: 77 | L22: 2001-06-21 | M22: DERYA BİLGİ | N22: AYDIN | O22: 1457
I23: 6 | J23: 75M.ENG-2-6 | K23: 493 | L23: 2001-05-25 | M23: BAHAR KARACA | N23: KIRŞEHİR | O23: 1884
I24: 7 | J24: 75M.ENG-2-7 | K24: 298 | L24: 2001-10-02 | M24: DİLARA KÜÇÜK | N24: GİRESUN | O24: DNF
I25: 8 | J25: 75M.ENG-2-8 | K25: 302 | L25: 2001-04-15 | M25: YELDA YAĞMUR | N25: GİRESUN | O25: 1712
I26: 3. SERİ | M26: Rüzgar:
I27: Sıra No | J27: Formül | K27: Göğüs No | L27: Doğum Tarihi | M27: Adı ve Soyadı | N27: İLİ | O27: Derece | P27: El Kronometre | Q27: Seri Geliş
I28: 1 | J28: 75M.ENG-3-1
I29: 2 | J29: 75M.ENG-3-2
I30: 3 | J30: 75M.ENG-3-3
I31: 4 | J31: 75M.ENG-3-4
I32: 5 | J32: 75M.ENG-3-5
I33: 6 | J33: 75M.ENG-3-6
I34: 7 | J34: 75M.ENG-3-7
I35: 8 | J35: 75M.ENG-3-8
I36: 4. SERİ | M36: Rüzgar:
I37: Sıra No | J37: Formül | K37: Göğüs No | L37: Doğum Tarihi | M37: Adı ve Soyadı | N37: İLİ | O37: Derece | P37: El Kronometre | Q37: Seri Geliş
I38: 1 | J38: 75M.ENG-4-1
I39: 2 | J39: 75M.ENG-4-2
I40: 3 | J40: 75M.ENG-4-3
I41: 4 | J41: 75M.ENG-4-4
I42: 5 | J42: 75M.ENG-4-5
I43: 6 | J43: 75M.ENG-4-6
I44: 7 | J44: 75M.ENG-4-7
I45: 8 | J45: 75M.ENG-4-8
A47: Müsabakalar Direktörü | E47: Baş Hakem | F47: Lider | H47: Sekreter | M47: Hakem | N47: Hakem | P47: Hakem
A65536: CELAL KAYAÖZ

Sheet Gülle
A1: Türkiye Atletizm Federasyonu İzmir Atletizm İl Temsilciliği
A2: Naili Moran Türkiye Atletizm Şampiyonası
A3: Yarışma : | D3: Gülle Atma
A4: Kategori : | D4: 13 Yaş Kızlar | F4: Ağırlık | G4: 2 kg. | I4: Tarih-Saat : | K4: 15 Haziran 2014 - 11:45
J5: 41804.59649
A6: SIRA NO | C6: GÖĞÜS NO | D6: DOĞUM TARİHİ Gün/Ay/Yıl | E6: ADI VE SOYADI | F6: İLİ | G6: A T M A L A R | J6: SONUÇ | K6: PUAN | L6: KLASMAN
G7: 1 | H7: 2 | I7: 3
A8: 1 | B8: GÜLLE-10 | C8: 105 | D8: 2001-02-28 | E8: SENA KAYNAR | F8: BALIKESİR | G8: 968 | H8: 968 | I8: 916 | J8: 968 | K8: 67
A9: 2 | B9: GÜLLE-1 | C9: 492 | D9: 2001-06-08 | E9: ASUDE NİSA ÜNAL | F9: KIRŞEHİR | G9: X | H9: 907 | I9: 888 | J9: 907 | K9: 61
A10: 3 | B10: GÜLLE-2 | C10: 494 | D10: 2001-06-06 | E10: Gamze ŞİMŞEK | F10: KIRŞEHİR | G10: X | H10: 806 | I10: 766 | J10: 806 | K10: 51
A11: 4 | B11: GÜLLE-7 | C11: 329 | D11: 2001-12-12 | E11: ELİF ÖZÇELİK | F11: ISPARTA | G11: 689 | H11: 686 | J11: 689 | K11: 39
A12: 5 | B12: GÜLLE-9 | C12: 134 | D12: 2001-01-01 | E12: RUKEN TEK | F12: BATMAN | G12: X | H12: 689 | I12: 514 | J12: 689 | K12: 39
A13: 6 | B13: GÜLLE-8 | C13: 133 | D13: 2001-01-01 | E13: MELEK YILDIRIM | F13: BATMAN | G13: X | H13: X | I13: 685 | J13: 685 | K13: 39
A14: 7 | B14: GÜLLE-5 | C14: 382 | D14: 2001-01-09 | E14: BAŞAK ERĞUN | F14: İZMİR | G14: 596 | H14: 544 | I14: 656 | J14: 656 | K14: 36
A15: 8 | B15: GÜLLE-11 | C15: 390 | D15: 2001-01-07 | E15: SÜMEYRA BAŞARA | F15: İZMİR | G15: X | H15: 619 | I15: 614 | J15: 619 | K15: 32
A16: 9 | B16: GÜLLE-4 | C16: 676 | D16: 2001-09-08 | E16: MELİKE SEVİNÇ | F16: TEKİRDAĞ | G16: 498 | H16: 495 | I16: 564 | J16: 564 | K16: 27
A17: 10 | B17: GÜLLE-6 | C17: 476 | D17: 2001-06-18 | E17: AYŞE N. YILDIRIM | F17: KIRIKKALE | G17: 487 | H17: 436 | I17: X | J17: 487 | K17: 19
A18: - | B18: GÜLLE-3 | C18: 76 | D18: 2001-05-15 | E18: DENİZ ÇAKAL | F18: AYDIN | J18: DNS | K18: 0
B19: GÜLLE-12 | J19: 0
B20: GÜLLE-13 | J20: 0
B21: GÜLLE-14 | J21: 0
B22: GÜLLE-15 | J22: 0
B23: GÜLLE-16 | J23: 0
B24: GÜLLE-17 | J24: 0
B25: GÜLLE-18 | J25: 0
B26: GÜLLE-19 | J26: 0
B27: GÜLLE-20 | J27: 0
B28: GÜLLE-21 | J28: 0
B29: GÜLLE-22 | J29: 0
B30: GÜLLE-23 | J30: 0
B31: GÜLLE-24 | J31: 0
B32: GÜLLE-25 | J32: 0
B33: GÜLLE-26 | J33: 0
B34: GÜLLE-27 | J34: 0
B35: GÜLLE-28 | J35: 0
B36: GÜLLE-29 | J36: 0
B37: GÜLLE-30 | J37: 0
B38: GÜLLE-31 | J38: 0
B39: GÜLLE-32 | J39: 0
B40: GÜLLE-33 | J40: 0
B41: GÜLLE-34 | J41: 0
B42: GÜLLE-35 | J42: 0
B43: GÜLLE-36 | J43: 0
B44: GÜLLE-37 | J44: 0
B45: GÜLLE-38 | J45: 0
B46: GÜLLE-39 | J46: 0
B47: GÜLLE-40 | J47: 0
A49: Müsabaka Direktörü | E49: Baş Hakem | F49: Lider | G49: Sekreter | J49: Hakem
A65536: CELAL KAYAÖZ

Sheet Uzun-A
A1: Türkiye Atletizm Federasyonu İzmir Atletizm İl Temsilciliği
A2: Naili Moran Türkiye Atletizm Şampiyonası
A3: Yarışma : | D3: Uzun Atlama-A Grubu
A4: Kategori : | D4: 13 Yaş Kızlar | I4: Tarih-Saat : | K4: 14 Haziran 2014 - 11:00
J5: 41804.60502
A6: SIRA NO | C6: GÖĞÜS NO | D6: DOĞUM TARİHİ Gün/Ay/Yıl | E6: ADI VE SOYADI | F6: İLİ | G6: A T L A M A L A R | J6: SONUÇ | K6: PUAN | L6: RÜZGAR
G7: 1 | H7: 2 | I7: 3
A8: 1 | B8: UZUN-a-7 | C8: 97 | D8: 2001-01-14 | E8: ALEYNA FİCİ | F8: BALIKESİR | G8: 434 | H8: 454 | I8: 423 | J8: 454 | K8: 76
A9: 2 | B9: UZUN-a-3 | C9: 742 | D9: 2001-04-06 | E9: MELEK NUR YAMAN | F9: SAKARYA | G9: 450 | H9: 407 | I9: 431 | J9: 450 | K9: 76
A10: 3 | B10: UZUN-a-36 | C10: 399 | D10: 2001-08-16 | E10: BEGÜM ARICI | F10: İZMİR | G10: 427 | H10: 447 | I10: 435 | J10: 447 | K10: 75
A11: 4 | B11: UZUN-a-37 | C11: 302 | D11: 2001-04-15 | E11: YELDA YAĞMUR | F11: GİRESUN | G11: 440 | H11: X | I11: X | J11: 440 | K11: 75
A12: 5 | B12: UZUN-a-10 | C12: 389 | D12: 2001-01-01 | E12: SENA ÖZDEMİR | F12: İZMİR | G12: 437 | H12: 397 | I12: 439 | J12: 439 | K12: 74
A13: 6 | B13: UZUN-a-6 | C13: 151 | D13: 2001-12-22 | E13: KADER KAYA | F13: BİLECİK | G13: 395 | H13: 438 | I13: 436 | J13: 438 | K13: 74
A14: 7 | B14: UZUN-a-28 | C14: 275 | D14: 2001-01-01 | E14: RAHİME ERGÜL | F14: GAZİANTEP | G14: 425 | H14: 428 | I14: - | J14: 428 | K14: 73
A15: 8 | B15: UZUN-a-11 | C15: 181 | D15: 2001-01-08 | E15: ELİF AKDAĞ | F15: BOLU | G15: 423 | H15: 405 | I15: - | J15: 423 | K15: 73
A16: 9 | B16: UZUN-a-34 | C16: 396 | D16: 2001-05-10 | E16: DEFNE GÜLÜŞ | F16: İZMİR | G16: 415 | H16: 420 | I16: 422 | J16: 422 | K16: 73
A17: 10 | B17: UZUN-a-17 | C17: 743 | D17: 2001-05-11 | E17: MERVENUR ÇAPOĞLU | F17: SAKARYA | G17: X | H17: 420 | I17: 420 | J17: 420 | K17: 73
A18: 11 | B18: UZUN-a-9 | C18: 337 | D18: 2001-01-02 | E18: RUMEYSA COŞKUN | F18: ISPARTA | G18: 411 | H18: 406 | I18: 382 | J18: 411 | K18: 72
A19: 12 | B19: UZUN-a-13 | C19: 562 | D19: 2001-06-20 | E19: MELİS ÇELİKTEN | F19: MUĞLA | G19: 408 | H19: 410 | I19: 391 | J19: 410 | K19: 72
A20: 13 | B20: UZUN-a-27 | C20: 107 | D20: 2001-02-17 | E20: EZGİ ÇAM | F20: BALIKESİR | G20: X | H20: 381 | I20: 401 | J20: 401 | K20: 71
A21: 14 | B21: UZUN-a-14 | C21: 154 | D21: 2001-08-08 | E21: GÜLAY UZUN | F21: BİLECİK | G21: X | H21: 379 | I21: 400 | J21: 400 | K21: 71
A22: 15 | B22: UZUN-a-20 | C22: 153 | D22: 2001-05-10 | E22: FATMA PELVAN | F22: BİLECİK | G22: 380 | H22: 384 | I22: 399 | J22: 399 | K22: 70
A23: 16 | B23: UZUN-a-8 | C23: 339 | D23: 2001-04-07 | E23: HAVVA GICIR | F23: ISPARTA | G23: 397 | H23: 398 | I23: 390 | J23: 398 | K23: 70
A24: 17 | B24: UZUN-a-30 | C24: 180 | D24: 2001-09-10 | E24: MELEK ÇEVİK | F24: BOLU | G24: 380 | H24: 398 | I24: - | J24: 398 | K24: 70
A25: 18 | B25: UZUN-a-23 | C25: 152 | D25: 2001-03-10 | E25: AYBÜKE KALENDER | F25: BİLECİK | G25: 370 | H25: 396 | I25: 395 | J25: 396 | K25: 69
A26: 19 | B26: UZUN-a-1 | C26: 604 | D26: 2001-08-16 | E26: HATICE GÜNAYDIN | F26: NİĞDE | G26: 391 | H26: 370 | I26: 396 | J26: 396 | K26: 69
A27: 20 | B27: UZUN-a-18 | C27: 363 | D27: 2001-01-01 | E27: EZGİ KAYA | F27: İSTANBUL | G27: 380 | H27: 383 | I27: 395 | J27: 395 | K27: 69
A28: 21 | B28: UZUN-a-2 | C28: 561 | D28: 2001-01-01 | E28: ESRA DİKMENTEPE | F28: MUĞLA | G28: 394 | H28: 385 | I28: 363 | J28: 394 | K28: 69
A29: 22 | B29: UZUN-a-5 | C29: 229 | D29: 2001-01-01 | E29: GAMZE PEKTAŞ | F29: DİYARBAKIR | G29: 330 | H29: 370 | I29: 380 | J29: 380 | K29: 64
A30: 23 | B30: UZUN-a-16 | C30: 692 | D30: 2001-07-12 | E30: TUĞÇE ZENGİN | F30: TOKAT | G30: X | H30: X | I30: 380 | J30: 380 | K30: 64
A31: 24 | B31: UZUN-a-21 | C31: 276 | D31: 2001-01-01 | E31: EMİNE YILMAZ | F31: GAZİANTEP | G31: 362 | H31: 375 | I31: - | J31: 375 | K31: 63
A32: 25 | B32: UZUN-a-24 | C32: 214 | D32: 2001-02-28 | E32: SİMGE MUĞLI | F32: ÇANAKKALE | G32: X | H32: 350 | I32: 375 | J32: 375 | K32: 63
A33: 26 | B33: UZUN-a-26 | C33: 603 | D33: 2001-04-14 | E33: ZELAL GÜNEŞ | F33: NİĞDE | G33: X | H33: 360 | I33: 369 | J33: 369 | K33: 61
A34: 27 | B34: UZUN-a-25 | C34: 340 | D34: 2001-07-15 | E34: KUBRA GÜLER | F34: ISPARTA | G34: X | H34: X | I34: 366 | J34: 366 | K34: 60
A35: 28 | B35: UZUN-a-29 | C35: 473 | D35: 2001-06-10 | E35: SULTAN GÜNDOĞDU | F35: KIRIKKALE | G35: X | H35: X | I35: 360 | J35: 360 | K35: 58
A36: 29 | B36: UZUN-a-22 | C36: 719 | D36: 2001-01-01 | E36: DİLARA DİNLER | F36: TUNCELİ | G36: 345 | H36: 350 | I36: - | J36: 350 | K36: 54
A37: 30 | B37: UZUN-a-12 | C37: 686 | D37: 2001-05-12 | E37: ÖZLEM UÇAR | F37: TOKAT | G37: X | H37: X | I37: 348 | J37: 348 | K37: 54
A38: 31 | B38: UZUN-a-15 | C38: 338 | D38: 2001-09-24 | E38: TUĞBA KURT | F38: ISPARTA | G38: 314 | H38: 274 | I38: 320 | J38: 320 | K38: 44
A39: 32 | B39: UZUN-a-32 | C39: 718 | D39: 2001-01-01 | E39: DİDAR GÖKTEPE | F39: TUNCELİ | G39: X | H39: 310 | I39: - | J39: 310 | K39: 41
A40: 33 | B40: UZUN-a-33 | C40: 277 | D40: 2001-01-01 | E40: SAFİYE YAREN ÖZTÜRK | F40: GAZİANTEP | G40: 290 | H40: X | I40: - | J40: 290 | K40: 34
A41: 34 | B41: UZUN-a-31 | C41: 329 | D41: 2001-12-12 | E41: ELİF ÖZÇELİK | F41: ISPARTA | G41: 235 | H41: 270 | I41: - | J41: 270 | K41: 28
A42: 35 | B42: UZUN-a-35 | C42: 646 | D42: 2001-07-30 | E42: ÖZLEM OYSAL | F42: SİİRT | G42: X | H42: 252 | I42: X | J42: 252 | K42: 22
A43: 36 | B43: UZUN-a-19 | C43: 462 | D43: 2001-01-01 | E43: DERYA ATEŞLİ | F43: KARAMAN | G43: 245 | H43: X | I43: X | J43: 245 | K43: 19
J44: 0
B45: UZUN-a-38 | J45: 0
B46: UZUN-a-39 | J46: 0
B47: UZUN-a-40 | J47: 0
A49: Müsabaka Direktörü | E49: Baş Hakem | F49: Lider | G49: Sekreter | J49: Hakem
A65536: CELAL KAYAÖZ

Sheet Uzun-B
A1: Türkiye Atletizm Federasyonu İzmir Atletizm İl Temsilciliği
A2: Naili Moran Türkiye Atletizm Şampiyonası
A3: Yarışma : | D3: Uzun Atlama-B Grubu
A4: Kategori : | D4: 13 Yaş Kızlar | I4: Tarih-Saat : | K4: 14 Haziran 2014 - 11:00
J5: 41804.60857
A6: SIRA NO | C6: GÖĞÜS NO | D6: DOĞUM TARİHİ Gün/Ay/Yıl | E6: ADI VE SOYADI | F6: İLİ | G6: A T L A M A L A R | J6: SONUÇ | K6: PUAN | L6: RÜZGAR
G7: 1 | H7: 2 | I7: 3
A8: 1 | B8: UZUN-b-22 | C8: 109 | D8: 2001-01-01 | E8: GİZEM AKGÖZ | F8: BALIKESİR | G8: 472 | H8: 479 | I8: 484 | J8: 484 | K8: 79
A9: 2 | B9: UZUN-b-23 | C9: 671 | D9: 2001-01-25 | E9: ALMİNA MALKOÇ | F9: TEKİRDAĞ | G9: 455 | H9: X | I9: 480 | J9: 480 | K9: 79
A10: 3 | B10: UZUN-b-24 | C10: 738 | D10: 2001-07-30 | E10: CEYDA TAŞKIRAN | F10: MUĞLA | G10: 444 | H10: X | I10: 478 | J10: 478 | K10: 78
A11: 4 | B11: UZUN-b-1 | C11: 298 | D11: 2001-10-02 | E11: DİLARA KÜÇÜK | F11: GİRESUN | G11: 477 | H11: X | I11: 467 | J11: 477 | K11: 78
A12: 5 | B12: UZUN-b-21 | C12: 39 | D12: 2001-01-01 | E12: BERİVAN ALPER | F12: AKSARAY | G12: 461 | H12: X | I12: 425 | J12: 461 | K12: 77
A13: 6 | B13: UZUN-b-4 | C13: 358 | D13: 2001-05-15 | E13: İREM ZEHRA KARABABA | F13: İSTANBUL | G13: 460 | H13: 445 | I13: - | J13: 460 | K13: 77
A14: 7 | B14: UZUN-b-32 | C14: 106 | D14: 2001-07-01 | E14: EDANUR KARADUMAN | F14: BALIKESİR | G14: 411 | H14: 435 | I14: - | J14: 435 | K14: 74
A15: 8 | B15: UZUN-b-26 | C15: 677 | D15: 2001-11-27 | E15: MELEK ÇOBAN | F15: TEKİRDAĞ | G15: 433 | H15: 417 | I15: X | J15: 433 | K15: 74
A16: 9 | B16: UZUN-b-25 | C16: 222 | D16: 2001-01-01 | E16: ZEHRA SUDE HANCIOĞLU | F16: DENİZLİ | G16: 427 | H16: 427 | I16: 430 | J16: 430 | K16: 74
A17: 10 | B17: UZUN-b-15 | C17: 5 | D17: 2001-01-01 | E17: M.İNCİ GÜRBÜZ | F17: ADANA | G17: 372 | H17: 429 | I17: 424 | J17: 429 | K17: 73
A18: 11 | B18: UZUN-b-29 | C18: 365 | D18: 2001-09-19 | E18: ZEHRA ERHAN | F18: İSTANBUL | G18: 429 | H18: X | I18: X | J18: 429 | K18: 73
A19: 12 | B19: UZUN-b-6 | C19: 361 | D19: 2001-12-14 | E19: LAYLA SULTAN ORAL | F19: İSTANBUL | G19: 428 | H19: 415 | I19: 403 | J19: 428 | K19: 73
A20: 13 | B20: UZUN-b-8 | C20: 77 | D20: 2001-06-21 | E20: DERYA BİLGİ | F20: AYDIN | G20: 426 | H20: 414 | I20: 424 | J20: 426 | K20: 73
A21: 14 | B21: UZUN-b-34 | C21: 741 | D21: 2001-05-04 | E21: BERİVAN DEMİR | F21: SAKARYA | G21: 425 | H21: 425 | I21: 389 | J21: 425 | K21: 73
A22: 15 | B22: UZUN-b-28 | C22: 123 | D22: 2001-04-09 | E22: YAĞMUR İPEK ALP | F22: BARTIN | G22: 420 | H22: 424 | I22: 416 | J22: 424 | K22: 73
A23: 16 | B23: UZUN-b-13 | C23: 260 | D23: 2001-02-20 | E23: EBRAR BAYRİ | F23: ERZURUM | G23: 418 | H23: 361 | I23: 396 | J23: 418 | K23: 72
A24: 17 | B24: UZUN-b-36 | C24: 707 | D24: 2001-03-15 | E24: ÖZNUR GEDİK | F24: TRABZON | G24: X | H24: 395 | I24: 415 | J24: 415 | K24: 72
A25: 18 | B25: UZUN-b-35 | C25: 630 | D25: 2001-04-05 | E25: ŞURA ÇETİNKAYA | F25: SAMSUN | G25: X | H25: 410 | I25: 414 | J25: 414 | K25: 72
A26: 19 | B26: UZUN-b-5 | C26: 223 | D26: 2001-01-01 | E26: HATİCE KURNAZ | F26: DENİZLİ | G26: 408 | H26: 410 | I26: 394 | J26: 410 | K26: 72
A27: 20 | B27: UZUN-b-30 | C27: 619 | D27: 2001-08-12 | E27: SİMGE KUNAK | F27: SAKARYA | G27: 337 | H27: 403 | I27: - | J27: 403 | K27: 71
A28: 21 | B28: UZUN-b-18 | C28: 55 | D28: 2001-01-01 | E28: SEDANUR BOZKURT | F28: ARDAHAN | G28: 402 | H28: 307 | I28: 399 | J28: 402 | K28: 71
A29: 22 | B29: UZUN-b-16 | C29: 6 | D29: 2001-01-01 | E29: H.NUR AKGÜL | F29: ADANA | G29: 400 | H29: 378 | I29: 377 | J29: 400 | K29: 71
A30: 23 | B30: UZUN-b-2 | C30: 563 | D30: 2001-02-17 | E30: KARDELEN YILDIZ | F30: MUĞLA | G30: 380 | H30: 368 | I30: 386 | J30: 386 | K30: 66
A31: 24 | B31: UZUN-b-31 | C31: 393 | D31: 2001-06-08 | E31: BUKET AYDIN | F31: İZMİR | G31: 266 | H31: 385 | I31: 379 | J31: 385 | K31: 66
A32: 25 | B32: UZUN-b-3 | C32: 493 | D32: 2001-05-25 | E32: BAHAR KARACA | F32: KIRŞEHİR | G32: 373 | H32: 379 | I32: 362 | J32: 379 | K32: 64
A33: 26 | B33: UZUN-b-7 | C33: 78 | D33: 2001-07-05 | E33: NAZLI KAYA | F33: AYDIN | G33: 379 | H33: X | I33: 357 | J33: 379 | K33: 64
A34: 27 | B34: UZUN-b-14 | C34: 359 | D34: 2001-02-06 | E34: BÜŞRA TURHAN | F34: İSTANBUL | G34: 371 | H34: 356 | I34: - | J34: 371 | K34: 61
A35: 28 | B35: UZUN-b-9 | C35: 110 | D35: 2001-06-19 | E35: TUĞCENUR GÜRSES | F35: BALIKESİR | G35: X | H35: 359 | I35: 341 | J35: 359 | K35: 57
A36: 29 | B36: UZUN-b-33 | C36: 739 | D36: 2001-06-17 | E36: MELİSA İNCİ | F36: MUĞLA | G36: 324 | H36: 358 | I36: X | J36: 358 | K36: 57
A37: 30 | B37: UZUN-b-27 | C37: 36 | D37: 2001-03-13 | E37: SONGÜL KARTAL | F37: AKSARAY | G37: X | H37: 353 | I37: 351 | J37: 353 | K37: 55
A38: 31 | B38: UZUN-b-20 | C38: 57 | D38: 2001-01-01 | E38: CEREN KILIÇ | F38: ARDAHAN | G38: 353 | H38: 326 | I38: 336 | J38: 353 | K38: 55
A39: 32 | B39: UZUN-b-10 | C39: 258 | D39: 2001-06-09 | E39: BERİVAN ULUÇAY | F39: ERZURUM | G39: 332 | H39: 307 | I39: X | J39: 332 | K39: 48
A40: 33 | B40: UZUN-b-11 | C40: 259 | D40: 2001-05-11 | E40: DİLVAN ÜTRİ | F40: ERZURUM | G40: X | H40: 312 | I40: 309 | J40: 312 | K40: 42
A41: 34 | B41: UZUN-b-19 | C41: 56 | D41: 2001-01-01 | E41: MELİKE KILIÇ | F41: ARDAHAN | G41: 237 | H41: X | I41: 299 | J41: 299 | K41: 37
A42: - | B42: UZUN-b-12 | C42: 312 | D42: 2001-03-26 | E42: BÜŞRA DOĞAN | F42: HATAY | G42: X | H42: X | I42: X | J42: NM | K42: 0
A43: - | B43: UZUN-b-17 | C43: 21 | D43: 2001-01-01 | E43: KADER GÜVENÇ | F43: ADIYAMAN | J43: DNS | K43: 0
B44: UZUN-b-37 | J44: 0
B45: UZUN-b-38 | J45: 0
B46: UZUN-b-39 | J46: 0
B47: UZUN-b-40 | J47: 0
A49: Müsabaka Direktörü | E49: Baş Hakem | F49: Lider | G49: Sekreter | J49: Hakem
A65536: CELAL KAYAÖZ

Sheet Uzun Atlama Genel
A1: Türkiye Atletizm Federasyonu İzmir Atletizm İl Temsilciliği
A2: Naili Moran Türkiye Atletizm Şampiyonası
A3: Yarışma : | D3: Uzun Atlama Genel Sonuçları
A4: Kategori : | D4: 13 Yaş Kızlar | I4: Tarih-Saat : | K4: 14 Haziran 2014 - 11:00
J5: 41804.61055
A6: SIRA NO | C6: GÖĞÜS NO | D6: DOĞUM TARİHİ Gün/Ay/Yıl | E6: ADI VE SOYADI | F6: İLİ | G6: A T L A M A L A R | J6: SONUÇ | K6: PUAN | L6: RÜZGAR
G7: 1 | H7: 2 | I7: 3
A8: 1 | C8: 109 | D8: 2001-01-01 | E8: GİZEM AKGÖZ | F8: BALIKESİR | G8: 472 | H8: 479 | I8: 484 | J8: 484 | K8: 79
A9: 2 | C9: 671 | D9: 2001-01-25 | E9: ALMİNA MALKOÇ | F9: TEKİRDAĞ | G9: 455 | H9: X | I9: 480 | J9: 480 | K9: 79
A10: 3 | C10: 738 | D10: 2001-07-30 | E10: CEYDA TAŞKIRAN | F10: MUĞLA | G10: 444 | H10: X | I10: 478 | J10: 478 | K10: 78
A11: 4 | C11: 298 | D11: 2001-10-02 | E11: DİLARA KÜÇÜK | F11: GİRESUN | G11: 477 | H11: X | I11: 467 | J11: 477 | K11: 78
A12: 5 | C12: 39 | D12: 2001-01-01 | E12: BERİVAN ALPER | F12: AKSARAY | G12: 461 | H12: X | I12: 425 | J12: 461 | K12: 77
A13: 6 | C13: 358 | D13: 2001-05-15 | E13: İREM ZEHRA KARABABA | F13: İSTANBUL | G13: 460 | H13: 445 | I13: - | J13: 460 | K13: 77
A14: 7 | C14: 97 | D14: 2001-01-14 | E14: ALEYNA FİCİ | F14: BALIKESİR | G14: 434 | H14: 454 | I14: 423 | J14: 454 | K14: 76
A15: 8 | C15: 742 | D15: 2001-04-06 | E15: MELEK NUR YAMAN | F15: SAKARYA | G15: 450 | H15: 407 | I15: 431 | J15: 450 | K15: 76
A16: 9 | C16: 399 | D16: 2001-08-16 | E16: BEGÜM ARICI | F16: İZMİR | G16: 427 | H16: 447 | I16: 435 | J16: 447 | K16: 75
A17: 10 | C17: 302 | D17: 2001-04-15 | E17: YELDA YAĞMUR | F17: GİRESUN | G17: 440 | H17: X | I17: X | J17: 440 | K17: 75
A18: 11 | C18: 389 | D18: 2001-01-01 | E18: SENA ÖZDEMİR | F18: İZMİR | G18: 437 | H18: 397 | I18: 439 | J18: 439 | K18: 74
A19: 12 | C19: 151 | D19: 2001-12-22 | E19: KADER KAYA | F19: BİLECİK | G19: 395 | H19: 438 | I19: 436 | J19: 438 | K19: 74
A20: 13 | C20: 106 | D20: 2001-07-01 | E20: EDANUR KARADUMAN | F20: BALIKESİR | G20: 411 | H20: 435 | I20: - | J20: 435 | K20: 74
A21: 14 | C21: 677 | D21: 2001-11-27 | E21: MELEK ÇOBAN | F21: TEKİRDAĞ | G21: 433 | H21: 417 | I21: X | J21: 433 | K21: 74
A22: 15 | C22: 222 | D22: 2001-01-01 | E22: ZEHRA SUDE HANCIOĞLU | F22: DENİZLİ | G22: 427 | H22: 427 | I22: 430 | J22: 430 | K22: 74
A23: 16 | C23: 5 | D23: 2001-01-01 | E23: M.İNCİ GÜRBÜZ | F23: ADANA | G23: 372 | H23: 429 | I23: 424 | J23: 429 | K23: 73
A24: 17 | C24: 365 | D24: 2001-09-19 | E24: ZEHRA ERHAN | F24: İSTANBUL | G24: 429 | H24: X | I24: X | J24: 429 | K24: 73
A25: 18 | C25: 275 | D25: 2001-01-01 | E25: RAHİME ERGÜL | F25: GAZİANTEP | G25: 425 | H25: 428 | I25: - | J25: 428 | K25: 73
A26: 19 | C26: 361 | D26: 2001-12-14 | E26: LAYLA SULTAN ORAL | F26: İSTANBUL | G26: 428 | H26: 415 | I26: 403 | J26: 428 | K26: 73
A27: 20 | C27: 77 | D27: 2001-06-21 | E27: DERYA BİLGİ | F27: AYDIN | G27: 426 | H27: 414 | I27: 424 | J27: 426 | K27: 73
A28: 21 | C28: 741 | D28: 2001-05-04 | E28: BERİVAN DEMİR | F28: SAKARYA | G28: 425 | H28: 425 | I28: 389 | J28: 425 | K28: 73
A29: 22 | C29: 123 | D29: 2001-04-09 | E29: YAĞMUR İPEK ALP | F29: BARTIN | G29: 420 | H29: 424 | I29: 416 | J29: 424 | K29: 73
A30: 23 | C30: 181 | D30: 2001-01-08 | E30: ELİF AKDAĞ | F30: BOLU | G30: 423 | H30: 405 | I30: - | J30: 423 | K30: 73
A31: 24 | C31: 396 | D31: 2001-05-10 | E31: DEFNE GÜLÜŞ | F31: İZMİR | G31: 415 | H31: 420 | I31: 422 | J31: 422 | K31: 73
A32: 25 | C32: 743 | D32: 2001-05-11 | E32: MERVENUR ÇAPOĞLU | F32: SAKARYA | G32: X | H32: 420 | I32: 420 | J32: 420 | K32: 73
A33: 26 | C33: 260 | D33: 2001-02-20 | E33: EBRAR BAYRİ | F33: ERZURUM | G33: 418 | H33: 361 | I33: 396 | J33: 418 | K33: 72
A34: 27 | C34: 707 | D34: 2001-03-15 | E34: ÖZNUR GEDİK | F34: TRABZON | G34: X | H34: 395 | I34: 415 | J34: 415 | K34: 72
A35: 28 | C35: 630 | D35: 2001-04-05 | E35: ŞURA ÇETİNKAYA | F35: SAMSUN | G35: X | H35: 410 | I35: 414 | J35: 414 | K35: 72
A36: 29 | C36: 337 | D36: 2001-01-02 | E36: RUMEYSA COŞKUN | F36: ISPARTA | G36: 411 | H36: 406 | I36: 382 | J36: 411 | K36: 72
A37: 30 | C37: 223 | D37: 2001-01-01 | E37: HATİCE KURNAZ | F37: DENİZLİ | G37: 408 | H37: 410 | I37: 394 | J37: 410 | K37: 72
A38: 31 | C38: 562 | D38: 2001-06-20 | E38: MELİS ÇELİKTEN | F38: MUĞLA | G38: 408 | H38: 410 | I38: 391 | J38: 410 | K38: 72
A39: 32 | C39: 619 | D39: 2001-08-12 | E39: SİMGE KUNAK | F39: SAKARYA | G39: 337 | H39: 403 | I39: - | J39: 403 | K39: 71
A40: 33 | C40: 55 | D40: 2001-01-01 | E40: SEDANUR BOZKURT | F40: ARDAHAN | G40: 402 | H40: 307 | I40: 399 | J40: 402 | K40: 71
A41: 34 | C41: 107 | D41: 2001-02-17 | E41: EZGİ ÇAM | F41: BALIKESİR | G41: X | H41: 381 | I41: 401 | J41: 401 | K41: 71
A42: 35 | C42: 154 | D42: 2001-08-08 | E42: GÜLAY UZUN | F42: BİLECİK | G42: X | H42: 379 | I42: 400 | J42: 400 | K42: 71
A43: 36 | C43: 6 | D43: 2001-01-01 | E43: H.NUR AKGÜL | F43: ADANA | G43: 400 | H43: 378 | I43: 377 | J43: 400 | K43: 71
A44: 37 | C44: 153 | D44: 2001-05-10 | E44: FATMA PELVAN | F44: BİLECİK | G44: 380 | H44: 384 | I44: 399 | J44: 399 | K44: 70
A45: 38 | C45: 339 | D45: 2001-04-07 | E45: HAVVA GICIR | F45: ISPARTA | G45: 397 | H45: 398 | I45: 390 | J45: 398 | K45: 70
A46: 39 | C46: 180 | D46: 2001-09-10 | E46: MELEK ÇEVİK | F46: BOLU | G46: 380 | H46: 398 | I46: - | J46: 398 | K46: 70
A47: 40 | C47: 152 | D47: 2001-03-10 | E47: AYBÜKE KALENDER | F47: BİLECİK | G47: 370 | H47: 396 | I47: 395 | J47: 396 | K47: 69
A48: 41 | C48: 604 | D48: 2001-08-16 | E48: HATICE GÜNAYDIN | F48: NİĞDE | G48: 391 | H48: 370 | I48: 396 | J48: 396 | K48: 69
A49: 42 | C49: 363 | D49: 2001-01-01 | E49: EZGİ KAYA | F49: İSTANBUL | G49: 380 | H49: 383 | I49: 395 | J49: 395 | K49: 69
A50: 43 | C50: 561 | D50: 2001-01-01 | E50: ESRA DİKMENTEPE | F50: MUĞLA | G50: 394 | H50: 385 | I50: 363 | J50: 394 | K50: 69
A51: 44 | C51: 563 | D51: 2001-02-17 | E51: KARDELEN YILDIZ | F51: MUĞLA | G51: 380 | H51: 368 | I51: 386 | J51: 386 | K51: 66
A52: 45 | C52: 393 | D52: 2001-06-08 | E52: BUKET AYDIN | F52: İZMİR | G52: 266 | H52: 385 | I52: 379 | J52: 385 | K52: 66
A53: 46 | C53: 229 | D53: 2001-01-01 | E53: GAMZE PEKTAŞ | F53: DİYARBAKIR | G53: 330 | H53: 370 | I53: 380 | J53: 380 | K53: 64
A54: 47 | C54: 692 | D54: 2001-07-12 | E54: TUĞÇE ZENGİN | F54: TOKAT | G54: X | H54: X | I54: 380 | J54: 380 | K54: 64
A55: 48 | C55: 493 | D55: 2001-05-25 | E55: BAHAR KARACA | F55: KIRŞEHİR | G55: 373 | H55: 379 | I55: 362 | J55: 379 | K55: 64
A56: 49 | C56: 78 | D56: 2001-07-05 | E56: NAZLI KAYA | F56: AYDIN | G56: 379 | H56: X | I56: 357 | J56: 379 | K56: 64
A57: 50 | C57: 276 | D57: 2001-01-01 | E57: EMİNE YILMAZ | F57: GAZİANTEP | G57: 362 | H57: 375 | I57: - | J57: 375 | K57: 63
A58: 51 | C58: 214 | D58: 2001-02-28 | E58: SİMGE MUĞLI | F58: ÇANAKKALE | G58: X | H58: 350 | I58: 375 | J58: 375 | K58: 63
A59: 52 | C59: 359 | D59: 2001-02-06 | E59: BÜŞRA TURHAN | F59: İSTANBUL | G59: 371 | H59: 356 | I59: - | J59: 371 | K59: 61
A60: 53 | C60: 603 | D60: 2001-04-14 | E60: ZELAL GÜNEŞ | F60: NİĞDE | G60: X | H60: 360 | I60: 369 | J60: 369 | K60: 61
A61: 54 | C61: 340 | D61: 2001-07-15 | E61: KUBRA GÜLER | F61: ISPARTA | G61: X | H61: X | I61: 366 | J61: 366 | K61: 60
A62: 55 | C62: 473 | D62: 2001-06-10 | E62: SULTAN GÜNDOĞDU | F62: KIRIKKALE | G62: X | H62: X | I62: 360 | J62: 360 | K62: 58
A63: 56 | C63: 110 | D63: 2001-06-19 | E63: TUĞCENUR GÜRSES | F63: BALIKESİR | G63: X | H63: 359 | I63: 341 | J63: 359 | K63: 57
A64: 57 | C64: 739 | D64: 2001-06-17 | E64: MELİSA İNCİ | F64: MUĞLA | G64: 324 | H64: 358 | I64: X | J64: 358 | K64: 57
A65: 58 | C65: 36 | D65: 2001-03-13 | E65: SONGÜL KARTAL | F65: AKSARAY | G65: X | H65: 353 | I65: 351 | J65: 353 | K65: 55
A66: 59 | C66: 57 | D66: 2001-01-01 | E66: CEREN KILIÇ | F66: ARDAHAN | G66: 353 | H66: 326 | I66: 336 | J66: 353 | K66: 55
A67: 60 | C67: 719 | D67: 2001-01-01 | E67: DİLARA DİNLER | F67: TUNCELİ | G67: 345 | H67: 350 | I67: - | J67: 350 | K67: 54
A68: 61 | C68: 686 | D68: 2001-05-12 | E68: ÖZLEM UÇAR | F68: TOKAT | G68: X | H68: X | I68: 348 | J68: 348 | K68: 54
A69: 62 | C69: 258 | D69: 2001-06-09 | E69: BERİVAN ULUÇAY | F69: ERZURUM | G69: 332 | H69: 307 | I69: X | J69: 332 | K69: 48
A70: 63 | C70: 338 | D70: 2001-09-24 | E70: TUĞBA KURT | F70: ISPARTA | G70: 314 | H70: 274 | I70: 320 | J70: 320 | K70: 44
A71: 64 | C71: 259 | D71: 2001-05-11 | E71: DİLVAN ÜTRİ | F71: ERZURUM | G71: X | H71: 312 | I71: 309 | J71: 312 | K71: 42
A72: 65 | C72: 718 | D72: 2001-01-01 | E72: DİDAR GÖKTEPE | F72: TUNCELİ | G72: X | H72: 310 | I72: - | J72: 310 | K72: 41
A73: 66 | C73: 56 | D73: 2001-01-01 | E73: MELİKE KILIÇ | F73: ARDAHAN | G73: 237 | H73: X | I73: 299 | J73: 299 | K73: 37
A74: 67 | C74: 277 | D74: 2001-01-01 | E74: SAFİYE YAREN ÖZTÜRK | F74: GAZİANTEP | G74: 290 | H74: X | I74: - | J74: 290 | K74: 34
A75: 68 | C75: 329 | D75: 2001-12-12 | E75: ELİF ÖZÇELİK | F75: ISPARTA | G75: 235 | H75: 270 | I75: - | J75: 270 | K75: 28
A76: 69 | C76: 646 | D76: 2001-07-30 | E76: ÖZLEM OYSAL | F76: SİİRT | G76: X | H76: 252 | I76: X | J76: 252 | K76: 22
A77: 70 | C77: 462 | D77: 2001-01-01 | E77: DERYA ATEŞLİ | F77: KARAMAN | G77: 245 | H77: X | I77: X | J77: 245 | K77: 19
A78: - | C78: 312 | D78: 2001-03-26 | E78: BÜŞRA DOĞAN | F78: HATAY | G78: X | H78: X | I78: X | J78: NM | K78: 0
A79: - | C79: 21 | D79: 2001-01-01 | E79: KADER GÜVENÇ | F79: ADIYAMAN | J79: DNS | K79: 0
A81: Müsabaka Direktörü | E81: Baş Hakem | F81: Lider | G81: Sekreter | J81: Hakem
A65568: CELAL KAYAÖZ

Sheet 100m.
A1: Türkiye Atletizm Federasyonu İzmir Atletizm İl Temsilciliği
A2: Naili Moran Türkiye Atletizm Şampiyonası
A3: Yarışma : | D3: 100 Metre
A4: Kategori : | D4: 13 Yaş Kızlar | M4: Tarih-Saat : | N4: 14 Haziran 2014 - 18:15
N5: 41804.77816
A6: Sıra No | B6: Göğüs No | C6: Doğum Tarihi Gün/Ay/Yıl | D6: Adı ve Soyadı | E6: İLİ | F6: Derece | G6: Puan | I6: 1. SERİ | M6: Rüzgar:
I7: Sıra No | J7: Formül | K7: Göğüs No | L7: Doğum Tarihi | M7: Adı ve Soyadı | N7: İLİ | O7: Derece | P7: El Kronometre | Q7: Seri Geliş
A8: 1 | B8: 39 | C8: 2001-01-01 | D8: BERİVAN ALPER | E8: AKSARAY | F8: 1332 | G8: 79 | I8: 1 | J8: 100M-1-1 | K8: 389 | L8: 2001-01-01 | M8: SENA ÖZDEMİR | N8: İZMİR | O8: 1385 | Q8: 5
A9: 2 | B9: 382 | C9: 2001-01-09 | D9: BAŞAK ERĞUN | E9: İZMİR | F9: 1341 | G9: 78 | I9: 2 | J9: 100M-1-2 | K9: 109 | L9: 2001-01-01 | M9: GİZEM AKGÖZ | N9: BALIKESİR | O9: 1423 | Q9: 7
A10: 3 | B10: 97 | C10: 2001-01-14 | D10: ALEYNA FİCİ | E10: BALIKESİR | F10: 1350 | G10: 78 | I10: 3 | J10: 100M-1-3 | K10: 457 | L10: 2001-07-25 | M10: SEVİLCAN BAHADIR | N10: KARABÜK | O10: 1433 | Q10: 8
A11: 4 | B11: 738 | C11: 2001-07-30 | D11: CEYDA TAŞKIRAN | E11: MUĞLA | F11: 1357 | G11: 77 | I11: 4 | J11: 100M-1-4 | K11: 39 | L11: 2001-01-01 | M11: BERİVAN ALPER | N11: AKSARAY | O11: 1332 | Q11: 1
A12: 5 | B12: 104 | C12: 2001-06-03 | D12: HİLAYDA ARSLAN | E12: BALIKESİR | F12: 1367 | G12: 76 | I12: 5 | J12: 100M-1-5 | K12: 104 | L12: 2001-06-03 | M12: HİLAYDA ARSLAN | N12: BALIKESİR | O12: 1367 | Q12: 4
A13: 6 | B13: 365 | C13: 2001-09-19 | D13: ZEHRA ERHAN | E13: İSTANBUL | F13: 1367 | G13: 76 | I13: 6 | J13: 100M-1-6 | K13: 97 | L13: 2001-01-14 | M13: ALEYNA FİCİ | N13: BALIKESİR | O13: 1350 | Q13: 3
A14: 7 | B14: 389 | C14: 2001-01-01 | D14: SENA ÖZDEMİR | E14: İZMİR | F14: 1385 | G14: 74 | I14: 7 | J14: 100M-1-7 | K14: 382 | L14: 2001-01-09 | M14: BAŞAK ERĞUN | N14: İZMİR | O14: 1341 | Q14: 2
A15: 8 | B15: 630 | C15: 2001-04-05 | D15: ŞURA ÇETİNKAYA | E15: SAMSUN | F15: 1390 | G15: 74 | I15: 8 | J15: 100M-1-8 | K15: 742 | L15: 2001-04-06 | M15: MELEK NUR YAMAN | N15: SAKARYA | O15: 1436 | Q15: 9
A16: 9 | B16: 677 | C16: 2001-11-27 | D16: MELEK ÇOBAN | E16: TEKİRDAĞ | F16: 1401 | G16: 71 | I16: 9 | J16: 100M-1-9 | K16: 630 | L16: 2001-04-05 | M16: ŞURA ÇETİNKAYA | N16: SAMSUN | O16: 1390 | Q16: 6
A17: 10 | B17: 361 | C17: 2001-12-14 | D17: LAYLA SULTAN ORAL | E17: İSTANBUL | F17: 1407 | G17: 71 | I17: 2. SERİ | M17: Rüzgar:
A18: 11 | B18: 109 | C18: 2001-01-01 | D18: GİZEM AKGÖZ | E18: BALIKESİR | F18: 1423 | G18: 67 | I18: Sıra No | J18: Formül | K18: Göğüs No | L18: Doğum Tarihi | M18: Adı ve Soyadı | N18: İLİ | O18: Derece | P18: El Kronometre | Q18: Seri Geliş
A19: 12 | B19: 298 | C19: 2001-10-02 | D19: DİLARA KÜÇÜK | E19: GİRESUN | F19: 1428 | G19: 67 | I19: 1 | J19: 100M-2-1 | K19: 361 | L19: 2001-12-14 | M19: LAYLA SULTAN ORAL | N19: İSTANBUL | O19: 1407 | Q19: 3
A20: 13 | B20: 260 | C20: 2001-02-20 | D20: EBRAR BAYRİ | E20: ERZURUM | F20: 1429 | G20: 67 | I20: 2 | J20: 100M-2-2 | K20: 671 | L20: 2001-01-25 | M20: ALMİNA MALKOÇ | N20: TEKİRDAĞ | O20: 1438 | Q20: 5
A21: 14 | B21: 743 | C21: 2001-05-11 | D21: MERVENUR ÇAPOĞLU | E21: SAKARYA | F21: 1431 | G21: 65 | I21: 3 | J21: 100M-2-3 | K21: 151 | L21: 2001-12-22 | M21: KADER KAYA | N21: BİLECİK | O21: 1439 | Q21: 6
A22: 15 | B22: 457 | C22: 2001-07-25 | D22: SEVİLCAN BAHADIR | E22: KARABÜK | F22: 1433 | G22: 65 | I22: 4 | J22: 100M-2-4 | K22: 365 | L22: 2001-09-19 | M22: ZEHRA ERHAN | N22: İSTANBUL | O22: 1367 | Q22: 2
A23: 16 | B23: 742 | C23: 2001-04-06 | D23: MELEK NUR YAMAN | E23: SAKARYA | F23: 1436 | G23: 65 | I23: 5 | J23: 100M-2-5 | K23: 743 | L23: 2001-05-11 | M23: MERVENUR ÇAPOĞLU | N23: SAKARYA | O23: 1431 | Q23: 4
A24: 17 | B24: 671 | C24: 2001-01-25 | D24: ALMİNA MALKOÇ | E24: TEKİRDAĞ | F24: 1438 | G24: 65 | I24: 6 | J24: 100M-2-6 | K24: 738 | L24: 2001-07-30 | M24: CEYDA TAŞKIRAN | N24: MUĞLA | O24: 1357 | Q24: 1
A25: 18 | B25: 151 | C25: 2001-12-22 | D25: KADER KAYA | E25: BİLECİK | F25: 1439 | G25: 65 | I25: 7 | J25: 100M-2-7 | K25: 476 | L25: 2001-06-18 | M25: AYŞE N. YILDIRIM | N25: KIRIKKALE | O25: 1596 | Q25: 9
A26: 19 | B26: 222 | C26: 2001-01-01 | D26: ZEHRA SUDE HANCIOĞLU | E26: DENİZLİ | F26: 1460 | G26: 61 | I26: 8 | J26: 100M-2-8 | K26: 604 | L26: 2001-08-16 | M26: HATICE GÜNAYDIN | N26: NİĞDE | O26: 1503 | Q26: 7
A27: 20 | B27: 5 | C27: 2001-01-01 | D27: M.İNCİ GÜRBÜZ | E27: ADANA | F27: 1462 | G27: 59 | I27: 9 | J27: 100M-2-9 | K27: 302 | L27: 2001-04-15 | M27: YELDA YAĞMUR | N27: GİRESUN | O27: 1511 | Q27: 8
A28: 21 | B28: 562 | C28: 2001-06-20 | D28: MELİS ÇELİKTEN | E28: MUĞLA | F28: 1469 | G28: 59 | I28: 3. SERİ | M28: Rüzgar:
A29: 22 | B29: 77 | C29: 2001-06-21 | D29: DERYA BİLGİ | E29: AYDIN | F29: 1482 | G29: 55 | I29: Sıra No | J29: Formül | K29: Göğüs No | L29: Doğum Tarihi | M29: Adı ve Soyadı | N29: İLİ | O29: Derece | P29: El Kronometre | Q29: Seri Geliş
A30: 23 | B30: 604 | C30: 2001-08-16 | D30: HATICE GÜNAYDIN | E30: NİĞDE | F30: 1503 | G30: 51 | I30: 1 | J30: 100M-3-1 | K30: 78 | L30: 2001-07-05 | M30: NAZLI KAYA | N30: AYDIN | O30: 1631 | Q30: 8
A31: 24 | B31: 153 | C31: 2001-05-10 | D31: FATMA PELVAN | E31: BİLECİK | F31: 1510 | G31: 51 | I31: 2 | J31: 100M-3-2 | K31: 677 | L31: 2001-11-27 | M31: MELEK ÇOBAN | N31: TEKİRDAĞ | O31: 1401 | Q31: 1
A32: 25 | B32: 302 | C32: 2001-04-15 | D32: YELDA YAĞMUR | E32: GİRESUN | F32: 1511 | G32: 49 | I32: 3 | J32: 100M-3-3 | K32: 562 | L32: 2001-06-20 | M32: MELİS ÇELİKTEN | N32: MUĞLA | O32: 1469 | Q32: 4
A33: 26 | B33: 676 | C33: 2001-09-08 | D33: MELİKE SEVİNÇ | E33: TEKİRDAĞ | F33: 1516 | G33: 49 | I33: 4 | J33: 100M-3-4 | K33: 222 | L33: 2001-01-01 | M33: ZEHRA SUDE HANCIOĞLU | N33: DENİZLİ | O33: 1460 | Q33: 3
A34: 27 | B34: 6 | C34: 2001-01-01 | D34: H.NUR AKGÜL | E34: ADANA | F34: 1516 | G34: 49 | I34: 5 | J34: 100M-3-5 | K34: 153 | L34: 2001-05-10 | M34: FATMA PELVAN | N34: BİLECİK | O34: 1510 | Q34: 5
A35: 28 | B35: 105 | C35: 2001-02-28 | D35: SENA KAYNAR | E35: BALIKESİR | F35: 1527 | G35: 48 | I35: 6 | J35: 100M-3-6 | K35: 105 | L35: 2001-02-28 | M35: SENA KAYNAR | N35: BALIKESİR | O35: 1527 | Q35: 7
A36: 29 | B36: 476 | C36: 2001-06-18 | D36: AYŞE N. YILDIRIM | E36: KIRIKKALE | F36: 1596 | G36: 41 | I36: 7 | J36: 100M-3-7 | K36: 676 | L36: 2001-09-08 | M36: MELİKE SEVİNÇ | N36: TEKİRDAĞ | O36: 1516 | Q36: 6
A37: 30 | B37: 357 | C37: 2001-11-12 | D37: BUKET USTA | E37: İSTANBUL | F37: 1613 | G37: 39 | I37: 8 | J37: 100M-3-8 | K37: 260 | L37: 2001-02-20 | M37: EBRAR BAYRİ | N37: ERZURUM | O37: 1429 | Q37: 2
A38: 31 | B38: 492 | C38: 2001-06-08 | D38: ASUDE NİSA ÜNAL | E38: KIRŞEHİR | F38: 1623 | G38: 38 | I38: 4. SERİ | M38: Rüzgar:
A39: 32 | B39: 78 | C39: 2001-07-05 | D39: NAZLI KAYA | E39: AYDIN | F39: 1631 | G39: 37 | I39: Sıra No | J39: Formül | K39: Göğüs No | L39: Doğum Tarihi | M39: Adı ve Soyadı | N39: İLİ | O39: Derece | P39: El Kronometre | Q39: Seri Geliş
A40: 33 | B40: 494 | C40: 2001-06-06 | D40: Gamze ŞİMŞEK | E40: KIRŞEHİR | F40: 2153 | G40: 0 | I40: 1 | J40: 100M-4-1 | K40: 494 | L40: 2001-06-06 | M40: Gamze ŞİMŞEK | N40: KIRŞEHİR | O40: 2153 | Q40: 7
A41: - | B41: 396 | C41: 2001-05-10 | D41: DEFNE GÜLÜŞ | E41: İZMİR | F41: DNS | I41: 2 | J41: 100M-4-2 | K41: 298 | L41: 2001-10-02 | M41: DİLARA KÜÇÜK | N41: GİRESUN | O41: 1428 | Q41: 1
I42: 3 | J42: 100M-4-3 | K42: 5 | L42: 2001-01-01 | M42: M.İNCİ GÜRBÜZ | N42: ADANA | O42: 1462 | Q42: 2
I43: 4 | J43: 100M-4-4 | K43: 6 | L43: 2001-01-01 | M43: H.NUR AKGÜL | N43: ADANA | O43: 1516 | Q43: 4
I44: 5 | J44: 100M-4-5 | K44: 77 | L44: 2001-06-21 | M44: DERYA BİLGİ | N44: AYDIN | O44: 1482 | Q44: 3
I45: 6 | J45: 100M-4-6 | K45: 357 | L45: 2001-11-12 | M45: BUKET USTA | N45: İSTANBUL | O45: 1613 | Q45: 5
I46: 7 | J46: 100M-4-7 | K46: 492 | L46: 2001-06-08 | M46: ASUDE NİSA ÜNAL | N46: KIRŞEHİR | O46: 1623 | Q46: 6
I47: 8 | J47: 100M-4-8 | K47: 396 | L47: 2001-05-10 | M47: DEFNE GÜLÜŞ | N47: İZMİR | O47: DNS | Q47: -
A49: Müsabakalar Direktörü | E49: Baş Hakem | F49: Lider | H49: Sekreter | M49: Hakem | N49: Hakem | P49: Hakem
A65538: CELAL KAYAÖZ

Sheet Disk
A1: Türkiye Atletizm Federasyonu İzmir Atletizm İl Temsilciliği | M1: DERECE
A2: Naili Moran Türkiye Atletizm Şampiyonası | M2: 100 | N2: 0
A3: Yarışma : | D3: Disk Atma | M3: 1000 | N3: 1
A4: Kategori : | D4: 13 Yaş Kızlar | F4: Ağırlık: | G4: 750 gram | I4: Tarih-Saat : | K4: 14 Haziran 2014 - 18:45 | M4: 1060 | N4: 2
J5: 41804.85815 | M5: 1120 | N5: 3
A6: SIRA NO | C6: GÖĞÜS NO | D6: DOĞUM TARİHİ Gün/Ay/Yıl | E6: ADI VE SOYADI | F6: İLİ | G6: A T M A L A R | J6: SONUÇ | K6: PUAN | L6: KLASMAN | M6: 1180 | N6: 4
G7: 1 | H7: 2 | I7: 3 | M7: 1240 | N7: 5
A8: 1 | B8: DİSK-3 | C8: 105 | D8: 2001-02-28 | E8: SENA KAYNAR | F8: BALIKESİR | G8: 2581 | H8: X | I8: 2839 | J8: 2839 | K8: 84 | M8: 1300 | N8: 6
A9: 2 | B9: DİSK-1 | C9: 357 | D9: 2001-11-12 | E9: BUKET USTA | F9: İSTANBUL | G9: 2705 | H9: 2697 | I9: 2838 | J9: 2838 | K9: 84 | M9: 1360 | N9: 7
A10: 3 | B10: DİSK-2 | C10: 494 | D10: 2001-06-06 | E10: Gamze ŞİMŞEK | F10: KIRŞEHİR | G10: 1472 | H10: 1499 | I10: X | J10: 1499 | K10: 44 | M10: 1420 | N10: 8
B11: DİSK-4 | J11: 0 | M11: 1480 | N11: 9
B12: DİSK-5 | J12: 0 | M12: 1540 | N12: 10
B13: DİSK-6 | J13: 0 | M13: 1600 | N13: 11
B14: DİSK-7 | J14: 0 | M14: 1650 | N14: 12
B15: DİSK-8 | J15: 0 | M15: 1700 | N15: 13
B16: DİSK-9 | J16: 0 | M16: 1750 | N16: 14
B17: DİSK-10 | J17: 0 | M17: 1800 | N17: 15
B18: DİSK-11 | J18: 0 | M18: 1850 | N18: 16
B19: DİSK-12 | J19: 0 | M19: 1900 | N19: 17
B20: DİSK-13 | J20: 0 | M20: 1950 | N20: 18
B21: DİSK-14 | J21: 0 | M21: 2000 | N21: 19
B22: DİSK-15 | J22: 0 | M22: 2050 | N22: 20
B23: DİSK-16 | J23: 0 | M23: 2100 | N23: 21
B24: DİSK-17 | J24: 0 | M24: 2150 | N24: 22
B25: DİSK-18 | J25: 0 | M25: 2200 | N25: 23
B26: DİSK-19 | J26: 0 | M26: 2250 | N26: 24
B27: DİSK-20 | J27: 0 | M27: 2300 | N27: 25
B28: DİSK-21 | J28: 0 | M28: 2325 | N28: 26
B29: DİSK-22 | J29: 0 | M29: 2350 | N29: 27
B30: DİSK-23 | J30: 0 | M30: 2400 | N30: 28
B31: DİSK-24 | J31: 0 | M31: 2450 | N31: 29
B32: DİSK-25 | J32: 0 | M32: 2500 | N32: 30
B33: DİSK-26 | J33: 0 | M33: 2550 | N33: 31
B34: DİSK-27 | J34: 0 | M34: 2600 | N34: 32
B35: DİSK-28 | J35: 0 | M35: 2650 | N35: 33
B36: DİSK-29 | J36: 0 | M36: 2700 | N36: 34
B37: DİSK-30 | J37: 0 | M37: 2750 | N37: 35
B38: DİSK-31 | J38: 0 | M38: 2800 | N38: 36
B39: DİSK-32 | J39: 0 | M39: 2850 | N39: 37
B40: DİSK-33 | J40: 0 | M40: 2900 | N40: 38
B41: DİSK-34 | J41: 0 | M41: 2950 | N41: 39
B42: DİSK-35 | J42: 0 | M42: 3000 | N42: 40
B43: DİSK-36 | J43: 0 | M43: 3050 | N43: 41
B44: DİSK-37 | J44: 0 | M44: 3100 | N44: 42
B45: DİSK-38 | J45: 0 | M45: 3150 | N45: 43
B46: DİSK-39 | J46: 0 | M46: 3200 | N46: 44
B47: DİSK-40 | J47: 0 | M47: 3250 | N47: 45
M48: 3300 | N48: 46
A49: Müsabaka Direktörü | E49: Baş Hakem | F49: Lider | G49: Sekreter | J49: Hakem | M49: 3350 | N49: 47
M50: 3400 | N50: 48
M51: 3450 | N51: 49
M52: 3500 | N52: 50
M53: 3550 | N53: 51
M54: 3600 | N54: 52
M55: 3650 | N55: 53
M56: 3700 | N56: 54
M57: 3750 | N57: 55
M58: 3800 | N58: 56
M59: 3850 | N59: 57
M60: 3900 | N60: 58
M61: 3950 | N61: 59
M62: 4000 | N62: 60
M63: 4040 | N63: 61
M64: 4080 | N64: 62
M65: 4120 | N65: 63
M66: 4160 | N66: 64
M67: 4200 | N67: 65
M68: 4240 | N68: 66
M69: 4280 | N69: 67
M70: 4320 | N70: 68
M71: 4360 | N71: 69
M72: 4400 | N72: 70
M73: 4440 | N73: 71
M74: 4480 | N74: 72
M75: 4520 | N75: 73
M76: 4560 | N76: 74
M77: 4600 | N77: 75
M78: 4640 | N78: 76
M79: 4680 | N79: 77
M80: 4720 | N80: 78
M81: 4760 | N81: 79
M82: 4800 | N82: 80
M83: 4840 | N83: 81
M84: 4880 | N84: 82
M85: 4920 | N85: 83
M86: 4960 | N86: 84
M87: 5000 | N87: 85
M88: 5040 | N88: 86
M89: 5080 | N89: 87
M90: 5120 | N90: 88
M91: 5160 | N91: 89
M92: 5200 | N92: 90
M93: 5240 | N93: 91
M94: 5280 | N94: 92
M95: 5320 | N95: 93
M96: 5360 | N96: 94
M97: 5400 | N97: 95
M98: 5440 | N98: 96
M99: 5480 | N99: 97
M100: 5520 | N100: 98
M101: 5560 | N101: 99
M102: 5600 | N102: 100
A65536: CELAL KAYAÖZ

Sheet 1500m.
A1: Türkiye Atletizm Federasyonu İzmir Atletizm İl Temsilciliği
A2: Naili Moran Türkiye Atletizm Şampiyonası
A3: Yarışma : | D3: 1500 Metre
A4: Kategori : | D4: 13 Yaş Kızlar | M4: Tarih-Saat | N4: 14 Haziran 2014 - 19:15
N5: 41804.88897
A6: Sıra No | B6: Göğüs No | C6: Doğum Tarihi Gün/Ay/Yıl | D6: Adı ve Soyadı | E6: İLİ | F6: Derece | G6: Puan | I6: 1. SERİ
I7: Sıra No | J7: Formül | K7: Göğüs No | L7: Doğum Tarihi | M7: Adı ve Soyadı | N7: İLİ | O7: Derece | P7: El Kronometre | Q7: Seri Geliş
A8: 1 | B8: 21 | C8: 2001-01-01 | D8: KADER GÜVENÇ | E8: ADIYAMAN | F8: 45228 | G8: 83 | I8: 1 | J8: 1500M-1-1 | K8: 55 | L8: 2001-01-01 | M8: SEDANUR BOZKURT | N8: ARDAHAN | O8: 52253
A9: 2 | B9: 181 | C9: 2001-01-08 | D9: ELİF AKDAĞ | E9: BOLU | F9: 45657 | G9: 82 | I9: 2 | J9: 1500M-1-2 | K9: 542 | L9: 2001-01-01 | M9: KARDELEN ÇELİK | N9: KÜTAHYA | O9: 51509
A10: 3 | B10: 686 | C10: 2001-05-12 | D10: ÖZLEM UÇAR | E10: TOKAT | F10: 50043 | G10: 80 | I10: 3 | J10: 1500M-1-3 | K10: 686 | L10: 2001-05-12 | M10: ÖZLEM UÇAR | N10: TOKAT | O10: 50043
A11: 4 | B11: 275 | C11: 2001-01-01 | D11: RAHİME ERGÜL | E11: GAZİANTEP | F11: 50312 | G11: 79 | I11: 4 | J11: 1500M-1-4 | K11: 275 | L11: 2001-01-01 | M11: RAHİME ERGÜL | N11: GAZİANTEP | O11: 50312
A12: 5 | B12: 363 | C12: 2001-01-01 | D12: EZGİ KAYA | E12: İSTANBUL | F12: 50320 | G12: 79 | I12: 5 | J12: 1500M-1-5 | K12: 390 | L12: 2001-01-07 | M12: SÜMEYRA BAŞARA | N12: İZMİR | O12: 64682
A13: 6 | B13: 276 | C13: 2001-01-01 | D13: EMİNE YILMAZ | E13: GAZİANTEP | F13: 50523 | G13: 79 | I13: 6 | J13: 1500M-1-6 | K13: 363 | L13: 2001-01-01 | M13: EZGİ KAYA | N13: İSTANBUL | O13: 50320
A14: 7 | B14: 619 | C14: 2001-08-12 | D14: SİMGE KUNAK | E14: SAKARYA | F14: 50679 | G14: 79 | I14: 7 | J14: 1500M-1-7 | K14: 56 | L14: 2001-01-01 | M14: MELİKE KILIÇ | N14: ARDAHAN | O14: 61332
A15: 8 | B15: 277 | C15: 2001-01-01 | D15: SAFİYE YAREN ÖZTÜRK | E15: GAZİANTEP | F15: 51088 | G15: 78 | I15: 8 | J15: 1500M-1-8 | K15: 57 | L15: 2001-01-01 | M15: CEREN KILIÇ | N15: ARDAHAN | O15: 60517
A16: 9 | B16: 542 | C16: 2001-01-01 | D16: KARDELEN ÇELİK | E16: KÜTAHYA | F16: 51509 | G16: 77 | I16: 9 | J16: 1500M-1-9 | K16: 134 | L16: 2001-01-01 | M16: RUKEN TEK | N16: BATMAN | O16: 51597
A17: 10 | B17: 134 | C17: 2001-01-01 | D17: RUKEN TEK | E17: BATMAN | F17: 51597 | G17: 75 | I17: 10 | J17: 1500M-1-10 | K17: 181 | L17: 2001-01-08 | M17: ELİF AKDAĞ | N17: BOLU | O17: 45657
A18: 11 | B18: 330 | C18: 2001-03-04 | D18: MEDİNE KORKMAZ | E18: ISPARTA | F18: 51685 | G18: 75 | I18: 11 | J18: 1500M-1-11 | K18: 474 | L18: 2001-04-15 | M18: MERVE G. ELİTOK | N18: KIRIKKALE | O18: 51686
A19: 12 | B19: 474 | C19: 2001-04-15 | D19: MERVE G. ELİTOK | E19: KIRIKKALE | F19: 51686 | G19: 75 | I19: 12 | J19: 1500M-1-12 | K19: 330 | L19: 2001-03-04 | M19: MEDİNE KORKMAZ | N19: ISPARTA | O19: 51685
A20: 13 | B20: 340 | C20: 2001-07-15 | D20: KUBRA GÜLER | E20: ISPARTA | F20: 51785 | G20: 75 | I20: 13 | J20: 1500M-1-13 | K20: 619 | L20: 2001-08-12 | M20: SİMGE KUNAK | N20: SAKARYA | O20: 50679
A21: 14 | B21: 55 | C21: 2001-01-01 | D21: SEDANUR BOZKURT | E21: ARDAHAN | F21: 52253 | G21: 75 | I21: 2. SERİ
A22: 15 | B22: 152 | C22: 2001-03-10 | D22: AYBÜKE KALENDER | E22: BİLECİK | F22: 52304 | G22: 73 | I22: Sıra No | J22: Formül | K22: Göğüs No | L22: Doğum Tarihi | M22: Adı ve Soyadı | N22: İLİ | O22: Derece | P22: El Kronometre | Q22: Seri Geliş
A23: 16 | B23: 338 | C23: 2001-09-24 | D23: TUĞBA KURT | E23: ISPARTA | F23: 52323 | G23: 73 | I23: 1 | J23: 1500M-2-1 | K23: 473 | L23: 2001-06-10 | M23: SULTAN GÜNDOĞDU | N23: KIRIKKALE | O23: 52753
A24: 17 | B24: 707 | C24: 2001-03-15 | D24: ÖZNUR GEDİK | E24: TRABZON | F24: 52570 | G24: 73 | I24: 2 | J24: 1500M-2-2 | K24: 277 | L24: 2001-01-01 | M24: SAFİYE YAREN ÖZTÜRK | N24: GAZİANTEP | O24: 51088
A25: 18 | B25: 214 | C25: 2001-02-28 | D25: SİMGE MUĞLI | E25: ÇANAKKALE | F25: 52642 | G25: 72 | I25: 3 | J25: 1500M-2-3 | K25: 462 | L25: 2001-01-01 | M25: DERYA ATEŞLİ | N25: KARAMAN | O25: 53620
A26: 19 | B26: 393 | C26: 2001-06-08 | D26: BUKET AYDIN | E26: İZMİR | F26: 52701 | G26: 72 | I26: 4 | J26: 1500M-2-4 | K26: 152 | L26: 2001-03-10 | M26: AYBÜKE KALENDER | N26: BİLECİK | O26: 52304
A27: 20 | B27: 180 | C27: 2001-09-10 | D27: MELEK ÇEVİK | E27: BOLU | F27: 52732 | G27: 71 | I27: 5 | J27: 1500M-2-5 | K27: 276 | L27: 2001-01-01 | M27: EMİNE YILMAZ | N27: GAZİANTEP | O27: 50523
A28: 21 | B28: 473 | C28: 2001-06-10 | D28: SULTAN GÜNDOĞDU | E28: KIRIKKALE | F28: 52753 | G28: 71 | I28: 6 | J28: 1500M-2-6 | K28: 692 | L28: 2001-07-12 | M28: TUĞÇE ZENGİN | N28: TOKAT | O28: 53868
A29: 22 | B29: 563 | C29: 2001-02-17 | D29: KARDELEN YILDIZ | E29: MUĞLA | F29: 53114 | G29: 71 | I29: 7 | J29: 1500M-2-7 | K29: 707 | L29: 2001-03-15 | M29: ÖZNUR GEDİK | N29: TRABZON | O29: 52570
A30: 23 | B30: 259 | C30: 2001-05-11 | D30: DİLVAN ÜTRİ | E30: ERZURUM | F30: 53494 | G30: 70 | I30: 8 | J30: 1500M-2-8 | K30: 180 | L30: 2001-09-10 | M30: MELEK ÇEVİK | N30: BOLU | O30: 52732
A31: 24 | B31: 646 | C31: 2001-07-30 | D31: ÖZLEM OYSAL | E31: SİİRT | F31: 53567 | G31: 69 | I31: 9 | J31: 1500M-2-9 | K31: 739 | L31: 2001-06-17 | M31: MELİSA İNCİ | N31: MUĞLA | O31: 54044
A32: 25 | B32: 462 | C32: 2001-01-01 | D32: DERYA ATEŞLİ | E32: KARAMAN | F32: 53620 | G32: 69 | I32: 10 | J32: 1500M-2-10 | K32: 338 | L32: 2001-09-24 | M32: TUĞBA KURT | N32: ISPARTA | O32: 52323
A33: 26 | B33: 312 | C33: 2001-03-26 | D33: BÜŞRA DOĞAN | E33: HATAY | F33: 53840 | G33: 68 | I33: 11 | J33: 1500M-2-11 | K33: 718 | L33: 2001-01-01 | M33: DİDAR GÖKTEPE | N33: TUNCELİ | O33: 54850
A34: 27 | B34: 692 | C34: 2001-07-12 | D34: TUĞÇE ZENGİN | E34: TOKAT | F34: 53868 | G34: 68 | I34: 12 | J34: 1500M-2-12 | K34: 340 | L34: 2001-07-15 | M34: KUBRA GÜLER | N34: ISPARTA | O34: 51785
A35: 28 | B35: 739 | C35: 2001-06-17 | D35: MELİSA İNCİ | E35: MUĞLA | F35: 54044 | G35: 68 | I35: 13 | J35: 1500M-2-13 | K35: 719 | L35: 2001-01-01 | M35: DİLARA DİNLER | N35: TUNCELİ | O35: 63061
A36: 29 | B36: 106 | C36: 2001-07-01 | D36: EDANUR KARADUMAN | E36: BALIKESİR | F36: 54465 | G36: 67 | I36: 3. SERİ
A37: 30 | B37: 359 | C37: 2001-02-06 | D37: BÜŞRA TURHAN | E37: İSTANBUL | F37: 54561 | G37: 66 | I37: Sıra No | J37: Formül | K37: Göğüs No | L37: Doğum Tarihi | M37: Adı ve Soyadı | N37: İLİ | O37: Derece | P37: El Kronometre | Q37: Seri Geliş
A38: 31 | B38: 718 | C38: 2001-01-01 | D38: DİDAR GÖKTEPE | E38: TUNCELİ | F38: 54850 | G38: 65 | I38: 1 | J38: 1500M-3-1 | K38: 106 | L38: 2001-07-01 | M38: EDANUR KARADUMAN | N38: BALIKESİR | O38: 54465
A39: 32 | B39: 123 | C39: 2001-04-09 | D39: YAĞMUR İPEK ALP | E39: BARTIN | F39: 55358 | G39: 64 | I39: 2 | J39: 1500M-3-2 | K39: 214 | L39: 2001-02-28 | M39: SİMGE MUĞLI | N39: ÇANAKKALE | O39: 52642
A40: 33 | B40: 57 | C40: 2001-01-01 | D40: CEREN KILIÇ | E40: ARDAHAN | F40: 60517 | G40: 63 | I40: 3 | J40: 1500M-3-3 | K40: 646 | L40: 2001-07-30 | M40: ÖZLEM OYSAL | N40: SİİRT | O40: 53567
A41: 34 | B41: 110 | C41: 2001-06-19 | D41: TUĞCENUR GÜRSES | E41: BALIKESİR | F41: 61007 | G41: 57 | I41: 4 | J41: 1500M-3-4 | K41: 393 | L41: 2001-06-08 | M41: BUKET AYDIN | N41: İZMİR | O41: 52701
A42: 35 | B42: 56 | C42: 2001-01-01 | D42: MELİKE KILIÇ | E42: ARDAHAN | F42: 61332 | G42: 56 | I42: 5 | J42: 1500M-3-5 | K42: 123 | L42: 2001-04-09 | M42: YAĞMUR İPEK ALP | N42: BARTIN | O42: 55358
A43: 36 | B43: 107 | C43: 2001-02-17 | D43: EZGİ ÇAM | E43: BALIKESİR | F43: 62057 | G43: 54 | I43: 6 | J43: 1500M-3-6 | K43: 563 | L43: 2001-02-17 | M43: KARDELEN YILDIZ | N43: MUĞLA | O43: 53114
A44: 37 | B44: 719 | C44: 2001-01-01 | D44: DİLARA DİNLER | E44: TUNCELİ | F44: 63061 | G44: 50 | I44: 7 | J44: 1500M-3-7 | K44: 110 | L44: 2001-06-19 | M44: TUĞCENUR GÜRSES | N44: BALIKESİR | O44: 61007
A45: 38 | B45: 390 | C45: 2001-01-07 | D45: SÜMEYRA BAŞARA | E45: İZMİR | F45: 64682 | G45: 45 | I45: 8 | J45: 1500M-3-8 | K45: 107 | L45: 2001-02-17 | M45: EZGİ ÇAM | N45: BALIKESİR | O45: 62057
I46: 9 | J46: 1500M-3-9 | K46: 359 | L46: 2001-02-06 | M46: BÜŞRA TURHAN | N46: İSTANBUL | O46: 54561
I47: 10 | J47: 1500M-3-10 | K47: 21 | L47: 2001-01-01 | M47: KADER GÜVENÇ | N47: ADIYAMAN | O47: 45228
I48: 11 | J48: 1500M-3-11 | K48: 259 | L48: 2001-05-11 | M48: DİLVAN ÜTRİ | N48: ERZURUM | O48: 53494
I49: 12 | J49: 1500M-3-12 | K49: 312 | L49: 2001-03-26 | M49: BÜŞRA DOĞAN | N49: HATAY | O49: 53840
I50: 4. SERİ
I51: Sıra No | J51: Formül | K51: Göğüs No | L51: Doğum Tarihi | M51: Adı ve Soyadı | N51: İLİ | O51: Derece | P51: El Kronometre | Q51: Seri Geliş
I52: 1 | J52: 1500M-4-1
I53: 2 | J53: 1500M-4-2
I54: 3 | J54: 1500M-4-3
I55: 4 | J55: 1500M-4-4
I56: 5 | J56: 1500M-4-5
I57: 6 | J57: 1500M-4-6
I58: 7 | J58: 1500M-4-7
I59: 8 | J59: 1500M-4-8
I60: 9 | J60: 1500M-4-9
I61: 10 | J61: 1500M-4-10
I62: 11 | J62: 1500M-4-11
I63: 12 | J63: 1500M-4-12
A65: Müsabakalar Direktörü | E65: Baş Hakem | F65: Lider | H65: Sekreter | M65: Hakem | N65: Hakem | P65: Hakem
A65538: CELAL KAYAÖZ

Sheet Yüksek
A1: Türkiye Atletizm Federasyonu İzmir Atletizm İl Temsilciliği | BX1: DERECE
A2: Naili Moran Türkiye Atletizm Şampiyonası | BX2: 1 | BY2: 0
A3: Yarışma : | E3: Yüksek Atlama | BX3: 98 | BY3: 1
A4: Kategori : | E4: 13 Yaş Kızlar | AW4: Tarih-Saat : | BC4: 14 Haziran 2014 - 18:45 | BX4: 100 | BY4: 2
BR5: 41804.92823 | BX5: 102 | BY5: 3
A6: SIRA NO | C6: GÖĞÜS NO | D6: DOĞUM TARİHİ | E6: ADI VE SOYADI | F6: İLİ | G6: A T L A M A L A R | BR6: SONUÇ | BS6: PUAN | BT6: KLASMAN | BX6: 104 | BY6: 4
G7: 100 | J7: 105 | M7: 110 | P7: 115 | S7: 120 | V7: 125 | Y7: 130 | AB7: 134 | AE7: 138 | AH7: 142 | AK7: 146 | AN7: 150 | AQ7: 152 | AT7: 154 | AW7: 156 | AZ7: 158 | BC7: 160 | BF7: 162 | BI7: 164 | BL7: 166 | BO7: 168 | BX7: 106 | BY7: 5
A8: 1 | B8: Yüksek-1 | C8: 358 | D8: 2001-05-15 | E8: İREM ZEHRA KARABABA | F8: İSTANBUL | G8: - | J8: - | M8: - | P8: - | S8: - | V8: - | Y8: O | AB8: O | AE8: X | AF8: O | AH8: X | AI8: X | AJ8: X | BR8: 138 | BS8: 74 | BT8: 1 | BX8: 108 | BY8: 6
A9: 2 | B9: Yüksek-6 | C9: 337 | D9: 2001-01-02 | E9: RUMEYSA COŞKUN | F9: ISPARTA | G9: - | J9: - | M9: O | P9: O | S9: X | T9: X | U9: O | V9: O | Y9: O | AB9: O | AE9: X | AF9: X | AG9: X | BR9: 134 | BS9: 70 | BT9: 2 | BX9: 110 | BY9: 7
A10: 3 | B10: Yüksek-3 | C10: 399 | D10: 2001-08-16 | E10: BEGÜM ARICI | F10: İZMİR | G10: - | J10: - | M10: - | P10: - | S10: O | V10: O | Y10: O | AB10: X | AC10: X | AD10: X | BR10: 130 | BS10: 66 | BT10: 3 | BX10: 112 | BY10: 8
A11: 4 | B11: Yüksek-9 | C11: 36 | D11: 2001-03-13 | E11: SONGÜL KARTAL | F11: AKSARAY | G11: - | J11: - | M11: O | P11: O | S11: O | V11: X | W11: X | X11: O | Y11: X | Z11: X | AA11: O | AB11: X | AC11: X | AD11: X | BR11: 130 | BS11: 66 | BT11: 4 | BX11: 114 | BY11: 9
A12: 5 | B12: Yüksek-5 | C12: 104 | D12: 2001-06-03 | E12: HİLAYDA ARSLAN | F12: BALIKESİR | G12: - | J12: - | M12: - | P12: O | S12: O | V12: O | Y12: X | Z12: X | AA12: X | BR12: 125 | BS12: 61 | BT12: 5 | BX12: 116 | BY12: 10
A13: 6 | B13: Yüksek-8 | C13: 741 | D13: 2001-05-04 | E13: BERİVAN DEMİR | F13: SAKARYA | G13: - | J13: - | M13: O | P13: O | S13: O | V13: X | W13: O | Y13: X | Z13: X | AA13: X | BR13: 125 | BS13: 61 | BT13: 6 | BX13: 118 | BY13: 11
A14: 7 | B14: Yüksek-4 | C14: 676 | D14: 2001-09-08 | E14: MELİKE SEVİNÇ | F14: TEKİRDAĞ | G14: - | J14: - | M14: X | N14: X | O14: O | P14: O | S14: X | T14: X | U14: O | V14: X | W14: X | X14: O | Y14: X | Z14: X | AA14: X | BR14: 125 | BS14: 61 | BT14: 7 | BX14: 120 | BY14: 12
A15: 8 | B15: Yüksek-7 | C15: 542 | D15: 2001-01-01 | E15: KARDELEN ÇELİK | F15: KÜTAHYA | G15: - | J15: - | M15: - | P15: O | S15: X | T15: O | V15: X | W15: X | X15: X | BR15: 120 | BS15: 56 | BT15: 8 | BX15: 122 | BY15: 13
A16: - | B16: Yüksek-2 | C16: 396 | D16: 2001-05-10 | E16: DEFNE GÜLÜŞ | F16: İZMİR | BR16: DNS | BS16: 0 | BT16: - | BX16: 124 | BY16: 14
B17: Yüksek-10 | BX17: 126 | BY17: 15
B18: Yüksek-11 | BX18: 128 | BY18: 16
B19: Yüksek-12 | BX19: 130 | BY19: 17
B20: Yüksek-13 | BX20: 132 | BY20: 18
B21: Yüksek-14 | BX21: 134 | BY21: 19
B22: Yüksek-15 | BX22: 136 | BY22: 20
B23: Yüksek-16 | BX23: 138 | BY23: 21
B24: Yüksek-17 | BX24: 140 | BY24: 22
B25: Yüksek-18 | BX25: 142 | BY25: 23
B26: Yüksek-19 | BX26: 144 | BY26: 24
B27: Yüksek-20 | BX27: 146 | BY27: 25
B28: Yüksek-21 | BX28: 148 | BY28: 26
B29: Yüksek-22 | BX29: 150 | BY29: 27
B30: Yüksek-23 | BX30: 152 | BY30: 28
B31: Yüksek-24 | BX31: 154 | BY31: 29
B32: Yüksek-25 | BX32: 156 | BY32: 30
BX33: 157 | BY33: 31
A34: Müsabaka Direktörü | F34: Baş Hakem | J34: Lider | S34: Sekreter | BR34: Hakem | BX34: 158 | BY34: 32
BX35: 159 | BY35: 33
BX36: 160 | BY36: 34
BX37: 161 | BY37: 35
BX38: 162 | BY38: 36
BX39: 163 | BY39: 37
BX40: 164 | BY40: 38
BX41: 165 | BY41: 39
BX42: 166 | BY42: 40
BX43: 167 | BY43: 41
BX44: 168 | BY44: 42
BX45: 169 | BY45: 43
BX46: 170 | BY46: 44
BX47: 171 | BY47: 45
BX48: 172 | BY48: 46
BX49: 173 | BY49: 47
BX50: 174 | BY50: 48
BX51: 175 | BY51: 49
BX52: 176 | BY52: 50
BX53: 177 | BY53: 51
BX54: 178 | BY54: 52
BX55: 179 | BY55: 53
BX56: 180 | BY56: 54
BX57: 181 | BY57: 55
BX58: 182 | BY58: 56
BX59: 183 | BY59: 57
BX60: 184 | BY60: 58
BX61: 185 | BY61: 59
BX62: 186 | BY62: 60
BX63: 187 | BY63: 61
BX64: 188 | BY64: 62
BX65: 189 | BY65: 63
BX66: 190 | BY66: 64
BX67: 191 | BY67: 65
BX68: 192 | BY68: 66
BX69: 193 | BY69: 67
BX70: 194 | BY70: 68
BX71: 195 | BY71: 69
BX72: 196 | BY72: 70
BX73: 197 | BY73: 71
BX74: 198 | BY74: 72
BX75: 199 | BY75: 73
BX76: 200 | BY76: 74
BX77: 201 | BY77: 75
BX78: 202 | BY78: 76
BX79: 203 | BY79: 77
BX80: 204 | BY80: 78
BX81: 205 | BY81: 79
BX82: 206 | BY82: 80
BX83: 207 | BY83: 81
BX84: 208 | BY84: 82
BX85: 209 | BY85: 83
BX86: 210 | BY86: 84
BX87: 211 | BY87: 85
BX88: 212 | BY88: 86
BX89: 213 | BY89: 87
BX90: 214 | BY90: 88
BX91: 215 | BY91: 89
BX92: 216 | BY92: 90
BY93: 91
BX94: 217 | BY94: 92
BY95: 93
BX96: 218 | BY96: 94
BY97: 95
BX98: 219 | BY98: 96
BY99: 97
BX100: 220 | BY100: 98
BY101: 99
BX102: 221 | BY102: 100
BX281: DNS | BY281: 0
A65536: CELAL KAYAÖZ

Sheet Sırık (hidden)
A1: =('YARIŞMA BİLGİLERİ'!A2) -> Türkiye Atletizm Federasyonu İzmir Atletizm İl Temsilciliği
A2: ='YARIŞMA BİLGİLERİ'!F19 -> Naili Moran Türkiye Atletizm Şampiyonası
A3: Yarışma : | E3: ='YARIŞMA PROGRAMI'!C22 -> Sırıkla Atlama
A4: Kategori : | E4: ='YARIŞMA BİLGİLERİ'!F21 -> 13 Yaş Kızlar | AW4: Tarih-Saat : | BF4: ='YARIŞMA PROGRAMI'!B22 -> 15 Haziran 2014 - 11:15
BX5: =NOW() -> 41805.6424
A6: SIRA NO | C6: GÖĞÜS NO | D6: DOĞUM TARİHİ | E6: ADI VE SOYADI | F6: İLİ | G6: A T L A M A L A R | BX6: SONUÇ | BY6: PUAN | BZ6: KLASMAN
G7: 140 | J7: 160 | M7: 180 | P7: 190 | S7: 200 | V7: 210 | Y7: 220 | AB7: 230 | AE7: 240 | AH7: 250 | AK7: 260 | AN7: 270 | AQ7: 280 | AT7: 290 | AW7: 300 | AZ7: 310 | BC7: 320 | BF7: 330 | BI7: 340 | BL7: 350 | BO7: 360 | BR7: 370 | BU7: 420 | BV7: 425 | BW7: 430
B8: SIRIK-1 | C8: =IF(ISERROR(VLOOKUP(B8,'KAYIT LİSTESİ'!$B$4:$H$829,2,0)),"",(VLOOKUP(B8,'KAYIT LİSTESİ'!$B$4:$H$829,2,0))) ->  | D8: =IF(ISERROR(VLOOKUP(B8,'KAYIT LİSTESİ'!$B$4:$H$829,4,0)),"",(VLOOKUP(B8,'KAYIT LİSTESİ'!$B$4:$H$829,4,0))) ->  | E8: =IF(ISERROR(VLOOKUP(B8,'KAYIT LİSTESİ'!$B$4:$H$829,5,0)),"",(VLOOKUP(B8,'KAYIT LİSTESİ'!$B$4:$H$829,5,0))) ->  | F8: =IF(ISERROR(VLOOKUP(B8,'KAYIT LİSTESİ'!$B$4:$H$829,6,0)),"",(VLOOKUP(B8,'KAYIT LİSTESİ'!$B$4:$H$829,6,0))) ->  | BY8: =IF(LEN(BX8)>0,VLOOKUP(BX8,puan!$AC$4:$AH$111,6)-IF(COUNTIF(puan!$AC$4:$AH$111,BX8)=0,0,0)," ") -> 
B9: SIRIK-2 | C9: =IF(ISERROR(VLOOKUP(B9,'KAYIT LİSTESİ'!$B$4:$H$829,2,0)),"",(VLOOKUP(B9,'KAYIT LİSTESİ'!$B$4:$H$829,2,0))) ->  | D9: =IF(ISERROR(VLOOKUP(B9,'KAYIT LİSTESİ'!$B$4:$H$829,4,0)),"",(VLOOKUP(B9,'KAYIT LİSTESİ'!$B$4:$H$829,4,0))) ->  | E9: =IF(ISERROR(VLOOKUP(B9,'KAYIT LİSTESİ'!$B$4:$H$829,5,0)),"",(VLOOKUP(B9,'KAYIT LİSTESİ'!$B$4:$H$829,5,0))) ->  | F9: =IF(ISERROR(VLOOKUP(B9,'KAYIT LİSTESİ'!$B$4:$H$829,6,0)),"",(VLOOKUP(B9,'KAYIT LİSTESİ'!$B$4:$H$829,6,0))) ->  | BY9: =IF(LEN(BX9)>0,VLOOKUP(BX9,puan!$AC$4:$AH$111,6)-IF(COUNTIF(puan!$AC$4:$AH$111,BX9)=0,0,0)," ") -> 
B10: SIRIK-3 | C10: =IF(ISERROR(VLOOKUP(B10,'KAYIT LİSTESİ'!$B$4:$H$829,2,0)),"",(VLOOKUP(B10,'KAYIT LİSTESİ'!$B$4:$H$829,2,0))) ->  | D10: =IF(ISERROR(VLOOKUP(B10,'KAYIT LİSTESİ'!$B$4:$H$829,4,0)),"",(VLOOKUP(B10,'KAYIT LİSTESİ'!$B$4:$H$829,4,0))) ->  | E10: =IF(ISERROR(VLOOKUP(B10,'KAYIT LİSTESİ'!$B$4:$H$829,5,0)),"",(VLOOKUP(B10,'KAYIT LİSTESİ'!$B$4:$H$829,5,0))) ->  | F10: =IF(ISERROR(VLOOKUP(B10,'KAYIT LİSTESİ'!$B$4:$H$829,6,0)),"",(VLOOKUP(B10,'KAYIT LİSTESİ'!$B$4:$H$829,6,0))) ->  | BY10: =IF(LEN(BX10)>0,VLOOKUP(BX10,puan!$AC$4:$AH$111,6)-IF(COUNTIF(puan!$AC$4:$AH$111,BX10)=0,0,0)," ") -> 
B11: SIRIK-4 | C11: =IF(ISERROR(VLOOKUP(B11,'KAYIT LİSTESİ'!$B$4:$H$829,2,0)),"",(VLOOKUP(B11,'KAYIT LİSTESİ'!$B$4:$H$829,2,0))) ->  | D11: =IF(ISERROR(VLOOKUP(B11,'KAYIT LİSTESİ'!$B$4:$H$829,4,0)),"",(VLOOKUP(B11,'KAYIT LİSTESİ'!$B$4:$H$829,4,0))) ->  | E11: =IF(ISERROR(VLOOKUP(B11,'KAYIT LİSTESİ'!$B$4:$H$829,5,0)),"",(VLOOKUP(B11,'KAYIT LİSTESİ'!$B$4:$H$829,5,0))) ->  | F11: =IF(ISERROR(VLOOKUP(B11,'KAYIT LİSTESİ'!$B$4:$H$829,6,0)),"",(VLOOKUP(B11,'KAYIT LİSTESİ'!$B$4:$H$829,6,0))) ->  | BY11: =IF(LEN(BX11)>0,VLOOKUP(BX11,puan!$AC$4:$AH$111,6)-IF(COUNTIF(puan!$AC$4:$AH$111,BX11)=0,0,0)," ") -> 
B12: SIRIK-5 | C12: =IF(ISERROR(VLOOKUP(B12,'KAYIT LİSTESİ'!$B$4:$H$829,2,0)),"",(VLOOKUP(B12,'KAYIT LİSTESİ'!$B$4:$H$829,2,0))) ->  | D12: =IF(ISERROR(VLOOKUP(B12,'KAYIT LİSTESİ'!$B$4:$H$829,4,0)),"",(VLOOKUP(B12,'KAYIT LİSTESİ'!$B$4:$H$829,4,0))) ->  | E12: =IF(ISERROR(VLOOKUP(B12,'KAYIT LİSTESİ'!$B$4:$H$829,5,0)),"",(VLOOKUP(B12,'KAYIT LİSTESİ'!$B$4:$H$829,5,0))) ->  | F12: =IF(ISERROR(VLOOKUP(B12,'KAYIT LİSTESİ'!$B$4:$H$829,6,0)),"",(VLOOKUP(B12,'KAYIT LİSTESİ'!$B$4:$H$829,6,0))) ->  | BY12: =IF(LEN(BX12)>0,VLOOKUP(BX12,puan!$AC$4:$AH$111,6)-IF(COUNTIF(puan!$AC$4:$AH$111,BX12)=0,0,0)," ") -> 
B13: SIRIK-6 | C13: =IF(ISERROR(VLOOKUP(B13,'KAYIT LİSTESİ'!$B$4:$H$829,2,0)),"",(VLOOKUP(B13,'KAYIT LİSTESİ'!$B$4:$H$829,2,0))) ->  | D13: =IF(ISERROR(VLOOKUP(B13,'KAYIT LİSTESİ'!$B$4:$H$829,4,0)),"",(VLOOKUP(B13,'KAYIT LİSTESİ'!$B$4:$H$829,4,0))) ->  | E13: =IF(ISERROR(VLOOKUP(B13,'KAYIT LİSTESİ'!$B$4:$H$829,5,0)),"",(VLOOKUP(B13,'KAYIT LİSTESİ'!$B$4:$H$829,5,0))) ->  | F13: =IF(ISERROR(VLOOKUP(B13,'KAYIT LİSTESİ'!$B$4:$H$829,6,0)),"",(VLOOKUP(B13,'KAYIT LİSTESİ'!$B$4:$H$829,6,0))) ->  | BY13: =IF(LEN(BX13)>0,VLOOKUP(BX13,puan!$AC$4:$AH$111,6)-IF(COUNTIF(puan!$AC$4:$AH$111,BX13)=0,0,0)," ") -> 
B14: SIRIK-7 | C14: =IF(ISERROR(VLOOKUP(B14,'KAYIT LİSTESİ'!$B$4:$H$829,2,0)),"",(VLOOKUP(B14,'KAYIT LİSTESİ'!$B$4:$H$829,2,0))) ->  | D14: =IF(ISERROR(VLOOKUP(B14,'KAYIT LİSTESİ'!$B$4:$H$829,4,0)),"",(VLOOKUP(B14,'KAYIT LİSTESİ'!$B$4:$H$829,4,0))) ->  | E14: =IF(ISERROR(VLOOKUP(B14,'KAYIT LİSTESİ'!$B$4:$H$829,5,0)),"",(VLOOKUP(B14,'KAYIT LİSTESİ'!$B$4:$H$829,5,0))) ->  | F14: =IF(ISERROR(VLOOKUP(B14,'KAYIT LİSTESİ'!$B$4:$H$829,6,0)),"",(VLOOKUP(B14,'KAYIT LİSTESİ'!$B$4:$H$829,6,0))) ->  | BY14: =IF(LEN(BX14)>0,VLOOKUP(BX14,puan!$AC$4:$AH$111,6)-IF(COUNTIF(puan!$AC$4:$AH$111,BX14)=0,0,0)," ") -> 
B15: SIRIK-8 | C15: =IF(ISERROR(VLOOKUP(B15,'KAYIT LİSTESİ'!$B$4:$H$829,2,0)),"",(VLOOKUP(B15,'KAYIT LİSTESİ'!$B$4:$H$829,2,0))) ->  | D15: =IF(ISERROR(VLOOKUP(B15,'KAYIT LİSTESİ'!$B$4:$H$829,4,0)),"",(VLOOKUP(B15,'KAYIT LİSTESİ'!$B$4:$H$829,4,0))) ->  | E15: =IF(ISERROR(VLOOKUP(B15,'KAYIT LİSTESİ'!$B$4:$H$829,5,0)),"",(VLOOKUP(B15,'KAYIT LİSTESİ'!$B$4:$H$829,5,0))) ->  | F15: =IF(ISERROR(VLOOKUP(B15,'KAYIT LİSTESİ'!$B$4:$H$829,6,0)),"",(VLOOKUP(B15,'KAYIT LİSTESİ'!$B$4:$H$829,6,0))) ->  | BY15: =IF(LEN(BX15)>0,VLOOKUP(BX15,puan!$AC$4:$AH$111,6)-IF(COUNTIF(puan!$AC$4:$AH$111,BX15)=0,0,0)," ") -> 
B16: SIRIK-9 | C16: =IF(ISERROR(VLOOKUP(B16,'KAYIT LİSTESİ'!$B$4:$H$829,2,0)),"",(VLOOKUP(B16,'KAYIT LİSTESİ'!$B$4:$H$829,2,0))) ->  | D16: =IF(ISERROR(VLOOKUP(B16,'KAYIT LİSTESİ'!$B$4:$H$829,4,0)),"",(VLOOKUP(B16,'KAYIT LİSTESİ'!$B$4:$H$829,4,0))) ->  | E16: =IF(ISERROR(VLOOKUP(B16,'KAYIT LİSTESİ'!$B$4:$H$829,5,0)),"",(VLOOKUP(B16,'KAYIT LİSTESİ'!$B$4:$H$829,5,0))) ->  | F16: =IF(ISERROR(VLOOKUP(B16,'KAYIT LİSTESİ'!$B$4:$H$829,6,0)),"",(VLOOKUP(B16,'KAYIT LİSTESİ'!$B$4:$H$829,6,0))) ->  | BY16: =IF(LEN(BX16)>0,VLOOKUP(BX16,puan!$AC$4:$AH$111,6)-IF(COUNTIF(puan!$AC$4:$AH$111,BX16)=0,0,0)," ") -> 
B17: SIRIK-10 | C17: =IF(ISERROR(VLOOKUP(B17,'KAYIT LİSTESİ'!$B$4:$H$829,2,0)),"",(VLOOKUP(B17,'KAYIT LİSTESİ'!$B$4:$H$829,2,0))) ->  | D17: =IF(ISERROR(VLOOKUP(B17,'KAYIT LİSTESİ'!$B$4:$H$829,4,0)),"",(VLOOKUP(B17,'KAYIT LİSTESİ'!$B$4:$H$829,4,0))) ->  | E17: =IF(ISERROR(VLOOKUP(B17,'KAYIT LİSTESİ'!$B$4:$H$829,5,0)),"",(VLOOKUP(B17,'KAYIT LİSTESİ'!$B$4:$H$829,5,0))) ->  | F17: =IF(ISERROR(VLOOKUP(B17,'KAYIT LİSTESİ'!$B$4:$H$829,6,0)),"",(VLOOKUP(B17,'KAYIT LİSTESİ'!$B$4:$H$829,6,0))) ->  | BY17: =IF(LEN(BX17)>0,VLOOKUP(BX17,puan!$AC$4:$AH$111,6)-IF(COUNTIF(puan!$AC$4:$AH$111,BX17)=0,0,0)," ") -> 
B18: SIRIK-11 | C18: =IF(ISERROR(VLOOKUP(B18,'KAYIT LİSTESİ'!$B$4:$H$829,2,0)),"",(VLOOKUP(B18,'KAYIT LİSTESİ'!$B$4:$H$829,2,0))) ->  | D18: =IF(ISERROR(VLOOKUP(B18,'KAYIT LİSTESİ'!$B$4:$H$829,4,0)),"",(VLOOKUP(B18,'KAYIT LİSTESİ'!$B$4:$H$829,4,0))) ->  | E18: =IF(ISERROR(VLOOKUP(B18,'KAYIT LİSTESİ'!$B$4:$H$829,5,0)),"",(VLOOKUP(B18,'KAYIT LİSTESİ'!$B$4:$H$829,5,0))) ->  | F18: =IF(ISERROR(VLOOKUP(B18,'KAYIT LİSTESİ'!$B$4:$H$829,6,0)),"",(VLOOKUP(B18,'KAYIT LİSTESİ'!$B$4:$H$829,6,0))) ->  | BY18: =IF(LEN(BX18)>0,VLOOKUP(BX18,puan!$AC$4:$AH$111,6)-IF(COUNTIF(puan!$AC$4:$AH$111,BX18)=0,0,0)," ") -> 
B19: SIRIK-12 | C19: =IF(ISERROR(VLOOKUP(B19,'KAYIT LİSTESİ'!$B$4:$H$829,2,0)),"",(VLOOKUP(B19,'KAYIT LİSTESİ'!$B$4:$H$829,2,0))) ->  | D19: =IF(ISERROR(VLOOKUP(B19,'KAYIT LİSTESİ'!$B$4:$H$829,4,0)),"",(VLOOKUP(B19,'KAYIT LİSTESİ'!$B$4:$H$829,4,0))) ->  | E19: =IF(ISERROR(VLOOKUP(B19,'KAYIT LİSTESİ'!$B$4:$H$829,5,0)),"",(VLOOKUP(B19,'KAYIT LİSTESİ'!$B$4:$H$829,5,0))) ->  | F19: =IF(ISERROR(VLOOKUP(B19,'KAYIT LİSTESİ'!$B$4:$H$829,6,0)),"",(VLOOKUP(B19,'KAYIT LİSTESİ'!$B$4:$H$829,6,0))) ->  | BY19: =IF(LEN(BX19)>0,VLOOKUP(BX19,puan!$AC$4:$AH$111,6)-IF(COUNTIF(puan!$AC$4:$AH$111,BX19)=0,0,0)," ") -> 
B20: SIRIK-13 | C20: =IF(ISERROR(VLOOKUP(B20,'KAYIT LİSTESİ'!$B$4:$H$829,2,0)),"",(VLOOKUP(B20,'KAYIT LİSTESİ'!$B$4:$H$829,2,0))) ->  | D20: =IF(ISERROR(VLOOKUP(B20,'KAYIT LİSTESİ'!$B$4:$H$829,4,0)),"",(VLOOKUP(B20,'KAYIT LİSTESİ'!$B$4:$H$829,4,0))) ->  | E20: =IF(ISERROR(VLOOKUP(B20,'KAYIT LİSTESİ'!$B$4:$H$829,5,0)),"",(VLOOKUP(B20,'KAYIT LİSTESİ'!$B$4:$H$829,5,0))) ->  | F20: =IF(ISERROR(VLOOKUP(B20,'KAYIT LİSTESİ'!$B$4:$H$829,6,0)),"",(VLOOKUP(B20,'KAYIT LİSTESİ'!$B$4:$H$829,6,0))) ->  | BY20: =IF(LEN(BX20)>0,VLOOKUP(BX20,puan!$AC$4:$AH$111,6)-IF(COUNTIF(puan!$AC$4:$AH$111,BX20)=0,0,0)," ") -> 
B21: SIRIK-14 | C21: =IF(ISERROR(VLOOKUP(B21,'KAYIT LİSTESİ'!$B$4:$H$829,2,0)),"",(VLOOKUP(B21,'KAYIT LİSTESİ'!$B$4:$H$829,2,0))) ->  | D21: =IF(ISERROR(VLOOKUP(B21,'KAYIT LİSTESİ'!$B$4:$H$829,4,0)),"",(VLOOKUP(B21,'KAYIT LİSTESİ'!$B$4:$H$829,4,0))) ->  | E21: =IF(ISERROR(VLOOKUP(B21,'KAYIT LİSTESİ'!$B$4:$H$829,5,0)),"",(VLOOKUP(B21,'KAYIT LİSTESİ'!$B$4:$H$829,5,0))) ->  | F21: =IF(ISERROR(VLOOKUP(B21,'KAYIT LİSTESİ'!$B$4:$H$829,6,0)),"",(VLOOKUP(B21,'KAYIT LİSTESİ'!$B$4:$H$829,6,0))) ->  | BY21: =IF(LEN(BX21)>0,VLOOKUP(BX21,puan!$AC$4:$AH$111,6)-IF(COUNTIF(puan!$AC$4:$AH$111,BX21)=0,0,0)," ") -> 
B22: SIRIK-15 | C22: =IF(ISERROR(VLOOKUP(B22,'KAYIT LİSTESİ'!$B$4:$H$829,2,0)),"",(VLOOKUP(B22,'KAYIT LİSTESİ'!$B$4:$H$829,2,0))) ->  | D22: =IF(ISERROR(VLOOKUP(B22,'KAYIT LİSTESİ'!$B$4:$H$829,4,0)),"",(VLOOKUP(B22,'KAYIT LİSTESİ'!$B$4:$H$829,4,0))) ->  | E22: =IF(ISERROR(VLOOKUP(B22,'KAYIT LİSTESİ'!$B$4:$H$829,5,0)),"",(VLOOKUP(B22,'KAYIT LİSTESİ'!$B$4:$H$829,5,0))) ->  | F22: =IF(ISERROR(VLOOKUP(B22,'KAYIT LİSTESİ'!$B$4:$H$829,6,0)),"",(VLOOKUP(B22,'KAYIT LİSTESİ'!$B$4:$H$829,6,0))) ->  | BY22: =IF(LEN(BX22)>0,VLOOKUP(BX22,puan!$AC$4:$AH$111,6)-IF(COUNTIF(puan!$AC$4:$AH$111,BX22)=0,0,0)," ") -> 
B23: SIRIK-16 | C23: =IF(ISERROR(VLOOKUP(B23,'KAYIT LİSTESİ'!$B$4:$H$829,2,0)),"",(VLOOKUP(B23,'KAYIT LİSTESİ'!$B$4:$H$829,2,0))) ->  | D23: =IF(ISERROR(VLOOKUP(B23,'KAYIT LİSTESİ'!$B$4:$H$829,4,0)),"",(VLOOKUP(B23,'KAYIT LİSTESİ'!$B$4:$H$829,4,0))) ->  | E23: =IF(ISERROR(VLOOKUP(B23,'KAYIT LİSTESİ'!$B$4:$H$829,5,0)),"",(VLOOKUP(B23,'KAYIT LİSTESİ'!$B$4:$H$829,5,0))) ->  | F23: =IF(ISERROR(VLOOKUP(B23,'KAYIT LİSTESİ'!$B$4:$H$829,6,0)),"",(VLOOKUP(B23,'KAYIT LİSTESİ'!$B$4:$H$829,6,0))) ->  | BY23: =IF(LEN(BX23)>0,VLOOKUP(BX23,puan!$AC$4:$AH$111,6)-IF(COUNTIF(puan!$AC$4:$AH$111,BX23)=0,0,0)," ") -> 
B24: SIRIK-17 | C24: =IF(ISERROR(VLOOKUP(B24,'KAYIT LİSTESİ'!$B$4:$H$829,2,0)),"",(VLOOKUP(B24,'KAYIT LİSTESİ'!$B$4:$H$829,2,0))) ->  | D24: =IF(ISERROR(VLOOKUP(B24,'KAYIT LİSTESİ'!$B$4:$H$829,4,0)),"",(VLOOKUP(B24,'KAYIT LİSTESİ'!$B$4:$H$829,4,0))) ->  | E24: =IF(ISERROR(VLOOKUP(B24,'KAYIT LİSTESİ'!$B$4:$H$829,5,0)),"",(VLOOKUP(B24,'KAYIT LİSTESİ'!$B$4:$H$829,5,0))) ->  | F24: =IF(ISERROR(VLOOKUP(B24,'KAYIT LİSTESİ'!$B$4:$H$829,6,0)),"",(VLOOKUP(B24,'KAYIT LİSTESİ'!$B$4:$H$829,6,0))) ->  | BY24: =IF(LEN(BX24)>0,VLOOKUP(BX24,puan!$AC$4:$AH$111,6)-IF(COUNTIF(puan!$AC$4:$AH$111,BX24)=0,0,0)," ") -> 
B25: SIRIK-18 | C25: =IF(ISERROR(VLOOKUP(B25,'KAYIT LİSTESİ'!$B$4:$H$829,2,0)),"",(VLOOKUP(B25,'KAYIT LİSTESİ'!$B$4:$H$829,2,0))) ->  | D25: =IF(ISERROR(VLOOKUP(B25,'KAYIT LİSTESİ'!$B$4:$H$829,4,0)),"",(VLOOKUP(B25,'KAYIT LİSTESİ'!$B$4:$H$829,4,0))) ->  | E25: =IF(ISERROR(VLOOKUP(B25,'KAYIT LİSTESİ'!$B$4:$H$829,5,0)),"",(VLOOKUP(B25,'KAYIT LİSTESİ'!$B$4:$H$829,5,0))) ->  | F25: =IF(ISERROR(VLOOKUP(B25,'KAYIT LİSTESİ'!$B$4:$H$829,6,0)),"",(VLOOKUP(B25,'KAYIT LİSTESİ'!$B$4:$H$829,6,0))) ->  | BY25: =IF(LEN(BX25)>0,VLOOKUP(BX25,puan!$AC$4:$AH$111,6)-IF(COUNTIF(puan!$AC$4:$AH$111,BX25)=0,0,0)," ") -> 
B26: SIRIK-19 | C26: =IF(ISERROR(VLOOKUP(B26,'KAYIT LİSTESİ'!$B$4:$H$829,2,0)),"",(VLOOKUP(B26,'KAYIT LİSTESİ'!$B$4:$H$829,2,0))) ->  | D26: =IF(ISERROR(VLOOKUP(B26,'KAYIT LİSTESİ'!$B$4:$H$829,4,0)),"",(VLOOKUP(B26,'KAYIT LİSTESİ'!$B$4:$H$829,4,0))) ->  | E26: =IF(ISERROR(VLOOKUP(B26,'KAYIT LİSTESİ'!$B$4:$H$829,5,0)),"",(VLOOKUP(B26,'KAYIT LİSTESİ'!$B$4:$H$829,5,0))) ->  | F26: =IF(ISERROR(VLOOKUP(B26,'KAYIT LİSTESİ'!$B$4:$H$829,6,0)),"",(VLOOKUP(B26,'KAYIT LİSTESİ'!$B$4:$H$829,6,0))) ->  | BY26: =IF(LEN(BX26)>0,VLOOKUP(BX26,puan!$AC$4:$AH$111,6)-IF(COUNTIF(puan!$AC$4:$AH$111,BX26)=0,0,0)," ") -> 
B27: SIRIK-20 | C27: =IF(ISERROR(VLOOKUP(B27,'KAYIT LİSTESİ'!$B$4:$H$829,2,0)),"",(VLOOKUP(B27,'KAYIT LİSTESİ'!$B$4:$H$829,2,0))) ->  | D27: =IF(ISERROR(VLOOKUP(B27,'KAYIT LİSTESİ'!$B$4:$H$829,4,0)),"",(VLOOKUP(B27,'KAYIT LİSTESİ'!$B$4:$H$829,4,0))) ->  | E27: =IF(ISERROR(VLOOKUP(B27,'KAYIT LİSTESİ'!$B$4:$H$829,5,0)),"",(VLOOKUP(B27,'KAYIT LİSTESİ'!$B$4:$H$829,5,0))) ->  | F27: =IF(ISERROR(VLOOKUP(B27,'KAYIT LİSTESİ'!$B$4:$H$829,6,0)),"",(VLOOKUP(B27,'KAYIT LİSTESİ'!$B$4:$H$829,6,0))) ->  | BY27: =IF(LEN(BX27)>0,VLOOKUP(BX27,puan!$AC$4:$AH$111,6)-IF(COUNTIF(puan!$AC$4:$AH$111,BX27)=0,0,0)," ") -> 
B28: SIRIK-21 | C28: =IF(ISERROR(VLOOKUP(B28,'KAYIT LİSTESİ'!$B$4:$H$829,2,0)),"",(VLOOKUP(B28,'KAYIT LİSTESİ'!$B$4:$H$829,2,0))) ->  | D28: =IF(ISERROR(VLOOKUP(B28,'KAYIT LİSTESİ'!$B$4:$H$829,4,0)),"",(VLOOKUP(B28,'KAYIT LİSTESİ'!$B$4:$H$829,4,0))) ->  | E28: =IF(ISERROR(VLOOKUP(B28,'KAYIT LİSTESİ'!$B$4:$H$829,5,0)),"",(VLOOKUP(B28,'KAYIT LİSTESİ'!$B$4:$H$829,5,0))) ->  | F28: =IF(ISERROR(VLOOKUP(B28,'KAYIT LİSTESİ'!$B$4:$H$829,6,0)),"",(VLOOKUP(B28,'KAYIT LİSTESİ'!$B$4:$H$829,6,0))) ->  | BY28: =IF(LEN(BX28)>0,VLOOKUP(BX28,puan!$AC$4:$AH$111,6)-IF(COUNTIF(puan!$AC$4:$AH$111,BX28)=0,0,0)," ") -> 
B29: SIRIK-22 | C29: =IF(ISERROR(VLOOKUP(B29,'KAYIT LİSTESİ'!$B$4:$H$829,2,0)),"",(VLOOKUP(B29,'KAYIT LİSTESİ'!$B$4:$H$829,2,0))) ->  | D29: =IF(ISERROR(VLOOKUP(B29,'KAYIT LİSTESİ'!$B$4:$H$829,4,0)),"",(VLOOKUP(B29,'KAYIT LİSTESİ'!$B$4:$H$829,4,0))) ->  | E29: =IF(ISERROR(VLOOKUP(B29,'KAYIT LİSTESİ'!$B$4:$H$829,5,0)),"",(VLOOKUP(B29,'KAYIT LİSTESİ'!$B$4:$H$829,5,0))) ->  | F29: =IF(ISERROR(VLOOKUP(B29,'KAYIT LİSTESİ'!$B$4:$H$829,6,0)),"",(VLOOKUP(B29,'KAYIT LİSTESİ'!$B$4:$H$829,6,0))) ->  | BY29: =IF(LEN(BX29)>0,VLOOKUP(BX29,puan!$AC$4:$AH$111,6)-IF(COUNTIF(puan!$AC$4:$AH$111,BX29)=0,0,0)," ") -> 
B30: SIRIK-23 | C30: =IF(ISERROR(VLOOKUP(B30,'KAYIT LİSTESİ'!$B$4:$H$829,2,0)),"",(VLOOKUP(B30,'KAYIT LİSTESİ'!$B$4:$H$829,2,0))) ->  | D30: =IF(ISERROR(VLOOKUP(B30,'KAYIT LİSTESİ'!$B$4:$H$829,4,0)),"",(VLOOKUP(B30,'KAYIT LİSTESİ'!$B$4:$H$829,4,0))) ->  | E30: =IF(ISERROR(VLOOKUP(B30,'KAYIT LİSTESİ'!$B$4:$H$829,5,0)),"",(VLOOKUP(B30,'KAYIT LİSTESİ'!$B$4:$H$829,5,0))) ->  | F30: =IF(ISERROR(VLOOKUP(B30,'KAYIT LİSTESİ'!$B$4:$H$829,6,0)),"",(VLOOKUP(B30,'KAYIT LİSTESİ'!$B$4:$H$829,6,0))) ->  | BY30: =IF(LEN(BX30)>0,VLOOKUP(BX30,puan!$AC$4:$AH$111,6)-IF(COUNTIF(puan!$AC$4:$AH$111,BX30)=0,0,0)," ") -> 
B31: SIRIK-24 | C31: =IF(ISERROR(VLOOKUP(B31,'KAYIT LİSTESİ'!$B$4:$H$829,2,0)),"",(VLOOKUP(B31,'KAYIT LİSTESİ'!$B$4:$H$829,2,0))) ->  | D31: =IF(ISERROR(VLOOKUP(B31,'KAYIT LİSTESİ'!$B$4:$H$829,4,0)),"",(VLOOKUP(B31,'KAYIT LİSTESİ'!$B$4:$H$829,4,0))) ->  | E31: =IF(ISERROR(VLOOKUP(B31,'KAYIT LİSTESİ'!$B$4:$H$829,5,0)),"",(VLOOKUP(B31,'KAYIT LİSTESİ'!$B$4:$H$829,5,0))) ->  | F31: =IF(ISERROR(VLOOKUP(B31,'KAYIT LİSTESİ'!$B$4:$H$829,6,0)),"",(VLOOKUP(B31,'KAYIT LİSTESİ'!$B$4:$H$829,6,0))) ->  | BY31: =IF(LEN(BX31)>0,VLOOKUP(BX31,puan!$AC$4:$AH$111,6)-IF(COUNTIF(puan!$AC$4:$AH$111,BX31)=0,0,0)," ") -> 
B32: SIRIK-25 | C32: =IF(ISERROR(VLOOKUP(B32,'KAYIT LİSTESİ'!$B$4:$H$829,2,0)),"",(VLOOKUP(B32,'KAYIT LİSTESİ'!$B$4:$H$829,2,0))) ->  | D32: =IF(ISERROR(VLOOKUP(B32,'KAYIT LİSTESİ'!$B$4:$H$829,4,0)),"",(VLOOKUP(B32,'KAYIT LİSTESİ'!$B$4:$H$829,4,0))) ->  | E32: =IF(ISERROR(VLOOKUP(B32,'KAYIT LİSTESİ'!$B$4:$H$829,5,0)),"",(VLOOKUP(B32,'KAYIT LİSTESİ'!$B$4:$H$829,5,0))) ->  | F32: =IF(ISERROR(VLOOKUP(B32,'KAYIT LİSTESİ'!$B$4:$H$829,6,0)),"",(VLOOKUP(B32,'KAYIT LİSTESİ'!$B$4:$H$829,6,0))) ->  | BY32: =IF(LEN(BX32)>0,VLOOKUP(BX32,puan!$AC$4:$AH$111,6)-IF(COUNTIF(puan!$AC$4:$AH$111,BX32)=0,0,0)," ") -> 
A34: Müsabaka Direktörü | F34: Baş Hakem | J34: Lider | S34: Sekreter | BX34: Hakem
A65536: CELAL KAYAÖZ

Sheet 2.Gün Start Listesi (hidden)
A1: =('YARIŞMA BİLGİLERİ'!A2) -> Türkiye Atletizm Federasyonu İzmir Atletizm İl Temsilciliği
A2: ='YARIŞMA BİLGİLERİ'!F19 -> Naili Moran Türkiye Atletizm Şampiyonası
A3: 2.GÜN GENÇ ERKEKLER START LİSTELERİ
A4: 800 METRE | I4: ÜÇADIM ATLAMA
A5: 1. SERİ
A6: Sıra No | B6: Formül | C6: Göğüs No | D6: Doğum Tarihi | E6: Adı ve Soyadı | F6: Okulu | G6: Start Kontrol | I6: SIRA NO | K6: GÖĞÜS NO | L6: DOĞUM TARİHİ | M6: ADI VE SOYADI | N6: OKULU | O6: START KONTROL
A7: 1 | B7: 800M-1-1 | C7: =IF(ISERROR(VLOOKUP(B7,'KAYIT LİSTESİ'!$B$4:$H$829,2,0)),"",(VLOOKUP(B7,'KAYIT LİSTESİ'!$B$4:$H$829,2,0))) -> 55 | D7: =IF(ISERROR(VLOOKUP(B7,'KAYIT LİSTESİ'!$B$4:$H$829,4,0)),"",(VLOOKUP(B7,'KAYIT LİSTESİ'!$B$4:$H$829,4,0))) -> 2001-01-01 | E7: =IF(ISERROR(VLOOKUP(B7,'KAYIT LİSTESİ'!$B$4:$H$829,5,0)),"",(VLOOKUP(B7,'KAYIT LİSTESİ'!$B$4:$H$829,5,0))) -> SEDANUR BOZKURT | F7: =IF(ISERROR(VLOOKUP(B7,'KAYIT LİSTESİ'!$B$4:$H$829,6,0)),"",(VLOOKUP(B7,'KAYIT LİSTESİ'!$B$4:$H$829,6,0))) -> ARDAHAN
A8: 2 | B8: 800M-1-2 | C8: =IF(ISERROR(VLOOKUP(B8,'KAYIT LİSTESİ'!$B$4:$H$829,2,0)),"",(VLOOKUP(B8,'KAYIT LİSTESİ'!$B$4:$H$829,2,0))) -> 275 | D8: =IF(ISERROR(VLOOKUP(B8,'KAYIT LİSTESİ'!$B$4:$H$829,4,0)),"",(VLOOKUP(B8,'KAYIT LİSTESİ'!$B$4:$H$829,4,0))) -> 2001-01-01 | E8: =IF(ISERROR(VLOOKUP(B8,'KAYIT LİSTESİ'!$B$4:$H$829,5,0)),"",(VLOOKUP(B8,'KAYIT LİSTESİ'!$B$4:$H$829,5,0))) -> RAHİME ERGÜL | F8: =IF(ISERROR(VLOOKUP(B8,'KAYIT LİSTESİ'!$B$4:$H$829,6,0)),"",(VLOOKUP(B8,'KAYIT LİSTESİ'!$B$4:$H$829,6,0))) -> GAZİANTEP | I8: 1 | J8: ÜÇADIM-1 | K8: =IF(ISERROR(VLOOKUP(J8,'KAYIT LİSTESİ'!$B$4:$H$829,2,0)),"",(VLOOKUP(J8,'KAYIT LİSTESİ'!$B$4:$H$829,2,0))) ->  | L8: =IF(ISERROR(VLOOKUP(J8,'KAYIT LİSTESİ'!$B$4:$H$829,4,0)),"",(VLOOKUP(J8,'KAYIT LİSTESİ'!$B$4:$H$829,4,0))) ->  | M8: =IF(ISERROR(VLOOKUP(J8,'KAYIT LİSTESİ'!$B$4:$H$829,5,0)),"",(VLOOKUP(J8,'KAYIT LİSTESİ'!$B$4:$H$829,5,0))) ->  | N8: =IF(ISERROR(VLOOKUP(J8,'KAYIT LİSTESİ'!$B$4:$H$829,6,0)),"",(VLOOKUP(J8,'KAYIT LİSTESİ'!$B$4:$H$829,6,0))) -> 
A9: 3 | B9: 800M-1-3 | C9: =IF(ISERROR(VLOOKUP(B9,'KAYIT LİSTESİ'!$B$4:$H$829,2,0)),"",(VLOOKUP(B9,'KAYIT LİSTESİ'!$B$4:$H$829,2,0))) -> 475 | D9: =IF(ISERROR(VLOOKUP(B9,'KAYIT LİSTESİ'!$B$4:$H$829,4,0)),"",(VLOOKUP(B9,'KAYIT LİSTESİ'!$B$4:$H$829,4,0))) -> 2001-03-12 | E9: =IF(ISERROR(VLOOKUP(B9,'KAYIT LİSTESİ'!$B$4:$H$829,5,0)),"",(VLOOKUP(B9,'KAYIT LİSTESİ'!$B$4:$H$829,5,0))) -> İREM BABADAĞ | F9: =IF(ISERROR(VLOOKUP(B9,'KAYIT LİSTESİ'!$B$4:$H$829,6,0)),"",(VLOOKUP(B9,'KAYIT LİSTESİ'!$B$4:$H$829,6,0))) -> KIRIKKALE | I9: 2 | J9: ÜÇADIM-2 | K9: =IF(ISERROR(VLOOKUP(J9,'KAYIT LİSTESİ'!$B$4:$H$829,2,0)),"",(VLOOKUP(J9,'KAYIT LİSTESİ'!$B$4:$H$829,2,0))) ->  | L9: =IF(ISERROR(VLOOKUP(J9,'KAYIT LİSTESİ'!$B$4:$H$829,4,0)),"",(VLOOKUP(J9,'KAYIT LİSTESİ'!$B$4:$H$829,4,0))) ->  | M9: =IF(ISERROR(VLOOKUP(J9,'KAYIT LİSTESİ'!$B$4:$H$829,5,0)),"",(VLOOKUP(J9,'KAYIT LİSTESİ'!$B$4:$H$829,5,0))) ->  | N9: =IF(ISERROR(VLOOKUP(J9,'KAYIT LİSTESİ'!$B$4:$H$829,6,0)),"",(VLOOKUP(J9,'KAYIT LİSTESİ'!$B$4:$H$829,6,0))) -> 
A10: 4 | B10: 800M-1-4 | C10: =IF(ISERROR(VLOOKUP(B10,'KAYIT LİSTESİ'!$B$4:$H$829,2,0)),"",(VLOOKUP(B10,'KAYIT LİSTESİ'!$B$4:$H$829,2,0))) -> 181 | D10: =IF(ISERROR(VLOOKUP(B10,'KAYIT LİSTESİ'!$B$4:$H$829,4,0)),"",(VLOOKUP(B10,'KAYIT LİSTESİ'!$B$4:$H$829,4,0))) -> 2001-01-08 | E10: =IF(ISERROR(VLOOKUP(B10,'KAYIT LİSTESİ'!$B$4:$H$829,5,0)),"",(VLOOKUP(B10,'KAYIT LİSTESİ'!$B$4:$H$829,5,0))) -> ELİF AKDAĞ | F10: =IF(ISERROR(VLOOKUP(B10,'KAYIT LİSTESİ'!$B$4:$H$829,6,0)),"",(VLOOKUP(B10,'KAYIT LİSTESİ'!$B$4:$H$829,6,0))) -> BOLU | I10: 3 | J10: ÜÇADIM-3 | K10: =IF(ISERROR(VLOOKUP(J10,'KAYIT LİSTESİ'!$B$4:$H$829,2,0)),"",(VLOOKUP(J10,'KAYIT LİSTESİ'!$B$4:$H$829,2,0))) ->  | L10: =IF(ISERROR(VLOOKUP(J10,'KAYIT LİSTESİ'!$B$4:$H$829,4,0)),"",(VLOOKUP(J10,'KAYIT LİSTESİ'!$B$4:$H$829,4,0))) ->  | M10: =IF(ISERROR(VLOOKUP(J10,'KAYIT LİSTESİ'!$B$4:$H$829,5,0)),"",(VLOOKUP(J10,'KAYIT LİSTESİ'!$B$4:$H$829,5,0))) ->  | N10: =IF(ISERROR(VLOOKUP(J10,'KAYIT LİSTESİ'!$B$4:$H$829,6,0)),"",(VLOOKUP(J10,'KAYIT LİSTESİ'!$B$4:$H$829,6,0))) -> 
A11: 5 | B11: 800M-1-5 | C11: =IF(ISERROR(VLOOKUP(B11,'KAYIT LİSTESİ'!$B$4:$H$829,2,0)),"",(VLOOKUP(B11,'KAYIT LİSTESİ'!$B$4:$H$829,2,0))) -> 152 | D11: =IF(ISERROR(VLOOKUP(B11,'KAYIT LİSTESİ'!$B$4:$H$829,4,0)),"",(VLOOKUP(B11,'KAYIT LİSTESİ'!$B$4:$H$829,4,0))) -> 2001-03-10 | E11: =IF(ISERROR(VLOOKUP(B11,'KAYIT LİSTESİ'!$B$4:$H$829,5,0)),"",(VLOOKUP(B11,'KAYIT LİSTESİ'!$B$4:$H$829,5,0))) -> AYBÜKE KALENDER | F11: =IF(ISERROR(VLOOKUP(B11,'KAYIT LİSTESİ'!$B$4:$H$829,6,0)),"",(VLOOKUP(B11,'KAYIT LİSTESİ'!$B$4:$H$829,6,0))) -> BİLECİK | I11: 4 | J11: ÜÇADIM-4 | K11: =IF(ISERROR(VLOOKUP(J11,'KAYIT LİSTESİ'!$B$4:$H$829,2,0)),"",(VLOOKUP(J11,'KAYIT LİSTESİ'!$B$4:$H$829,2,0))) ->  | L11: =IF(ISERROR(VLOOKUP(J11,'KAYIT LİSTESİ'!$B$4:$H$829,4,0)),"",(VLOOKUP(J11,'KAYIT LİSTESİ'!$B$4:$H$829,4,0))) ->  | M11: =IF(ISERROR(VLOOKUP(J11,'KAYIT LİSTESİ'!$B$4:$H$829,5,0)),"",(VLOOKUP(J11,'KAYIT LİSTESİ'!$B$4:$H$829,5,0))) ->  | N11: =IF(ISERROR(VLOOKUP(J11,'KAYIT LİSTESİ'!$B$4:$H$829,6,0)),"",(VLOOKUP(J11,'KAYIT LİSTESİ'!$B$4:$H$829,6,0))) -> 
A12: 6 | B12: 800M-1-6 | C12: =IF(ISERROR(VLOOKUP(B12,'KAYIT LİSTESİ'!$B$4:$H$829,2,0)),"",(VLOOKUP(B12,'KAYIT LİSTESİ'!$B$4:$H$829,2,0))) -> 631 | D12: =IF(ISERROR(VLOOKUP(B12,'KAYIT LİSTESİ'!$B$4:$H$829,4,0)),"",(VLOOKUP(B12,'KAYIT LİSTESİ'!$B$4:$H$829,4,0))) -> 2001-03-01 | E12: =IF(ISERROR(VLOOKUP(B12,'KAYIT LİSTESİ'!$B$4:$H$829,5,0)),"",(VLOOKUP(B12,'KAYIT LİSTESİ'!$B$4:$H$829,5,0))) -> FİLİZ KARAKOÇ | F12: =IF(ISERROR(VLOOKUP(B12,'KAYIT LİSTESİ'!$B$4:$H$829,6,0)),"",(VLOOKUP(B12,'KAYIT LİSTESİ'!$B$4:$H$829,6,0))) -> SAMSUN | I12: 5 | J12: ÜÇADIM-5 | K12: =IF(ISERROR(VLOOKUP(J12,'KAYIT LİSTESİ'!$B$4:$H$829,2,0)),"",(VLOOKUP(J12,'KAYIT LİSTESİ'!$B$4:$H$829,2,0))) ->  | L12: =IF(ISERROR(VLOOKUP(J12,'KAYIT LİSTESİ'!$B$4:$H$829,4,0)),"",(VLOOKUP(J12,'KAYIT LİSTESİ'!$B$4:$H$829,4,0))) ->  | M12: =IF(ISERROR(VLOOKUP(J12,'KAYIT LİSTESİ'!$B$4:$H$829,5,0)),"",(VLOOKUP(J12,'KAYIT LİSTESİ'!$B$4:$H$829,5,0))) ->  | N12: =IF(ISERROR(VLOOKUP(J12,'KAYIT LİSTESİ'!$B$4:$H$829,6,0)),"",(VLOOKUP(J12,'KAYIT LİSTESİ'!$B$4:$H$829,6,0))) -> 
A13: 7 | B13: 800M-1-7 | C13: =IF(ISERROR(VLOOKUP(B13,'KAYIT LİSTESİ'!$B$4:$H$829,2,0)),"",(VLOOKUP(B13,'KAYIT LİSTESİ'!$B$4:$H$829,2,0))) -> 134 | D13: =IF(ISERROR(VLOOKUP(B13,'KAYIT LİSTESİ'!$B$4:$H$829,4,0)),"",(VLOOKUP(B13,'KAYIT LİSTESİ'!$B$4:$H$829,4,0))) -> 2001-01-01 | E13: =IF(ISERROR(VLOOKUP(B13,'KAYIT LİSTESİ'!$B$4:$H$829,5,0)),"",(VLOOKUP(B13,'KAYIT LİSTESİ'!$B$4:$H$829,5,0))) -> RUKEN TEK | F13: =IF(ISERROR(VLOOKUP(B13,'KAYIT LİSTESİ'!$B$4:$H$829,6,0)),"",(VLOOKUP(B13,'KAYIT LİSTESİ'!$B$4:$H$829,6,0))) -> BATMAN | I13: 6 | J13: ÜÇADIM-6 | K13: =IF(ISERROR(VLOOKUP(J13,'KAYIT LİSTESİ'!$B$4:$H$829,2,0)),"",(VLOOKUP(J13,'KAYIT LİSTESİ'!$B$4:$H$829,2,0))) ->  | L13: =IF(ISERROR(VLOOKUP(J13,'KAYIT LİSTESİ'!$B$4:$H$829,4,0)),"",(VLOOKUP(J13,'KAYIT LİSTESİ'!$B$4:$H$829,4,0))) ->  | M13: =IF(ISERROR(VLOOKUP(J13,'KAYIT LİSTESİ'!$B$4:$H$829,5,0)),"",(VLOOKUP(J13,'KAYIT LİSTESİ'!$B$4:$H$829,5,0))) ->  | N13: =IF(ISERROR(VLOOKUP(J13,'KAYIT LİSTESİ'!$B$4:$H$829,6,0)),"",(VLOOKUP(J13,'KAYIT LİSTESİ'!$B$4:$H$829,6,0))) -> 
A14: 8 | B14: 800M-1-8 | C14: =IF(ISERROR(VLOOKUP(B14,'KAYIT LİSTESİ'!$B$4:$H$829,2,0)),"",(VLOOKUP(B14,'KAYIT LİSTESİ'!$B$4:$H$829,2,0))) -> 542 | D14: =IF(ISERROR(VLOOKUP(B14,'KAYIT LİSTESİ'!$B$4:$H$829,4,0)),"",(VLOOKUP(B14,'KAYIT LİSTESİ'!$B$4:$H$829,4,0))) -> 2001-01-01 | E14: =IF(ISERROR(VLOOKUP(B14,'KAYIT LİSTESİ'!$B$4:$H$829,5,0)),"",(VLOOKUP(B14,'KAYIT LİSTESİ'!$B$4:$H$829,5,0))) -> KARDELEN ÇELİK | F14: =IF(ISERROR(VLOOKUP(B14,'KAYIT LİSTESİ'!$B$4:$H$829,6,0)),"",(VLOOKUP(B14,'KAYIT LİSTESİ'!$B$4:$H$829,6,0))) -> KÜTAHYA | I14: 7 | J14: ÜÇADIM-7 | K14: =IF(ISERROR(VLOOKUP(J14,'KAYIT LİSTESİ'!$B$4:$H$829,2,0)),"",(VLOOKUP(J14,'KAYIT LİSTESİ'!$B$4:$H$829,2,0))) ->  | L14: =IF(ISERROR(VLOOKUP(J14,'KAYIT LİSTESİ'!$B$4:$H$829,4,0)),"",(VLOOKUP(J14,'KAYIT LİSTESİ'!$B$4:$H$829,4,0))) ->  | M14: =IF(ISERROR(VLOOKUP(J14,'KAYIT LİSTESİ'!$B$4:$H$829,5,0)),"",(VLOOKUP(J14,'KAYIT LİSTESİ'!$B$4:$H$829,5,0))) ->  | N14: =IF(ISERROR(VLOOKUP(J14,'KAYIT LİSTESİ'!$B$4:$H$829,6,0)),"",(VLOOKUP(J14,'KAYIT LİSTESİ'!$B$4:$H$829,6,0))) -> 
A15: 9 | B15: 800M-1-9 | C15: =IF(ISERROR(VLOOKUP(B15,'KAYIT LİSTESİ'!$B$4:$H$829,2,0)),"",(VLOOKUP(B15,'KAYIT LİSTESİ'!$B$4:$H$829,2,0))) -> 133 | D15: =IF(ISERROR(VLOOKUP(B15,'KAYIT LİSTESİ'!$B$4:$H$829,4,0)),"",(VLOOKUP(B15,'KAYIT LİSTESİ'!$B$4:$H$829,4,0))) -> 2001-01-01 | E15: =IF(ISERROR(VLOOKUP(B15,'KAYIT LİSTESİ'!$B$4:$H$829,5,0)),"",(VLOOKUP(B15,'KAYIT LİSTESİ'!$B$4:$H$829,5,0))) -> MELEK YILDIRIM | F15: =IF(ISERROR(VLOOKUP(B15,'KAYIT LİSTESİ'!$B$4:$H$829,6,0)),"",(VLOOKUP(B15,'KAYIT LİSTESİ'!$B$4:$H$829,6,0))) -> BATMAN | I15: 8 | J15: ÜÇADIM-8 | K15: =IF(ISERROR(VLOOKUP(J15,'KAYIT LİSTESİ'!$B$4:$H$829,2,0)),"",(VLOOKUP(J15,'KAYIT LİSTESİ'!$B$4:$H$829,2,0))) ->  | L15: =IF(ISERROR(VLOOKUP(J15,'KAYIT LİSTESİ'!$B$4:$H$829,4,0)),"",(VLOOKUP(J15,'KAYIT LİSTESİ'!$B$4:$H$829,4,0))) ->  | M15: =IF(ISERROR(VLOOKUP(J15,'KAYIT LİSTESİ'!$B$4:$H$829,5,0)),"",(VLOOKUP(J15,'KAYIT LİSTESİ'!$B$4:$H$829,5,0))) ->  | N15: =IF(ISERROR(VLOOKUP(J15,'KAYIT LİSTESİ'!$B$4:$H$829,6,0)),"",(VLOOKUP(J15,'KAYIT LİSTESİ'!$B$4:$H$829,6,0))) -> 
A16: 10 | B16: 800M-1-10 | C16: =IF(ISERROR(VLOOKUP(B16,'KAYIT LİSTESİ'!$B$4:$H$829,2,0)),"",(VLOOKUP(B16,'KAYIT LİSTESİ'!$B$4:$H$829,2,0))) -> 707 | D16: =IF(ISERROR(VLOOKUP(B16,'KAYIT LİSTESİ'!$B$4:$H$829,4,0)),"",(VLOOKUP(B16,'KAYIT LİSTESİ'!$B$4:$H$829,4,0))) -> 2001-03-15 | E16: =IF(ISERROR(VLOOKUP(B16,'KAYIT LİSTESİ'!$B$4:$H$829,5,0)),"",(VLOOKUP(B16,'KAYIT LİSTESİ'!$B$4:$H$829,5,0))) -> ÖZNUR GEDİK | F16: =IF(ISERROR(VLOOKUP(B16,'KAYIT LİSTESİ'!$B$4:$H$829,6,0)),"",(VLOOKUP(B16,'KAYIT LİSTESİ'!$B$4:$H$829,6,0))) -> TRABZON | I16: 9 | J16: ÜÇADIM-9 | K16: =IF(ISERROR(VLOOKUP(J16,'KAYIT LİSTESİ'!$B$4:$H$829,2,0)),"",(VLOOKUP(J16,'KAYIT LİSTESİ'!$B$4:$H$829,2,0))) ->  | L16: =IF(ISERROR(VLOOKUP(J16,'KAYIT LİSTESİ'!$B$4:$H$829,4,0)),"",(VLOOKUP(J16,'KAYIT LİSTESİ'!$B$4:$H$829,4,0))) ->  | M16: =IF(ISERROR(VLOOKUP(J16,'KAYIT LİSTESİ'!$B$4:$H$829,5,0)),"",(VLOOKUP(J16,'KAYIT LİSTESİ'!$B$4:$H$829,5,0))) ->  | N16: =IF(ISERROR(VLOOKUP(J16,'KAYIT LİSTESİ'!$B$4:$H$829,6,0)),"",(VLOOKUP(J16,'KAYIT LİSTESİ'!$B$4:$H$829,6,0))) -> 
A17: 11 | B17: 800M-1-11 | C17: =IF(ISERROR(VLOOKUP(B17,'KAYIT LİSTESİ'!$B$4:$H$829,2,0)),"",(VLOOKUP(B17,'KAYIT LİSTESİ'!$B$4:$H$829,2,0))) -> 277 | D17: =IF(ISERROR(VLOOKUP(B17,'KAYIT LİSTESİ'!$B$4:$H$829,4,0)),"",(VLOOKUP(B17,'KAYIT LİSTESİ'!$B$4:$H$829,4,0))) -> 2001-01-01 | E17: =IF(ISERROR(VLOOKUP(B17,'KAYIT LİSTESİ'!$B$4:$H$829,5,0)),"",(VLOOKUP(B17,'KAYIT LİSTESİ'!$B$4:$H$829,5,0))) -> SAFİYE YAREN ÖZTÜRK | F17: =IF(ISERROR(VLOOKUP(B17,'KAYIT LİSTESİ'!$B$4:$H$829,6,0)),"",(VLOOKUP(B17,'KAYIT LİSTESİ'!$B$4:$H$829,6,0))) -> GAZİANTEP | I17: 10 | J17: ÜÇADIM-10 | K17: =IF(ISERROR(VLOOKUP(J17,'KAYIT LİSTESİ'!$B$4:$H$829,2,0)),"",(VLOOKUP(J17,'KAYIT LİSTESİ'!$B$4:$H$829,2,0))) ->  | L17: =IF(ISERROR(VLOOKUP(J17,'KAYIT LİSTESİ'!$B$4:$H$829,4,0)),"",(VLOOKUP(J17,'KAYIT LİSTESİ'!$B$4:$H$829,4,0))) ->  | M17: =IF(ISERROR(VLOOKUP(J17,'KAYIT LİSTESİ'!$B$4:$H$829,5,0)),"",(VLOOKUP(J17,'KAYIT LİSTESİ'!$B$4:$H$829,5,0))) ->  | N17: =IF(ISERROR(VLOOKUP(J17,'KAYIT LİSTESİ'!$B$4:$H$829,6,0)),"",(VLOOKUP(J17,'KAYIT LİSTESİ'!$B$4:$H$829,6,0))) -> 
A18: 12 | B18: 800M-1-12 | C18: =IF(ISERROR(VLOOKUP(B18,'KAYIT LİSTESİ'!$B$4:$H$829,2,0)),"",(VLOOKUP(B18,'KAYIT LİSTESİ'!$B$4:$H$829,2,0))) ->  | D18: =IF(ISERROR(VLOOKUP(B18,'KAYIT LİSTESİ'!$B$4:$H$829,4,0)),"",(VLOOKUP(B18,'KAYIT LİSTESİ'!$B$4:$H$829,4,0))) ->  | E18: =IF(ISERROR(VLOOKUP(B18,'KAYIT LİSTESİ'!$B$4:$H$829,5,0)),"",(VLOOKUP(B18,'KAYIT LİSTESİ'!$B$4:$H$829,5,0))) ->  | F18: =IF(ISERROR(VLOOKUP(B18,'KAYIT LİSTESİ'!$B$4:$H$829,6,0)),"",(VLOOKUP(B18,'KAYIT LİSTESİ'!$B$4:$H$829,6,0))) ->  | I18: 11 | J18: ÜÇADIM-11 | K18: =IF(ISERROR(VLOOKUP(J18,'KAYIT LİSTESİ'!$B$4:$H$829,2,0)),"",(VLOOKUP(J18,'KAYIT LİSTESİ'!$B$4:$H$829,2,0))) ->  | L18: =IF(ISERROR(VLOOKUP(J18,'KAYIT LİSTESİ'!$B$4:$H$829,4,0)),"",(VLOOKUP(J18,'KAYIT LİSTESİ'!$B$4:$H$829,4,0))) ->  | M18: =IF(ISERROR(VLOOKUP(J18,'KAYIT LİSTESİ'!$B$4:$H$829,5,0)),"",(VLOOKUP(J18,'KAYIT LİSTESİ'!$B$4:$H$829,5,0))) ->  | N18: =IF(ISERROR(VLOOKUP(J18,'KAYIT LİSTESİ'!$B$4:$H$829,6,0)),"",(VLOOKUP(J18,'KAYIT LİSTESİ'!$B$4:$H$829,6,0))) -> 
A19: 2. SERİ | I19: 12 | J19: ÜÇADIM-12 | K19: =IF(ISERROR(VLOOKUP(J19,'KAYIT LİSTESİ'!$B$4:$H$829,2,0)),"",(VLOOKUP(J19,'KAYIT LİSTESİ'!$B$4:$H$829,2,0))) ->  | L19: =IF(ISERROR(VLOOKUP(J19,'KAYIT LİSTESİ'!$B$4:$H$829,4,0)),"",(VLOOKUP(J19,'KAYIT LİSTESİ'!$B$4:$H$829,4,0))) ->  | M19: =IF(ISERROR(VLOOKUP(J19,'KAYIT LİSTESİ'!$B$4:$H$829,5,0)),"",(VLOOKUP(J19,'KAYIT LİSTESİ'!$B$4:$H$829,5,0))) ->  | N19: =IF(ISERROR(VLOOKUP(J19,'KAYIT LİSTESİ'!$B$4:$H$829,6,0)),"",(VLOOKUP(J19,'KAYIT LİSTESİ'!$B$4:$H$829,6,0))) -> 
A20: Sıra No | B20: Formül | C20: Göğüs No | D20: Doğum Tarihi | E20: Adı ve Soyadı | F20: Okulu | G20: Start Kontrol | I20: 13 | J20: ÜÇADIM-13 | K20: =IF(ISERROR(VLOOKUP(J20,'KAYIT LİSTESİ'!$B$4:$H$829,2,0)),"",(VLOOKUP(J20,'KAYIT LİSTESİ'!$B$4:$H$829,2,0))) ->  | L20: =IF(ISERROR(VLOOKUP(J20,'KAYIT LİSTESİ'!$B$4:$H$829,4,0)),"",(VLOOKUP(J20,'KAYIT LİSTESİ'!$B$4:$H$829,4,0))) ->  | M20: =IF(ISERROR(VLOOKUP(J20,'KAYIT LİSTESİ'!$B$4:$H$829,5,0)),"",(VLOOKUP(J20,'KAYIT LİSTESİ'!$B$4:$H$829,5,0))) ->  | N20: =IF(ISERROR(VLOOKUP(J20,'KAYIT LİSTESİ'!$B$4:$H$829,6,0)),"",(VLOOKUP(J20,'KAYIT LİSTESİ'!$B$4:$H$829,6,0))) -> 
A21: 1 | B21: 800M-2-1 | C21: =IF(ISERROR(VLOOKUP(B21,'KAYIT LİSTESİ'!$B$4:$H$829,2,0)),"",(VLOOKUP(B21,'KAYIT LİSTESİ'!$B$4:$H$829,2,0))) -> 363 | D21: =IF(ISERROR(VLOOKUP(B21,'KAYIT LİSTESİ'!$B$4:$H$829,4,0)),"",(VLOOKUP(B21,'KAYIT LİSTESİ'!$B$4:$H$829,4,0))) -> 2001-01-01 | E21: =IF(ISERROR(VLOOKUP(B21,'KAYIT LİSTESİ'!$B$4:$H$829,5,0)),"",(VLOOKUP(B21,'KAYIT LİSTESİ'!$B$4:$H$829,5,0))) -> EZGİ KAYA | F21: =IF(ISERROR(VLOOKUP(B21,'KAYIT LİSTESİ'!$B$4:$H$829,6,0)),"",(VLOOKUP(B21,'KAYIT LİSTESİ'!$B$4:$H$829,6,0))) -> İSTANBUL | I21: 14 | J21: ÜÇADIM-14 | K21: =IF(ISERROR(VLOOKUP(J21,'KAYIT LİSTESİ'!$B$4:$H$829,2,0)),"",(VLOOKUP(J21,'KAYIT LİSTESİ'!$B$4:$H$829,2,0))) ->  | L21: =IF(ISERROR(VLOOKUP(J21,'KAYIT LİSTESİ'!$B$4:$H$829,4,0)),"",(VLOOKUP(J21,'KAYIT LİSTESİ'!$B$4:$H$829,4,0))) ->  | M21: =IF(ISERROR(VLOOKUP(J21,'KAYIT LİSTESİ'!$B$4:$H$829,5,0)),"",(VLOOKUP(J21,'KAYIT LİSTESİ'!$B$4:$H$829,5,0))) ->  | N21: =IF(ISERROR(VLOOKUP(J21,'KAYIT LİSTESİ'!$B$4:$H$829,6,0)),"",(VLOOKUP(J21,'KAYIT LİSTESİ'!$B$4:$H$829,6,0))) -> 
A22: 2 | B22: 800M-2-2 | C22: =IF(ISERROR(VLOOKUP(B22,'KAYIT LİSTESİ'!$B$4:$H$829,2,0)),"",(VLOOKUP(B22,'KAYIT LİSTESİ'!$B$4:$H$829,2,0))) -> 337 | D22: =IF(ISERROR(VLOOKUP(B22,'KAYIT LİSTESİ'!$B$4:$H$829,4,0)),"",(VLOOKUP(B22,'KAYIT LİSTESİ'!$B$4:$H$829,4,0))) -> 2001-01-02 | E22: =IF(ISERROR(VLOOKUP(B22,'KAYIT LİSTESİ'!$B$4:$H$829,5,0)),"",(VLOOKUP(B22,'KAYIT LİSTESİ'!$B$4:$H$829,5,0))) -> RUMEYSA COŞKUN | F22: =IF(ISERROR(VLOOKUP(B22,'KAYIT LİSTESİ'!$B$4:$H$829,6,0)),"",(VLOOKUP(B22,'KAYIT LİSTESİ'!$B$4:$H$829,6,0))) -> ISPARTA | I22: 15 | J22: ÜÇADIM-15 | K22: =IF(ISERROR(VLOOKUP(J22,'KAYIT LİSTESİ'!$B$4:$H$829,2,0)),"",(VLOOKUP(J22,'KAYIT LİSTESİ'!$B$4:$H$829,2,0))) ->  | L22: =IF(ISERROR(VLOOKUP(J22,'KAYIT LİSTESİ'!$B$4:$H$829,4,0)),"",(VLOOKUP(J22,'KAYIT LİSTESİ'!$B$4:$H$829,4,0))) ->  | M22: =IF(ISERROR(VLOOKUP(J22,'KAYIT LİSTESİ'!$B$4:$H$829,5,0)),"",(VLOOKUP(J22,'KAYIT LİSTESİ'!$B$4:$H$829,5,0))) ->  | N22: =IF(ISERROR(VLOOKUP(J22,'KAYIT LİSTESİ'!$B$4:$H$829,6,0)),"",(VLOOKUP(J22,'KAYIT LİSTESİ'!$B$4:$H$829,6,0))) -> 
A23: 3 | B23: 800M-2-3 | C23: =IF(ISERROR(VLOOKUP(B23,'KAYIT LİSTESİ'!$B$4:$H$829,2,0)),"",(VLOOKUP(B23,'KAYIT LİSTESİ'!$B$4:$H$829,2,0))) -> 474 | D23: =IF(ISERROR(VLOOKUP(B23,'KAYIT LİSTESİ'!$B$4:$H$829,4,0)),"",(VLOOKUP(B23,'KAYIT LİSTESİ'!$B$4:$H$829,4,0))) -> 2001-04-15 | E23: =IF(ISERROR(VLOOKUP(B23,'KAYIT LİSTESİ'!$B$4:$H$829,5,0)),"",(VLOOKUP(B23,'KAYIT LİSTESİ'!$B$4:$H$829,5,0))) -> MERVE G. ELİTOK | F23: =IF(ISERROR(VLOOKUP(B23,'KAYIT LİSTESİ'!$B$4:$H$829,6,0)),"",(VLOOKUP(B23,'KAYIT LİSTESİ'!$B$4:$H$829,6,0))) -> KIRIKKALE | I23: 16 | J23: ÜÇADIM-16 | K23: =IF(ISERROR(VLOOKUP(J23,'KAYIT LİSTESİ'!$B$4:$H$829,2,0)),"",(VLOOKUP(J23,'KAYIT LİSTESİ'!$B$4:$H$829,2,0))) ->  | L23: =IF(ISERROR(VLOOKUP(J23,'KAYIT LİSTESİ'!$B$4:$H$829,4,0)),"",(VLOOKUP(J23,'KAYIT LİSTESİ'!$B$4:$H$829,4,0))) ->  | M23: =IF(ISERROR(VLOOKUP(J23,'KAYIT LİSTESİ'!$B$4:$H$829,5,0)),"",(VLOOKUP(J23,'KAYIT LİSTESİ'!$B$4:$H$829,5,0))) ->  | N23: =IF(ISERROR(VLOOKUP(J23,'KAYIT LİSTESİ'!$B$4:$H$829,6,0)),"",(VLOOKUP(J23,'KAYIT LİSTESİ'!$B$4:$H$829,6,0))) -> 
A24: 4 | B24: 800M-2-4 | C24: =IF(ISERROR(VLOOKUP(B24,'KAYIT LİSTESİ'!$B$4:$H$829,2,0)),"",(VLOOKUP(B24,'KAYIT LİSTESİ'!$B$4:$H$829,2,0))) -> 462 | D24: =IF(ISERROR(VLOOKUP(B24,'KAYIT LİSTESİ'!$B$4:$H$829,4,0)),"",(VLOOKUP(B24,'KAYIT LİSTESİ'!$B$4:$H$829,4,0))) -> 2001-01-01 | E24: =IF(ISERROR(VLOOKUP(B24,'KAYIT LİSTESİ'!$B$4:$H$829,5,0)),"",(VLOOKUP(B24,'KAYIT LİSTESİ'!$B$4:$H$829,5,0))) -> DERYA ATEŞLİ | F24: =IF(ISERROR(VLOOKUP(B24,'KAYIT LİSTESİ'!$B$4:$H$829,6,0)),"",(VLOOKUP(B24,'KAYIT LİSTESİ'!$B$4:$H$829,6,0))) -> KARAMAN | I24: 17 | J24: ÜÇADIM-17 | K24: =IF(ISERROR(VLOOKUP(J24,'KAYIT LİSTESİ'!$B$4:$H$829,2,0)),"",(VLOOKUP(J24,'KAYIT LİSTESİ'!$B$4:$H$829,2,0))) ->  | L24: =IF(ISERROR(VLOOKUP(J24,'KAYIT LİSTESİ'!$B$4:$H$829,4,0)),"",(VLOOKUP(J24,'KAYIT LİSTESİ'!$B$4:$H$829,4,0))) ->  | M24: =IF(ISERROR(VLOOKUP(J24,'KAYIT LİSTESİ'!$B$4:$H$829,5,0)),"",(VLOOKUP(J24,'KAYIT LİSTESİ'!$B$4:$H$829,5,0))) ->  | N24: =IF(ISERROR(VLOOKUP(J24,'KAYIT LİSTESİ'!$B$4:$H$829,6,0)),"",(VLOOKUP(J24,'KAYIT LİSTESİ'!$B$4:$H$829,6,0))) -> 
A25: 5 | B25: 800M-2-5 | C25: =IF(ISERROR(VLOOKUP(B25,'KAYIT LİSTESİ'!$B$4:$H$829,2,0)),"",(VLOOKUP(B25,'KAYIT LİSTESİ'!$B$4:$H$829,2,0))) -> 365 | D25: =IF(ISERROR(VLOOKUP(B25,'KAYIT LİSTESİ'!$B$4:$H$829,4,0)),"",(VLOOKUP(B25,'KAYIT LİSTESİ'!$B$4:$H$829,4,0))) -> 2001-09-19 | E25: =IF(ISERROR(VLOOKUP(B25,'KAYIT LİSTESİ'!$B$4:$H$829,5,0)),"",(VLOOKUP(B25,'KAYIT LİSTESİ'!$B$4:$H$829,5,0))) -> ZEHRA ERHAN | F25: =IF(ISERROR(VLOOKUP(B25,'KAYIT LİSTESİ'!$B$4:$H$829,6,0)),"",(VLOOKUP(B25,'KAYIT LİSTESİ'!$B$4:$H$829,6,0))) -> İSTANBUL | I25: 18 | J25: ÜÇADIM-18 | K25: =IF(ISERROR(VLOOKUP(J25,'KAYIT LİSTESİ'!$B$4:$H$829,2,0)),"",(VLOOKUP(J25,'KAYIT LİSTESİ'!$B$4:$H$829,2,0))) ->  | L25: =IF(ISERROR(VLOOKUP(J25,'KAYIT LİSTESİ'!$B$4:$H$829,4,0)),"",(VLOOKUP(J25,'KAYIT LİSTESİ'!$B$4:$H$829,4,0))) ->  | M25: =IF(ISERROR(VLOOKUP(J25,'KAYIT LİSTESİ'!$B$4:$H$829,5,0)),"",(VLOOKUP(J25,'KAYIT LİSTESİ'!$B$4:$H$829,5,0))) ->  | N25: =IF(ISERROR(VLOOKUP(J25,'KAYIT LİSTESİ'!$B$4:$H$829,6,0)),"",(VLOOKUP(J25,'KAYIT LİSTESİ'!$B$4:$H$829,6,0))) -> 
A26: 6 | B26: 800M-2-6 | C26: =IF(ISERROR(VLOOKUP(B26,'KAYIT LİSTESİ'!$B$4:$H$829,2,0)),"",(VLOOKUP(B26,'KAYIT LİSTESİ'!$B$4:$H$829,2,0))) -> 686 | D26: =IF(ISERROR(VLOOKUP(B26,'KAYIT LİSTESİ'!$B$4:$H$829,4,0)),"",(VLOOKUP(B26,'KAYIT LİSTESİ'!$B$4:$H$829,4,0))) -> 2001-05-12 | E26: =IF(ISERROR(VLOOKUP(B26,'KAYIT LİSTESİ'!$B$4:$H$829,5,0)),"",(VLOOKUP(B26,'KAYIT LİSTESİ'!$B$4:$H$829,5,0))) -> ÖZLEM UÇAR | F26: =IF(ISERROR(VLOOKUP(B26,'KAYIT LİSTESİ'!$B$4:$H$829,6,0)),"",(VLOOKUP(B26,'KAYIT LİSTESİ'!$B$4:$H$829,6,0))) -> TOKAT | I26: 19 | J26: ÜÇADIM-19 | K26: =IF(ISERROR(VLOOKUP(J26,'KAYIT LİSTESİ'!$B$4:$H$829,2,0)),"",(VLOOKUP(J26,'KAYIT LİSTESİ'!$B$4:$H$829,2,0))) ->  | L26: =IF(ISERROR(VLOOKUP(J26,'KAYIT LİSTESİ'!$B$4:$H$829,4,0)),"",(VLOOKUP(J26,'KAYIT LİSTESİ'!$B$4:$H$829,4,0))) ->  | M26: =IF(ISERROR(VLOOKUP(J26,'KAYIT LİSTESİ'!$B$4:$H$829,5,0)),"",(VLOOKUP(J26,'KAYIT LİSTESİ'!$B$4:$H$829,5,0))) ->  | N26: =IF(ISERROR(VLOOKUP(J26,'KAYIT LİSTESİ'!$B$4:$H$829,6,0)),"",(VLOOKUP(J26,'KAYIT LİSTESİ'!$B$4:$H$829,6,0))) -> 
A27: 7 | B27: 800M-2-7 | C27: =IF(ISERROR(VLOOKUP(B27,'KAYIT LİSTESİ'!$B$4:$H$829,2,0)),"",(VLOOKUP(B27,'KAYIT LİSTESİ'!$B$4:$H$829,2,0))) -> 276 | D27: =IF(ISERROR(VLOOKUP(B27,'KAYIT LİSTESİ'!$B$4:$H$829,4,0)),"",(VLOOKUP(B27,'KAYIT LİSTESİ'!$B$4:$H$829,4,0))) -> 2001-01-01 | E27: =IF(ISERROR(VLOOKUP(B27,'KAYIT LİSTESİ'!$B$4:$H$829,5,0)),"",(VLOOKUP(B27,'KAYIT LİSTESİ'!$B$4:$H$829,5,0))) -> EMİNE YILMAZ | F27: =IF(ISERROR(VLOOKUP(B27,'KAYIT LİSTESİ'!$B$4:$H$829,6,0)),"",(VLOOKUP(B27,'KAYIT LİSTESİ'!$B$4:$H$829,6,0))) -> GAZİANTEP | I27: 20 | J27: ÜÇADIM-20 | K27: =IF(ISERROR(VLOOKUP(J27,'KAYIT LİSTESİ'!$B$4:$H$829,2,0)),"",(VLOOKUP(J27,'KAYIT LİSTESİ'!$B$4:$H$829,2,0))) ->  | L27: =IF(ISERROR(VLOOKUP(J27,'KAYIT LİSTESİ'!$B$4:$H$829,4,0)),"",(VLOOKUP(J27,'KAYIT LİSTESİ'!$B$4:$H$829,4,0))) ->  | M27: =IF(ISERROR(VLOOKUP(J27,'KAYIT LİSTESİ'!$B$4:$H$829,5,0)),"",(VLOOKUP(J27,'KAYIT LİSTESİ'!$B$4:$H$829,5,0))) ->  | N27: =IF(ISERROR(VLOOKUP(J27,'KAYIT LİSTESİ'!$B$4:$H$829,6,0)),"",(VLOOKUP(J27,'KAYIT LİSTESİ'!$B$4:$H$829,6,0))) -> 
A28: 8 | B28: 800M-2-8 | C28: =IF(ISERROR(VLOOKUP(B28,'KAYIT LİSTESİ'!$B$4:$H$829,2,0)),"",(VLOOKUP(B28,'KAYIT LİSTESİ'!$B$4:$H$829,2,0))) -> 229 | D28: =IF(ISERROR(VLOOKUP(B28,'KAYIT LİSTESİ'!$B$4:$H$829,4,0)),"",(VLOOKUP(B28,'KAYIT LİSTESİ'!$B$4:$H$829,4,0))) -> 2001-01-01 | E28: =IF(ISERROR(VLOOKUP(B28,'KAYIT LİSTESİ'!$B$4:$H$829,5,0)),"",(VLOOKUP(B28,'KAYIT LİSTESİ'!$B$4:$H$829,5,0))) -> GAMZE PEKTAŞ | F28: =IF(ISERROR(VLOOKUP(B28,'KAYIT LİSTESİ'!$B$4:$H$829,6,0)),"",(VLOOKUP(B28,'KAYIT LİSTESİ'!$B$4:$H$829,6,0))) -> DİYARBAKIR | I28: 21 | J28: ÜÇADIM-21 | K28: =IF(ISERROR(VLOOKUP(J28,'KAYIT LİSTESİ'!$B$4:$H$829,2,0)),"",(VLOOKUP(J28,'KAYIT LİSTESİ'!$B$4:$H$829,2,0))) ->  | L28: =IF(ISERROR(VLOOKUP(J28,'KAYIT LİSTESİ'!$B$4:$H$829,4,0)),"",(VLOOKUP(J28,'KAYIT LİSTESİ'!$B$4:$H$829,4,0))) ->  | M28: =IF(ISERROR(VLOOKUP(J28,'KAYIT LİSTESİ'!$B$4:$H$829,5,0)),"",(VLOOKUP(J28,'KAYIT LİSTESİ'!$B$4:$H$829,5,0))) ->  | N28: =IF(ISERROR(VLOOKUP(J28,'KAYIT LİSTESİ'!$B$4:$H$829,6,0)),"",(VLOOKUP(J28,'KAYIT LİSTESİ'!$B$4:$H$829,6,0))) -> 
A29: 9 | B29: 800M-2-9 | C29: =IF(ISERROR(VLOOKUP(B29,'KAYIT LİSTESİ'!$B$4:$H$829,2,0)),"",(VLOOKUP(B29,'KAYIT LİSTESİ'!$B$4:$H$829,2,0))) -> 619 | D29: =IF(ISERROR(VLOOKUP(B29,'KAYIT LİSTESİ'!$B$4:$H$829,4,0)),"",(VLOOKUP(B29,'KAYIT LİSTESİ'!$B$4:$H$829,4,0))) -> 2001-08-12 | E29: =IF(ISERROR(VLOOKUP(B29,'KAYIT LİSTESİ'!$B$4:$H$829,5,0)),"",(VLOOKUP(B29,'KAYIT LİSTESİ'!$B$4:$H$829,5,0))) -> SİMGE KUNAK | F29: =IF(ISERROR(VLOOKUP(B29,'KAYIT LİSTESİ'!$B$4:$H$829,6,0)),"",(VLOOKUP(B29,'KAYIT LİSTESİ'!$B$4:$H$829,6,0))) -> SAKARYA | I29: 22 | J29: ÜÇADIM-22 | K29: =IF(ISERROR(VLOOKUP(J29,'KAYIT LİSTESİ'!$B$4:$H$829,2,0)),"",(VLOOKUP(J29,'KAYIT LİSTESİ'!$B$4:$H$829,2,0))) ->  | L29: =IF(ISERROR(VLOOKUP(J29,'KAYIT LİSTESİ'!$B$4:$H$829,4,0)),"",(VLOOKUP(J29,'KAYIT LİSTESİ'!$B$4:$H$829,4,0))) ->  | M29: =IF(ISERROR(VLOOKUP(J29,'KAYIT LİSTESİ'!$B$4:$H$829,5,0)),"",(VLOOKUP(J29,'KAYIT LİSTESİ'!$B$4:$H$829,5,0))) ->  | N29: =IF(ISERROR(VLOOKUP(J29,'KAYIT LİSTESİ'!$B$4:$H$829,6,0)),"",(VLOOKUP(J29,'KAYIT LİSTESİ'!$B$4:$H$829,6,0))) -> 
A30: 10 | B30: 800M-2-10 | C30: =IF(ISERROR(VLOOKUP(B30,'KAYIT LİSTESİ'!$B$4:$H$829,2,0)),"",(VLOOKUP(B30,'KAYIT LİSTESİ'!$B$4:$H$829,2,0))) -> 56 | D30: =IF(ISERROR(VLOOKUP(B30,'KAYIT LİSTESİ'!$B$4:$H$829,4,0)),"",(VLOOKUP(B30,'KAYIT LİSTESİ'!$B$4:$H$829,4,0))) -> 2001-01-01 | E30: =IF(ISERROR(VLOOKUP(B30,'KAYIT LİSTESİ'!$B$4:$H$829,5,0)),"",(VLOOKUP(B30,'KAYIT LİSTESİ'!$B$4:$H$829,5,0))) -> MELİKE KILIÇ | F30: =IF(ISERROR(VLOOKUP(B30,'KAYIT LİSTESİ'!$B$4:$H$829,6,0)),"",(VLOOKUP(B30,'KAYIT LİSTESİ'!$B$4:$H$829,6,0))) -> ARDAHAN | I30: 23 | J30: ÜÇADIM-23 | K30: =IF(ISERROR(VLOOKUP(J30,'KAYIT LİSTESİ'!$B$4:$H$829,2,0)),"",(VLOOKUP(J30,'KAYIT LİSTESİ'!$B$4:$H$829,2,0))) ->  | L30: =IF(ISERROR(VLOOKUP(J30,'KAYIT LİSTESİ'!$B$4:$H$829,4,0)),"",(VLOOKUP(J30,'KAYIT LİSTESİ'!$B$4:$H$829,4,0))) ->  | M30: =IF(ISERROR(VLOOKUP(J30,'KAYIT LİSTESİ'!$B$4:$H$829,5,0)),"",(VLOOKUP(J30,'KAYIT LİSTESİ'!$B$4:$H$829,5,0))) ->  | N30: =IF(ISERROR(VLOOKUP(J30,'KAYIT LİSTESİ'!$B$4:$H$829,6,0)),"",(VLOOKUP(J30,'KAYIT LİSTESİ'!$B$4:$H$829,6,0))) -> 
A31: 11 | B31: 800M-2-11 | C31: =IF(ISERROR(VLOOKUP(B31,'KAYIT LİSTESİ'!$B$4:$H$829,2,0)),"",(VLOOKUP(B31,'KAYIT LİSTESİ'!$B$4:$H$829,2,0))) -> 692 | D31: =IF(ISERROR(VLOOKUP(B31,'KAYIT LİSTESİ'!$B$4:$H$829,4,0)),"",(VLOOKUP(B31,'KAYIT LİSTESİ'!$B$4:$H$829,4,0))) -> 2001-07-12 | E31: =IF(ISERROR(VLOOKUP(B31,'KAYIT LİSTESİ'!$B$4:$H$829,5,0)),"",(VLOOKUP(B31,'KAYIT LİSTESİ'!$B$4:$H$829,5,0))) -> TUĞÇE ZENGİN | F31: =IF(ISERROR(VLOOKUP(B31,'KAYIT LİSTESİ'!$B$4:$H$829,6,0)),"",(VLOOKUP(B31,'KAYIT LİSTESİ'!$B$4:$H$829,6,0))) -> TOKAT | I31: 24 | J31: ÜÇADIM-24 | K31: =IF(ISERROR(VLOOKUP(J31,'KAYIT LİSTESİ'!$B$4:$H$829,2,0)),"",(VLOOKUP(J31,'KAYIT LİSTESİ'!$B$4:$H$829,2,0))) ->  | L31: =IF(ISERROR(VLOOKUP(J31,'KAYIT LİSTESİ'!$B$4:$H$829,4,0)),"",(VLOOKUP(J31,'KAYIT LİSTESİ'!$B$4:$H$829,4,0))) ->  | M31: =IF(ISERROR(VLOOKUP(J31,'KAYIT LİSTESİ'!$B$4:$H$829,5,0)),"",(VLOOKUP(J31,'KAYIT LİSTESİ'!$B$4:$H$829,5,0))) ->  | N31: =IF(ISERROR(VLOOKUP(J31,'KAYIT LİSTESİ'!$B$4:$H$829,6,0)),"",(VLOOKUP(J31,'KAYIT LİSTESİ'!$B$4:$H$829,6,0))) -> 
A32: 12 | B32: 800M-2-12 | C32: =IF(ISERROR(VLOOKUP(B32,'KAYIT LİSTESİ'!$B$4:$H$829,2,0)),"",(VLOOKUP(B32,'KAYIT LİSTESİ'!$B$4:$H$829,2,0))) ->  | D32: =IF(ISERROR(VLOOKUP(B32,'KAYIT LİSTESİ'!$B$4:$H$829,4,0)),"",(VLOOKUP(B32,'KAYIT LİSTESİ'!$B$4:$H$829,4,0))) ->  | E32: =IF(ISERROR(VLOOKUP(B32,'KAYIT LİSTESİ'!$B$4:$H$829,5,0)),"",(VLOOKUP(B32,'KAYIT LİSTESİ'!$B$4:$H$829,5,0))) ->  | F32: =IF(ISERROR(VLOOKUP(B32,'KAYIT LİSTESİ'!$B$4:$H$829,6,0)),"",(VLOOKUP(B32,'KAYIT LİSTESİ'!$B$4:$H$829,6,0))) ->  | I32: 25 | J32: ÜÇADIM-25 | K32: =IF(ISERROR(VLOOKUP(J32,'KAYIT LİSTESİ'!$B$4:$H$829,2,0)),"",(VLOOKUP(J32,'KAYIT LİSTESİ'!$B$4:$H$829,2,0))) ->  | L32: =IF(ISERROR(VLOOKUP(J32,'KAYIT LİSTESİ'!$B$4:$H$829,4,0)),"",(VLOOKUP(J32,'KAYIT LİSTESİ'!$B$4:$H$829,4,0))) ->  | M32: =IF(ISERROR(VLOOKUP(J32,'KAYIT LİSTESİ'!$B$4:$H$829,5,0)),"",(VLOOKUP(J32,'KAYIT LİSTESİ'!$B$4:$H$829,5,0))) ->  | N32: =IF(ISERROR(VLOOKUP(J32,'KAYIT LİSTESİ'!$B$4:$H$829,6,0)),"",(VLOOKUP(J32,'KAYIT LİSTESİ'!$B$4:$H$829,6,0))) -> 
A33: 3. SERİ | I33: DİSK ATMA
A34: Sıra No | B34: Formül | C34: Göğüs No | D34: Doğum Tarihi | E34: Adı ve Soyadı | F34: Okulu | G34: Start Kontrol | I34: SIRA NO | K34: GÖĞÜS NO | L34: DOĞUM TARİHİ | M34: ADI VE SOYADI | N34: OKULU | O34: START KONTROL
A35: 1 | B35: 800M-3-1 | C35: =IF(ISERROR(VLOOKUP(B35,'KAYIT LİSTESİ'!$B$4:$H$829,2,0)),"",(VLOOKUP(B35,'KAYIT LİSTESİ'!$B$4:$H$829,2,0))) -> 57 | D35: =IF(ISERROR(VLOOKUP(B35,'KAYIT LİSTESİ'!$B$4:$H$829,4,0)),"",(VLOOKUP(B35,'KAYIT LİSTESİ'!$B$4:$H$829,4,0))) -> 2001-01-01 | E35: =IF(ISERROR(VLOOKUP(B35,'KAYIT LİSTESİ'!$B$4:$H$829,5,0)),"",(VLOOKUP(B35,'KAYIT LİSTESİ'!$B$4:$H$829,5,0))) -> CEREN KILIÇ | F35: =IF(ISERROR(VLOOKUP(B35,'KAYIT LİSTESİ'!$B$4:$H$829,6,0)),"",(VLOOKUP(B35,'KAYIT LİSTESİ'!$B$4:$H$829,6,0))) -> ARDAHAN | I35: 1 | J35: DİSK-1 | K35: =IF(ISERROR(VLOOKUP(J35,'KAYIT LİSTESİ'!$B$4:$H$829,2,0)),"",(VLOOKUP(J35,'KAYIT LİSTESİ'!$B$4:$H$829,2,0))) -> 357 | L35: =IF(ISERROR(VLOOKUP(J35,'KAYIT LİSTESİ'!$B$4:$H$829,4,0)),"",(VLOOKUP(J35,'KAYIT LİSTESİ'!$B$4:$H$829,4,0))) -> 2001-11-12 | M35: =IF(ISERROR(VLOOKUP(J35,'KAYIT LİSTESİ'!$B$4:$H$829,5,0)),"",(VLOOKUP(J35,'KAYIT LİSTESİ'!$B$4:$H$829,5,0))) -> BUKET USTA | N35: =IF(ISERROR(VLOOKUP(J35,'KAYIT LİSTESİ'!$B$4:$H$829,6,0)),"",(VLOOKUP(J35,'KAYIT LİSTESİ'!$B$4:$H$829,6,0))) -> İSTANBUL
A36: 2 | B36: 800M-3-2 | C36: =IF(ISERROR(VLOOKUP(B36,'KAYIT LİSTESİ'!$B$4:$H$829,2,0)),"",(VLOOKUP(B36,'KAYIT LİSTESİ'!$B$4:$H$829,2,0))) -> 473 | D36: =IF(ISERROR(VLOOKUP(B36,'KAYIT LİSTESİ'!$B$4:$H$829,4,0)),"",(VLOOKUP(B36,'KAYIT LİSTESİ'!$B$4:$H$829,4,0))) -> 2001-06-10 | E36: =IF(ISERROR(VLOOKUP(B36,'KAYIT LİSTESİ'!$B$4:$H$829,5,0)),"",(VLOOKUP(B36,'KAYIT LİSTESİ'!$B$4:$H$829,5,0))) -> SULTAN GÜNDOĞDU | F36: =IF(ISERROR(VLOOKUP(B36,'KAYIT LİSTESİ'!$B$4:$H$829,6,0)),"",(VLOOKUP(B36,'KAYIT LİSTESİ'!$B$4:$H$829,6,0))) -> KIRIKKALE | I36: 2 | J36: DİSK-2 | K36: =IF(ISERROR(VLOOKUP(J36,'KAYIT LİSTESİ'!$B$4:$H$829,2,0)),"",(VLOOKUP(J36,'KAYIT LİSTESİ'!$B$4:$H$829,2,0))) -> 494 | L36: =IF(ISERROR(VLOOKUP(J36,'KAYIT LİSTESİ'!$B$4:$H$829,4,0)),"",(VLOOKUP(J36,'KAYIT LİSTESİ'!$B$4:$H$829,4,0))) -> 2001-06-06 | M36: =IF(ISERROR(VLOOKUP(J36,'KAYIT LİSTESİ'!$B$4:$H$829,5,0)),"",(VLOOKUP(J36,'KAYIT LİSTESİ'!$B$4:$H$829,5,0))) -> Gamze ŞİMŞEK | N36: =IF(ISERROR(VLOOKUP(J36,'KAYIT LİSTESİ'!$B$4:$H$829,6,0)),"",(VLOOKUP(J36,'KAYIT LİSTESİ'!$B$4:$H$829,6,0))) -> KIRŞEHİR
A37: 3 | B37: 800M-3-3 | C37: =IF(ISERROR(VLOOKUP(B37,'KAYIT LİSTESİ'!$B$4:$H$829,2,0)),"",(VLOOKUP(B37,'KAYIT LİSTESİ'!$B$4:$H$829,2,0))) -> 340 | D37: =IF(ISERROR(VLOOKUP(B37,'KAYIT LİSTESİ'!$B$4:$H$829,4,0)),"",(VLOOKUP(B37,'KAYIT LİSTESİ'!$B$4:$H$829,4,0))) -> 2001-07-15 | E37: =IF(ISERROR(VLOOKUP(B37,'KAYIT LİSTESİ'!$B$4:$H$829,5,0)),"",(VLOOKUP(B37,'KAYIT LİSTESİ'!$B$4:$H$829,5,0))) -> KUBRA GÜLER | F37: =IF(ISERROR(VLOOKUP(B37,'KAYIT LİSTESİ'!$B$4:$H$829,6,0)),"",(VLOOKUP(B37,'KAYIT LİSTESİ'!$B$4:$H$829,6,0))) -> ISPARTA | I37: 3 | J37: DİSK-3 | K37: =IF(ISERROR(VLOOKUP(J37,'KAYIT LİSTESİ'!$B$4:$H$829,2,0)),"",(VLOOKUP(J37,'KAYIT LİSTESİ'!$B$4:$H$829,2,0))) -> 105 | L37: =IF(ISERROR(VLOOKUP(J37,'KAYIT LİSTESİ'!$B$4:$H$829,4,0)),"",(VLOOKUP(J37,'KAYIT LİSTESİ'!$B$4:$H$829,4,0))) -> 2001-02-28 | M37: =IF(ISERROR(VLOOKUP(J37,'KAYIT LİSTESİ'!$B$4:$H$829,5,0)),"",(VLOOKUP(J37,'KAYIT LİSTESİ'!$B$4:$H$829,5,0))) -> SENA KAYNAR | N37: =IF(ISERROR(VLOOKUP(J37,'KAYIT LİSTESİ'!$B$4:$H$829,6,0)),"",(VLOOKUP(J37,'KAYIT LİSTESİ'!$B$4:$H$829,6,0))) -> BALIKESİR
A38: 4 | B38: 800M-3-4 | C38: =IF(ISERROR(VLOOKUP(B38,'KAYIT LİSTESİ'!$B$4:$H$829,2,0)),"",(VLOOKUP(B38,'KAYIT LİSTESİ'!$B$4:$H$829,2,0))) -> 331 | D38: =IF(ISERROR(VLOOKUP(B38,'KAYIT LİSTESİ'!$B$4:$H$829,4,0)),"",(VLOOKUP(B38,'KAYIT LİSTESİ'!$B$4:$H$829,4,0))) -> 2001-03-13 | E38: =IF(ISERROR(VLOOKUP(B38,'KAYIT LİSTESİ'!$B$4:$H$829,5,0)),"",(VLOOKUP(B38,'KAYIT LİSTESİ'!$B$4:$H$829,5,0))) -> BÜŞRA UYSAL | F38: =IF(ISERROR(VLOOKUP(B38,'KAYIT LİSTESİ'!$B$4:$H$829,6,0)),"",(VLOOKUP(B38,'KAYIT LİSTESİ'!$B$4:$H$829,6,0))) -> ISPARTA | I38: 4 | J38: DİSK-4 | K38: =IF(ISERROR(VLOOKUP(J38,'KAYIT LİSTESİ'!$B$4:$H$829,2,0)),"",(VLOOKUP(J38,'KAYIT LİSTESİ'!$B$4:$H$829,2,0))) ->  | L38: =IF(ISERROR(VLOOKUP(J38,'KAYIT LİSTESİ'!$B$4:$H$829,4,0)),"",(VLOOKUP(J38,'KAYIT LİSTESİ'!$B$4:$H$829,4,0))) ->  | M38: =IF(ISERROR(VLOOKUP(J38,'KAYIT LİSTESİ'!$B$4:$H$829,5,0)),"",(VLOOKUP(J38,'KAYIT LİSTESİ'!$B$4:$H$829,5,0))) ->  | N38: =IF(ISERROR(VLOOKUP(J38,'KAYIT LİSTESİ'!$B$4:$H$829,6,0)),"",(VLOOKUP(J38,'KAYIT LİSTESİ'!$B$4:$H$829,6,0))) -> 
A39: 5 | B39: 800M-3-5 | C39: =IF(ISERROR(VLOOKUP(B39,'KAYIT LİSTESİ'!$B$4:$H$829,2,0)),"",(VLOOKUP(B39,'KAYIT LİSTESİ'!$B$4:$H$829,2,0))) -> 563 | D39: =IF(ISERROR(VLOOKUP(B39,'KAYIT LİSTESİ'!$B$4:$H$829,4,0)),"",(VLOOKUP(B39,'KAYIT LİSTESİ'!$B$4:$H$829,4,0))) -> 2001-02-17 | E39: =IF(ISERROR(VLOOKUP(B39,'KAYIT LİSTESİ'!$B$4:$H$829,5,0)),"",(VLOOKUP(B39,'KAYIT LİSTESİ'!$B$4:$H$829,5,0))) -> KARDELEN YILDIZ | F39: =IF(ISERROR(VLOOKUP(B39,'KAYIT LİSTESİ'!$B$4:$H$829,6,0)),"",(VLOOKUP(B39,'KAYIT LİSTESİ'!$B$4:$H$829,6,0))) -> MUĞLA | I39: 5 | J39: DİSK-5 | K39: =IF(ISERROR(VLOOKUP(J39,'KAYIT LİSTESİ'!$B$4:$H$829,2,0)),"",(VLOOKUP(J39,'KAYIT LİSTESİ'!$B$4:$H$829,2,0))) ->  | L39: =IF(ISERROR(VLOOKUP(J39,'KAYIT LİSTESİ'!$B$4:$H$829,4,0)),"",(VLOOKUP(J39,'KAYIT LİSTESİ'!$B$4:$H$829,4,0))) ->  | M39: =IF(ISERROR(VLOOKUP(J39,'KAYIT LİSTESİ'!$B$4:$H$829,5,0)),"",(VLOOKUP(J39,'KAYIT LİSTESİ'!$B$4:$H$829,5,0))) ->  | N39: =IF(ISERROR(VLOOKUP(J39,'KAYIT LİSTESİ'!$B$4:$H$829,6,0)),"",(VLOOKUP(J39,'KAYIT LİSTESİ'!$B$4:$H$829,6,0))) -> 
A40: 6 | B40: 800M-3-6 | C40: =IF(ISERROR(VLOOKUP(B40,'KAYIT LİSTESİ'!$B$4:$H$829,2,0)),"",(VLOOKUP(B40,'KAYIT LİSTESİ'!$B$4:$H$829,2,0))) -> 338 | D40: =IF(ISERROR(VLOOKUP(B40,'KAYIT LİSTESİ'!$B$4:$H$829,4,0)),"",(VLOOKUP(B40,'KAYIT LİSTESİ'!$B$4:$H$829,4,0))) -> 2001-09-24 | E40: =IF(ISERROR(VLOOKUP(B40,'KAYIT LİSTESİ'!$B$4:$H$829,5,0)),"",(VLOOKUP(B40,'KAYIT LİSTESİ'!$B$4:$H$829,5,0))) -> TUĞBA KURT | F40: =IF(ISERROR(VLOOKUP(B40,'KAYIT LİSTESİ'!$B$4:$H$829,6,0)),"",(VLOOKUP(B40,'KAYIT LİSTESİ'!$B$4:$H$829,6,0))) -> ISPARTA | I40: 6 | J40: DİSK-6 | K40: =IF(ISERROR(VLOOKUP(J40,'KAYIT LİSTESİ'!$B$4:$H$829,2,0)),"",(VLOOKUP(J40,'KAYIT LİSTESİ'!$B$4:$H$829,2,0))) ->  | L40: =IF(ISERROR(VLOOKUP(J40,'KAYIT LİSTESİ'!$B$4:$H$829,4,0)),"",(VLOOKUP(J40,'KAYIT LİSTESİ'!$B$4:$H$829,4,0))) ->  | M40: =IF(ISERROR(VLOOKUP(J40,'KAYIT LİSTESİ'!$B$4:$H$829,5,0)),"",(VLOOKUP(J40,'KAYIT LİSTESİ'!$B$4:$H$829,5,0))) ->  | N40: =IF(ISERROR(VLOOKUP(J40,'KAYIT LİSTESİ'!$B$4:$H$829,6,0)),"",(VLOOKUP(J40,'KAYIT LİSTESİ'!$B$4:$H$829,6,0))) -> 
